{"text_format":"1","workbook":"xlsx","n_sheets":9,"sheets":["Angaben zur Einrichtung","DaE Drittletztes J.","DaE Vorletztes J.","DaE Letztes J.","DaZ Drittletztes J.","DaZ Vorletztes J.","DaZ Letztes J.","Einstellungen","Stammdaten"],"not_rendered":{"charts":0,"images":1,"macros":1,"external_links":0,"defined_names":1,"comments":1,"pivot_tables":0},"unopened":[],"bounds":{"document_bytes":16777216,"sheet_cells":100000,"rows_first":2000,"rows_last":500,"rows_between":2000,"halvings":0,"cell_chars":16384,"cell_head_chars":4096},"cells_cut":0,"cells_raw":0,"read":"whole","date_system":"1900"}

{"sheet":"Angaben zur Einrichtung","index":0,"n_rows":63,"n_cols":26,"rows_kept":63,"cut":false,"hidden":false,"merged":[[25,0,26,8],[32,0,32,12],[33,0,34,12],[16,0,17,1],[16,3,17,5],[1022,0,1022,1],[1022,2,1022,3],[1022,5,1022,7],[1022,8,1022,9],[1022,10,1022,11],[1023,0,1023,1],[1023,2,1023,3],[1023,5,1023,7],[1023,8,1023,9],[1023,10,1023,11],[1024,0,1024,1],[1024,2,1024,3],[1024,5,1024,7],[1024,8,1024,9],[1024,10,1024,11],[1018,0,1018,1],[1018,2,1018,3],[1018,5,1018,7],[1018,8,1018,9],[1018,10,1018,11],[1019,0,1019,1],[1019,2,1019,3],[1019,5,1019,7],[1019,8,1019,9],[1019,10,1019,11],[1020,0,1020,1],[1020,2,1020,3],[1020,5,1020,7],[1020,8,1020,9],[1020,10,1020,11],[1021,0,1021,1],[1021,2,1021,3],[1021,5,1021,7],[1021,8,1021,9],[1021,10,1021,11],[1014,0,1014,1],[1014,2,1014,3],[1014,5,1014,7],[1014,8,1014,9],[1014,10,1014,11],[1015,0,1015,1],[1015,2,1015,3],[1015,5,1015,7],[1015,8,1015,9],[1015,10,1015,11],[1016,0,1016,1],[1016,2,1016,3],[1016,5,1016,7],[1016,8,1016,9],[1016,10,1016,11],[1017,0,1017,1],[1017,2,1017,3],[1017,5,1017,7],[1017,8,1017,9],[1017,10,1017,11],[1010,0,1010,1],[1010,2,1010,3],[1010,5,1010,7],[1010,8,1010,9],[1010,10,1010,11],[1011,0,1011,1],[1011,2,1011,3],[1011,5,1011,7],[1011,8,1011,9],[1011,10,1011,11],[1012,0,1012,1],[1012,2,1012,3],[1012,5,1012,7],[1012,8,1012,9],[1012,10,1012,11],[1013,0,1013,1],[1013,2,1013,3],[1013,5,1013,7],[1013,8,1013,9],[1013,10,1013,11],[1006,0,1006,1],[1006,2,1006,3],[1006,5,1006,7],[1006,8,1006,9],[1006,10,1006,11],[1007,0,1007,1],[1007,2,1007,3],[1007,5,1007,7],[1007,8,1007,9],[1007,10,1007,11],[1008,0,1008,1],[1008,2,1008,3],[1008,5,1008,7],[1008,8,1008,9],[1008,10,1008,11],[1009,0,1009,1],[1009,2,1009,3],[1009,5,1009,7],[1009,8,1009,9],[1009,10,1009,11],[1002,0,1002,1],[1002,2,1002,3],[1002,5,1002,7],[1002,8,1002,9],[1002,10,1002,11],[1003,0,1003,1],[1003,2,1003,3],[1003,5,1003,7],[1003,8,1003,9],[1003,10,1003,11],[1004,0,1004,1],[1004,2,1004,3],[1004,5,1004,7],[1004,8,1004,9],[1004,10,1004,11],[1005,0,1005,1],[1005,2,1005,3],[1005,5,1005,7],[1005,8,1005,9],[1005,10,1005,11],[998,0,998,1],[998,2,998,3],[998,5,998,7],[998,8,998,9],[998,10,998,11],[999,0,999,1],[999,2,999,3],[999,5,999,7],[999,8,999,9],[999,10,999,11],[1000,0,1000,1],[1000,2,1000,3],[1000,5,1000,7],[1000,8,1000,9],[1000,10,1000,11],[1001,0,1001,1],[1001,2,1001,3],[1001,5,1001,7],[1001,8,1001,9],[1001,10,1001,11],[994,0,994,1],[994,2,994,3],[994,5,994,7],[994,8,994,9],[994,10,994,11],[995,0,995,1],[995,2,995,3],[995,5,995,7],[995,8,995,9],[995,10,995,11],[996,0,996,1],[996,2,996,3],[996,5,996,7],[996,8,996,9],[996,10,996,11],[997,0,997,1],[997,2,997,3],[997,5,997,7],[997,8,997,9],[997,10,997,11],[990,0,990,1],[990,2,990,3],[990,5,990,7],[990,8,990,9],[990,10,990,11],[991,0,991,1],[991,2,991,3],[991,5,991,7],[991,8,991,9],[991,10,991,11],[992,0,992,1],[992,2,992,3],[992,5,992,7],[992,8,992,9],[992,10,992,11],[993,0,993,1],[993,2,993,3],[993,5,993,7],[993,8,993,9],[993,10,993,11],[62,13,62,14],[234,8,234,9],[234,10,234,11],[235,8,235,9],[235,10,235,11],[236,8,236,9],[236,10,236,11],[231,8,231,9],[231,10,231,11],[246,8,246,9],[246,10,246,11],[247,8,247,9],[247,10,247,11],[243,8,243,9],[243,10,243,11],[244,8,244,9],[244,10,244,11],[245,8,245,9],[245,10,245,11],[240,8,240,9],[240,10,240,11],[241,8,241,9],[241,10,241,11],[242,8,242,9],[242,10,242,11],[237,8,237,9],[237,10,237,11],[238,8,238,9],[238,10,238,11],[239,8,239,9],[239,10,239,11],[232,8,232,9],[232,10,232,11],[233,8,233,9],[233,10,233,11],[228,8,228,9],[228,10,228,11],[229,8,229,9],[229,10,229,11],[230,8,230,9],[230,10,230,11],[225,8,225,9],[225,10,225,11],[226,8,226,9],[226,10,226,11],[227,8,227,9],[227,10,227,11],[215,10,215,11],[222,8,222,9],[222,10,222,11],[223,8,223,9],[223,10,223,11],[224,8,224,9],[224,10,224,11],[219,10,219,11],[220,8,220,9],[220,10,220,11],[221,8,221,9],[221,10,221,11],[216,8,216,9],[216,10,216,11],[217,8,217,9],[217,10,217,11],[218,10,218,11],[205,10,205,11],[206,8,206,9],[206,10,206,11],[201,10,201,11],[202,8,202,9],[202,10,202,11],[203,8,203,9],[203,10,203,11],[198,8,198,9],[198,10,198,11],[199,8,199,9],[199,10,199,11],[200,8,200,9],[200,10,200,11],[213,8,213,9],[213,10,213,11],[214,8,214,9],[214,10,214,11],[210,10,210,11],[211,8,211,9],[211,10,211,11],[212,8,212,9],[212,10,212,11],[207,8,207,9],[207,10,207,11],[208,8,208,9],[208,10,208,11],[209,8,209,9],[209,10,209,11],[195,10,195,11],[196,8,196,9],[196,10,196,11],[197,8,197,9],[197,10,197,11],[192,10,192,11],[193,8,193,9],[193,10,193,11],[194,8,194,9],[194,10,194,11],[189,8,189,9],[189,10,189,11],[190,8,190,9],[190,10,190,11],[191,8,191,9],[191,10,191,11],[204,8,204,9],[204,10,204,11],[179,10,179,11],[174,10,174,11],[175,8,175,9],[175,10,175,11],[176,8,176,9],[176,10,176,11],[171,8,171,9],[171,10,171,11],[172,8,172,9],[172,10,172,11],[173,8,173,9],[173,10,173,11],[186,8,186,9],[186,10,186,11],[187,8,187,9],[187,10,187,11],[188,8,188,9],[188,10,188,11],[183,10,183,11],[184,8,184,9],[184,10,184,11],[185,8,185,9],[185,10,185,11],[180,8,180,9],[180,10,180,11],[181,8,181,9],[181,10,181,11],[182,8,182,9],[182,10,182,11],[169,10,169,11],[170,8,170,9],[170,10,170,11],[165,10,165,11],[166,8,166,9],[166,10,166,11],[167,8,167,9],[167,10,167,11],[162,8,162,9],[162,10,162,11],[163,8,163,9],[163,10,163,11],[164,8,164,9],[164,10,164,11],[177,8,177,9],[177,10,177,11],[178,8,178,9],[178,10,178,11],[159,10,159,11],[160,8,160,9],[160,10,160,11],[161,8,161,9],[161,10,161,11],[156,10,156,11],[157,8,157,9],[157,10,157,11],[158,8,158,9],[158,10,158,11],[153,8,153,9],[153,10,153,11],[154,8,154,9],[154,10,154,11],[155,8,155,9],[155,10,155,11],[168,8,168,9],[168,10,168,11],[143,10,143,11],[138,10,138,11],[139,8,139,9],[139,10,139,11],[140,8,140,9],[140,10,140,11],[135,8,135,9],[135,10,135,11],[136,8,136,9],[136,10,136,11],[137,8,137,9],[137,10,137,11],[150,8,150,9],[150,10,150,11],[151,8,151,9],[151,10,151,11],[152,8,152,9],[152,10,152,11],[147,10,147,11],[148,8,148,9],[148,10,148,11],[149,8,149,9],[149,10,149,11],[144,8,144,9],[144,10,144,11],[145,8,145,9],[145,10,145,11],[146,8,146,9],[146,10,146,11],[133,10,133,11],[134,8,134,9],[134,10,134,11],[129,10,129,11],[130,8,130,9],[130,10,130,11],[131,8,131,9],[131,10,131,11],[126,8,126,9],[126,10,126,11],[127,8,127,9],[127,10,127,11],[128,8,128,9],[128,10,128,11],[141,8,141,9],[141,10,141,11],[142,8,142,9],[142,10,142,11],[123,10,123,11],[124,8,124,9],[124,10,124,11],[125,8,125,9],[125,10,125,11],[120,10,120,11],[121,8,121,9],[121,10,121,11],[122,8,122,9],[122,10,122,11],[117,8,117,9],[117,10,117,11],[118,8,118,9],[118,10,118,11],[119,8,119,9],[119,10,119,11],[132,8,132,9],[132,10,132,11],[97,10,97,11],[98,8,98,9],[98,10,98,11],[114,8,114,9],[114,10,114,11],[115,8,115,9],[115,10,115,11],[116,8,116,9],[116,10,116,11],[111,10,111,11],[112,8,112,9],[112,10,112,11],[113,8,113,9],[113,10,113,11],[108,8,108,9],[108,10,108,11],[109,8,109,9],[109,10,109,11],[110,8,110,9],[110,10,110,11],[66,10,66,11],[67,8,67,9],[67,10,67,11],[68,8,68,9],[68,10,68,11],[63,10,63,11],[64,8,64,9],[105,8,105,9],[105,10,105,11],[106,8,106,9],[106,10,106,11],[107,8,107,9],[107,10,107,11],[87,10,87,11],[88,8,88,9],[88,10,88,11],[89,8,89,9],[89,10,89,11],[102,10,102,11],[103,8,103,9],[103,10,103,11],[104,8,104,9],[104,10,104,11],[99,8,99,9],[99,10,99,11],[100,8,100,9],[100,10,100,11],[101,8,101,9],[101,10,101,11],[96,8,96,9],[96,10,96,11],[97,8,97,9],[83,10,83,11],[78,8,78,9],[78,10,78,11],[79,8,79,9],[79,10,79,11],[80,8,80,9],[80,10,80,11],[57,10,57,11],[58,8,58,9],[58,10,58,11],[59,8,59,9],[59,10,59,11],[54,10,54,11],[55,8,55,9],[55,10,55,11],[56,8,56,9],[56,10,56,11],[75,10,75,11],[76,8,76,9],[76,10,76,11],[77,8,77,9],[77,10,77,11],[72,10,72,11],[73,8,73,9],[73,10,73,11],[74,8,74,9],[74,10,74,11],[69,10,69,11],[70,8,70,9],[70,10,70,11],[71,8,71,9],[71,10,71,11],[64,10,64,11],[65,8,65,9],[65,10,65,11],[93,8,93,9],[93,10,93,11],[94,8,94,9],[94,10,94,11],[95,8,95,9],[95,10,95,11],[90,8,90,9],[90,10,90,11],[91,8,91,9],[91,10,91,11],[92,8,92,9],[92,10,92,11],[87,8,87,9],[60,10,60,11],[61,8,61,9],[61,10,61,11],[62,8,62,9],[62,10,62,11],[84,8,84,9],[84,10,84,11],[85,8,85,9],[85,10,85,11],[86,8,86,9],[86,10,86,11],[81,8,81,9],[81,10,81,11],[82,8,82,9],[82,10,82,11],[83,8,83,9],[139,5,139,7],[140,5,140,7],[141,5,141,7],[142,5,142,7],[219,5,219,7],[102,8,102,9],[111,8,111,9],[120,8,120,9],[129,8,129,9],[138,8,138,9],[147,8,147,9],[156,8,156,9],[165,8,165,9],[174,8,174,9],[183,8,183,9],[192,8,192,9],[201,8,201,9],[210,8,210,9],[219,8,219,9],[181,5,181,7],[123,8,123,9],[133,8,133,9],[143,8,143,9],[159,8,159,9],[169,8,169,9],[179,8,179,9],[195,8,195,9],[205,8,205,9],[215,8,215,9],[132,5,132,7],[134,5,134,7],[218,8,218,9],[136,5,136,7],[137,5,137,7],[178,5,178,7],[179,5,179,7],[176,5,176,7],[177,5,177,7],[198,5,198,7],[199,5,199,7],[200,5,200,7],[44,8,44,9],[45,8,45,9],[48,8,48,9],[51,8,51,9],[54,8,54,9],[57,8,57,9],[60,8,60,9],[63,8,63,9],[66,8,66,9],[69,8,69,9],[72,8,72,9],[75,8,75,9],[113,5,113,7],[114,5,114,7],[115,5,115,7],[116,5,116,7],[117,5,117,7],[118,5,118,7],[119,5,119,7],[55,5,55,7],[120,5,120,7],[56,5,56,7],[138,5,138,7],[247,2,247,3],[242,2,242,3],[243,2,243,3],[244,2,244,3],[245,2,245,3],[246,2,246,3],[237,2,237,3],[71,5,71,7],[72,5,72,7],[73,5,73,7],[74,5,74,7],[75,5,75,7],[76,5,76,7],[77,5,77,7],[78,5,78,7],[79,5,79,7],[80,5,80,7],[81,5,81,7],[82,5,82,7],[100,5,100,7],[101,5,101,7],[102,5,102,7],[103,5,103,7],[104,5,104,7],[105,5,105,7],[106,5,106,7],[107,5,107,7],[108,5,108,7],[109,5,109,7],[110,5,110,7],[111,5,111,7],[112,5,112,7],[238,2,238,3],[239,2,239,3],[240,2,240,3],[241,2,241,3],[232,2,232,3],[233,2,233,3],[234,2,234,3],[235,2,235,3],[236,2,236,3],[227,2,227,3],[228,2,228,3],[229,2,229,3],[230,2,230,3],[231,2,231,3],[222,2,222,3],[223,2,223,3],[224,2,224,3],[225,2,225,3],[226,2,226,3],[217,2,217,3],[218,2,218,3],[219,2,219,3],[220,2,220,3],[221,2,221,3],[212,2,212,3],[213,2,213,3],[214,2,214,3],[215,2,215,3],[216,2,216,3],[207,2,207,3],[208,2,208,3],[209,2,209,3],[210,2,210,3],[211,2,211,3],[202,2,202,3],[203,2,203,3],[204,2,204,3],[205,2,205,3],[206,2,206,3],[197,2,197,3],[198,2,198,3],[199,2,199,3],[200,2,200,3],[201,2,201,3],[192,2,192,3],[193,2,193,3],[194,2,194,3],[195,2,195,3],[196,2,196,3],[187,2,187,3],[188,2,188,3],[189,2,189,3],[190,2,190,3],[191,2,191,3],[182,2,182,3],[183,2,183,3],[184,2,184,3],[185,2,185,3],[186,2,186,3],[177,2,177,3],[178,2,178,3],[179,2,179,3],[180,2,180,3],[181,2,181,3],[172,2,172,3],[173,2,173,3],[174,2,174,3],[175,2,175,3],[176,2,176,3],[167,2,167,3],[168,2,168,3],[169,2,169,3],[170,2,170,3],[171,2,171,3],[162,2,162,3],[163,2,163,3],[164,2,164,3],[165,2,165,3],[166,2,166,3],[157,2,157,3],[158,2,158,3],[159,2,159,3],[160,2,160,3],[161,2,161,3],[152,2,152,3],[153,2,153,3],[154,2,154,3],[155,2,155,3],[156,2,156,3],[147,2,147,3],[148,2,148,3],[149,2,149,3],[150,2,150,3],[151,2,151,3],[142,2,142,3],[143,2,143,3],[144,2,144,3],[145,2,145,3],[146,2,146,3],[137,2,137,3],[138,2,138,3],[139,2,139,3],[140,2,140,3],[141,2,141,3],[132,2,132,3],[133,2,133,3],[134,2,134,3],[135,2,135,3],[136,2,136,3],[127,2,127,3],[128,2,128,3],[129,2,129,3],[130,2,130,3],[131,2,131,3],[122,2,122,3],[123,2,123,3],[124,2,124,3],[125,2,125,3],[126,2,126,3],[87,2,87,3],[88,2,88,3],[89,2,89,3],[90,2,90,3],[91,2,91,3],[82,2,82,3],[83,2,83,3],[84,2,84,3],[85,2,85,3],[86,2,86,3],[117,2,117,3],[118,2,118,3],[119,2,119,3],[120,2,120,3],[121,2,121,3],[112,2,112,3],[113,2,113,3],[114,2,114,3],[115,2,115,3],[116,2,116,3],[107,2,107,3],[108,2,108,3],[109,2,109,3],[110,2,110,3],[111,2,111,3],[102,2,102,3],[103,2,103,3],[104,2,104,3],[105,2,105,3],[106,2,106,3],[92,2,92,3],[93,2,93,3],[245,0,245,1],[246,0,246,1],[247,0,247,1],[44,2,44,3],[45,2,45,3],[46,2,46,3],[47,2,47,3],[48,2,48,3],[49,2,49,3],[50,2,50,3],[51,2,51,3],[52,2,52,3],[53,2,53,3],[54,2,54,3],[55,2,55,3],[56,2,56,3],[240,0,240,1],[241,0,241,1],[242,0,242,1],[243,0,243,1],[244,0,244,1],[235,0,235,1],[236,0,236,1],[237,0,237,1],[238,0,238,1],[239,0,239,1],[230,0,230,1],[77,2,77,3],[78,2,78,3],[79,2,79,3],[80,2,80,3],[81,2,81,3],[231,0,231,1],[232,0,232,1],[233,0,233,1],[234,0,234,1],[225,0,225,1],[226,0,226,1],[227,0,227,1],[228,0,228,1],[229,0,229,1],[220,0,220,1],[221,0,221,1],[222,0,222,1],[223,0,223,1],[224,0,224,1],[215,0,215,1],[216,0,216,1],[217,0,217,1],[218,0,218,1],[219,0,219,1],[210,0,210,1],[211,0,211,1],[212,0,212,1],[213,0,213,1],[214,0,214,1],[205,0,205,1],[206,0,206,1],[207,0,207,1],[208,0,208,1],[209,0,209,1],[200,0,200,1],[201,0,201,1],[202,0,202,1],[203,0,203,1],[204,0,204,1],[195,0,195,1],[196,0,196,1],[197,0,197,1],[198,0,198,1],[199,0,199,1],[190,0,190,1],[191,0,191,1],[192,0,192,1],[193,0,193,1],[194,0,194,1],[185,0,185,1],[186,0,186,1],[187,0,187,1],[188,0,188,1],[189,0,189,1],[180,0,180,1],[181,0,181,1],[182,0,182,1],[183,0,183,1],[184,0,184,1],[175,0,175,1],[176,0,176,1],[177,0,177,1],[178,0,178,1],[179,0,179,1],[170,0,170,1],[171,0,171,1],[172,0,172,1],[173,0,173,1],[174,0,174,1],[165,0,165,1],[166,0,166,1],[167,0,167,1],[168,0,168,1],[169,0,169,1],[160,0,160,1],[161,0,161,1],[162,0,162,1],[163,0,163,1],[164,0,164,1],[155,0,155,1],[156,0,156,1],[157,0,157,1],[158,0,158,1],[159,0,159,1],[150,0,150,1],[151,0,151,1],[152,0,152,1],[153,0,153,1],[154,0,154,1],[145,0,145,1],[146,0,146,1],[147,0,147,1],[148,0,148,1],[149,0,149,1],[140,0,140,1],[141,0,141,1],[142,0,142,1],[143,0,143,1],[144,0,144,1],[135,0,135,1],[136,0,136,1],[137,0,137,1],[138,0,138,1],[139,0,139,1],[130,0,130,1],[131,0,131,1],[132,0,132,1],[133,0,133,1],[134,0,134,1],[125,0,125,1],[126,0,126,1],[127,0,127,1],[128,0,128,1],[129,0,129,1],[120,0,120,1],[121,0,121,1],[122,0,122,1],[123,0,123,1],[124,0,124,1],[115,0,115,1],[116,0,116,1],[117,0,117,1],[118,0,118,1],[119,0,119,1],[95,2,95,3],[96,2,96,3],[76,2,76,3],[94,2,94,3],[67,2,67,3],[68,2,68,3],[69,2,69,3],[70,2,70,3],[110,0,110,1],[111,0,111,1],[112,0,112,1],[113,0,113,1],[114,0,114,1],[105,0,105,1],[106,0,106,1],[107,0,107,1],[108,0,108,1],[109,0,109,1],[100,0,100,1],[101,0,101,1],[102,0,102,1],[103,0,103,1],[104,0,104,1],[95,0,95,1],[96,0,96,1],[97,0,97,1],[98,0,98,1],[99,0,99,1],[71,2,71,3],[97,2,97,3],[98,2,98,3],[99,2,99,3],[100,2,100,3],[101,2,101,3],[55,0,55,1],[56,0,56,1],[57,0,57,1],[58,0,58,1],[59,0,59,1],[59,2,59,3],[60,2,60,3],[61,2,61,3],[72,2,72,3],[73,2,73,3],[74,2,74,3],[90,0,90,1],[91,0,91,1],[92,0,92,1],[93,0,93,1],[94,0,94,1],[85,0,85,1],[86,0,86,1],[87,0,87,1],[88,0,88,1],[89,0,89,1],[80,0,80,1],[81,0,81,1],[82,0,82,1],[83,0,83,1],[84,0,84,1],[75,0,75,1],[76,0,76,1],[77,0,77,1],[78,0,78,1],[79,0,79,1]],"merged_total":4953,"flags":["merged_cut"]}
["BESK KOMPAKT und BESK-DaZ KOMPAKT\nBeobachtungsbogen zur Erfassung der Sprachkompetenz",null,null,null,null,null,null,null,null,null,null,null,null,"Auswertung Kinddaten\nBefüllt sich selbstständig!",null,null,null,null,null,null,null,null,null,null,null,"Gespeichert"]
[]
[]
[]
[]
[null,null,null,null,null,null,null,null,null,null,null,null,null,"Gesamtanzahl der Kinder im drittletzten Kindergartenjahr bis zum letzten Kindergartenjahr",null,null,null,null,null,null,null,null,null,{"$f":"P63+S63+V63","v":0}]
[null,null,null,null,null,null,null,null,null,null,null,null,null,"Gesamtanzahl der beobachteten Kinder im drittletzten Kindergartenjahr bis zum letzten Kindergartenjahr",null,null,null,null,null,null,null,null,null,{"$f":"Q63+T63+W63","v":0}]
[null,null,null,null,null,null,null,null,null,null,null,null,null,"Gesamtanzahl Kinder im drittletzten Kindergartenjahr bis zum letzten Kindergartenjahr mit spez. Sprachförderbedarf",null,null,null,null,null,null,null,null,null,{"$f":"R63+U63+X63","v":0}]
[]
[null,null,null,null,null,null,null,null,null,null,null,null,null,"Anzahl der Kinder im",null,"drittletzten Kindergartenjahr",null,null,null,null,null,null,null,{"$f":"P63","v":0}]
[null,null,null,null,null,null,null,null,null,null,null,null,null,null,null,"vorletzten Kindergartenjahr",null,null,null,null,null,null,null,{"$f":"S63","v":0}]
["Bildungsregion (1-4):",null,null,"Name der Leitung",null,null,null,"Gruppenanzahl:",null,null,null,null,null,null,null,"letzten Kindergartenjahr",null,null,null,null,null,null,null,{"$f":"V63","v":0}]
[null,null,null,null,null,null,null,null,null,"Gemeldete Kinder KIN Frühjahr 25:","Bitte ausfüllen"]
[null,null,null,null,null,null,null,null,null,"Gemeldete Kinder KIN Herbst 25:",0,null,null,"Anzahl der Kinder mit DaE im",null,null,"drittletzten Kindergartenjahr",null,null,null,null,null,null,{"$f":"P41","v":0}]
[null,null,null,null,null,null,null,null,null,null,null,null,null,null,null,null,"vorletzten Kindergartenjahr",null,null,null,null,null,null,{"$f":"S41","v":0}]
["Einrichtungsnummer:",null,null,"Anzahl Fachkräfte mit HLG \"Frühe sprachliche Förderung\"***:",null,null,null,null,null,"Kinderanzahl Rückmeldung Frühjahr*:",{"$f":"COUNTIF(A45:A1025,\"*\")","v":0},null,null,null,null,null,"letzten Kindergartenjahr",null,null,null,null,null,null,{"$f":"V41","v":0}]
[null,null,null,"Bitte ausfüllen",null,null,null,null,null,"Kinderanzahl Rückmeldung Herbst*:",{"$f":"K16-COUNTIF(F45:F1025,\"Schule (Herbst 2025)\")","v":0}]
[null,null,null,null,null,null,null,null,null,null,"*befüllt sich nach Angaben zu Kindern automatisch",null,null,"Anzahl der Kinder mit DaZ im",null,null,"drittletzten Kindergartenjahr",null,null,null,null,null,null,{"$f":"X10-X14","v":0}]
[null,null,null,"***Gesamtanzahl aller Fachkräfte mit  HLG \"Frühe sprachliche Förderung\" ",null,null,null,null,null,null,null,null,null,null,null,null,"vorletzten Kindergartenjahr",null,null,null,null,null,null,{"$f":"X11-X15","v":0}]
["Name und Adresse der Einrichtung**:",null,null,null,null,null,null,"Telefonnummer:",null,null,"E-Mail-Adresse:",null,null,null,null,null,"letzten Kindergartenjahr",null,null,null,null,null,null,{"$f":"X12-X16","v":0}]
[{"$f":"IF(ISERROR(VLOOKUP(A17,Stammdaten!A2:G1130,7,FALSE)),\"\",VLOOKUP(A17,Stammdaten!A2:G1130,7,FALSE))","v":""}]
[null,null,null,null,null,null,null,null,null,null,null,null,null,"Anzahl der Kinder mit spezifischem Sprachförderbedarf im",null,null,null,null,"drittletzten Kindergartenjahr",null,null,null,null,{"$f":"R63","v":0}]
["**befüllt sich nach Eingabe der Einrichtungsnummer automatisch",null,null,null,null,null,null,null,null,null,null,null,null,null,null,null,null,null,"vorletzten Kindergartenjahr",null,null,null,null,{"$f":"U63","v":0}]
[null,null,null,null,null,null,null,null,null,null,null,null,null,null,null,null,null,null,"letzten Kindergartenjahr",null,null,null,null,{"$f":"X63","v":0}]
[]
["Im Herbst 2025 ist hier die Anzahl der benötigten Beobachtungsbögen für die Beobachtung im Frühjahr und Herbst 2026 anzugeben:",null,null,null,null,null,null,null,null,"BESK-DaE",null,null,null,"Anzahl der Kinder mit weiterem Förderbedarf im",null,null,null,"drittletzten Kindergartenjahr",null,null,null,null,null,{"$f":"COUNTIFS('DaE Drittletztes J.'!L5:L100,\"*Ja*\",'DaE Drittletztes J.'!M5:M100,\"*Nein*\")+COUNTIFS('DaZ Drittletztes J.'!L5:L100,\"*Ja*\",'DaZ Drittletztes J.'!M5:M100,\"*Nein*\")","v":0}]
[null,null,null,null,null,null,null,null,null,null,null,null,null,null,null,null,null,"vorletzten Kindergartenjahr",null,null,null,null,null,{"$f":"COUNTIFS('DaE Vorletztes J.'!Q5:Q100,\"*Ja*\",'DaE Vorletztes J.'!R5:R100,\"*Nein*\")+COUNTIFS('DaZ Vorletztes J.'!S5:S100,\"*Ja*\",'DaZ Vorletztes J.'!T5:T100,\"*Nein*\")","v":0}]
[null,null,null,null,null,null,null,null,null,"BESK-DaZ",null,null,null,null,null,null,null,"letzten Kindergartenjahr",null,null,null,null,null,{"$f":"COUNTIFS('DaE Letztes J.'!Q5:Q100,\"*Ja*\",'DaE Letztes J.'!R5:R100,\"*Nein*\")+COUNTIFS('DaZ Letztes J.'!S5:S100,\"*Ja*\",'DaZ Letztes J.'!T5:T100,\"*Nein*\")","v":0}]
[]
["Notizen Frühjahr 2025: Z.B. Kind A1 wurde abgemeldet, Kind B12 nach Rücksprache mit Fachberatung \"Frühe Sprachförderung\" und Sonderkindergartenpädagog:in nicht beobachtbar …"]
[null,null,null,null,null,null,null,null,null,null,null,null,null,"Anzahl der Kinder mit Sprachförderbedarf, für die im CALL \"Frühe Sprachförderung\" angesucht werden kann (Priorität 1)",null,null,null,null,null,null,null,null,null,{"$f":"R63+U63+X63","v":0}]
[null,null,null,null,null,null,null,null,null,null,null,null,null,"…davon Anzahl jener Kinder mit Sprachförderbedarf, die laut Geburtsdatum im Herbst 2025 die Schule besuchen werden (Priorität 1)",null,null,null,null,null,null,null,null,null,{"$f":"X63","v":0}]
["Notizen Herbst 2025: Z.B. Kind A1 wurde abgemeldet, Kind B12 nach Rücksprache mit Fachberatung \"Frühe Sprachförderung\" und Sonderkindergartenpädagog:in nicht beobachtbar …",null,null,null,null,null,null,null,null,null,null,null,null,"Anzahl der Kinder im verpflichtenden Kindergartenjahr (2025/26), für die im CALL \"Frühe Sprachförderung\" angesucht werden kann (Priorität 2)",null,null,null,null,null,null,null,null,null,{"$f":"S63-X23","v":0}]
[]
[]
["Angaben zu den Kindern\n\nHinweis: Die Auswahl \"Nicht beobachtbar\" darf ausschließlich nur nach Rücksprache mit der Fachberatung \"Frühe Sprachförderung\" gewählt werden!",null,null,null,null,null,"Rechenhilfe zur Einteilung in Altersstufen",null,"Geburts-\ndatum \nTT.MM.JJJJ","Kindergarten-\njahr"]
[]
[null,null,null,null,null,null,null,null,null,{"$f":"IF(AND(I38>=Einstellungen!$B$3,I38<=Einstellungen!$C$3),Einstellungen!$D$3,IF(AND(I38>=Einstellungen!$B$4,I38<=Einstellungen!$C$4),Einstellungen!$D$4,IF(AND(I38>=Einstellungen!$B$5,I38<=Einstellungen!$C$5),Einstellungen!$D$5,\"---\")))","v":"---"},null,null,null,"Kinder nach Erstsprache",null,"Drittletztes Jahr\n(02.09.2020  bis 01.09.2021)",null,null,"Vorletztes Jahr\n(02.09.2019 bis 01.09.2020)",null,null,"Letztes Jahr\n(02.09.2018 bis 01.09.2019)"]
[]
[null,null,null,null,null,null,null,null,null,null,null,null,null,null,null,"gesamt","beobachtet","Bedarf","gesamt","beobachtet","Bedarf","gesamt","beobachtet","Bedarf","SUMMEN"]
[null,null,null,null,null,null,null,null,null,null,null,null,null,"Deutsch",null,{"$f":"COUNTIFS(E45:E990,\"*Deutsch*\",C45:C990,\"Drittletztes Jahr\")","v":0},{"$f":"COUNTIFS('DaE Drittletztes J.'!C5:C100,\"Deutsch\")","v":0},{"$f":"COUNTIFS('DaE Drittletztes J.'!C5:C100,\"Deutsch\",'DaE Drittletztes J.'!L5:L100,\"Ja\")","v":0},{"$f":"COUNTIFS(E45:E990,\"*Deutsch*\",C45:C990,\"Vorletztes Jahr\")","v":0},{"$f":"COUNTIFS('DaE Vorletztes J.'!D5:D100,\"Schule (Herbst 2025)\")+(COUNTIFS('DaE Vorletztes J.'!D5:D100,\"\",'DaE Vorletztes J.'!C5:C100,\"Deutsch\"))+(COUNTIFS('DaE Vorletztes J.'!D5:D100,\"Abwesend (COVID-19)\",'DaE Vorletztes J.'!C5:C100,\"Deutsch\"))","v":0},{"$f":"(COUNTIFS('DaE Vorletztes J.'!Q5:Q100,\"Ja\",'DaE Vorletztes J.'!C5:C100,\"Deutsch\"))","v":0},{"$f":"COUNTIFS(E45:E990,\"*Deutsch*\",C45:C990,\"Letztes Jahr\")","v":0},{"$f":"COUNTIFS('DaE Letztes J.'!D5:D100,\"Schule (Herbst 2025)\")+(COUNTIFS('DaE Letztes J.'!D5:D100,\"\",'DaE Letztes J.'!C5:C100,\"Deutsch\"))+(COUNTIFS('DaE Letztes J.'!D5:D100,\"Abwesend (COVID-19)\",'DaE Letztes J.'!C5:C100,\"Deutsch\"))","v":0},{"$f":"COUNTIFS('DaE Letztes J.'!Q5:Q100,\"Ja\",'DaE Letztes J.'!D5:D100,\"Schule (Herbst 2025)\")+(COUNTIFS('DaE Letztes J.'!Q5:Q100,\"Ja\",'DaE Letztes J.'!D5:D100,\"\",'DaE Letztes J.'!C5:C100,\"Deutsch\"))+(COUNTIFS('DaE Letztes J.'!Q5:Q100,\"Ja\",'DaE Letztes J.'!D5:D100,\"Abwesend (COVID-19)\",'DaE Letztes J.'!C5:C100,\"Deutsch\"))","v":0},{"$f":"P41+S41+V41","v":0}]
[]
["Identifikationsnummer",null,"Kindergartenjahr",null,"Erstsprache","Sonstige Angaben",null,null,"Wurde das Kind bereits im Jahr 2024 oder zuvor in dieser Einrichtung beobachtet?",null,"Wenn ja, hatte das Kind im Jahr 2024 spezifischen Sprachförderbedarf?",null,null,"Türkisch",null,{"$f":"COUNTIFS(E45:E990,\"*Türkisch*\",C45:C990,\"Drittletztes Jahr\")","v":0},{"$f":"COUNTIFS('DaZ Drittletztes J.'!C5:C100,\"Türkisch\")","v":0},{"$f":"COUNTIFS('DaZ Drittletztes J.'!C5:C100,\"Türkisch\",'DaZ Drittletztes J.'!L5:L100,\"Ja\")","v":0},{"$f":"COUNTIFS(E45:E990,\"*Türkisch*\",C45:C990,\"Vorletztes Jahr\")","v":0},{"$f":"COUNTIFS('DaZ Vorletztes J.'!D5:D100,\"Schule (Herbst 2025)\",'DaZ Vorletztes J.'!C5:C100,\"Türkisch\")+(COUNTIFS('DaZ Vorletztes J.'!D5:D100,\"\",'DaZ Vorletztes J.'!C5:C100,\"Türkisch\"))+(COUNTIFS('DaZ Vorletztes J.'!D5:D100,\"Abwesend (COVID-19)\",'DaZ Vorletztes J.'!C5:C100,\"Türkisch\"))","v":0},{"$f":"(COUNTIFS('DaZ Vorletztes J.'!S5:S100,\"Ja\",'DaZ Vorletztes J.'!C5:C100,\"Türkisch\"))","v":0},{"$f":"COUNTIFS(E45:E990,\"*Türkisch*\",C45:C990,\"Letztes Jahr\")","v":0},{"$f":"COUNTIFS('DaZ Letztes J.'!D5:D100,\"Schule (Herbst 2025)\",'DaZ Letztes J.'!C5:C100,\"Türkisch\")+(COUNTIFS('DaZ Letztes J.'!D5:D100,\"\",'DaZ Letztes J.'!C5:C100,\"Türkisch\"))+(COUNTIFS('DaZ Letztes J.'!D5:D100,\"Abwesend (COVID-19)\",'DaZ Letztes J.'!C5:C100,\"Türkisch\"))","v":0},{"$f":"COUNTIFS('DaZ Letztes J.'!S5:S100,\"Ja\",'DaZ Letztes J.'!D5:D100,\"Schule (Herbst 2025)\",'DaZ Letztes J.'!C5:C100,\"Türkisch\")+(COUNTIFS('DaZ Letztes J.'!S5:S100,\"Ja\",'DaZ Letztes J.'!D5:D100,\"\",'DaZ Letztes J.'!C5:C100,\"Türkisch\"))+(COUNTIFS('DaZ Letztes J.'!S5:S100,\"Ja\",'DaZ Letztes J.'!D5:D100,\"Abwesend (COVID-19)\",'DaZ Letztes J.'!C5:C100,\"Türkisch\"))","v":0},{"$f":"P43+S43+V43","v":0}]
[null,null,null,null,null,null,null,null,null,null,null,null,null,"BKS",null,{"$f":"COUNTIFS(E45:E990,\"*Bosnisch*\",C45:C990,\"Drittletztes Jahr\")+COUNTIFS(E45:E990,\"*Kroatisch*\",C45:C990,\"Drittletztes Jahr\")+COUNTIFS(E45:E990,\"*Serbisch*\",C45:C990,\"Drittletztes Jahr\")","v":0},{"$f":"COUNTIFS('DaZ Drittletztes J.'!C5:C100,\"Bosnisch\")+COUNTIFS('DaZ Drittletztes J.'!C5:C100,\"Kroatisch\")+COUNTIFS('DaZ Drittletztes J.'!C5:C100,\"Serbisch\")","v":0},{"$f":"COUNTIFS('DaZ Drittletztes J.'!C5:C100,\"Bosnisch\",'DaZ Drittletztes J.'!L5:L100,\"Ja\")+COUNTIFS('DaZ Drittletztes J.'!C5:C100,\"Kroatisch\",'DaZ Drittletztes J.'!L5:L100,\"Ja\")+COUNTIFS('DaZ Drittletztes J.'!C5:C100,\"Serbisch\",'DaZ Drittletztes J.'!L5:L100,\"Ja\")","v":0},{"$f":"COUNTIFS(E45:E990,\"*Bosnisch*\",C45:C990,\"Vorletztes Jahr\")+COUNTIFS(E45:E990,\"*Kroatisch*\",C45:C990,\"Vorletztes Jahr\")+COUNTIFS(E45:E990,\"*Serbisch*\",C45:C990,\"Vorletztes Jahr\")","v":0},{"$f":"COUNTIFS('DaZ Vorletztes J.'!D5:D100,\"Schule (Herbst 2025)\",'DaZ Vorletztes J.'!C5:C100,\"Bosnisch\")+(COUNTIFS('DaZ Vorletztes J.'!D5:D100,\"\",'DaZ Vorletztes J.'!C5:C100,\"Bosnisch\"))+(COUNTIFS('DaZ Vorletztes J.'!D5:D100,\"Abwesend (COVID-19)\",'DaZ Vorletztes J.'!C5:C100,\"BOSNISCH\"))+COUNTIFS('DaZ Vorletztes J.'!D5:D100,\"Schule (Herbst 2025)\",'DaZ Vorletztes J.'!C5:C100,\"Kroatisch\")+(COUNTIFS('DaZ Vorletztes J.'!D5:D100,\"\",'DaZ Vorletztes J.'!C5:C100,\"Kroatisch\"))+(COUNTIFS('DaZ Vorletztes J.'!D5:D100,\"Abwesend (COVID-19)\",'DaZ Vorletztes J.'!C5:C100,\"Kroatisch\"))+COUNTIFS('DaZ Vorletztes J.'!D5:D100,\"Schule (Herbst 2025)\",'DaZ Vorletztes J.'!C5:C100,\"Serbisch\")+(COUNTIFS('DaZ Vorletztes J.'!D5:D100,\"\",'DaZ Vorletztes J.'!C5:C100,\"Serbisch\"))+(COUNTIFS('DaZ Vorletztes J.'!D5:D100,\"Abwesend (COVID-19)\",'DaZ Vorletztes J.'!C5:C100,\"Serbisch\"))","v":0},{"$f":"(COUNTIFS('DaZ Vorletztes J.'!S5:S100,\"Ja\",'DaZ Vorletztes J.'!C5:C100,\"Bosnisch\"))+(COUNTIFS('DaZ Vorletztes J.'!S5:S100,\"Ja\",'DaZ Vorletztes J.'!C5:C100,\"Kroatisch\"))+(COUNTIFS('DaZ Vorletztes J.'!S5:S100,\"Ja\",'DaZ Vorletztes J.'!C5:C100,\"Serbisch\"))","v":0},{"$f":"COUNTIFS(E45:E990,\"*Bosnisch*\",C45:C990,\"Letztes Jahr\")+COUNTIFS(E45:E990,\"*Kroatisch*\",C45:C990,\"Letztes Jahr\")+COUNTIFS(E45:E990,\"*Serbisch*\",C45:C990,\"Letztes Jahr\")","v":0},{"$f":"COUNTIFS('DaZ Letztes J.'!D5:D100,\"Schule (Herbst 2025)\",'DaZ Letztes J.'!C5:C100,\"Bosnisch\")+(COUNTIFS('DaZ Letztes J.'!D5:D100,\"\",'DaZ Letztes J.'!C5:C100,\"Bosnisch\"))+(COUNTIFS('DaZ Letztes J.'!D5:D100,\"Abwesend (COVID-19)\",'DaZ Letztes J.'!C5:C100,\"Bosnisch\"))+COUNTIFS('DaZ Letztes J.'!D5:D100,\"Schule (Herbst 2025)\",'DaZ Letztes J.'!C5:C100,\"Kroatisch\")+(COUNTIFS('DaZ Letztes J.'!D5:D100,\"\",'DaZ Letztes J.'!C5:C100,\"Kroatisch\"))+(COUNTIFS('DaZ Letztes J.'!D5:D100,\"Abwesend (COVID-19)\",'DaZ Letztes J.'!C5:C100,\"Kroatisch\")) +COUNTIFS('DaZ Letztes J.'!D5:D100,\"Schule (Herbst 2025)\",'DaZ Letztes J.'!C5:C100,\"Serbisch\")+(COUNTIFS('DaZ Letztes J.'!D5:D100,\"\",'DaZ Letztes J.'!C5:C100,\"Serbisch\"))+(COUNTIFS('DaZ Letztes J.'!D5:D100,\"Abwesend (COVID-19)\",'DaZ Letztes J.'!C5:C100,\"Serbisch\"))","v":0},{"$f":"COUNTIFS('DaZ Letztes J.'!S5:S100,\"Ja\",'DaZ Letztes J.'!D5:D100,\"Schule (Herbst 2025)\",'DaZ Letztes J.'!C5:C100,\"Bosnisch\")+(COUNTIFS('DaZ Letztes J.'!S5:S100,\"Ja\",'DaZ Letztes J.'!D5:D100,\"\",'DaZ Letztes J.'!C5:C100,\"Bosnisch\")+(COUNTIFS('DaZ Letztes J.'!S5:S100,\"Ja\",'DaZ Letztes J.'!D5:D100,\"Abwesend (COVID-19)\",'DaZ Letztes J.'!C5:C100,\"Bosnisch\"))+COUNTIFS('DaZ Letztes J.'!S5:S100,\"Ja\",'DaZ Letztes J.'!D5:D100,\"Schule (Herbst 2025)\",'DaZ Letztes J.'!C5:C100,\"Kroatisch\")+(COUNTIFS('DaZ Letztes J.'!S5:S100,\"Ja\",'DaZ Letztes J.'!D5:D100,\"\",'DaZ Letztes J.'!C5:C100,\"Kroatisch\")+(COUNTIFS('DaZ Letztes J.'!S5:S100,\"Ja\",'DaZ Letztes J.'!D5:D100,\"Abwesend (COVID-19)\",'DaZ Letztes J.'!C5:C100,\"Kroatisch\"))+COUNTIFS('DaZ Letztes J.'!S5:S100,\"Ja\",'DaZ Letztes J.'!D5:D100,\"Schule (Herbst 2025)\",'DaZ Letztes J.'!C5:C100,\"Serbisch\")+(COUNTIFS('DaZ Letztes J.'!S5:S100,\"Ja\",'DaZ Letztes J.'!D5:D100,\"\",'DaZ Letztes J.'!C5:C100,\"Serbisch\")+(COUNTIFS('DaZ Letztes J.'!S5:S100,\"Ja\",'DaZ Letztes J.'!D5:D100,\"Abwesend (COVID-19)\",'DaZ Letztes J.'!C5:C100,\"Serbisch\")))))","v":0},0]
[null,null,null,null,null,null,null,null,null,null,null,null,null,"Albanisch",null,{"$f":"COUNTIFS(E45:E990,\"*Albanisch*\",C45:C990,\"Drittletztes Jahr\")","v":0},{"$f":"COUNTIFS('DaZ Drittletztes J.'!C5:C100,\"Albanisch\")","v":0},{"$f":"COUNTIFS('DaZ Drittletztes J.'!C5:C100,\"Albanisch\",'DaZ Drittletztes J.'!L5:L100,\"Ja\")","v":0},{"$f":"COUNTIFS(E45:E990,\"*Albanisch*\",C45:C990,\"Vorletztes Jahr\")","v":0},{"$f":"COUNTIFS('DaZ Vorletztes J.'!D5:D100,\"Schule (Herbst 2025)\",'DaZ Vorletztes J.'!C5:C100,\"Albanisch\")+(COUNTIFS('DaZ Vorletztes J.'!D5:D100,\"\",'DaZ Vorletztes J.'!C5:C100,\"Albanisch\"))+(COUNTIFS('DaZ Vorletztes J.'!D5:D100,\"Abwesend (COVID-19)\",'DaZ Vorletztes J.'!C5:C100,\"Albanisch\"))","v":0},{"$f":"(COUNTIFS('DaZ Vorletztes J.'!S5:S100,\"Ja\",'DaZ Vorletztes J.'!C5:C100,\"Albanisch\"))","v":0},{"$f":"COUNTIFS(E45:E990,\"*Albanisch*\",C45:C990,\"Letztes Jahr\")","v":0},{"$f":"COUNTIFS('DaZ Letztes J.'!D5:D100,\"Schule (Herbst 2025)\",'DaZ Letztes J.'!C5:C100,\"Albanisch\")+(COUNTIFS('DaZ Letztes J.'!D5:D100,\"\",'DaZ Letztes J.'!C5:C100,\"Albanisch\"))+(COUNTIFS('DaZ Letztes J.'!D5:D100,\"Abwesend (COVID-19)\",'DaZ Letztes J.'!C5:C100,\"Albanisch\"))","v":0},{"$f":"COUNTIFS('DaZ Letztes J.'!S5:S100,\"Ja\",'DaZ Letztes J.'!D5:D100,\"Schule (Herbst 2025)\",'DaZ Letztes J.'!C5:C100,\"Albanisch\")+(COUNTIFS('DaZ Letztes J.'!S5:S100,\"Ja\",'DaZ Letztes J.'!D5:D100,\"\",'DaZ Letztes J.'!C5:C100,\"Albanisch\"))+(COUNTIFS('DaZ Letztes J.'!S5:S100,\"Ja\",'DaZ Letztes J.'!D5:D100,\"Abwesend (COVID-19)\",'DaZ Letztes J.'!C5:C100,\"Albanisch\"))","v":0},0]
[null,null,null,null,null,null,null,null,null,null,null,null,null,"Rumänisch",null,{"$f":"COUNTIFS(E45:E990,\"*Rumänisch*\",C45:C990,\"Drittletztes Jahr\")","v":0},{"$f":"COUNTIFS('DaZ Drittletztes J.'!C5:C100,\"Rumänisch\")","v":0},{"$f":"COUNTIFS('DaZ Drittletztes J.'!C5:C100,\"Rumänisch\",'DaZ Drittletztes J.'!L5:L100,\"Ja\")","v":0},{"$f":"COUNTIFS(E45:E990,\"*Rumänisch*\",C45:C990,\"Vorletztes Jahr\")","v":0},{"$f":"COUNTIFS('DaZ Vorletztes J.'!D5:D100,\"Schule (Herbst 2025)\",'DaZ Vorletztes J.'!C5:C100,\"Rumänisch\")+(COUNTIFS('DaZ Vorletztes J.'!D5:D100,\"\",'DaZ Vorletztes J.'!C5:C100,\"Rumänisch\"))+(COUNTIFS('DaZ Vorletztes J.'!D5:D100,\"Abwesend (COVID-19)\",'DaZ Vorletztes J.'!C5:C100,\"Rumänisch\"))","v":0},{"$f":"(COUNTIFS('DaZ Vorletztes J.'!S5:S100,\"Ja\",'DaZ Vorletztes J.'!C5:C100,\"Rumänisch\"))","v":0},{"$f":"COUNTIFS(E45:E990,\"*Rumänisch*\",C45:C990,\"Letztes Jahr\")","v":0},{"$f":"COUNTIFS('DaZ Letztes J.'!D5:D100,\"Schule (Herbst 2025)\",'DaZ Letztes J.'!C5:C100,\"Rumänisch\")+(COUNTIFS('DaZ Letztes J.'!D5:D100,\"\",'DaZ Letztes J.'!C5:C100,\"Rumänisch\"))+(COUNTIFS('DaZ Letztes J.'!D5:D100,\"Abwesend (COVID-19)\",'DaZ Letztes J.'!C5:C100,\"Rumänisch\"))","v":0},{"$f":"COUNTIFS('DaZ Letztes J.'!S5:S100,\"Ja\",'DaZ Letztes J.'!D5:D100,\"Schule (Herbst 2025)\",'DaZ Letztes J.'!C5:C100,\"Rumänisch\")+(COUNTIFS('DaZ Letztes J.'!S5:S100,\"Ja\",'DaZ Letztes J.'!D5:D100,\"\",'DaZ Letztes J.'!C5:C100,\"Rumänisch\"))+(COUNTIFS('DaZ Letztes J.'!S5:S100,\"Ja\",'DaZ Letztes J.'!D5:D100,\"Abwesend (COVID-19)\",'DaZ Letztes J.'!C5:C100,\"Rumänisch\"))","v":0},0]
[null,null,null,null,null,null,null,null,null,null,null,null,null,"Arabisch",null,{"$f":"COUNTIFS(E45:E990,\"*Arabisch*\",C45:C990,\"Drittletztes Jahr\")","v":0},{"$f":"COUNTIFS('DaZ Drittletztes J.'!C5:C100,\"Arabisch\")","v":0},{"$f":"COUNTIFS('DaZ Drittletztes J.'!C5:C100,\"Arabisch\",'DaZ Drittletztes J.'!L5:L100,\"Ja\")","v":0},{"$f":"COUNTIFS(E45:E990,\"*Arabisch*\",C45:C990,\"Vorletztes Jahr\")","v":0},{"$f":"COUNTIFS('DaZ Vorletztes J.'!D5:D100,\"Schule (Herbst 2025)\",'DaZ Vorletztes J.'!C5:C100,\"Arabisch\")+(COUNTIFS('DaZ Vorletztes J.'!D5:D100,\"\",'DaZ Vorletztes J.'!C5:C100,\"Arabisch\"))+(COUNTIFS('DaZ Vorletztes J.'!D5:D100,\"Abwesend (COVID-19)\",'DaZ Vorletztes J.'!C5:C100,\"Arabisch\"))","v":0},{"$f":"(COUNTIFS('DaZ Vorletztes J.'!S5:S100,\"Ja\",'DaZ Vorletztes J.'!C5:C100,\"Arabisch\"))","v":0},{"$f":"COUNTIFS(E45:E990,\"*Arabisch*\",C45:C990,\"Letztes Jahr\")","v":0},{"$f":"COUNTIFS('DaZ Letztes J.'!D5:D100,\"Schule (Herbst 2025)\",'DaZ Letztes J.'!C5:C100,\"Arabisch\")+(COUNTIFS('DaZ Letztes J.'!D5:D100,\"\",'DaZ Letztes J.'!C5:C100,\"Arabisch\"))+(COUNTIFS('DaZ Letztes J.'!D5:D100,\"Abwesend (COVID-19)\",'DaZ Letztes J.'!C5:C100,\"Arabisch\"))","v":0},{"$f":"COUNTIFS('DaZ Letztes J.'!S5:S100,\"Ja\",'DaZ Letztes J.'!D5:D100,\"Schule (Herbst 2025)\",'DaZ Letztes J.'!C5:C100,\"Arabisch\")+(COUNTIFS('DaZ Letztes J.'!S5:S100,\"Ja\",'DaZ Letztes J.'!D5:D100,\"\",'DaZ Letztes J.'!C5:C100,\"Arabisch\"))+(COUNTIFS('DaZ Letztes J.'!S5:S100,\"Ja\",'DaZ Letztes J.'!D5:D100,\"Abwesend (COVID-19)\",'DaZ Letztes J.'!C5:C100,\"Arabisch\"))","v":0},0]
[null,null,null,null,null,null,null,null,null,null,null,null,null,"Polnisch",null,{"$f":"COUNTIFS(E45:E990,\"*Polnisch*\",C45:C990,\"Drittletztes Jahr\")","v":0},{"$f":"COUNTIFS('DaZ Drittletztes J.'!C5:C100,\"Polnisch\")","v":0},{"$f":"COUNTIFS('DaZ Drittletztes J.'!C5:C100,\"Polnisch\",'DaZ Drittletztes J.'!L5:L100,\"Ja\")","v":0},{"$f":"COUNTIFS(E45:E990,\"*Polnisch*\",C45:C990,\"Vorletztes Jahr\")","v":0},{"$f":"COUNTIFS('DaZ Vorletztes J.'!D5:D100,\"Schule (Herbst 2025)\",'DaZ Vorletztes J.'!C5:C100,\"Polnisch\")+(COUNTIFS('DaZ Vorletztes J.'!D5:D100,\"\",'DaZ Vorletztes J.'!C5:C100,\"Polnisch\"))+(COUNTIFS('DaZ Vorletztes J.'!D5:D100,\"Abwesend (COVID-19)\",'DaZ Vorletztes J.'!C5:C100,\"Polnisch\"))","v":0},{"$f":"(COUNTIFS('DaZ Vorletztes J.'!S5:S100,\"Ja\",'DaZ Vorletztes J.'!C5:C100,\"Polnisch\"))","v":0},{"$f":"COUNTIFS(E45:E990,\"*Polnisch*\",C45:C990,\"Letztes Jahr\")","v":0},{"$f":"COUNTIFS('DaZ Letztes J.'!D5:D100,\"Schule (Herbst 2025)\",'DaZ Letztes J.'!C5:C100,\"Polnisch\")+(COUNTIFS('DaZ Letztes J.'!D5:D100,\"\",'DaZ Letztes J.'!C5:C100,\"Polnisch\"))+(COUNTIFS('DaZ Letztes J.'!D5:D100,\"Abwesend (COVID-19)\",'DaZ Letztes J.'!C5:C100,\"Polnisch\"))","v":0},{"$f":"COUNTIFS('DaZ Letztes J.'!S5:S100,\"Ja\",'DaZ Letztes J.'!D5:D100,\"Schule (Herbst 2025)\",'DaZ Letztes J.'!C5:C100,\"Polnisch\")+(COUNTIFS('DaZ Letztes J.'!S5:S100,\"Ja\",'DaZ Letztes J.'!D5:D100,\"\",'DaZ Letztes J.'!C5:C100,\"Polnisch\"))+(COUNTIFS('DaZ Letztes J.'!S5:S100,\"Ja\",'DaZ Letztes J.'!D5:D100,\"Abwesend (COVID-19)\",'DaZ Letztes J.'!C5:C100,\"Polnisch\"))","v":0},0]
[null,null,null,null,null,null,null,null,null,null,null,null,null,"Ungarisch",null,{"$f":"COUNTIFS(E45:E990,\"*Ungarisch*\",C45:C990,\"Drittletztes Jahr\")","v":0},{"$f":"COUNTIFS('DaZ Drittletztes J.'!C5:C100,\"Ungarisch\")","v":0},{"$f":"COUNTIFS('DaZ Drittletztes J.'!C5:C100,\"Ungarisch\",'DaZ Drittletztes J.'!L5:L100,\"Ja\")","v":0},{"$f":"COUNTIFS(E45:E990,\"*Ungarisch*\",C45:C990,\"Vorletztes Jahr\")","v":0},{"$f":"COUNTIFS('DaZ Vorletztes J.'!D5:D100,\"Schule (Herbst 2025)\",'DaZ Vorletztes J.'!C5:C100,\"Ungarisch\")+(COUNTIFS('DaZ Vorletztes J.'!D5:D100,\"\",'DaZ Vorletztes J.'!C5:C100,\"Ungarisch\"))+(COUNTIFS('DaZ Vorletztes J.'!D5:D100,\"Abwesend (COVID-19)\",'DaZ Vorletztes J.'!C5:C100,\"Ungarisch\"))","v":0},{"$f":"(COUNTIFS('DaZ Vorletztes J.'!S5:S100,\"Ja\",'DaZ Vorletztes J.'!C5:C100,\"Ungarisch\"))","v":0},{"$f":"COUNTIFS(E45:E990,\"*Ungarisch*\",C45:C990,\"Letztes Jahr\")","v":0},{"$f":"COUNTIFS('DaZ Letztes J.'!D5:D100,\"Schule (Herbst 2025)\",'DaZ Letztes J.'!C5:C100,\"Ungarisch\")+(COUNTIFS('DaZ Letztes J.'!D5:D100,\"\",'DaZ Letztes J.'!C5:C100,\"Ungarisch\"))+(COUNTIFS('DaZ Letztes J.'!D5:D100,\"Abwesend (COVID-19)\",'DaZ Letztes J.'!C5:C100,\"Ungarisch\"))","v":0},{"$f":"COUNTIFS('DaZ Letztes J.'!S5:S100,\"Ja\",'DaZ Letztes J.'!D5:D100,\"Schule (Herbst 2025)\",'DaZ Letztes J.'!C5:C100,\"Ungarisch\")+(COUNTIFS('DaZ Letztes J.'!S5:S100,\"Ja\",'DaZ Letztes J.'!D5:D100,\"\",'DaZ Letztes J.'!C5:C100,\"Ungarisch\"))+(COUNTIFS('DaZ Letztes J.'!S5:S100,\"Ja\",'DaZ Letztes J.'!D5:D100,\"Abwesend (COVID-19)\",'DaZ Letztes J.'!C5:C100,\"Ungarisch\"))","v":0},0]
[null,null,null,null,null,null,null,null,null,null,null,null,null,"Englisch",null,{"$f":"COUNTIFS(E45:E990,\"*Englisch*\",C45:C990,\"Drittletztes Jahr\")","v":0},{"$f":"COUNTIFS('DaZ Drittletztes J.'!C5:C100,\"Englisch\")","v":0},{"$f":"COUNTIFS('DaZ Drittletztes J.'!C5:C100,\"Englisch\",'DaZ Drittletztes J.'!L5:L100,\"Ja\")","v":0},{"$f":"COUNTIFS(E45:E990,\"*Englisch*\",C45:C990,\"Vorletztes Jahr\")","v":0},{"$f":"COUNTIFS('DaZ Vorletztes J.'!D5:D100,\"Schule (Herbst 2025)\",'DaZ Vorletztes J.'!C5:C100,\"Englisch\")+(COUNTIFS('DaZ Vorletztes J.'!D5:D100,\"\",'DaZ Vorletztes J.'!C5:C100,\"Englisch\"))+(COUNTIFS('DaZ Vorletztes J.'!D5:D100,\"Abwesend (COVID-19)\",'DaZ Vorletztes J.'!C5:C100,\"Englisch\"))","v":0},{"$f":"(COUNTIFS('DaZ Vorletztes J.'!S5:S100,\"Ja\",'DaZ Vorletztes J.'!C5:C100,\"Englisch\"))","v":0},{"$f":"COUNTIFS(E45:E990,\"*Englisch*\",C45:C990,\"Letztes Jahr\")","v":0},{"$f":"COUNTIFS('DaZ Letztes J.'!D5:D100,\"Schule (Herbst 2025)\",'DaZ Letztes J.'!C5:C100,\"Englisch\")+(COUNTIFS('DaZ Letztes J.'!D5:D100,\"\",'DaZ Letztes J.'!C5:C100,\"Englisch\"))+(COUNTIFS('DaZ Letztes J.'!D5:D100,\"Abwesend (COVID-19)\",'DaZ Letztes J.'!C5:C100,\"Englisch\"))","v":0},{"$f":"COUNTIFS('DaZ Letztes J.'!S5:S100,\"Ja\",'DaZ Letztes J.'!D5:D100,\"Schule (Herbst 2025)\",'DaZ Letztes J.'!C5:C100,\"Englisch\")+(COUNTIFS('DaZ Letztes J.'!S5:S100,\"Ja\",'DaZ Letztes J.'!D5:D100,\"\",'DaZ Letztes J.'!C5:C100,\"Englisch\"))+(COUNTIFS('DaZ Letztes J.'!S5:S100,\"Ja\",'DaZ Letztes J.'!D5:D100,\"Abwesend (COVID-19)\",'DaZ Letztes J.'!C5:C100,\"Englisch\"))","v":0},0]
[null,null,null,null,null,null,null,null,null,null,null,null,null,"Tschetschenisch",null,{"$f":"COUNTIFS(E45:E990,\"*Tschetschenisch*\",C45:C990,\"Drittletztes Jahr\")","v":0},{"$f":"COUNTIFS('DaZ Drittletztes J.'!C5:C100,\"Tschetschenisch\")","v":0},{"$f":"COUNTIFS('DaZ Drittletztes J.'!C5:C100,\"Tschetschenisch\",'DaZ Drittletztes J.'!L5:L100,\"Ja\")","v":0},{"$f":"COUNTIFS(E45:E990,\"*Tschetschenisch*\",C45:C990,\"Vorletztes Jahr\")","v":0},{"$f":"COUNTIFS('DaZ Vorletztes J.'!D5:D100,\"Schule (Herbst 2025)\",'DaZ Vorletztes J.'!C5:C100,\"Tschetschenisch\")+(COUNTIFS('DaZ Vorletztes J.'!D5:D100,\"\",'DaZ Vorletztes J.'!C5:C100,\"Tschetschenisch\"))+(COUNTIFS('DaZ Vorletztes J.'!D5:D100,\"Abwesend (COVID-19)\",'DaZ Vorletztes J.'!C5:C100,\"Tschetschenisch\"))","v":0},{"$f":"(COUNTIFS('DaZ Vorletztes J.'!S5:S100,\"Ja\",'DaZ Vorletztes J.'!C5:C100,\"Tschetschenisch\"))","v":0},{"$f":"COUNTIFS(E45:E990,\"*Tschetschenisch*\",C45:C990,\"Letztes Jahr\")","v":0},{"$f":"COUNTIFS('DaZ Letztes J.'!D5:D100,\"Schule (Herbst 2025)\",'DaZ Letztes J.'!C5:C100,\"Tschetschenisch\")+(COUNTIFS('DaZ Letztes J.'!D5:D100,\"\",'DaZ Letztes J.'!C5:C100,\"Tschetschenisch\"))+(COUNTIFS('DaZ Letztes J.'!D5:D100,\"Abwesend (COVID-19)\",'DaZ Letztes J.'!C5:C100,\"Tschetschenisch\"))","v":0},{"$f":"COUNTIFS('DaZ Letztes J.'!S5:S100,\"Ja\",'DaZ Letztes J.'!D5:D100,\"Schule (Herbst 2025)\",'DaZ Letztes J.'!C5:C100,\"Tschetschenisch\")+(COUNTIFS('DaZ Letztes J.'!S5:S100,\"Ja\",'DaZ Letztes J.'!D5:D100,\"\",'DaZ Letztes J.'!C5:C100,\"Tschetschenisch\"))+(COUNTIFS('DaZ Letztes J.'!S5:S100,\"Ja\",'DaZ Letztes J.'!D5:D100,\"Abwesend (COVID-19)\",'DaZ Letztes J.'!C5:C100,\"Tschetschenisch\"))","v":0},0]
[null,null,null,null,null,null,null,null,null,null,null,null,null,"Russisch",null,{"$f":"COUNTIFS(E45:E990,\"*Russisch*\",C45:C990,\"Drittletztes Jahr\")","v":0},{"$f":"COUNTIFS('DaZ Drittletztes J.'!C5:C100,\"Russisch\")","v":0},{"$f":"COUNTIFS('DaZ Drittletztes J.'!C5:C100,\"Russisch\",'DaZ Drittletztes J.'!L5:L100,\"Ja\")","v":0},{"$f":"COUNTIFS(E45:E990,\"*Russisch*\",C45:C990,\"Vorletztes Jahr\")","v":0},{"$f":"COUNTIFS('DaZ Vorletztes J.'!D5:D100,\"Schule (Herbst 2025)\",'DaZ Vorletztes J.'!C5:C100,\"Russisch\")+(COUNTIFS('DaZ Vorletztes J.'!D5:D100,\"\",'DaZ Vorletztes J.'!C5:C100,\"Russisch\"))+(COUNTIFS('DaZ Vorletztes J.'!D5:D100,\"Abwesend (COVID-19)\",'DaZ Vorletztes J.'!C5:C100,\"Russisch\"))","v":0},{"$f":"(COUNTIFS('DaZ Vorletztes J.'!S5:S100,\"Ja\",'DaZ Vorletztes J.'!C5:C100,\"Russisch\"))","v":0},{"$f":"COUNTIFS(E45:E990,\"*Russisch*\",C45:C990,\"Letztes Jahr\")","v":0},{"$f":"COUNTIFS('DaZ Letztes J.'!D5:D100,\"Schule (Herbst 2025)\",'DaZ Letztes J.'!C5:C100,\"Russisch\")+(COUNTIFS('DaZ Letztes J.'!D5:D100,\"\",'DaZ Letztes J.'!C5:C100,\"Russisch\"))+(COUNTIFS('DaZ Letztes J.'!D5:D100,\"Abwesend (COVID-19)\",'DaZ Letztes J.'!C5:C100,\"Russisch\"))","v":0},{"$f":"COUNTIFS('DaZ Letztes J.'!S5:S100,\"Ja\",'DaZ Letztes J.'!D5:D100,\"Schule (Herbst 2025)\",'DaZ Letztes J.'!C5:C100,\"Russisch\")+(COUNTIFS('DaZ Letztes J.'!S5:S100,\"Ja\",'DaZ Letztes J.'!D5:D100,\"\",'DaZ Letztes J.'!C5:C100,\"Russisch\"))+(COUNTIFS('DaZ Letztes J.'!S5:S100,\"Ja\",'DaZ Letztes J.'!D5:D100,\"Abwesend (COVID-19)\",'DaZ Letztes J.'!C5:C100,\"Russisch\"))","v":0},0]
[null,null,null,null,null,null,null,null,null,null,null,null,null,"Persisch",null,{"$f":"COUNTIFS(E45:E990,\"*Persisch*\",C45:C990,\"Drittletztes Jahr\")","v":0},{"$f":"COUNTIFS('DaZ Drittletztes J.'!C5:C100,\"Persisch\")","v":0},{"$f":"COUNTIFS('DaZ Drittletztes J.'!C5:C100,\"Persisch\",'DaZ Drittletztes J.'!L5:L100,\"Ja\")","v":0},{"$f":"COUNTIFS(E45:E990,\"*Persisch*\",C45:C990,\"Vorletztes Jahr\")","v":0},{"$f":"COUNTIFS('DaZ Vorletztes J.'!D5:D100,\"Schule (Herbst 2025)\",'DaZ Vorletztes J.'!C5:C100,\"Persisch\")+(COUNTIFS('DaZ Vorletztes J.'!D5:D100,\"\",'DaZ Vorletztes J.'!C5:C100,\"Persisch\"))+(COUNTIFS('DaZ Vorletztes J.'!D5:D100,\"Abwesend (COVID-19)\",'DaZ Vorletztes J.'!C5:C100,\"Persisch\"))","v":0},{"$f":"(COUNTIFS('DaZ Vorletztes J.'!S5:S100,\"Ja\",'DaZ Vorletztes J.'!C5:C100,\"Persisch\"))","v":0},{"$f":"COUNTIFS(E45:E990,\"*Persisch*\",C45:C990,\"Letztes Jahr\")","v":0},{"$f":"COUNTIFS('DaZ Letztes J.'!D5:D100,\"Schule (Herbst 2025)\",'DaZ Letztes J.'!C5:C100,\"Persisch\")+(COUNTIFS('DaZ Letztes J.'!D5:D100,\"\",'DaZ Letztes J.'!C5:C100,\"Persisch\"))+(COUNTIFS('DaZ Letztes J.'!D5:D100,\"Abwesend (COVID-19)\",'DaZ Letztes J.'!C5:C100,\"Persisch\"))","v":0},{"$f":"COUNTIFS('DaZ Letztes J.'!S5:S100,\"Ja\",'DaZ Letztes J.'!D5:D100,\"Schule (Herbst 2025)\",'DaZ Letztes J.'!C5:C100,\"Persisch\")+(COUNTIFS('DaZ Letztes J.'!S5:S100,\"Ja\",'DaZ Letztes J.'!D5:D100,\"\",'DaZ Letztes J.'!C5:C100,\"Persisch\"))+(COUNTIFS('DaZ Letztes J.'!S5:S100,\"Ja\",'DaZ Letztes J.'!D5:D100,\"Abwesend (COVID-19)\",'DaZ Letztes J.'!C5:C100,\"Persisch\"))","v":0},0]
[null,null,null,null,null,null,null,null,null,null,null,null,null,"Chinesisch",null,{"$f":"COUNTIFS(E45:E990,\"*Chinesisch*\",C45:C990,\"Drittletztes Jahr\")","v":0},{"$f":"COUNTIFS('DaZ Drittletztes J.'!C5:C100,\"Chinesisch\")","v":0},{"$f":"COUNTIFS('DaZ Drittletztes J.'!C5:C100,\"Chinesisch\",'DaZ Drittletztes J.'!L5:L100,\"Ja\")","v":0},{"$f":"COUNTIFS(E45:E990,\"*Chinesisch*\",C45:C990,\"Vorletztes Jahr\")","v":0},{"$f":"COUNTIFS('DaZ Vorletztes J.'!D5:D100,\"Schule (Herbst 2025)\",'DaZ Vorletztes J.'!C5:C100,\"Chinesisch\")+(COUNTIFS('DaZ Vorletztes J.'!D5:D100,\"\",'DaZ Vorletztes J.'!C5:C100,\"Chinesisch\"))+(COUNTIFS('DaZ Vorletztes J.'!D5:D100,\"Abwesend (COVID-19)\",'DaZ Vorletztes J.'!C5:C100,\"Chinesisch\"))","v":0},{"$f":"(COUNTIFS('DaZ Vorletztes J.'!S5:S100,\"Ja\",'DaZ Vorletztes J.'!C5:C100,\"Chinesisch\"))","v":0},{"$f":"COUNTIFS(E45:E990,\"*Chinesisch*\",C45:C990,\"Letztes Jahr\")","v":0},{"$f":"COUNTIFS('DaZ Letztes J.'!D5:D100,\"Schule (Herbst 2025)\",'DaZ Letztes J.'!C5:C100,\"Chinesisch\")+(COUNTIFS('DaZ Letztes J.'!D5:D100,\"\",'DaZ Letztes J.'!C5:C100,\"Chinesisch\"))+(COUNTIFS('DaZ Letztes J.'!D5:D100,\"Abwesend (COVID-19)\",'DaZ Letztes J.'!C5:C100,\"Chinesisch\"))","v":0},{"$f":"COUNTIFS('DaZ Letztes J.'!S5:S100,\"Ja\",'DaZ Letztes J.'!D5:D100,\"Schule (Herbst 2025)\",'DaZ Letztes J.'!C5:C100,\"Chinesisch\")+(COUNTIFS('DaZ Letztes J.'!S5:S100,\"Ja\",'DaZ Letztes J.'!D5:D100,\"\",'DaZ Letztes J.'!C5:C100,\"Chinesisch\"))+(COUNTIFS('DaZ Letztes J.'!S5:S100,\"Ja\",'DaZ Letztes J.'!D5:D100,\"Abwesend (COVID-19)\",'DaZ Letztes J.'!C5:C100,\"Chinesisch\"))","v":0},0]
[null,null,null,null,null,null,null,null,null,null,null,null,null,"Slowakisch",null,{"$f":"COUNTIFS(E45:E990,\"*Slowakisch*\",C45:C990,\"Drittletztes Jahr\")","v":0},{"$f":"COUNTIFS('DaZ Drittletztes J.'!C5:C100,\"Slowakisch\")","v":0},{"$f":"COUNTIFS('DaZ Drittletztes J.'!C5:C100,\"Slowakisch\",'DaZ Drittletztes J.'!L5:L100,\"Ja\")","v":0},{"$f":"COUNTIFS(E45:E990,\"*Slowakisch*\",C45:C990,\"Vorletztes Jahr\")","v":0},{"$f":"COUNTIFS('DaZ Vorletztes J.'!D5:D100,\"Schule (Herbst 2025)\",'DaZ Vorletztes J.'!C5:C100,\"Slowakisch\")+(COUNTIFS('DaZ Vorletztes J.'!D5:D100,\"\",'DaZ Vorletztes J.'!C5:C100,\"Slowakisch\"))+(COUNTIFS('DaZ Vorletztes J.'!D5:D100,\"Abwesend (COVID-19)\",'DaZ Vorletztes J.'!C5:C100,\"Slowakisch\"))","v":0},{"$f":"(COUNTIFS('DaZ Vorletztes J.'!S5:S100,\"Ja\",'DaZ Vorletztes J.'!C5:C100,\"Slowakisch\"))","v":0},{"$f":"COUNTIFS(E45:E990,\"*Slowakisch*\",C45:C990,\"Letztes Jahr\")","v":0},{"$f":"COUNTIFS('DaZ Letztes J.'!D5:D100,\"Schule (Herbst 2025)\",'DaZ Letztes J.'!C5:C100,\"Slowakisch\")+(COUNTIFS('DaZ Letztes J.'!D5:D100,\"\",'DaZ Letztes J.'!C5:C100,\"Slowakisch\"))+(COUNTIFS('DaZ Letztes J.'!D5:D100,\"Abwesend (COVID-19)\",'DaZ Letztes J.'!C5:C100,\"Slowakisch\"))","v":0},{"$f":"COUNTIFS('DaZ Letztes J.'!S5:S100,\"Ja\",'DaZ Letztes J.'!D5:D100,\"Schule (Herbst 2025)\",'DaZ Letztes J.'!C5:C100,\"Slowakisch\")+(COUNTIFS('DaZ Letztes J.'!S5:S100,\"Ja\",'DaZ Letztes J.'!D5:D100,\"\",'DaZ Letztes J.'!C5:C100,\"Slowakisch\"))+(COUNTIFS('DaZ Letztes J.'!S5:S100,\"Ja\",'DaZ Letztes J.'!D5:D100,\"Abwesend (COVID-19)\",'DaZ Letztes J.'!C5:C100,\"Slowakisch\"))","v":0},0]
[null,null,null,null,null,null,null,null,null,null,null,null,null,"Spanisch",null,{"$f":"COUNTIFS(E45:E990,\"*Spanisch*\",C45:C990,\"Drittletztes Jahr\")","v":0},{"$f":"COUNTIFS('DaZ Drittletztes J.'!C5:C100,\"Spanisch\")","v":0},{"$f":"COUNTIFS('DaZ Drittletztes J.'!C5:C100,\"Spanisch\",'DaZ Drittletztes J.'!L5:L100,\"Ja\")","v":0},{"$f":"COUNTIFS(E45:E990,\"*Spanisch*\",C45:C990,\"Vorletztes Jahr\")","v":0},{"$f":"COUNTIFS('DaZ Vorletztes J.'!D5:D100,\"Schule (Herbst 2025)\",'DaZ Vorletztes J.'!C5:C100,\"Spanisch\")+(COUNTIFS('DaZ Vorletztes J.'!D5:D100,\"\",'DaZ Vorletztes J.'!C5:C100,\"Spanisch\"))+(COUNTIFS('DaZ Vorletztes J.'!D5:D100,\"Abwesend (COVID-19)\",'DaZ Vorletztes J.'!C5:C100,\"Spanisch\"))","v":0},{"$f":"(COUNTIFS('DaZ Vorletztes J.'!S5:S100,\"Ja\",'DaZ Vorletztes J.'!C5:C100,\"Spanisch\"))","v":0},{"$f":"COUNTIFS(E45:E990,\"*Spanisch*\",C45:C990,\"Letztes Jahr\")","v":0},{"$f":"COUNTIFS('DaZ Letztes J.'!D5:D100,\"Schule (Herbst 2025)\",'DaZ Letztes J.'!C5:C100,\"Spanisch\")+(COUNTIFS('DaZ Letztes J.'!D5:D100,\"\",'DaZ Letztes J.'!C5:C100,\"Spanisch\"))+(COUNTIFS('DaZ Letztes J.'!D5:D100,\"Abwesend (COVID-19)\",'DaZ Letztes J.'!C5:C100,\"Spanisch\"))","v":0},{"$f":"COUNTIFS('DaZ Letztes J.'!S5:S100,\"Ja\",'DaZ Letztes J.'!D5:D100,\"Schule (Herbst 2025)\",'DaZ Letztes J.'!C5:C100,\"Spanisch\")+(COUNTIFS('DaZ Letztes J.'!S5:S100,\"Ja\",'DaZ Letztes J.'!D5:D100,\"\",'DaZ Letztes J.'!C5:C100,\"Spanisch\"))+(COUNTIFS('DaZ Letztes J.'!S5:S100,\"Ja\",'DaZ Letztes J.'!D5:D100,\"Abwesend (COVID-19)\",'DaZ Letztes J.'!C5:C100,\"Spanisch\"))","v":0},0]
[null,null,null,null,null,null,null,null,null,null,null,null,null,"Kurdisch",null,{"$f":"COUNTIFS(E45:E990,\"*Kurdisch*\",C45:C990,\"Drittletztes Jahr\")","v":0},{"$f":"COUNTIFS('DaZ Drittletztes J.'!C5:C100,\"Kurdisch\")","v":0},{"$f":"COUNTIFS('DaZ Drittletztes J.'!C5:C100,\"Kurdisch\",'DaZ Drittletztes J.'!L5:L100,\"Ja\")","v":0},{"$f":"COUNTIFS(E45:E990,\"*Kurdisch*\",C45:C990,\"Vorletztes Jahr\")","v":0},{"$f":"COUNTIFS('DaZ Vorletztes J.'!D5:D100,\"Schule (Herbst 2025)\",'DaZ Vorletztes J.'!C5:C100,\"Kurdisch\")+(COUNTIFS('DaZ Vorletztes J.'!D5:D100,\"\",'DaZ Vorletztes J.'!C5:C100,\"Kurdisch\"))+(COUNTIFS('DaZ Vorletztes J.'!D5:D100,\"Abwesend (COVID-19)\",'DaZ Vorletztes J.'!C5:C100,\"Kurdisch\"))","v":0},{"$f":"(COUNTIFS('DaZ Vorletztes J.'!S5:S100,\"Ja\",'DaZ Vorletztes J.'!C5:C100,\"Kurdisch\"))","v":0},{"$f":"COUNTIFS(E45:E990,\"*Kurdisch*\",C45:C990,\"Letztes Jahr\")","v":0},{"$f":"COUNTIFS('DaZ Letztes J.'!D5:D100,\"Schule (Herbst 2025)\",'DaZ Letztes J.'!C5:C100,\"Kurdisch\")+(COUNTIFS('DaZ Letztes J.'!D5:D100,\"\",'DaZ Letztes J.'!C5:C100,\"Kurdisch\"))+(COUNTIFS('DaZ Letztes J.'!D5:D100,\"Abwesend (COVID-19)\",'DaZ Letztes J.'!C5:C100,\"Kurdisch\"))","v":0},{"$f":"COUNTIFS('DaZ Letztes J.'!S5:S100,\"Ja\",'DaZ Letztes J.'!D5:D100,\"Schule (Herbst 2025)\",'DaZ Letztes J.'!C5:C100,\"Kurdisch\")+(COUNTIFS('DaZ Letztes J.'!S5:S100,\"Ja\",'DaZ Letztes J.'!D5:D100,\"\",'DaZ Letztes J.'!C5:C100,\"Kurdisch\"))+(COUNTIFS('DaZ Letztes J.'!S5:S100,\"Ja\",'DaZ Letztes J.'!D5:D100,\"Abwesend (COVID-19)\",'DaZ Letztes J.'!C5:C100,\"Kurdisch\"))","v":0},0]
[null,null,null,null,null,null,null,null,null,null,null,null,null,"Tschechisch",null,{"$f":"COUNTIFS(E45:E990,\"*Tschechisch*\",C45:C990,\"Drittletztes Jahr\")","v":0},{"$f":"COUNTIFS('DaZ Drittletztes J.'!C5:C100,\"Tschechisch\")","v":0},{"$f":"COUNTIFS('DaZ Drittletztes J.'!C5:C100,\"Tschechisch\",'DaZ Drittletztes J.'!L5:L100,\"Ja\")","v":0},{"$f":"COUNTIFS(E45:E990,\"*Tschechisch*\",C45:C990,\"Vorletztes Jahr\")","v":0},{"$f":"COUNTIFS('DaZ Vorletztes J.'!D5:D100,\"Schule (Herbst 2025)\",'DaZ Vorletztes J.'!C5:C100,\"Tschechisch\")+(COUNTIFS('DaZ Vorletztes J.'!D5:D100,\"\",'DaZ Vorletztes J.'!C5:C100,\"Tschechisch\"))+(COUNTIFS('DaZ Vorletztes J.'!D5:D100,\"Abwesend (COVID-19)\",'DaZ Vorletztes J.'!C5:C100,\"Tschechisch\"))","v":0},{"$f":"(COUNTIFS('DaZ Vorletztes J.'!S5:S100,\"Ja\",'DaZ Vorletztes J.'!C5:C100,\"Tschechisch\"))","v":0},{"$f":"COUNTIFS(E45:E990,\"*Tschechisch*\",C45:C990,\"Letztes Jahr\")","v":0},{"$f":"COUNTIFS('DaZ Letztes J.'!D5:D100,\"Schule (Herbst 2025)\",'DaZ Letztes J.'!C5:C100,\"Tschechisch\")+(COUNTIFS('DaZ Letztes J.'!D5:D100,\"\",'DaZ Letztes J.'!C5:C100,\"Tschechisch\"))+(COUNTIFS('DaZ Letztes J.'!D5:D100,\"Abwesend (COVID-19)\",'DaZ Letztes J.'!C5:C100,\"Tschechisch\"))","v":0},{"$f":"COUNTIFS('DaZ Letztes J.'!S5:S100,\"Ja\",'DaZ Letztes J.'!D5:D100,\"Schule (Herbst 2025)\",'DaZ Letztes J.'!C5:C100,\"Tschechisch\")+(COUNTIFS('DaZ Letztes J.'!S5:S100,\"Ja\",'DaZ Letztes J.'!D5:D100,\"\",'DaZ Letztes J.'!C5:C100,\"Tschechisch\"))+(COUNTIFS('DaZ Letztes J.'!S5:S100,\"Ja\",'DaZ Letztes J.'!D5:D100,\"Abwesend (COVID-19)\",'DaZ Letztes J.'!C5:C100,\"Tschechisch\"))","v":0},0]
[null,null,null,null,null,null,null,null,null,null,null,null,null,"Bulgarisch",null,{"$f":"COUNTIFS(E45:E990,\"*Bulgarisch*\",C45:C990,\"Drittletztes Jahr\")","v":0},{"$f":"COUNTIFS('DaZ Drittletztes J.'!C5:C100,\"Bulgarisch\")","v":0},{"$f":"COUNTIFS('DaZ Drittletztes J.'!C5:C100,\"Bulgarisch\",'DaZ Drittletztes J.'!L5:L100,\"Ja\")","v":0},{"$f":"COUNTIFS(E45:E990,\"*Bulgarisch*\",C45:C990,\"Vorletztes Jahr\")","v":0},{"$f":"COUNTIFS('DaZ Vorletztes J.'!D5:D100,\"Schule (Herbst 2025)\",'DaZ Vorletztes J.'!C5:C100,\"Bulgarisch\")+(COUNTIFS('DaZ Vorletztes J.'!D5:D100,\"\",'DaZ Vorletztes J.'!C5:C100,\"Bulgarisch\"))+(COUNTIFS('DaZ Vorletztes J.'!D5:D100,\"Abwesend (COVID-19)\",'DaZ Vorletztes J.'!C5:C100,\"Bulgarisch\"))","v":0},{"$f":"(COUNTIFS('DaZ Vorletztes J.'!S5:S100,\"Ja\",'DaZ Vorletztes J.'!C5:C100,\"Bulgarisch\"))","v":0},{"$f":"COUNTIFS(E45:E990,\"*Bulgarisch*\",C45:C990,\"Letztes Jahr\")","v":0},{"$f":"COUNTIFS('DaZ Letztes J.'!D5:D100,\"Schule (Herbst 2025)\",'DaZ Letztes J.'!C5:C100,\"Bulgarisch\")+(COUNTIFS('DaZ Letztes J.'!D5:D100,\"\",'DaZ Letztes J.'!C5:C100,\"Bulgarisch\"))+(COUNTIFS('DaZ Letztes J.'!D5:D100,\"Abwesend (COVID-19)\",'DaZ Letztes J.'!C5:C100,\"Bulgarisch\"))","v":0},{"$f":"COUNTIFS('DaZ Letztes J.'!S5:S100,\"Ja\",'DaZ Letztes J.'!D5:D100,\"Schule (Herbst 2025)\",'DaZ Letztes J.'!C5:C100,\"Bulgarisch\")+(COUNTIFS('DaZ Letztes J.'!S5:S100,\"Ja\",'DaZ Letztes J.'!D5:D100,\"\",'DaZ Letztes J.'!C5:C100,\"Bulgarisch\"))+(COUNTIFS('DaZ Letztes J.'!S5:S100,\"Ja\",'DaZ Letztes J.'!D5:D100,\"Abwesend (COVID-19)\",'DaZ Letztes J.'!C5:C100,\"Bulgarisch\"))","v":0},0]
[null,null,null,null,null,null,null,null,null,null,null,null,null,"Slowenisch",null,{"$f":"COUNTIFS(E45:E990,\"*Slowenisch*\",C45:C990,\"Drittletztes Jahr\")","v":0},{"$f":"COUNTIFS('DaZ Drittletztes J.'!C5:C100,\"Slowenisch\")","v":0},{"$f":"COUNTIFS('DaZ Drittletztes J.'!C5:C100,\"Slowenisch\",'DaZ Drittletztes J.'!L5:L100,\"Ja\")","v":0},{"$f":"COUNTIFS(E45:E990,\"*Slowenisch*\",C45:C990,\"Vorletztes Jahr\")","v":0},{"$f":"COUNTIFS('DaZ Vorletztes J.'!D5:D100,\"Schule (Herbst 2025)\",'DaZ Vorletztes J.'!C5:C100,\"Slowenisch\")+(COUNTIFS('DaZ Vorletztes J.'!D5:D100,\"\",'DaZ Vorletztes J.'!C5:C100,\"Slowenisch\"))+(COUNTIFS('DaZ Vorletztes J.'!D5:D100,\"Abwesend (COVID-19)\",'DaZ Vorletztes J.'!C5:C100,\"Slowenisch\"))","v":0},{"$f":"(COUNTIFS('DaZ Vorletztes J.'!S5:S100,\"Ja\",'DaZ Vorletztes J.'!C5:C100,\"Slowenisch\"))","v":0},{"$f":"COUNTIFS(E45:E990,\"*Slowenisch*\",C45:C990,\"Letztes Jahr\")","v":0},{"$f":"COUNTIFS('DaZ Letztes J.'!D5:D100,\"Schule (Herbst 2025)\",'DaZ Letztes J.'!C5:C100,\"Slowenisch\")+(COUNTIFS('DaZ Letztes J.'!D5:D100,\"\",'DaZ Letztes J.'!C5:C100,\"Slowenisch\"))+(COUNTIFS('DaZ Letztes J.'!D5:D100,\"Abwesend (COVID-19)\",'DaZ Letztes J.'!C5:C100,\"Slowenisch\"))","v":0},{"$f":"COUNTIFS('DaZ Letztes J.'!S5:S100,\"Ja\",'DaZ Letztes J.'!D5:D100,\"Schule (Herbst 2025)\",'DaZ Letztes J.'!C5:C100,\"Slowenisch\")+(COUNTIFS('DaZ Letztes J.'!S5:S100,\"Ja\",'DaZ Letztes J.'!D5:D100,\"\",'DaZ Letztes J.'!C5:C100,\"Slowenisch\"))+(COUNTIFS('DaZ Letztes J.'!S5:S100,\"Ja\",'DaZ Letztes J.'!D5:D100,\"Abwesend (COVID-19)\",'DaZ Letztes J.'!C5:C100,\"Slowenisch\"))","v":0},0]
[null,null,null,null,null,null,null,null,null,null,null,null,null,"Ukrainisch",null,{"$f":"COUNTIFS(E45:E990,\"*Ukrainisch*\",C45:C990,\"Drittletztes Jahr\")","v":0},{"$f":"COUNTIFS('DaZ Drittletztes J.'!C5:C100,\"Ukrainisch\")","v":0},{"$f":"COUNTIFS('DaZ Drittletztes J.'!C5:C100,\"Ukrainisch\",'DaZ Drittletztes J.'!L5:L100,\"Ja\")","v":0},{"$f":"COUNTIFS(E45:E990,\"*Ukrainisch*\",C45:C990,\"Vorletztes Jahr\")","v":0},{"$f":"COUNTIFS('DaZ Vorletztes J.'!D5:D100,\"Schule (Herbst 2025)\",'DaZ Vorletztes J.'!C5:C100,\"Ukrainisch\")+(COUNTIFS('DaZ Vorletztes J.'!D5:D100,\"\",'DaZ Vorletztes J.'!C5:C100,\"Ukrainisch\"))+(COUNTIFS('DaZ Vorletztes J.'!D5:D100,\"Abwesend (COVID-19)\",'DaZ Vorletztes J.'!C5:C100,\"Ukrainisch\"))","v":0},{"$f":"(COUNTIFS('DaZ Vorletztes J.'!S5:S100,\"Ja\",'DaZ Vorletztes J.'!C5:C100,\"Ukrainisch\"))","v":0},{"$f":"COUNTIFS(E45:E990,\"*Ukrainisch*\",C45:C990,\"Letztes Jahr\")","v":0},{"$f":"COUNTIFS('DaZ Letztes J.'!D5:D100,\"Schule (Herbst 2025)\",'DaZ Letztes J.'!C5:C100,\"Ukrainisch\")+(COUNTIFS('DaZ Letztes J.'!D5:D100,\"\",'DaZ Letztes J.'!C5:C100,\"Ukrainisch\"))+(COUNTIFS('DaZ Letztes J.'!D5:D100,\"Abwesend (COVID-19)\",'DaZ Letztes J.'!C5:C100,\"Ukrainisch\"))","v":0},{"$f":"COUNTIFS('DaZ Letztes J.'!S5:S100,\"Ja\",'DaZ Letztes J.'!D5:D100,\"Schule (Herbst 2025)\",'DaZ Letztes J.'!C5:C100,\"Ukrainisch\")+(COUNTIFS('DaZ Letztes J.'!S5:S100,\"Ja\",'DaZ Letztes J.'!D5:D100,\"\",'DaZ Letztes J.'!C5:C100,\"Ukrainisch\"))+(COUNTIFS('DaZ Letztes J.'!S5:S100,\"Ja\",'DaZ Letztes J.'!D5:D100,\"Abwesend (COVID-19)\",'DaZ Letztes J.'!C5:C100,\"Ukrainisch\"))","v":0},0]
[null,null,null,null,null,null,null,null,null,null,null,null,null,"sonstige Sprachen",null,{"$f":"COUNTIFS(E45:E990,\"*sonstige Sprachen*\",C45:C990,\"Drittletztes Jahr\")","v":0},{"$f":"COUNTIFS('DaZ Drittletztes J.'!C5:C100,\"sonstige Sprachen\")","v":0},{"$f":"COUNTIFS('DaZ Drittletztes J.'!C5:C100,\"sonstige Sprachen\",'DaZ Drittletztes J.'!L5:L100,\"Ja\")","v":0},{"$f":"COUNTIFS(E45:E990,\"*sonstige Sprachen*\",C45:C990,\"Vorletztes Jahr\")","v":0},{"$f":"COUNTIFS('DaZ Vorletztes J.'!D5:D100,\"Schule (Herbst 2025)\",'DaZ Vorletztes J.'!C5:C100,\"sonstige Sprachen\")+(COUNTIFS('DaZ Vorletztes J.'!D5:D100,\"\",'DaZ Vorletztes J.'!C5:C100,\"sonstige Sprachen\"))+(COUNTIFS('DaZ Vorletztes J.'!D5:D100,\"Abwesend (COVID-19)\",'DaZ Vorletztes J.'!C5:C100,\"sonstige Sprachen\"))","v":0},{"$f":"(COUNTIFS('DaZ Vorletztes J.'!S5:S100,\"Ja\",'DaZ Vorletztes J.'!C5:C100,\"sonstige Sprachen\"))","v":0},{"$f":"COUNTIFS(E45:E990,\"*sonstige Sprachen*\",C45:C990,\"Letztes Jahr\")","v":0},{"$f":"COUNTIFS('DaZ Letztes J.'!D5:D100,\"Schule (Herbst 2025)\",'DaZ Letztes J.'!C5:C100,\"sonstige Sprachen\")+(COUNTIFS('DaZ Letztes J.'!D5:D100,\"\",'DaZ Letztes J.'!C5:C100,\"sonstige Sprachen\"))+(COUNTIFS('DaZ Letztes J.'!D5:D100,\"Abwesend (COVID-19)\",'DaZ Letztes J.'!C5:C100,\"sonstige Sprachen\"))","v":0},{"$f":"COUNTIFS('DaZ Letztes J.'!S5:S100,\"Ja\",'DaZ Letztes J.'!D5:D100,\"Schule (Herbst 2025)\",'DaZ Letztes J.'!C5:C100,\"sonstige Sprachen\")+(COUNTIFS('DaZ Letztes J.'!S5:S100,\"Ja\",'DaZ Letztes J.'!D5:D100,\"\",'DaZ Letztes J.'!C5:C100,\"sonstige Sprachen\"))+(COUNTIFS('DaZ Letztes J.'!S5:S100,\"Ja\",'DaZ Letztes J.'!D5:D100,\"Abwesend (COVID-19)\",'DaZ Letztes J.'!C5:C100,\"sonstige Sprachen\"))","v":0},{"$f":"P62+S62+V62","v":0}]
[null,null,null,null,null,null,null,null,null,null,null,null,null,"SUMMEN",null,{"$f":"SUM(P41:P62)","v":0},{"$f":"SUM(Q41:Q62)","v":0},0,{"$f":"SUM(S41:S62)","v":0},0,0,0,0,0]

{"sheet":"DaE Drittletztes J.","index":1,"n_rows":100,"n_cols":13,"rows_kept":100,"cut":false,"hidden":false,"merged":[[0,11,1,11],[0,0,2,3],[0,4,0,9],[1,4,1,5],[1,6,1,9],[2,4,2,5],[2,6,2,7],[2,8,2,9],[0,10,2,10]]}
["Angaben zum Kind",null,null,null,"Ergebnisse BESK-DaE",null,null,null,null,null,"Summe","Bedarf","Neue \nKinder"]
[null,null,null,null,"Syntax/\nSatzbau - Produktion",null,"Wortschatz - Rezeption\nWortschatz - Produktion",null,null,null,null,null,"Wurde das\nKind zum \nersten Mal \nbeobachtet?"]
[null,null,null,null,"Bereich S",null,"Bereich WR",null,"Bereich WPE",null,null,"Ja/Nein","Ja/Nein"]
["Identifikations-nummer","Kindergarten-jahr","Erstsprache","Sonstige Angaben","1.","2.","5.","6.","7.a.","8.a.","auto-matisch","auto-\nmatisch","auto-\nmatisch"]
[null,null,null,null,null,null,null,null,null,null,{"$f":"SUM(E5:J5)","v":0},{"$f":"IF(AND(E5+F5>3,G5+H5>3,I5+J5>3),\"Nein\",\"Ja\")","v":"Ja"},{"$f":"IF(B5=\"Drittletztes Jahr\",\"Ja\",\"-\")","v":"-"}]
[null,null,null,null,null,null,null,null,null,null,{"$f":"SUM(E6:J6)","v":0},{"$f":"IF(AND(E6+F6>3,G6+H6>3,I6+J6>3),\"Nein\",\"Ja\")","v":"Ja"},"-"]
[null,null,null,null,null,null,null,null,null,null,0,"Ja","-"]
[null,null,null,null,null,null,null,null,null,null,0,"Ja","-"]
[null,null,null,null,null,null,null,null,null,null,0,"Ja","-"]
[null,null,null,null,null,null,null,null,null,null,0,"Ja","-"]
[null,null,null,null,null,null,null,null,null,null,0,"Ja","-"]
[null,null,null,null,null,null,null,null,null,null,0,"Ja","-"]
[null,null,null,null,null,null,null,null,null,null,0,"Ja","-"]
[null,null,null,null,null,null,null,null,null,null,0,"Ja","-"]
[null,null,null,null,null,null,null,null,null,null,0,"Ja","-"]
[null,null,null,null,null,null,null,null,null,null,0,"Ja","-"]
[null,null,null,null,null,null,null,null,null,null,0,"Ja","-"]
[null,null,null,null,null,null,null,null,null,null,0,"Ja","-"]
[null,null,null,null,null,null,null,null,null,null,0,"Ja","-"]
[null,null,null,null,null,null,null,null,null,null,0,"Ja","-"]
[null,null,null,null,null,null,null,null,null,null,0,"Ja","-"]
[null,null,null,null,null,null,null,null,null,null,0,"Ja","-"]
[null,null,null,null,null,null,null,null,null,null,0,"Ja","-"]
[null,null,null,null,null,null,null,null,null,null,0,"Ja","-"]
[null,null,null,null,null,null,null,null,null,null,0,"Ja","-"]
[null,null,null,null,null,null,null,null,null,null,0,"Ja","-"]
[null,null,null,null,null,null,null,null,null,null,0,"Ja","-"]
[null,null,null,null,null,null,null,null,null,null,0,"Ja","-"]
[null,null,null,null,null,null,null,null,null,null,0,"Ja","-"]
[null,null,null,null,null,null,null,null,null,null,0,"Ja","-"]
[null,null,null,null,null,null,null,null,null,null,0,"Ja","-"]
[null,null,null,null,null,null,null,null,null,null,0,"Ja","-"]
[null,null,null,null,null,null,null,null,null,null,0,"Ja","-"]
[null,null,null,null,null,null,null,null,null,null,0,"Ja","-"]
[null,null,null,null,null,null,null,null,null,null,0,"Ja","-"]
[null,null,null,null,null,null,null,null,null,null,0,"Ja","-"]
[null,null,null,null,null,null,null,null,null,null,0,"Ja",{"$f":"IF(B37=\"Drittletztes Jahr\",\"Ja\",\"-\")","v":"-"}]
[null,null,null,null,null,null,null,null,null,null,0,"Ja","-"]
[null,null,null,null,null,null,null,null,null,null,0,"Ja","-"]
[null,null,null,null,null,null,null,null,null,null,0,"Ja","-"]
[null,null,null,null,null,null,null,null,null,null,0,"Ja","-"]
[null,null,null,null,null,null,null,null,null,null,0,"Ja","-"]
[null,null,null,null,null,null,null,null,null,null,0,"Ja","-"]
[null,null,null,null,null,null,null,null,null,null,0,"Ja","-"]
[null,null,null,null,null,null,null,null,null,null,0,"Ja","-"]
[null,null,null,null,null,null,null,null,null,null,0,"Ja","-"]
[null,null,null,null,null,null,null,null,null,null,0,"Ja","-"]
[null,null,null,null,null,null,null,null,null,null,0,"Ja","-"]
[null,null,null,null,null,null,null,null,null,null,0,"Ja","-"]
[null,null,null,null,null,null,null,null,null,null,0,"Ja","-"]
[null,null,null,null,null,null,null,null,null,null,0,"Ja","-"]
[null,null,null,null,null,null,null,null,null,null,0,"Ja","-"]
[null,null,null,null,null,null,null,null,null,null,0,"Ja","-"]
[null,null,null,null,null,null,null,null,null,null,0,"Ja","-"]
[null,null,null,null,null,null,null,null,null,null,0,"Ja","-"]
[null,null,null,null,null,null,null,null,null,null,0,"Ja","-"]
[null,null,null,null,null,null,null,null,null,null,0,"Ja","-"]
[null,null,null,null,null,null,null,null,null,null,0,"Ja","-"]
[null,null,null,null,null,null,null,null,null,null,0,"Ja","-"]
[null,null,null,null,null,null,null,null,null,null,0,"Ja","-"]
[null,null,null,null,null,null,null,null,null,null,0,"Ja","-"]
[null,null,null,null,null,null,null,null,null,null,0,"Ja","-"]
[null,null,null,null,null,null,null,null,null,null,0,"Ja","-"]
[null,null,null,null,null,null,null,null,null,null,0,"Ja","-"]
[null,null,null,null,null,null,null,null,null,null,0,"Ja","-"]
[null,null,null,null,null,null,null,null,null,null,0,"Ja","-"]
[null,null,null,null,null,null,null,null,null,null,0,"Ja","-"]
[null,null,null,null,null,null,null,null,null,null,0,"Ja","-"]
[null,null,null,null,null,null,null,null,null,null,0,"Ja","-"]
[null,null,null,null,null,null,null,null,null,null,{"$f":"SUM(E70:J70)","v":0},{"$f":"IF(AND(E70+F70>3,G70+H70>3,I70+J70>3),\"Nein\",\"Ja\")","v":"Ja"},{"$f":"IF(B70=\"Drittletztes Jahr\",\"Ja\",\"-\")","v":"-"}]
[null,null,null,null,null,null,null,null,null,null,0,"Ja","-"]
[null,null,null,null,null,null,null,null,null,null,0,"Ja","-"]
[null,null,null,null,null,null,null,null,null,null,0,"Ja","-"]
[null,null,null,null,null,null,null,null,null,null,0,"Ja","-"]
[null,null,null,null,null,null,null,null,null,null,0,"Ja","-"]
[null,null,null,null,null,null,null,null,null,null,0,"Ja","-"]
[null,null,null,null,null,null,null,null,null,null,0,"Ja","-"]
[null,null,null,null,null,null,null,null,null,null,0,"Ja","-"]
[null,null,null,null,null,null,null,null,null,null,0,"Ja","-"]
[null,null,null,null,null,null,null,null,null,null,0,"Ja","-"]
[null,null,null,null,null,null,null,null,null,null,0,"Ja","-"]
[null,null,null,null,null,null,null,null,null,null,0,"Ja","-"]
[null,null,null,null,null,null,null,null,null,null,0,"Ja","-"]
[null,null,null,null,null,null,null,null,null,null,0,"Ja","-"]
[null,null,null,null,null,null,null,null,null,null,0,"Ja","-"]
[null,null,null,null,null,null,null,null,null,null,0,"Ja","-"]
[null,null,null,null,null,null,null,null,null,null,0,"Ja","-"]
[null,null,null,null,null,null,null,null,null,null,0,"Ja","-"]
[null,null,null,null,null,null,null,null,null,null,0,"Ja","-"]
[null,null,null,null,null,null,null,null,null,null,0,"Ja","-"]
[null,null,null,null,null,null,null,null,null,null,0,"Ja","-"]
[null,null,null,null,null,null,null,null,null,null,0,"Ja","-"]
[null,null,null,null,null,null,null,null,null,null,0,"Ja","-"]
[null,null,null,null,null,null,null,null,null,null,0,"Ja","-"]
[null,null,null,null,null,null,null,null,null,null,0,"Ja","-"]
[null,null,null,null,null,null,null,null,null,null,0,"Ja","-"]
[null,null,null,null,null,null,null,null,null,null,0,"Ja","-"]
[null,null,null,null,null,null,null,null,null,null,0,"Ja","-"]
[null,null,null,null,null,null,null,null,null,null,0,"Ja","-"]
[null,null,null,null,null,null,null,null,null,null,0,"Ja","-"]

{"sheet":"DaE Vorletztes J.","index":2,"n_rows":100,"n_cols":18,"rows_kept":100,"cut":false,"hidden":false,"merged":[[0,16,1,16],[0,0,2,3],[0,4,0,14],[1,4,1,6],[1,7,1,12],[1,13,1,14],[2,4,2,6],[2,7,2,8],[2,9,2,12],[2,13,2,14],[0,15,2,15]]}
["Angaben zum Kind",null,null,null,"Ergebnisse BESK-DaE",null,null,null,null,null,null,null,null,null,null,"Summe","Bedarf","Neue \nKinder"]
[null,null,null,null,"Syntax/\nSatzbau - Produktion",null,null,"Wortschatz - Rezeption\nWortschatz - Produktion",null,null,null,null,null,"Erzählen\n",null,null,null,"Wurde das\nKind zum \nersten Mal \nbeobachtet?"]
[null,null,null,null,"Bereich S",null,null,"Bereich WR",null,"Bereich WPE",null,null,null,"Bereich E",null,null,"Ja/Nein","Ja/Nein"]
["Identifikations-nummer","Kindergarten-jahr","Erstsprache","Sonstige Angaben","1.","2.","3.","5.","6.","7.a.","7.b.","8.a.","8.b.","9.","10.","auto-\nmatisch","auto-\nmatisch","auto-\nmatisch"]
[null,null,null,null,null,null,null,null,null,null,null,null,null,null,null,{"$f":"SUM(E5:O5)","v":0},{"$f":"IF(AND(E5+F5>5,H5+I5>3,J5+L5>3,G5>1,K5+M5>3,N5+O5>3),\"Nein\",\"Ja\")","v":"Ja"},{"$f":"IF(NOT(ISBLANK(A5)),IF(VLOOKUP(A5,'Angaben zur Einrichtung'!$A$45:$J$248,9,FALSE)=\"ja\",\"Nein\",\"Ja\"),\"-\")","v":"-"}]
[null,null,null,null,null,null,null,null,null,null,null,null,null,null,null,{"$f":"SUM(E6:O6)","v":0},{"$f":"IF(AND(E6+F6>5,H6+I6>3,J6+L6>3,G6>1,K6+M6>3,N6+O6>3),\"Nein\",\"Ja\")","v":"Ja"},{"$f":"IF(NOT(ISBLANK(A6)),IF(VLOOKUP(A6,'Angaben zur Einrichtung'!$A$45:$J$248,9,FALSE)=\"ja\",\"Nein\",\"Ja\"),\"-\")","v":"-"}]
[null,null,null,null,null,null,null,null,null,null,null,null,null,null,null,0,"Ja",{"$f":"IF(NOT(ISBLANK(A7)),IF(VLOOKUP(A7,'Angaben zur Einrichtung'!$A$45:$J$248,9,FALSE)=\"ja\",\"Nein\",\"Ja\"),\"-\")","v":"-"}]
[null,null,null,null,null,null,null,null,null,null,null,null,null,null,null,0,"Ja",{"$f":"IF(NOT(ISBLANK(A8)),IF(VLOOKUP(A8,'Angaben zur Einrichtung'!$A$45:$J$248,9,FALSE)=\"ja\",\"Nein\",\"Ja\"),\"-\")","v":"-"}]
[null,null,null,null,null,null,null,null,null,null,null,null,null,null,null,0,"Ja",{"$f":"IF(NOT(ISBLANK(A9)),IF(VLOOKUP(A9,'Angaben zur Einrichtung'!$A$45:$J$248,9,FALSE)=\"ja\",\"Nein\",\"Ja\"),\"-\")","v":"-"}]
[null,null,null,null,null,null,null,null,null,null,null,null,null,null,null,0,"Ja",{"$f":"IF(NOT(ISBLANK(A10)),IF(VLOOKUP(A10,'Angaben zur Einrichtung'!$A$45:$J$248,9,FALSE)=\"ja\",\"Nein\",\"Ja\"),\"-\")","v":"-"}]
[null,null,null,null,null,null,null,null,null,null,null,null,null,null,null,0,"Ja",{"$f":"IF(NOT(ISBLANK(A11)),IF(VLOOKUP(A11,'Angaben zur Einrichtung'!$A$45:$J$248,9,FALSE)=\"ja\",\"Nein\",\"Ja\"),\"-\")","v":"-"}]
[null,null,null,null,null,null,null,null,null,null,null,null,null,null,null,0,"Ja",{"$f":"IF(NOT(ISBLANK(A12)),IF(VLOOKUP(A12,'Angaben zur Einrichtung'!$A$45:$J$248,9,FALSE)=\"ja\",\"Nein\",\"Ja\"),\"-\")","v":"-"}]
[null,null,null,null,null,null,null,null,null,null,null,null,null,null,null,0,"Ja",{"$f":"IF(NOT(ISBLANK(A13)),IF(VLOOKUP(A13,'Angaben zur Einrichtung'!$A$45:$J$248,9,FALSE)=\"ja\",\"Nein\",\"Ja\"),\"-\")","v":"-"}]
[null,null,null,null,null,null,null,null,null,null,null,null,null,null,null,0,"Ja",{"$f":"IF(NOT(ISBLANK(A14)),IF(VLOOKUP(A14,'Angaben zur Einrichtung'!$A$45:$J$248,9,FALSE)=\"ja\",\"Nein\",\"Ja\"),\"-\")","v":"-"}]
[null,null,null,null,null,null,null,null,null,null,null,null,null,null,null,0,"Ja",{"$f":"IF(NOT(ISBLANK(A15)),IF(VLOOKUP(A15,'Angaben zur Einrichtung'!$A$45:$J$248,9,FALSE)=\"ja\",\"Nein\",\"Ja\"),\"-\")","v":"-"}]
[null,null,null,null,null,null,null,null,null,null,null,null,null,null,null,0,"Ja",{"$f":"IF(NOT(ISBLANK(A16)),IF(VLOOKUP(A16,'Angaben zur Einrichtung'!$A$45:$J$248,9,FALSE)=\"ja\",\"Nein\",\"Ja\"),\"-\")","v":"-"}]
[null,null,null,null,null,null,null,null,null,null,null,null,null,null,null,0,"Ja",{"$f":"IF(NOT(ISBLANK(A17)),IF(VLOOKUP(A17,'Angaben zur Einrichtung'!$A$45:$J$248,9,FALSE)=\"ja\",\"Nein\",\"Ja\"),\"-\")","v":"-"}]
[null,null,null,null,null,null,null,null,null,null,null,null,null,null,null,0,"Ja",{"$f":"IF(NOT(ISBLANK(A18)),IF(VLOOKUP(A18,'Angaben zur Einrichtung'!$A$45:$J$248,9,FALSE)=\"ja\",\"Nein\",\"Ja\"),\"-\")","v":"-"}]
[null,null,null,null,null,null,null,null,null,null,null,null,null,null,null,0,"Ja",{"$f":"IF(NOT(ISBLANK(A19)),IF(VLOOKUP(A19,'Angaben zur Einrichtung'!$A$45:$J$248,9,FALSE)=\"ja\",\"Nein\",\"Ja\"),\"-\")","v":"-"}]
[null,null,null,null,null,null,null,null,null,null,null,null,null,null,null,0,"Ja",{"$f":"IF(NOT(ISBLANK(A20)),IF(VLOOKUP(A20,'Angaben zur Einrichtung'!$A$45:$J$248,9,FALSE)=\"ja\",\"Nein\",\"Ja\"),\"-\")","v":"-"}]
[null,null,null,null,null,null,null,null,null,null,null,null,null,null,null,0,"Ja",{"$f":"IF(NOT(ISBLANK(A21)),IF(VLOOKUP(A21,'Angaben zur Einrichtung'!$A$45:$J$248,9,FALSE)=\"ja\",\"Nein\",\"Ja\"),\"-\")","v":"-"}]
[null,null,null,null,null,null,null,null,null,null,null,null,null,null,null,0,"Ja",{"$f":"IF(NOT(ISBLANK(A22)),IF(VLOOKUP(A22,'Angaben zur Einrichtung'!$A$45:$J$248,9,FALSE)=\"ja\",\"Nein\",\"Ja\"),\"-\")","v":"-"}]
[null,null,null,null,null,null,null,null,null,null,null,null,null,null,null,0,"Ja",{"$f":"IF(NOT(ISBLANK(A23)),IF(VLOOKUP(A23,'Angaben zur Einrichtung'!$A$45:$J$248,9,FALSE)=\"ja\",\"Nein\",\"Ja\"),\"-\")","v":"-"}]
[null,null,null,null,null,null,null,null,null,null,null,null,null,null,null,0,"Ja",{"$f":"IF(NOT(ISBLANK(A24)),IF(VLOOKUP(A24,'Angaben zur Einrichtung'!$A$45:$J$248,9,FALSE)=\"ja\",\"Nein\",\"Ja\"),\"-\")","v":"-"}]
[null,null,null,null,null,null,null,null,null,null,null,null,null,null,null,0,"Ja",{"$f":"IF(NOT(ISBLANK(A25)),IF(VLOOKUP(A25,'Angaben zur Einrichtung'!$A$45:$J$248,9,FALSE)=\"ja\",\"Nein\",\"Ja\"),\"-\")","v":"-"}]
[null,null,null,null,null,null,null,null,null,null,null,null,null,null,null,0,"Ja",{"$f":"IF(NOT(ISBLANK(A26)),IF(VLOOKUP(A26,'Angaben zur Einrichtung'!$A$45:$J$248,9,FALSE)=\"ja\",\"Nein\",\"Ja\"),\"-\")","v":"-"}]
[null,null,null,null,null,null,null,null,null,null,null,null,null,null,null,0,"Ja",{"$f":"IF(NOT(ISBLANK(A27)),IF(VLOOKUP(A27,'Angaben zur Einrichtung'!$A$45:$J$248,9,FALSE)=\"ja\",\"Nein\",\"Ja\"),\"-\")","v":"-"}]
[null,null,null,null,null,null,null,null,null,null,null,null,null,null,null,0,"Ja",{"$f":"IF(NOT(ISBLANK(A28)),IF(VLOOKUP(A28,'Angaben zur Einrichtung'!$A$45:$J$248,9,FALSE)=\"ja\",\"Nein\",\"Ja\"),\"-\")","v":"-"}]
[null,null,null,null,null,null,null,null,null,null,null,null,null,null,null,0,"Ja",{"$f":"IF(NOT(ISBLANK(A29)),IF(VLOOKUP(A29,'Angaben zur Einrichtung'!$A$45:$J$248,9,FALSE)=\"ja\",\"Nein\",\"Ja\"),\"-\")","v":"-"}]
[null,null,null,null,null,null,null,null,null,null,null,null,null,null,null,0,"Ja",{"$f":"IF(NOT(ISBLANK(A30)),IF(VLOOKUP(A30,'Angaben zur Einrichtung'!$A$45:$J$248,9,FALSE)=\"ja\",\"Nein\",\"Ja\"),\"-\")","v":"-"}]
[null,null,null,null,null,null,null,null,null,null,null,null,null,null,null,0,"Ja",{"$f":"IF(NOT(ISBLANK(A31)),IF(VLOOKUP(A31,'Angaben zur Einrichtung'!$A$45:$J$248,9,FALSE)=\"ja\",\"Nein\",\"Ja\"),\"-\")","v":"-"}]
[null,null,null,null,null,null,null,null,null,null,null,null,null,null,null,0,"Ja",{"$f":"IF(NOT(ISBLANK(A32)),IF(VLOOKUP(A32,'Angaben zur Einrichtung'!$A$45:$J$248,9,FALSE)=\"ja\",\"Nein\",\"Ja\"),\"-\")","v":"-"}]
[null,null,null,null,null,null,null,null,null,null,null,null,null,null,null,0,"Ja",{"$f":"IF(NOT(ISBLANK(A33)),IF(VLOOKUP(A33,'Angaben zur Einrichtung'!$A$45:$J$248,9,FALSE)=\"ja\",\"Nein\",\"Ja\"),\"-\")","v":"-"}]
[null,null,null,null,null,null,null,null,null,null,null,null,null,null,null,0,"Ja",{"$f":"IF(NOT(ISBLANK(A34)),IF(VLOOKUP(A34,'Angaben zur Einrichtung'!$A$45:$J$248,9,FALSE)=\"ja\",\"Nein\",\"Ja\"),\"-\")","v":"-"}]
[null,null,null,null,null,null,null,null,null,null,null,null,null,null,null,0,"Ja",{"$f":"IF(NOT(ISBLANK(A35)),IF(VLOOKUP(A35,'Angaben zur Einrichtung'!$A$45:$J$248,9,FALSE)=\"ja\",\"Nein\",\"Ja\"),\"-\")","v":"-"}]
[null,null,null,null,null,null,null,null,null,null,null,null,null,null,null,0,"Ja",{"$f":"IF(NOT(ISBLANK(A36)),IF(VLOOKUP(A36,'Angaben zur Einrichtung'!$A$45:$J$248,9,FALSE)=\"ja\",\"Nein\",\"Ja\"),\"-\")","v":"-"}]
[null,null,null,null,null,null,null,null,null,null,null,null,null,null,null,0,"Ja",{"$f":"IF(NOT(ISBLANK(A37)),IF(VLOOKUP(A37,'Angaben zur Einrichtung'!$A$45:$J$248,9,FALSE)=\"ja\",\"Nein\",\"Ja\"),\"-\")","v":"-"}]
[null,null,null,null,null,null,null,null,null,null,null,null,null,null,null,0,"Ja",{"$f":"IF(NOT(ISBLANK(A38)),IF(VLOOKUP(A38,'Angaben zur Einrichtung'!$A$45:$J$248,9,FALSE)=\"ja\",\"Nein\",\"Ja\"),\"-\")","v":"-"}]
[null,null,null,null,null,null,null,null,null,null,null,null,null,null,null,0,"Ja",{"$f":"IF(NOT(ISBLANK(A39)),IF(VLOOKUP(A39,'Angaben zur Einrichtung'!$A$45:$J$248,9,FALSE)=\"ja\",\"Nein\",\"Ja\"),\"-\")","v":"-"}]
[null,null,null,null,null,null,null,null,null,null,null,null,null,null,null,0,"Ja",{"$f":"IF(NOT(ISBLANK(A40)),IF(VLOOKUP(A40,'Angaben zur Einrichtung'!$A$45:$J$248,9,FALSE)=\"ja\",\"Nein\",\"Ja\"),\"-\")","v":"-"}]
[null,null,null,null,null,null,null,null,null,null,null,null,null,null,null,0,"Ja",{"$f":"IF(NOT(ISBLANK(A41)),IF(VLOOKUP(A41,'Angaben zur Einrichtung'!$A$45:$J$248,9,FALSE)=\"ja\",\"Nein\",\"Ja\"),\"-\")","v":"-"}]
[null,null,null,null,null,null,null,null,null,null,null,null,null,null,null,0,"Ja",{"$f":"IF(NOT(ISBLANK(A42)),IF(VLOOKUP(A42,'Angaben zur Einrichtung'!$A$45:$J$248,9,FALSE)=\"ja\",\"Nein\",\"Ja\"),\"-\")","v":"-"}]
[null,null,null,null,null,null,null,null,null,null,null,null,null,null,null,0,"Ja",{"$f":"IF(NOT(ISBLANK(A43)),IF(VLOOKUP(A43,'Angaben zur Einrichtung'!$A$45:$J$248,9,FALSE)=\"ja\",\"Nein\",\"Ja\"),\"-\")","v":"-"}]
[null,null,null,null,null,null,null,null,null,null,null,null,null,null,null,0,"Ja",{"$f":"IF(NOT(ISBLANK(A44)),IF(VLOOKUP(A44,'Angaben zur Einrichtung'!$A$45:$J$248,9,FALSE)=\"ja\",\"Nein\",\"Ja\"),\"-\")","v":"-"}]
[null,null,null,null,null,null,null,null,null,null,null,null,null,null,null,0,"Ja",{"$f":"IF(NOT(ISBLANK(A45)),IF(VLOOKUP(A45,'Angaben zur Einrichtung'!$A$45:$J$248,9,FALSE)=\"ja\",\"Nein\",\"Ja\"),\"-\")","v":"-"}]
[null,null,null,null,null,null,null,null,null,null,null,null,null,null,null,0,"Ja",{"$f":"IF(NOT(ISBLANK(A46)),IF(VLOOKUP(A46,'Angaben zur Einrichtung'!$A$45:$J$248,9,FALSE)=\"ja\",\"Nein\",\"Ja\"),\"-\")","v":"-"}]
[null,null,null,null,null,null,null,null,null,null,null,null,null,null,null,0,"Ja",{"$f":"IF(NOT(ISBLANK(A47)),IF(VLOOKUP(A47,'Angaben zur Einrichtung'!$A$45:$J$248,9,FALSE)=\"ja\",\"Nein\",\"Ja\"),\"-\")","v":"-"}]
[null,null,null,null,null,null,null,null,null,null,null,null,null,null,null,0,"Ja",{"$f":"IF(NOT(ISBLANK(A48)),IF(VLOOKUP(A48,'Angaben zur Einrichtung'!$A$45:$J$248,9,FALSE)=\"ja\",\"Nein\",\"Ja\"),\"-\")","v":"-"}]
[null,null,null,null,null,null,null,null,null,null,null,null,null,null,null,0,"Ja",{"$f":"IF(NOT(ISBLANK(A49)),IF(VLOOKUP(A49,'Angaben zur Einrichtung'!$A$45:$J$248,9,FALSE)=\"ja\",\"Nein\",\"Ja\"),\"-\")","v":"-"}]
[null,null,null,null,null,null,null,null,null,null,null,null,null,null,null,0,"Ja",{"$f":"IF(NOT(ISBLANK(A50)),IF(VLOOKUP(A50,'Angaben zur Einrichtung'!$A$45:$J$248,9,FALSE)=\"ja\",\"Nein\",\"Ja\"),\"-\")","v":"-"}]
[null,null,null,null,null,null,null,null,null,null,null,null,null,null,null,0,"Ja",{"$f":"IF(NOT(ISBLANK(A51)),IF(VLOOKUP(A51,'Angaben zur Einrichtung'!$A$45:$J$248,9,FALSE)=\"ja\",\"Nein\",\"Ja\"),\"-\")","v":"-"}]
[null,null,null,null,null,null,null,null,null,null,null,null,null,null,null,0,"Ja",{"$f":"IF(NOT(ISBLANK(A52)),IF(VLOOKUP(A52,'Angaben zur Einrichtung'!$A$45:$J$248,9,FALSE)=\"ja\",\"Nein\",\"Ja\"),\"-\")","v":"-"}]
[null,null,null,null,null,null,null,null,null,null,null,null,null,null,null,0,"Ja",{"$f":"IF(NOT(ISBLANK(A53)),IF(VLOOKUP(A53,'Angaben zur Einrichtung'!$A$45:$J$248,9,FALSE)=\"ja\",\"Nein\",\"Ja\"),\"-\")","v":"-"}]
[null,null,null,null,null,null,null,null,null,null,null,null,null,null,null,0,"Ja",{"$f":"IF(NOT(ISBLANK(A54)),IF(VLOOKUP(A54,'Angaben zur Einrichtung'!$A$45:$J$248,9,FALSE)=\"ja\",\"Nein\",\"Ja\"),\"-\")","v":"-"}]
[null,null,null,null,null,null,null,null,null,null,null,null,null,null,null,0,"Ja",{"$f":"IF(NOT(ISBLANK(A55)),IF(VLOOKUP(A55,'Angaben zur Einrichtung'!$A$45:$J$248,9,FALSE)=\"ja\",\"Nein\",\"Ja\"),\"-\")","v":"-"}]
[null,null,null,null,null,null,null,null,null,null,null,null,null,null,null,0,"Ja",{"$f":"IF(NOT(ISBLANK(A56)),IF(VLOOKUP(A56,'Angaben zur Einrichtung'!$A$45:$J$248,9,FALSE)=\"ja\",\"Nein\",\"Ja\"),\"-\")","v":"-"}]
[null,null,null,null,null,null,null,null,null,null,null,null,null,null,null,0,"Ja",{"$f":"IF(NOT(ISBLANK(A57)),IF(VLOOKUP(A57,'Angaben zur Einrichtung'!$A$45:$J$248,9,FALSE)=\"ja\",\"Nein\",\"Ja\"),\"-\")","v":"-"}]
[null,null,null,null,null,null,null,null,null,null,null,null,null,null,null,0,"Ja",{"$f":"IF(NOT(ISBLANK(A58)),IF(VLOOKUP(A58,'Angaben zur Einrichtung'!$A$45:$J$248,9,FALSE)=\"ja\",\"Nein\",\"Ja\"),\"-\")","v":"-"}]
[null,null,null,null,null,null,null,null,null,null,null,null,null,null,null,0,"Ja",{"$f":"IF(NOT(ISBLANK(A59)),IF(VLOOKUP(A59,'Angaben zur Einrichtung'!$A$45:$J$248,9,FALSE)=\"ja\",\"Nein\",\"Ja\"),\"-\")","v":"-"}]
[null,null,null,null,null,null,null,null,null,null,null,null,null,null,null,0,"Ja",{"$f":"IF(NOT(ISBLANK(A60)),IF(VLOOKUP(A60,'Angaben zur Einrichtung'!$A$45:$J$248,9,FALSE)=\"ja\",\"Nein\",\"Ja\"),\"-\")","v":"-"}]
[null,null,null,null,null,null,null,null,null,null,null,null,null,null,null,0,"Ja",{"$f":"IF(NOT(ISBLANK(A61)),IF(VLOOKUP(A61,'Angaben zur Einrichtung'!$A$45:$J$248,9,FALSE)=\"ja\",\"Nein\",\"Ja\"),\"-\")","v":"-"}]
[null,null,null,null,null,null,null,null,null,null,null,null,null,null,null,0,"Ja",{"$f":"IF(NOT(ISBLANK(A62)),IF(VLOOKUP(A62,'Angaben zur Einrichtung'!$A$45:$J$248,9,FALSE)=\"ja\",\"Nein\",\"Ja\"),\"-\")","v":"-"}]
[null,null,null,null,null,null,null,null,null,null,null,null,null,null,null,0,"Ja",{"$f":"IF(NOT(ISBLANK(A63)),IF(VLOOKUP(A63,'Angaben zur Einrichtung'!$A$45:$J$248,9,FALSE)=\"ja\",\"Nein\",\"Ja\"),\"-\")","v":"-"}]
[null,null,null,null,null,null,null,null,null,null,null,null,null,null,null,0,"Ja",{"$f":"IF(NOT(ISBLANK(A64)),IF(VLOOKUP(A64,'Angaben zur Einrichtung'!$A$45:$J$248,9,FALSE)=\"ja\",\"Nein\",\"Ja\"),\"-\")","v":"-"}]
[null,null,null,null,null,null,null,null,null,null,null,null,null,null,null,0,"Ja",{"$f":"IF(NOT(ISBLANK(A65)),IF(VLOOKUP(A65,'Angaben zur Einrichtung'!$A$45:$J$248,9,FALSE)=\"ja\",\"Nein\",\"Ja\"),\"-\")","v":"-"}]
[null,null,null,null,null,null,null,null,null,null,null,null,null,null,null,0,"Ja",{"$f":"IF(NOT(ISBLANK(A66)),IF(VLOOKUP(A66,'Angaben zur Einrichtung'!$A$45:$J$248,9,FALSE)=\"ja\",\"Nein\",\"Ja\"),\"-\")","v":"-"}]
[null,null,null,null,null,null,null,null,null,null,null,null,null,null,null,0,"Ja",{"$f":"IF(NOT(ISBLANK(A67)),IF(VLOOKUP(A67,'Angaben zur Einrichtung'!$A$45:$J$248,9,FALSE)=\"ja\",\"Nein\",\"Ja\"),\"-\")","v":"-"}]
[null,null,null,null,null,null,null,null,null,null,null,null,null,null,null,0,"Ja",{"$f":"IF(NOT(ISBLANK(A68)),IF(VLOOKUP(A68,'Angaben zur Einrichtung'!$A$45:$J$248,9,FALSE)=\"ja\",\"Nein\",\"Ja\"),\"-\")","v":"-"}]
[null,null,null,null,null,null,null,null,null,null,null,null,null,null,null,0,"Ja",{"$f":"IF(NOT(ISBLANK(A69)),IF(VLOOKUP(A69,'Angaben zur Einrichtung'!$A$45:$J$248,9,FALSE)=\"ja\",\"Nein\",\"Ja\"),\"-\")","v":"-"}]
[null,null,null,null,null,null,null,null,null,null,null,null,null,null,null,{"$f":"SUM(E70:O70)","v":0},{"$f":"IF(AND(E70+F70>5,H70+I70>3,J70+L70>3,G70>1,K70+M70>3,N70+O70>3),\"Nein\",\"Ja\")","v":"Ja"},{"$f":"IF(NOT(ISBLANK(A70)),IF(VLOOKUP(A70,'Angaben zur Einrichtung'!$A$45:$J$248,9,FALSE)=\"ja\",\"Nein\",\"Ja\"),\"-\")","v":"-"}]
[null,null,null,null,null,null,null,null,null,null,null,null,null,null,null,0,"Ja",{"$f":"IF(NOT(ISBLANK(A71)),IF(VLOOKUP(A71,'Angaben zur Einrichtung'!$A$45:$J$248,9,FALSE)=\"ja\",\"Nein\",\"Ja\"),\"-\")","v":"-"}]
[null,null,null,null,null,null,null,null,null,null,null,null,null,null,null,0,"Ja",{"$f":"IF(NOT(ISBLANK(A72)),IF(VLOOKUP(A72,'Angaben zur Einrichtung'!$A$45:$J$248,9,FALSE)=\"ja\",\"Nein\",\"Ja\"),\"-\")","v":"-"}]
[null,null,null,null,null,null,null,null,null,null,null,null,null,null,null,0,"Ja",{"$f":"IF(NOT(ISBLANK(A73)),IF(VLOOKUP(A73,'Angaben zur Einrichtung'!$A$45:$J$248,9,FALSE)=\"ja\",\"Nein\",\"Ja\"),\"-\")","v":"-"}]
[null,null,null,null,null,null,null,null,null,null,null,null,null,null,null,0,"Ja",{"$f":"IF(NOT(ISBLANK(A74)),IF(VLOOKUP(A74,'Angaben zur Einrichtung'!$A$45:$J$248,9,FALSE)=\"ja\",\"Nein\",\"Ja\"),\"-\")","v":"-"}]
[null,null,null,null,null,null,null,null,null,null,null,null,null,null,null,0,"Ja",{"$f":"IF(NOT(ISBLANK(A75)),IF(VLOOKUP(A75,'Angaben zur Einrichtung'!$A$45:$J$248,9,FALSE)=\"ja\",\"Nein\",\"Ja\"),\"-\")","v":"-"}]
[null,null,null,null,null,null,null,null,null,null,null,null,null,null,null,0,"Ja",{"$f":"IF(NOT(ISBLANK(A76)),IF(VLOOKUP(A76,'Angaben zur Einrichtung'!$A$45:$J$248,9,FALSE)=\"ja\",\"Nein\",\"Ja\"),\"-\")","v":"-"}]
[null,null,null,null,null,null,null,null,null,null,null,null,null,null,null,0,"Ja",{"$f":"IF(NOT(ISBLANK(A77)),IF(VLOOKUP(A77,'Angaben zur Einrichtung'!$A$45:$J$248,9,FALSE)=\"ja\",\"Nein\",\"Ja\"),\"-\")","v":"-"}]
[null,null,null,null,null,null,null,null,null,null,null,null,null,null,null,0,"Ja",{"$f":"IF(NOT(ISBLANK(A78)),IF(VLOOKUP(A78,'Angaben zur Einrichtung'!$A$45:$J$248,9,FALSE)=\"ja\",\"Nein\",\"Ja\"),\"-\")","v":"-"}]
[null,null,null,null,null,null,null,null,null,null,null,null,null,null,null,0,"Ja",{"$f":"IF(NOT(ISBLANK(A79)),IF(VLOOKUP(A79,'Angaben zur Einrichtung'!$A$45:$J$248,9,FALSE)=\"ja\",\"Nein\",\"Ja\"),\"-\")","v":"-"}]
[null,null,null,null,null,null,null,null,null,null,null,null,null,null,null,0,"Ja",{"$f":"IF(NOT(ISBLANK(A80)),IF(VLOOKUP(A80,'Angaben zur Einrichtung'!$A$45:$J$248,9,FALSE)=\"ja\",\"Nein\",\"Ja\"),\"-\")","v":"-"}]
[null,null,null,null,null,null,null,null,null,null,null,null,null,null,null,0,"Ja",{"$f":"IF(NOT(ISBLANK(A81)),IF(VLOOKUP(A81,'Angaben zur Einrichtung'!$A$45:$J$248,9,FALSE)=\"ja\",\"Nein\",\"Ja\"),\"-\")","v":"-"}]
[null,null,null,null,null,null,null,null,null,null,null,null,null,null,null,0,"Ja",{"$f":"IF(NOT(ISBLANK(A82)),IF(VLOOKUP(A82,'Angaben zur Einrichtung'!$A$45:$J$248,9,FALSE)=\"ja\",\"Nein\",\"Ja\"),\"-\")","v":"-"}]
[null,null,null,null,null,null,null,null,null,null,null,null,null,null,null,0,"Ja",{"$f":"IF(NOT(ISBLANK(A83)),IF(VLOOKUP(A83,'Angaben zur Einrichtung'!$A$45:$J$248,9,FALSE)=\"ja\",\"Nein\",\"Ja\"),\"-\")","v":"-"}]
[null,null,null,null,null,null,null,null,null,null,null,null,null,null,null,0,"Ja",{"$f":"IF(NOT(ISBLANK(A84)),IF(VLOOKUP(A84,'Angaben zur Einrichtung'!$A$45:$J$248,9,FALSE)=\"ja\",\"Nein\",\"Ja\"),\"-\")","v":"-"}]
[null,null,null,null,null,null,null,null,null,null,null,null,null,null,null,0,"Ja",{"$f":"IF(NOT(ISBLANK(A85)),IF(VLOOKUP(A85,'Angaben zur Einrichtung'!$A$45:$J$248,9,FALSE)=\"ja\",\"Nein\",\"Ja\"),\"-\")","v":"-"}]
[null,null,null,null,null,null,null,null,null,null,null,null,null,null,null,0,"Ja",{"$f":"IF(NOT(ISBLANK(A86)),IF(VLOOKUP(A86,'Angaben zur Einrichtung'!$A$45:$J$248,9,FALSE)=\"ja\",\"Nein\",\"Ja\"),\"-\")","v":"-"}]
[null,null,null,null,null,null,null,null,null,null,null,null,null,null,null,0,"Ja",{"$f":"IF(NOT(ISBLANK(A87)),IF(VLOOKUP(A87,'Angaben zur Einrichtung'!$A$45:$J$248,9,FALSE)=\"ja\",\"Nein\",\"Ja\"),\"-\")","v":"-"}]
[null,null,null,null,null,null,null,null,null,null,null,null,null,null,null,0,"Ja",{"$f":"IF(NOT(ISBLANK(A88)),IF(VLOOKUP(A88,'Angaben zur Einrichtung'!$A$45:$J$248,9,FALSE)=\"ja\",\"Nein\",\"Ja\"),\"-\")","v":"-"}]
[null,null,null,null,null,null,null,null,null,null,null,null,null,null,null,0,"Ja",{"$f":"IF(NOT(ISBLANK(A89)),IF(VLOOKUP(A89,'Angaben zur Einrichtung'!$A$45:$J$248,9,FALSE)=\"ja\",\"Nein\",\"Ja\"),\"-\")","v":"-"}]
[null,null,null,null,null,null,null,null,null,null,null,null,null,null,null,0,"Ja",{"$f":"IF(NOT(ISBLANK(A90)),IF(VLOOKUP(A90,'Angaben zur Einrichtung'!$A$45:$J$248,9,FALSE)=\"ja\",\"Nein\",\"Ja\"),\"-\")","v":"-"}]
[null,null,null,null,null,null,null,null,null,null,null,null,null,null,null,0,"Ja",{"$f":"IF(NOT(ISBLANK(A91)),IF(VLOOKUP(A91,'Angaben zur Einrichtung'!$A$45:$J$248,9,FALSE)=\"ja\",\"Nein\",\"Ja\"),\"-\")","v":"-"}]
[null,null,null,null,null,null,null,null,null,null,null,null,null,null,null,0,"Ja",{"$f":"IF(NOT(ISBLANK(A92)),IF(VLOOKUP(A92,'Angaben zur Einrichtung'!$A$45:$J$248,9,FALSE)=\"ja\",\"Nein\",\"Ja\"),\"-\")","v":"-"}]
[null,null,null,null,null,null,null,null,null,null,null,null,null,null,null,0,"Ja",{"$f":"IF(NOT(ISBLANK(A93)),IF(VLOOKUP(A93,'Angaben zur Einrichtung'!$A$45:$J$248,9,FALSE)=\"ja\",\"Nein\",\"Ja\"),\"-\")","v":"-"}]
[null,null,null,null,null,null,null,null,null,null,null,null,null,null,null,0,"Ja",{"$f":"IF(NOT(ISBLANK(A94)),IF(VLOOKUP(A94,'Angaben zur Einrichtung'!$A$45:$J$248,9,FALSE)=\"ja\",\"Nein\",\"Ja\"),\"-\")","v":"-"}]
[null,null,null,null,null,null,null,null,null,null,null,null,null,null,null,0,"Ja",{"$f":"IF(NOT(ISBLANK(A95)),IF(VLOOKUP(A95,'Angaben zur Einrichtung'!$A$45:$J$248,9,FALSE)=\"ja\",\"Nein\",\"Ja\"),\"-\")","v":"-"}]
[null,null,null,null,null,null,null,null,null,null,null,null,null,null,null,0,"Ja",{"$f":"IF(NOT(ISBLANK(A96)),IF(VLOOKUP(A96,'Angaben zur Einrichtung'!$A$45:$J$248,9,FALSE)=\"ja\",\"Nein\",\"Ja\"),\"-\")","v":"-"}]
[null,null,null,null,null,null,null,null,null,null,null,null,null,null,null,0,"Ja",{"$f":"IF(NOT(ISBLANK(A97)),IF(VLOOKUP(A97,'Angaben zur Einrichtung'!$A$45:$J$248,9,FALSE)=\"ja\",\"Nein\",\"Ja\"),\"-\")","v":"-"}]
[null,null,null,null,null,null,null,null,null,null,null,null,null,null,null,0,"Ja",{"$f":"IF(NOT(ISBLANK(A98)),IF(VLOOKUP(A98,'Angaben zur Einrichtung'!$A$45:$J$248,9,FALSE)=\"ja\",\"Nein\",\"Ja\"),\"-\")","v":"-"}]
[null,null,null,null,null,null,null,null,null,null,null,null,null,null,null,0,"Ja",{"$f":"IF(NOT(ISBLANK(A99)),IF(VLOOKUP(A99,'Angaben zur Einrichtung'!$A$45:$J$248,9,FALSE)=\"ja\",\"Nein\",\"Ja\"),\"-\")","v":"-"}]
[null,null,null,null,null,null,null,null,null,null,null,null,null,null,null,0,"Ja",{"$f":"IF(NOT(ISBLANK(A100)),IF(VLOOKUP(A100,'Angaben zur Einrichtung'!$A$45:$J$248,9,FALSE)=\"ja\",\"Nein\",\"Ja\"),\"-\")","v":"-"}]

{"sheet":"DaE Letztes J.","index":3,"n_rows":100,"n_cols":18,"rows_kept":100,"cut":false,"hidden":false,"merged":[[0,16,1,16],[0,0,2,3],[0,4,0,14],[1,4,1,6],[1,7,1,12],[1,13,1,14],[2,4,2,6],[2,7,2,8],[2,9,2,12],[2,13,2,14],[0,15,2,15]]}
["Angaben zum Kind",null,null,null,"Ergebnisse BESK-DaE",null,null,null,null,null,null,null,null,null,null,"Summe","Bedarf","Neue \nKinder"]
[null,null,null,null,"Syntax/\nSatzbau - Produktion",null,null,"Wortschatz - Rezeption\nWortschatz - Produktion",null,null,null,null,null,"Erzählen\n",null,null,null,"Wurde das\nKind zum \nersten Mal \nbeobachtet?"]
[null,null,null,null,"Bereich S",null,null,"Bereich WR",null,"Bereich WPE",null,null,null,"Bereich E",null,null,"Ja/Nein","Ja/Nein"]
["Identifikations-nummer","Kindergarten-jahr","Erstsprache","Sonstige Angaben","1.","2.","3.","5.","6.","7.a.","7.b.","8.a.","8.b.","9.","10.","auto-matisch","auto-\nmatisch","auto-\nmatisch"]
[null,null,null,null,null,null,null,null,null,null,null,null,null,null,null,{"$f":"SUM(E5:O5)","v":0},{"$f":"IF(AND(E5+F5>5,H5+I5>5,J5+L5>5,G5>2,K5+M5>3,N5+O5>3),\"Nein\",\"Ja\")","v":"Ja"},{"$f":"IF(NOT(ISBLANK(A5)),IF(VLOOKUP(A5,'Angaben zur Einrichtung'!$A$45:$J$248,9,FALSE)=\"ja\",\"Nein\",\"Ja\"),\"-\")","v":"-"}]
[null,null,null,null,null,null,null,null,null,null,null,null,null,null,null,{"$f":"SUM(E6:O6)","v":0},{"$f":"IF(AND(E6+F6>5,H6+I6>5,J6+L6>5,G6>2,K6+M6>3,N6+O6>3),\"Nein\",\"Ja\")","v":"Ja"},{"$f":"IF(NOT(ISBLANK(A6)),IF(VLOOKUP(A6,'Angaben zur Einrichtung'!$A$45:$J$248,9,FALSE)=\"ja\",\"Nein\",\"Ja\"),\"-\")","v":"-"}]
[null,null,null,null,null,null,null,null,null,null,null,null,null,null,null,0,"Ja",{"$f":"IF(NOT(ISBLANK(A7)),IF(VLOOKUP(A7,'Angaben zur Einrichtung'!$A$45:$J$248,9,FALSE)=\"ja\",\"Nein\",\"Ja\"),\"-\")","v":"-"}]
[null,null,null,null,null,null,null,null,null,null,null,null,null,null,null,0,"Ja",{"$f":"IF(NOT(ISBLANK(A8)),IF(VLOOKUP(A8,'Angaben zur Einrichtung'!$A$45:$J$248,9,FALSE)=\"ja\",\"Nein\",\"Ja\"),\"-\")","v":"-"}]
[null,null,null,null,null,null,null,null,null,null,null,null,null,null,null,0,"Ja",{"$f":"IF(NOT(ISBLANK(A9)),IF(VLOOKUP(A9,'Angaben zur Einrichtung'!$A$45:$J$248,9,FALSE)=\"ja\",\"Nein\",\"Ja\"),\"-\")","v":"-"}]
[null,null,null,null,null,null,null,null,null,null,null,null,null,null,null,0,"Ja",{"$f":"IF(NOT(ISBLANK(A10)),IF(VLOOKUP(A10,'Angaben zur Einrichtung'!$A$45:$J$248,9,FALSE)=\"ja\",\"Nein\",\"Ja\"),\"-\")","v":"-"}]
[null,null,null,null,null,null,null,null,null,null,null,null,null,null,null,0,"Ja",{"$f":"IF(NOT(ISBLANK(A11)),IF(VLOOKUP(A11,'Angaben zur Einrichtung'!$A$45:$J$248,9,FALSE)=\"ja\",\"Nein\",\"Ja\"),\"-\")","v":"-"}]
[null,null,null,null,null,null,null,null,null,null,null,null,null,null,null,0,"Ja",{"$f":"IF(NOT(ISBLANK(A12)),IF(VLOOKUP(A12,'Angaben zur Einrichtung'!$A$45:$J$248,9,FALSE)=\"ja\",\"Nein\",\"Ja\"),\"-\")","v":"-"}]
[null,null,null,null,null,null,null,null,null,null,null,null,null,null,null,0,"Ja",{"$f":"IF(NOT(ISBLANK(A13)),IF(VLOOKUP(A13,'Angaben zur Einrichtung'!$A$45:$J$248,9,FALSE)=\"ja\",\"Nein\",\"Ja\"),\"-\")","v":"-"}]
[null,null,null,null,null,null,null,null,null,null,null,null,null,null,null,0,"Ja",{"$f":"IF(NOT(ISBLANK(A14)),IF(VLOOKUP(A14,'Angaben zur Einrichtung'!$A$45:$J$248,9,FALSE)=\"ja\",\"Nein\",\"Ja\"),\"-\")","v":"-"}]
[null,null,null,null,null,null,null,null,null,null,null,null,null,null,null,0,"Ja",{"$f":"IF(NOT(ISBLANK(A15)),IF(VLOOKUP(A15,'Angaben zur Einrichtung'!$A$45:$J$248,9,FALSE)=\"ja\",\"Nein\",\"Ja\"),\"-\")","v":"-"}]
[null,null,null,null,null,null,null,null,null,null,null,null,null,null,null,0,"Ja",{"$f":"IF(NOT(ISBLANK(A16)),IF(VLOOKUP(A16,'Angaben zur Einrichtung'!$A$45:$J$248,9,FALSE)=\"ja\",\"Nein\",\"Ja\"),\"-\")","v":"-"}]
[null,null,null,null,null,null,null,null,null,null,null,null,null,null,null,0,"Ja",{"$f":"IF(NOT(ISBLANK(A17)),IF(VLOOKUP(A17,'Angaben zur Einrichtung'!$A$45:$J$248,9,FALSE)=\"ja\",\"Nein\",\"Ja\"),\"-\")","v":"-"}]
[null,null,null,null,null,null,null,null,null,null,null,null,null,null,null,0,"Ja",{"$f":"IF(NOT(ISBLANK(A18)),IF(VLOOKUP(A18,'Angaben zur Einrichtung'!$A$45:$J$248,9,FALSE)=\"ja\",\"Nein\",\"Ja\"),\"-\")","v":"-"}]
[null,null,null,null,null,null,null,null,null,null,null,null,null,null,null,0,"Ja",{"$f":"IF(NOT(ISBLANK(A19)),IF(VLOOKUP(A19,'Angaben zur Einrichtung'!$A$45:$J$248,9,FALSE)=\"ja\",\"Nein\",\"Ja\"),\"-\")","v":"-"}]
[null,null,null,null,null,null,null,null,null,null,null,null,null,null,null,0,"Ja",{"$f":"IF(NOT(ISBLANK(A20)),IF(VLOOKUP(A20,'Angaben zur Einrichtung'!$A$45:$J$248,9,FALSE)=\"ja\",\"Nein\",\"Ja\"),\"-\")","v":"-"}]
[null,null,null,null,null,null,null,null,null,null,null,null,null,null,null,0,"Ja",{"$f":"IF(NOT(ISBLANK(A21)),IF(VLOOKUP(A21,'Angaben zur Einrichtung'!$A$45:$J$248,9,FALSE)=\"ja\",\"Nein\",\"Ja\"),\"-\")","v":"-"}]
[null,null,null,null,null,null,null,null,null,null,null,null,null,null,null,0,"Ja",{"$f":"IF(NOT(ISBLANK(A22)),IF(VLOOKUP(A22,'Angaben zur Einrichtung'!$A$45:$J$248,9,FALSE)=\"ja\",\"Nein\",\"Ja\"),\"-\")","v":"-"}]
[null,null,null,null,null,null,null,null,null,null,null,null,null,null,null,0,"Ja",{"$f":"IF(NOT(ISBLANK(A23)),IF(VLOOKUP(A23,'Angaben zur Einrichtung'!$A$45:$J$248,9,FALSE)=\"ja\",\"Nein\",\"Ja\"),\"-\")","v":"-"}]
[null,null,null,null,null,null,null,null,null,null,null,null,null,null,null,0,"Ja",{"$f":"IF(NOT(ISBLANK(A24)),IF(VLOOKUP(A24,'Angaben zur Einrichtung'!$A$45:$J$248,9,FALSE)=\"ja\",\"Nein\",\"Ja\"),\"-\")","v":"-"}]
[null,null,null,null,null,null,null,null,null,null,null,null,null,null,null,0,"Ja",{"$f":"IF(NOT(ISBLANK(A25)),IF(VLOOKUP(A25,'Angaben zur Einrichtung'!$A$45:$J$248,9,FALSE)=\"ja\",\"Nein\",\"Ja\"),\"-\")","v":"-"}]
[null,null,null,null,null,null,null,null,null,null,null,null,null,null,null,0,"Ja",{"$f":"IF(NOT(ISBLANK(A26)),IF(VLOOKUP(A26,'Angaben zur Einrichtung'!$A$45:$J$248,9,FALSE)=\"ja\",\"Nein\",\"Ja\"),\"-\")","v":"-"}]
[null,null,null,null,null,null,null,null,null,null,null,null,null,null,null,0,"Ja",{"$f":"IF(NOT(ISBLANK(A27)),IF(VLOOKUP(A27,'Angaben zur Einrichtung'!$A$45:$J$248,9,FALSE)=\"ja\",\"Nein\",\"Ja\"),\"-\")","v":"-"}]
[null,null,null,null,null,null,null,null,null,null,null,null,null,null,null,0,"Ja",{"$f":"IF(NOT(ISBLANK(A28)),IF(VLOOKUP(A28,'Angaben zur Einrichtung'!$A$45:$J$248,9,FALSE)=\"ja\",\"Nein\",\"Ja\"),\"-\")","v":"-"}]
[null,null,null,null,null,null,null,null,null,null,null,null,null,null,null,0,"Ja",{"$f":"IF(NOT(ISBLANK(A29)),IF(VLOOKUP(A29,'Angaben zur Einrichtung'!$A$45:$J$248,9,FALSE)=\"ja\",\"Nein\",\"Ja\"),\"-\")","v":"-"}]
[null,null,null,null,null,null,null,null,null,null,null,null,null,null,null,0,"Ja",{"$f":"IF(NOT(ISBLANK(A30)),IF(VLOOKUP(A30,'Angaben zur Einrichtung'!$A$45:$J$248,9,FALSE)=\"ja\",\"Nein\",\"Ja\"),\"-\")","v":"-"}]
[null,null,null,null,null,null,null,null,null,null,null,null,null,null,null,0,"Ja",{"$f":"IF(NOT(ISBLANK(A31)),IF(VLOOKUP(A31,'Angaben zur Einrichtung'!$A$45:$J$248,9,FALSE)=\"ja\",\"Nein\",\"Ja\"),\"-\")","v":"-"}]
[null,null,null,null,null,null,null,null,null,null,null,null,null,null,null,0,"Ja",{"$f":"IF(NOT(ISBLANK(A32)),IF(VLOOKUP(A32,'Angaben zur Einrichtung'!$A$45:$J$248,9,FALSE)=\"ja\",\"Nein\",\"Ja\"),\"-\")","v":"-"}]
[null,null,null,null,null,null,null,null,null,null,null,null,null,null,null,0,"Ja",{"$f":"IF(NOT(ISBLANK(A33)),IF(VLOOKUP(A33,'Angaben zur Einrichtung'!$A$45:$J$248,9,FALSE)=\"ja\",\"Nein\",\"Ja\"),\"-\")","v":"-"}]
[null,null,null,null,null,null,null,null,null,null,null,null,null,null,null,0,"Ja",{"$f":"IF(NOT(ISBLANK(A34)),IF(VLOOKUP(A34,'Angaben zur Einrichtung'!$A$45:$J$248,9,FALSE)=\"ja\",\"Nein\",\"Ja\"),\"-\")","v":"-"}]
[null,null,null,null,null,null,null,null,null,null,null,null,null,null,null,0,"Ja",{"$f":"IF(NOT(ISBLANK(A35)),IF(VLOOKUP(A35,'Angaben zur Einrichtung'!$A$45:$J$248,9,FALSE)=\"ja\",\"Nein\",\"Ja\"),\"-\")","v":"-"}]
[null,null,null,null,null,null,null,null,null,null,null,null,null,null,null,0,"Ja",{"$f":"IF(NOT(ISBLANK(A36)),IF(VLOOKUP(A36,'Angaben zur Einrichtung'!$A$45:$J$248,9,FALSE)=\"ja\",\"Nein\",\"Ja\"),\"-\")","v":"-"}]
[null,null,null,null,null,null,null,null,null,null,null,null,null,null,null,0,"Ja",{"$f":"IF(NOT(ISBLANK(A37)),IF(VLOOKUP(A37,'Angaben zur Einrichtung'!$A$45:$J$248,9,FALSE)=\"ja\",\"Nein\",\"Ja\"),\"-\")","v":"-"}]
[null,null,null,null,null,null,null,null,null,null,null,null,null,null,null,0,"Ja",{"$f":"IF(NOT(ISBLANK(A38)),IF(VLOOKUP(A38,'Angaben zur Einrichtung'!$A$45:$J$248,9,FALSE)=\"ja\",\"Nein\",\"Ja\"),\"-\")","v":"-"}]
[null,null,null,null,null,null,null,null,null,null,null,null,null,null,null,0,"Ja",{"$f":"IF(NOT(ISBLANK(A39)),IF(VLOOKUP(A39,'Angaben zur Einrichtung'!$A$45:$J$248,9,FALSE)=\"ja\",\"Nein\",\"Ja\"),\"-\")","v":"-"}]
[null,null,null,null,null,null,null,null,null,null,null,null,null,null,null,0,"Ja",{"$f":"IF(NOT(ISBLANK(A40)),IF(VLOOKUP(A40,'Angaben zur Einrichtung'!$A$45:$J$248,9,FALSE)=\"ja\",\"Nein\",\"Ja\"),\"-\")","v":"-"}]
[null,null,null,null,null,null,null,null,null,null,null,null,null,null,null,0,"Ja",{"$f":"IF(NOT(ISBLANK(A41)),IF(VLOOKUP(A41,'Angaben zur Einrichtung'!$A$45:$J$248,9,FALSE)=\"ja\",\"Nein\",\"Ja\"),\"-\")","v":"-"}]
[null,null,null,null,null,null,null,null,null,null,null,null,null,null,null,0,"Ja",{"$f":"IF(NOT(ISBLANK(A42)),IF(VLOOKUP(A42,'Angaben zur Einrichtung'!$A$45:$J$248,9,FALSE)=\"ja\",\"Nein\",\"Ja\"),\"-\")","v":"-"}]
[null,null,null,null,null,null,null,null,null,null,null,null,null,null,null,0,"Ja",{"$f":"IF(NOT(ISBLANK(A43)),IF(VLOOKUP(A43,'Angaben zur Einrichtung'!$A$45:$J$248,9,FALSE)=\"ja\",\"Nein\",\"Ja\"),\"-\")","v":"-"}]
[null,null,null,null,null,null,null,null,null,null,null,null,null,null,null,0,"Ja",{"$f":"IF(NOT(ISBLANK(A44)),IF(VLOOKUP(A44,'Angaben zur Einrichtung'!$A$45:$J$248,9,FALSE)=\"ja\",\"Nein\",\"Ja\"),\"-\")","v":"-"}]
[null,null,null,null,null,null,null,null,null,null,null,null,null,null,null,0,"Ja",{"$f":"IF(NOT(ISBLANK(A45)),IF(VLOOKUP(A45,'Angaben zur Einrichtung'!$A$45:$J$248,9,FALSE)=\"ja\",\"Nein\",\"Ja\"),\"-\")","v":"-"}]
[null,null,null,null,null,null,null,null,null,null,null,null,null,null,null,0,"Ja",{"$f":"IF(NOT(ISBLANK(A46)),IF(VLOOKUP(A46,'Angaben zur Einrichtung'!$A$45:$J$248,9,FALSE)=\"ja\",\"Nein\",\"Ja\"),\"-\")","v":"-"}]
[null,null,null,null,null,null,null,null,null,null,null,null,null,null,null,0,"Ja",{"$f":"IF(NOT(ISBLANK(A47)),IF(VLOOKUP(A47,'Angaben zur Einrichtung'!$A$45:$J$248,9,FALSE)=\"ja\",\"Nein\",\"Ja\"),\"-\")","v":"-"}]
[null,null,null,null,null,null,null,null,null,null,null,null,null,null,null,0,"Ja",{"$f":"IF(NOT(ISBLANK(A48)),IF(VLOOKUP(A48,'Angaben zur Einrichtung'!$A$45:$J$248,9,FALSE)=\"ja\",\"Nein\",\"Ja\"),\"-\")","v":"-"}]
[null,null,null,null,null,null,null,null,null,null,null,null,null,null,null,0,"Ja",{"$f":"IF(NOT(ISBLANK(A49)),IF(VLOOKUP(A49,'Angaben zur Einrichtung'!$A$45:$J$248,9,FALSE)=\"ja\",\"Nein\",\"Ja\"),\"-\")","v":"-"}]
[null,null,null,null,null,null,null,null,null,null,null,null,null,null,null,0,"Ja",{"$f":"IF(NOT(ISBLANK(A50)),IF(VLOOKUP(A50,'Angaben zur Einrichtung'!$A$45:$J$248,9,FALSE)=\"ja\",\"Nein\",\"Ja\"),\"-\")","v":"-"}]
[null,null,null,null,null,null,null,null,null,null,null,null,null,null,null,0,"Ja",{"$f":"IF(NOT(ISBLANK(A51)),IF(VLOOKUP(A51,'Angaben zur Einrichtung'!$A$45:$J$248,9,FALSE)=\"ja\",\"Nein\",\"Ja\"),\"-\")","v":"-"}]
[null,null,null,null,null,null,null,null,null,null,null,null,null,null,null,0,"Ja",{"$f":"IF(NOT(ISBLANK(A52)),IF(VLOOKUP(A52,'Angaben zur Einrichtung'!$A$45:$J$248,9,FALSE)=\"ja\",\"Nein\",\"Ja\"),\"-\")","v":"-"}]
[null,null,null,null,null,null,null,null,null,null,null,null,null,null,null,0,"Ja",{"$f":"IF(NOT(ISBLANK(A53)),IF(VLOOKUP(A53,'Angaben zur Einrichtung'!$A$45:$J$248,9,FALSE)=\"ja\",\"Nein\",\"Ja\"),\"-\")","v":"-"}]
[null,null,null,null,null,null,null,null,null,null,null,null,null,null,null,0,"Ja",{"$f":"IF(NOT(ISBLANK(A54)),IF(VLOOKUP(A54,'Angaben zur Einrichtung'!$A$45:$J$248,9,FALSE)=\"ja\",\"Nein\",\"Ja\"),\"-\")","v":"-"}]
[null,null,null,null,null,null,null,null,null,null,null,null,null,null,null,0,"Ja",{"$f":"IF(NOT(ISBLANK(A55)),IF(VLOOKUP(A55,'Angaben zur Einrichtung'!$A$45:$J$248,9,FALSE)=\"ja\",\"Nein\",\"Ja\"),\"-\")","v":"-"}]
[null,null,null,null,null,null,null,null,null,null,null,null,null,null,null,0,"Ja",{"$f":"IF(NOT(ISBLANK(A56)),IF(VLOOKUP(A56,'Angaben zur Einrichtung'!$A$45:$J$248,9,FALSE)=\"ja\",\"Nein\",\"Ja\"),\"-\")","v":"-"}]
[null,null,null,null,null,null,null,null,null,null,null,null,null,null,null,0,"Ja",{"$f":"IF(NOT(ISBLANK(A57)),IF(VLOOKUP(A57,'Angaben zur Einrichtung'!$A$45:$J$248,9,FALSE)=\"ja\",\"Nein\",\"Ja\"),\"-\")","v":"-"}]
[null,null,null,null,null,null,null,null,null,null,null,null,null,null,null,0,"Ja",{"$f":"IF(NOT(ISBLANK(A58)),IF(VLOOKUP(A58,'Angaben zur Einrichtung'!$A$45:$J$248,9,FALSE)=\"ja\",\"Nein\",\"Ja\"),\"-\")","v":"-"}]
[null,null,null,null,null,null,null,null,null,null,null,null,null,null,null,0,"Ja",{"$f":"IF(NOT(ISBLANK(A59)),IF(VLOOKUP(A59,'Angaben zur Einrichtung'!$A$45:$J$248,9,FALSE)=\"ja\",\"Nein\",\"Ja\"),\"-\")","v":"-"}]
[null,null,null,null,null,null,null,null,null,null,null,null,null,null,null,0,"Ja",{"$f":"IF(NOT(ISBLANK(A60)),IF(VLOOKUP(A60,'Angaben zur Einrichtung'!$A$45:$J$248,9,FALSE)=\"ja\",\"Nein\",\"Ja\"),\"-\")","v":"-"}]
[null,null,null,null,null,null,null,null,null,null,null,null,null,null,null,0,"Ja",{"$f":"IF(NOT(ISBLANK(A61)),IF(VLOOKUP(A61,'Angaben zur Einrichtung'!$A$45:$J$248,9,FALSE)=\"ja\",\"Nein\",\"Ja\"),\"-\")","v":"-"}]
[null,null,null,null,null,null,null,null,null,null,null,null,null,null,null,0,"Ja",{"$f":"IF(NOT(ISBLANK(A62)),IF(VLOOKUP(A62,'Angaben zur Einrichtung'!$A$45:$J$248,9,FALSE)=\"ja\",\"Nein\",\"Ja\"),\"-\")","v":"-"}]
[null,null,null,null,null,null,null,null,null,null,null,null,null,null,null,0,"Ja",{"$f":"IF(NOT(ISBLANK(A63)),IF(VLOOKUP(A63,'Angaben zur Einrichtung'!$A$45:$J$248,9,FALSE)=\"ja\",\"Nein\",\"Ja\"),\"-\")","v":"-"}]
[null,null,null,null,null,null,null,null,null,null,null,null,null,null,null,0,"Ja",{"$f":"IF(NOT(ISBLANK(A64)),IF(VLOOKUP(A64,'Angaben zur Einrichtung'!$A$45:$J$248,9,FALSE)=\"ja\",\"Nein\",\"Ja\"),\"-\")","v":"-"}]
[null,null,null,null,null,null,null,null,null,null,null,null,null,null,null,0,"Ja",{"$f":"IF(NOT(ISBLANK(A65)),IF(VLOOKUP(A65,'Angaben zur Einrichtung'!$A$45:$J$248,9,FALSE)=\"ja\",\"Nein\",\"Ja\"),\"-\")","v":"-"}]
[null,null,null,null,null,null,null,null,null,null,null,null,null,null,null,0,"Ja",{"$f":"IF(NOT(ISBLANK(A66)),IF(VLOOKUP(A66,'Angaben zur Einrichtung'!$A$45:$J$248,9,FALSE)=\"ja\",\"Nein\",\"Ja\"),\"-\")","v":"-"}]
[null,null,null,null,null,null,null,null,null,null,null,null,null,null,null,0,"Ja",{"$f":"IF(NOT(ISBLANK(A67)),IF(VLOOKUP(A67,'Angaben zur Einrichtung'!$A$45:$J$248,9,FALSE)=\"ja\",\"Nein\",\"Ja\"),\"-\")","v":"-"}]
[null,null,null,null,null,null,null,null,null,null,null,null,null,null,null,0,"Ja",{"$f":"IF(NOT(ISBLANK(A68)),IF(VLOOKUP(A68,'Angaben zur Einrichtung'!$A$45:$J$248,9,FALSE)=\"ja\",\"Nein\",\"Ja\"),\"-\")","v":"-"}]
[null,null,null,null,null,null,null,null,null,null,null,null,null,null,null,0,"Ja",{"$f":"IF(NOT(ISBLANK(A69)),IF(VLOOKUP(A69,'Angaben zur Einrichtung'!$A$45:$J$248,9,FALSE)=\"ja\",\"Nein\",\"Ja\"),\"-\")","v":"-"}]
[null,null,null,null,null,null,null,null,null,null,null,null,null,null,null,{"$f":"SUM(E70:O70)","v":0},{"$f":"IF(AND(E70+F70>5,H70+I70>5,J70+L70>5,G70>2,K70+M70>3,N70+O70>3),\"Nein\",\"Ja\")","v":"Ja"},{"$f":"IF(NOT(ISBLANK(A70)),IF(VLOOKUP(A70,'Angaben zur Einrichtung'!$A$45:$J$248,9,FALSE)=\"ja\",\"Nein\",\"Ja\"),\"-\")","v":"-"}]
[null,null,null,null,null,null,null,null,null,null,null,null,null,null,null,0,"Ja",{"$f":"IF(NOT(ISBLANK(A71)),IF(VLOOKUP(A71,'Angaben zur Einrichtung'!$A$45:$J$248,9,FALSE)=\"ja\",\"Nein\",\"Ja\"),\"-\")","v":"-"}]
[null,null,null,null,null,null,null,null,null,null,null,null,null,null,null,0,"Ja",{"$f":"IF(NOT(ISBLANK(A72)),IF(VLOOKUP(A72,'Angaben zur Einrichtung'!$A$45:$J$248,9,FALSE)=\"ja\",\"Nein\",\"Ja\"),\"-\")","v":"-"}]
[null,null,null,null,null,null,null,null,null,null,null,null,null,null,null,0,"Ja",{"$f":"IF(NOT(ISBLANK(A73)),IF(VLOOKUP(A73,'Angaben zur Einrichtung'!$A$45:$J$248,9,FALSE)=\"ja\",\"Nein\",\"Ja\"),\"-\")","v":"-"}]
[null,null,null,null,null,null,null,null,null,null,null,null,null,null,null,0,"Ja",{"$f":"IF(NOT(ISBLANK(A74)),IF(VLOOKUP(A74,'Angaben zur Einrichtung'!$A$45:$J$248,9,FALSE)=\"ja\",\"Nein\",\"Ja\"),\"-\")","v":"-"}]
[null,null,null,null,null,null,null,null,null,null,null,null,null,null,null,0,"Ja",{"$f":"IF(NOT(ISBLANK(A75)),IF(VLOOKUP(A75,'Angaben zur Einrichtung'!$A$45:$J$248,9,FALSE)=\"ja\",\"Nein\",\"Ja\"),\"-\")","v":"-"}]
[null,null,null,null,null,null,null,null,null,null,null,null,null,null,null,0,"Ja",{"$f":"IF(NOT(ISBLANK(A76)),IF(VLOOKUP(A76,'Angaben zur Einrichtung'!$A$45:$J$248,9,FALSE)=\"ja\",\"Nein\",\"Ja\"),\"-\")","v":"-"}]
[null,null,null,null,null,null,null,null,null,null,null,null,null,null,null,0,"Ja",{"$f":"IF(NOT(ISBLANK(A77)),IF(VLOOKUP(A77,'Angaben zur Einrichtung'!$A$45:$J$248,9,FALSE)=\"ja\",\"Nein\",\"Ja\"),\"-\")","v":"-"}]
[null,null,null,null,null,null,null,null,null,null,null,null,null,null,null,0,"Ja",{"$f":"IF(NOT(ISBLANK(A78)),IF(VLOOKUP(A78,'Angaben zur Einrichtung'!$A$45:$J$248,9,FALSE)=\"ja\",\"Nein\",\"Ja\"),\"-\")","v":"-"}]
[null,null,null,null,null,null,null,null,null,null,null,null,null,null,null,0,"Ja",{"$f":"IF(NOT(ISBLANK(A79)),IF(VLOOKUP(A79,'Angaben zur Einrichtung'!$A$45:$J$248,9,FALSE)=\"ja\",\"Nein\",\"Ja\"),\"-\")","v":"-"}]
[null,null,null,null,null,null,null,null,null,null,null,null,null,null,null,0,"Ja",{"$f":"IF(NOT(ISBLANK(A80)),IF(VLOOKUP(A80,'Angaben zur Einrichtung'!$A$45:$J$248,9,FALSE)=\"ja\",\"Nein\",\"Ja\"),\"-\")","v":"-"}]
[null,null,null,null,null,null,null,null,null,null,null,null,null,null,null,0,"Ja",{"$f":"IF(NOT(ISBLANK(A81)),IF(VLOOKUP(A81,'Angaben zur Einrichtung'!$A$45:$J$248,9,FALSE)=\"ja\",\"Nein\",\"Ja\"),\"-\")","v":"-"}]
[null,null,null,null,null,null,null,null,null,null,null,null,null,null,null,0,"Ja",{"$f":"IF(NOT(ISBLANK(A82)),IF(VLOOKUP(A82,'Angaben zur Einrichtung'!$A$45:$J$248,9,FALSE)=\"ja\",\"Nein\",\"Ja\"),\"-\")","v":"-"}]
[null,null,null,null,null,null,null,null,null,null,null,null,null,null,null,0,"Ja",{"$f":"IF(NOT(ISBLANK(A83)),IF(VLOOKUP(A83,'Angaben zur Einrichtung'!$A$45:$J$248,9,FALSE)=\"ja\",\"Nein\",\"Ja\"),\"-\")","v":"-"}]
[null,null,null,null,null,null,null,null,null,null,null,null,null,null,null,0,"Ja",{"$f":"IF(NOT(ISBLANK(A84)),IF(VLOOKUP(A84,'Angaben zur Einrichtung'!$A$45:$J$248,9,FALSE)=\"ja\",\"Nein\",\"Ja\"),\"-\")","v":"-"}]
[null,null,null,null,null,null,null,null,null,null,null,null,null,null,null,0,"Ja",{"$f":"IF(NOT(ISBLANK(A85)),IF(VLOOKUP(A85,'Angaben zur Einrichtung'!$A$45:$J$248,9,FALSE)=\"ja\",\"Nein\",\"Ja\"),\"-\")","v":"-"}]
[null,null,null,null,null,null,null,null,null,null,null,null,null,null,null,0,"Ja",{"$f":"IF(NOT(ISBLANK(A86)),IF(VLOOKUP(A86,'Angaben zur Einrichtung'!$A$45:$J$248,9,FALSE)=\"ja\",\"Nein\",\"Ja\"),\"-\")","v":"-"}]
[null,null,null,null,null,null,null,null,null,null,null,null,null,null,null,0,"Ja",{"$f":"IF(NOT(ISBLANK(A87)),IF(VLOOKUP(A87,'Angaben zur Einrichtung'!$A$45:$J$248,9,FALSE)=\"ja\",\"Nein\",\"Ja\"),\"-\")","v":"-"}]
[null,null,null,null,null,null,null,null,null,null,null,null,null,null,null,0,"Ja",{"$f":"IF(NOT(ISBLANK(A88)),IF(VLOOKUP(A88,'Angaben zur Einrichtung'!$A$45:$J$248,9,FALSE)=\"ja\",\"Nein\",\"Ja\"),\"-\")","v":"-"}]
[null,null,null,null,null,null,null,null,null,null,null,null,null,null,null,0,"Ja",{"$f":"IF(NOT(ISBLANK(A89)),IF(VLOOKUP(A89,'Angaben zur Einrichtung'!$A$45:$J$248,9,FALSE)=\"ja\",\"Nein\",\"Ja\"),\"-\")","v":"-"}]
[null,null,null,null,null,null,null,null,null,null,null,null,null,null,null,0,"Ja",{"$f":"IF(NOT(ISBLANK(A90)),IF(VLOOKUP(A90,'Angaben zur Einrichtung'!$A$45:$J$248,9,FALSE)=\"ja\",\"Nein\",\"Ja\"),\"-\")","v":"-"}]
[null,null,null,null,null,null,null,null,null,null,null,null,null,null,null,0,"Ja",{"$f":"IF(NOT(ISBLANK(A91)),IF(VLOOKUP(A91,'Angaben zur Einrichtung'!$A$45:$J$248,9,FALSE)=\"ja\",\"Nein\",\"Ja\"),\"-\")","v":"-"}]
[null,null,null,null,null,null,null,null,null,null,null,null,null,null,null,0,"Ja",{"$f":"IF(NOT(ISBLANK(A92)),IF(VLOOKUP(A92,'Angaben zur Einrichtung'!$A$45:$J$248,9,FALSE)=\"ja\",\"Nein\",\"Ja\"),\"-\")","v":"-"}]
[null,null,null,null,null,null,null,null,null,null,null,null,null,null,null,0,"Ja",{"$f":"IF(NOT(ISBLANK(A93)),IF(VLOOKUP(A93,'Angaben zur Einrichtung'!$A$45:$J$248,9,FALSE)=\"ja\",\"Nein\",\"Ja\"),\"-\")","v":"-"}]
[null,null,null,null,null,null,null,null,null,null,null,null,null,null,null,0,"Ja",{"$f":"IF(NOT(ISBLANK(A94)),IF(VLOOKUP(A94,'Angaben zur Einrichtung'!$A$45:$J$248,9,FALSE)=\"ja\",\"Nein\",\"Ja\"),\"-\")","v":"-"}]
[null,null,null,null,null,null,null,null,null,null,null,null,null,null,null,0,"Ja",{"$f":"IF(NOT(ISBLANK(A95)),IF(VLOOKUP(A95,'Angaben zur Einrichtung'!$A$45:$J$248,9,FALSE)=\"ja\",\"Nein\",\"Ja\"),\"-\")","v":"-"}]
[null,null,null,null,null,null,null,null,null,null,null,null,null,null,null,0,"Ja",{"$f":"IF(NOT(ISBLANK(A96)),IF(VLOOKUP(A96,'Angaben zur Einrichtung'!$A$45:$J$248,9,FALSE)=\"ja\",\"Nein\",\"Ja\"),\"-\")","v":"-"}]
[null,null,null,null,null,null,null,null,null,null,null,null,null,null,null,0,"Ja",{"$f":"IF(NOT(ISBLANK(A97)),IF(VLOOKUP(A97,'Angaben zur Einrichtung'!$A$45:$J$248,9,FALSE)=\"ja\",\"Nein\",\"Ja\"),\"-\")","v":"-"}]
[null,null,null,null,null,null,null,null,null,null,null,null,null,null,null,0,"Ja",{"$f":"IF(NOT(ISBLANK(A98)),IF(VLOOKUP(A98,'Angaben zur Einrichtung'!$A$45:$J$248,9,FALSE)=\"ja\",\"Nein\",\"Ja\"),\"-\")","v":"-"}]
[null,null,null,null,null,null,null,null,null,null,null,null,null,null,null,0,"Ja",{"$f":"IF(NOT(ISBLANK(A99)),IF(VLOOKUP(A99,'Angaben zur Einrichtung'!$A$45:$J$248,9,FALSE)=\"ja\",\"Nein\",\"Ja\"),\"-\")","v":"-"}]
[null,null,null,null,null,null,null,null,null,null,null,null,null,null,null,0,"Ja",{"$f":"IF(NOT(ISBLANK(A100)),IF(VLOOKUP(A100,'Angaben zur Einrichtung'!$A$45:$J$248,9,FALSE)=\"ja\",\"Nein\",\"Ja\"),\"-\")","v":"-"}]

{"sheet":"DaZ Drittletztes J.","index":4,"n_rows":100,"n_cols":13,"rows_kept":100,"cut":false,"hidden":false,"merged":[[0,10,2,10],[0,11,1,11],[0,0,2,3],[0,4,0,9],[1,4,1,5],[1,6,1,9],[2,4,2,5],[2,6,2,7],[2,8,2,9]]}
["Angaben zum Kind",null,null,null,"Ergebnisse BESK-DaZ",null,null,null,null,null,"Summe","Bedarf","Neue \nKinder"]
[null,null,null,null,"Syntax/\nSatzbau - Produktion",null,"Wortschatz - Rezeption\nWortschatz - Produktion",null,null,null,null,null,"Wurde das\nKind zum \nersten Mal \nbeobachtet?"]
[null,null,null,null,"Bereich S",null,"Bereich WR",null,"Bereich WPE",null,null,"Ja/Nein","Ja/Nein"]
["Identifikations-nummer","Kindergarten-jahr","Erstsprache","Sonstige Angaben ","1.","2.","5.a.","6.a.","7.a.","8.a.","auto-matisch","auto-\nmatisch","auto-\nmatisch"]
[null,null,null,null,null,null,null,null,null,null,{"$f":"SUM(E5:J5)","v":0},{"$f":"IF(AND(E5+F5>2,G5+H5>3,I5+J5>3),\"Nein\",\"Ja\")","v":"Ja"},{"$f":"IF(B5=\"Drittletztes Jahr\",\"Ja\",\"-\")","v":"-"}]
[null,null,null,null,null,null,null,null,null,null,{"$f":"SUM(E6:J6)","v":0},{"$f":"IF(AND(E6+F6>2,G6+H6>3,I6+J6>3),\"Nein\",\"Ja\")","v":"Ja"},{"$f":"IF(B6=\"Drittletztes Jahr\",\"Ja\",\"-\")","v":"-"}]
[null,null,null,null,null,null,null,null,null,null,{"$f":"SUM(E7:J7)","v":0},"Ja",{"$f":"IF(B7=\"Drittletztes Jahr\",\"Ja\",\"-\")","v":"-"}]
[null,null,null,null,null,null,null,null,null,null,0,"Ja","-"]
[null,null,null,null,null,null,null,null,null,null,0,"Ja","-"]
[null,null,null,null,null,null,null,null,null,null,0,"Ja","-"]
[null,null,null,null,null,null,null,null,null,null,0,"Ja","-"]
[null,null,null,null,null,null,null,null,null,null,0,"Ja","-"]
[null,null,null,null,null,null,null,null,null,null,0,"Ja","-"]
[null,null,null,null,null,null,null,null,null,null,0,"Ja","-"]
[null,null,null,null,null,null,null,null,null,null,0,"Ja","-"]
[null,null,null,null,null,null,null,null,null,null,0,"Ja","-"]
[null,null,null,null,null,null,null,null,null,null,0,"Ja","-"]
[null,null,null,null,null,null,null,null,null,null,0,"Ja","-"]
[null,null,null,null,null,null,null,null,null,null,0,"Ja","-"]
[null,null,null,null,null,null,null,null,null,null,0,"Ja","-"]
[null,null,null,null,null,null,null,null,null,null,0,"Ja","-"]
[null,null,null,null,null,null,null,null,null,null,0,"Ja","-"]
[null,null,null,null,null,null,null,null,null,null,0,"Ja","-"]
[null,null,null,null,null,null,null,null,null,null,0,"Ja","-"]
[null,null,null,null,null,null,null,null,null,null,0,"Ja","-"]
[null,null,null,null,null,null,null,null,null,null,0,"Ja","-"]
[null,null,null,null,null,null,null,null,null,null,0,"Ja","-"]
[null,null,null,null,null,null,null,null,null,null,0,"Ja","-"]
[null,null,null,null,null,null,null,null,null,null,0,"Ja","-"]
[null,null,null,null,null,null,null,null,null,null,0,"Ja","-"]
[null,null,null,null,null,null,null,null,null,null,0,"Ja","-"]
[null,null,null,null,null,null,null,null,null,null,0,"Ja","-"]
[null,null,null,null,null,null,null,null,null,null,0,"Ja","-"]
[null,null,null,null,null,null,null,null,null,null,0,"Ja","-"]
[null,null,null,null,null,null,null,null,null,null,0,"Ja","-"]
[null,null,null,null,null,null,null,null,null,null,0,"Ja","-"]
[null,null,null,null,null,null,null,null,null,null,0,"Ja","-"]
[null,null,null,null,null,null,null,null,null,null,0,"Ja","-"]
[null,null,null,null,null,null,null,null,null,null,0,"Ja","-"]
[null,null,null,null,null,null,null,null,null,null,0,"Ja","-"]
[null,null,null,null,null,null,null,null,null,null,0,"Ja","-"]
[null,null,null,null,null,null,null,null,null,null,0,"Ja","-"]
[null,null,null,null,null,null,null,null,null,null,0,"Ja","-"]
[null,null,null,null,null,null,null,null,null,null,0,"Ja","-"]
[null,null,null,null,null,null,null,null,null,null,0,"Ja","-"]
[null,null,null,null,null,null,null,null,null,null,0,"Ja","-"]
[null,null,null,null,null,null,null,null,null,null,0,"Ja","-"]
[null,null,null,null,null,null,null,null,null,null,0,"Ja","-"]
[null,null,null,null,null,null,null,null,null,null,0,"Ja","-"]
[null,null,null,null,null,null,null,null,null,null,0,"Ja","-"]
[null,null,null,null,null,null,null,null,null,null,0,"Ja","-"]
[null,null,null,null,null,null,null,null,null,null,0,"Ja","-"]
[null,null,null,null,null,null,null,null,null,null,0,"Ja","-"]
[null,null,null,null,null,null,null,null,null,null,0,"Ja","-"]
[null,null,null,null,null,null,null,null,null,null,0,"Ja","-"]
[null,null,null,null,null,null,null,null,null,null,0,"Ja","-"]
[null,null,null,null,null,null,null,null,null,null,0,"Ja","-"]
[null,null,null,null,null,null,null,null,null,null,0,"Ja","-"]
[null,null,null,null,null,null,null,null,null,null,0,"Ja","-"]
[null,null,null,null,null,null,null,null,null,null,0,"Ja","-"]
[null,null,null,null,null,null,null,null,null,null,0,"Ja","-"]
[null,null,null,null,null,null,null,null,null,null,0,"Ja","-"]
[null,null,null,null,null,null,null,null,null,null,0,"Ja","-"]
[null,null,null,null,null,null,null,null,null,null,0,"Ja","-"]
[null,null,null,null,null,null,null,null,null,null,0,"Ja","-"]
[null,null,null,null,null,null,null,null,null,null,0,"Ja","-"]
[null,null,null,null,null,null,null,null,null,null,0,"Ja","-"]
[null,null,null,null,null,null,null,null,null,null,0,"Ja","-"]
[null,null,null,null,null,null,null,null,null,null,0,"Ja","-"]
[null,null,null,null,null,null,null,null,null,null,0,{"$f":"IF(AND(E70+F70>2,G70+H70>3,I70+J70>3),\"Nein\",\"Ja\")","v":"Ja"},"-"]
[null,null,null,null,null,null,null,null,null,null,{"$f":"SUM(E71:J71)","v":0},"Ja",{"$f":"IF(B71=\"Drittletztes Jahr\",\"Ja\",\"-\")","v":"-"}]
[null,null,null,null,null,null,null,null,null,null,0,"Ja","-"]
[null,null,null,null,null,null,null,null,null,null,0,"Ja","-"]
[null,null,null,null,null,null,null,null,null,null,0,"Ja","-"]
[null,null,null,null,null,null,null,null,null,null,0,"Ja","-"]
[null,null,null,null,null,null,null,null,null,null,0,"Ja","-"]
[null,null,null,null,null,null,null,null,null,null,0,"Ja","-"]
[null,null,null,null,null,null,null,null,null,null,0,"Ja","-"]
[null,null,null,null,null,null,null,null,null,null,0,"Ja","-"]
[null,null,null,null,null,null,null,null,null,null,0,"Ja","-"]
[null,null,null,null,null,null,null,null,null,null,0,"Ja","-"]
[null,null,null,null,null,null,null,null,null,null,0,"Ja","-"]
[null,null,null,null,null,null,null,null,null,null,0,"Ja","-"]
[null,null,null,null,null,null,null,null,null,null,0,"Ja","-"]
[null,null,null,null,null,null,null,null,null,null,0,"Ja","-"]
[null,null,null,null,null,null,null,null,null,null,0,"Ja","-"]
[null,null,null,null,null,null,null,null,null,null,0,"Ja","-"]
[null,null,null,null,null,null,null,null,null,null,0,"Ja","-"]
[null,null,null,null,null,null,null,null,null,null,0,"Ja","-"]
[null,null,null,null,null,null,null,null,null,null,0,"Ja","-"]
[null,null,null,null,null,null,null,null,null,null,0,"Ja","-"]
[null,null,null,null,null,null,null,null,null,null,0,"Ja","-"]
[null,null,null,null,null,null,null,null,null,null,0,"Ja","-"]
[null,null,null,null,null,null,null,null,null,null,0,"Ja","-"]
[null,null,null,null,null,null,null,null,null,null,0,"Ja","-"]
[null,null,null,null,null,null,null,null,null,null,0,"Ja","-"]
[null,null,null,null,null,null,null,null,null,null,0,"Ja","-"]
[null,null,null,null,null,null,null,null,null,null,0,"Ja","-"]
[null,null,null,null,null,null,null,null,null,null,0,"Ja","-"]
[null,null,null,null,null,null,null,null,null,null,0,"Ja",{"$f":"IF(B100=\"Drittletztes Jahr\",\"Ja\",\"-\")","v":"-"}]

{"sheet":"DaZ Vorletztes J.","index":5,"n_rows":100,"n_cols":20,"rows_kept":100,"cut":false,"hidden":false,"merged":[[0,17,2,17],[0,18,1,18],[0,0,2,3],[0,4,0,16],[1,4,1,7],[1,8,1,15],[2,4,2,7],[2,8,2,11],[2,12,2,16]]}
["Angaben zum Kind",null,null,null,"Ergebnisse BESK-DaZ",null,null,null,null,null,null,null,null,null,null,null,null,"Summe","Bedarf","Neue \nKinder"]
[null,null,null,null,"Syntax/\nSatzbau - Produktion",null,null,null,"Wortschatz - Rezeption\nWortschatz - Produktion",null,null,null,null,null,null,null,"Erzählen\n",null,null,"Wurde das\nKind zum \nersten Mal \nbeobachtet?"]
[null,null,null,null,"Bereich S",null,null,null,"Bereich WR",null,null,null,"Bereich WPE",null,null,null,null,null,"Ja/Nein","Ja/Nein"]
["Identifikations-nummer","Kindergarten-jahr","Erstsprache","Sonstige Angaben","1.","2.","3.","4.","5.a.","5.b.","6.a.","6.b.","7.a.","7.b.","8.a.","8.b.","9.","auto-matisch","auto-\nmatisch","auto-\nmatisch"]
[null,null,null,null,null,null,null,null,null,null,null,null,null,null,null,null,null,{"$f":"SUM(E5:Q5)","v":0},{"$f":"IF(AND(E5+F5>4,I5+K5>3,M5+O5>3,G5+H5>3,J5+L5>3,N5+P5+Q5>5),\"Nein\",\"Ja\")","v":"Ja"},{"$f":"IF(NOT(ISBLANK(A5)),IF(VLOOKUP(A5,'Angaben zur Einrichtung'!$A$45:$J$248,9,FALSE)=\"ja\",\"Nein\",\"Ja\"),\"-\")","v":"-"}]
[null,null,null,null,null,null,null,null,null,null,null,null,null,null,null,null,null,{"$f":"SUM(E6:Q6)","v":0},{"$f":"IF(AND(E6+F6>4,I6+K6>3,M6+O6>3,G6+H6>3,J6+L6>3,N6+P6+Q6>5),\"Nein\",\"Ja\")","v":"Ja"},{"$f":"IF(NOT(ISBLANK(A6)),IF(VLOOKUP(A6,'Angaben zur Einrichtung'!$A$45:$J$248,9,FALSE)=\"ja\",\"Nein\",\"Ja\"),\"-\")","v":"-"}]
[null,null,null,null,null,null,null,null,null,null,null,null,null,null,null,null,null,0,"Ja",{"$f":"IF(NOT(ISBLANK(A7)),IF(VLOOKUP(A7,'Angaben zur Einrichtung'!$A$45:$J$248,9,FALSE)=\"ja\",\"Nein\",\"Ja\"),\"-\")","v":"-"}]
[null,null,null,null,null,null,null,null,null,null,null,null,null,null,null,null,null,0,"Ja",{"$f":"IF(NOT(ISBLANK(A8)),IF(VLOOKUP(A8,'Angaben zur Einrichtung'!$A$45:$J$248,9,FALSE)=\"ja\",\"Nein\",\"Ja\"),\"-\")","v":"-"}]
[null,null,null,null,null,null,null,null,null,null,null,null,null,null,null,null,null,{"$f":"SUM(E9:Q9)","v":0},"Ja",{"$f":"IF(NOT(ISBLANK(A9)),IF(VLOOKUP(A9,'Angaben zur Einrichtung'!$A$45:$J$248,9,FALSE)=\"ja\",\"Nein\",\"Ja\"),\"-\")","v":"-"}]
[null,null,null,null,null,null,null,null,null,null,null,null,null,null,null,null,null,{"$f":"SUM(E10:Q10)","v":0},"Ja",{"$f":"IF(NOT(ISBLANK(A10)),IF(VLOOKUP(A10,'Angaben zur Einrichtung'!$A$45:$J$248,9,FALSE)=\"ja\",\"Nein\",\"Ja\"),\"-\")","v":"-"}]
[null,null,null,null,null,null,null,null,null,null,null,null,null,null,null,null,null,{"$f":"SUM(E11:Q11)","v":0},"Ja",{"$f":"IF(NOT(ISBLANK(A11)),IF(VLOOKUP(A11,'Angaben zur Einrichtung'!$A$45:$J$248,9,FALSE)=\"ja\",\"Nein\",\"Ja\"),\"-\")","v":"-"}]
[null,null,null,null,null,null,null,null,null,null,null,null,null,null,null,null,null,0,"Ja",{"$f":"IF(NOT(ISBLANK(A12)),IF(VLOOKUP(A12,'Angaben zur Einrichtung'!$A$45:$J$248,9,FALSE)=\"ja\",\"Nein\",\"Ja\"),\"-\")","v":"-"}]
[null,null,null,null,null,null,null,null,null,null,null,null,null,null,null,null,null,0,"Ja",{"$f":"IF(NOT(ISBLANK(A13)),IF(VLOOKUP(A13,'Angaben zur Einrichtung'!$A$45:$J$248,9,FALSE)=\"ja\",\"Nein\",\"Ja\"),\"-\")","v":"-"}]
[null,null,null,null,null,null,null,null,null,null,null,null,null,null,null,null,null,0,"Ja",{"$f":"IF(NOT(ISBLANK(A14)),IF(VLOOKUP(A14,'Angaben zur Einrichtung'!$A$45:$J$248,9,FALSE)=\"ja\",\"Nein\",\"Ja\"),\"-\")","v":"-"}]
[null,null,null,null,null,null,null,null,null,null,null,null,null,null,null,null,null,0,"Ja",{"$f":"IF(NOT(ISBLANK(A15)),IF(VLOOKUP(A15,'Angaben zur Einrichtung'!$A$45:$J$248,9,FALSE)=\"ja\",\"Nein\",\"Ja\"),\"-\")","v":"-"}]
[null,null,null,null,null,null,null,null,null,null,null,null,null,null,null,null,null,0,"Ja",{"$f":"IF(NOT(ISBLANK(A16)),IF(VLOOKUP(A16,'Angaben zur Einrichtung'!$A$45:$J$248,9,FALSE)=\"ja\",\"Nein\",\"Ja\"),\"-\")","v":"-"}]
[null,null,null,null,null,null,null,null,null,null,null,null,null,null,null,null,null,0,"Ja",{"$f":"IF(NOT(ISBLANK(A17)),IF(VLOOKUP(A17,'Angaben zur Einrichtung'!$A$45:$J$248,9,FALSE)=\"ja\",\"Nein\",\"Ja\"),\"-\")","v":"-"}]
[null,null,null,null,null,null,null,null,null,null,null,null,null,null,null,null,null,0,"Ja",{"$f":"IF(NOT(ISBLANK(A18)),IF(VLOOKUP(A18,'Angaben zur Einrichtung'!$A$45:$J$248,9,FALSE)=\"ja\",\"Nein\",\"Ja\"),\"-\")","v":"-"}]
[null,null,null,null,null,null,null,null,null,null,null,null,null,null,null,null,null,0,"Ja",{"$f":"IF(NOT(ISBLANK(A19)),IF(VLOOKUP(A19,'Angaben zur Einrichtung'!$A$45:$J$248,9,FALSE)=\"ja\",\"Nein\",\"Ja\"),\"-\")","v":"-"}]
[null,null,null,null,null,null,null,null,null,null,null,null,null,null,null,null,null,0,"Ja",{"$f":"IF(NOT(ISBLANK(A20)),IF(VLOOKUP(A20,'Angaben zur Einrichtung'!$A$45:$J$248,9,FALSE)=\"ja\",\"Nein\",\"Ja\"),\"-\")","v":"-"}]
[null,null,null,null,null,null,null,null,null,null,null,null,null,null,null,null,null,0,"Ja",{"$f":"IF(NOT(ISBLANK(A21)),IF(VLOOKUP(A21,'Angaben zur Einrichtung'!$A$45:$J$248,9,FALSE)=\"ja\",\"Nein\",\"Ja\"),\"-\")","v":"-"}]
[null,null,null,null,null,null,null,null,null,null,null,null,null,null,null,null,null,0,"Ja",{"$f":"IF(NOT(ISBLANK(A22)),IF(VLOOKUP(A22,'Angaben zur Einrichtung'!$A$45:$J$248,9,FALSE)=\"ja\",\"Nein\",\"Ja\"),\"-\")","v":"-"}]
[null,null,null,null,null,null,null,null,null,null,null,null,null,null,null,null,null,0,"Ja",{"$f":"IF(NOT(ISBLANK(A23)),IF(VLOOKUP(A23,'Angaben zur Einrichtung'!$A$45:$J$248,9,FALSE)=\"ja\",\"Nein\",\"Ja\"),\"-\")","v":"-"}]
[null,null,null,null,null,null,null,null,null,null,null,null,null,null,null,null,null,0,"Ja",{"$f":"IF(NOT(ISBLANK(A24)),IF(VLOOKUP(A24,'Angaben zur Einrichtung'!$A$45:$J$248,9,FALSE)=\"ja\",\"Nein\",\"Ja\"),\"-\")","v":"-"}]
[null,null,null,null,null,null,null,null,null,null,null,null,null,null,null,null,null,0,"Ja",{"$f":"IF(NOT(ISBLANK(A25)),IF(VLOOKUP(A25,'Angaben zur Einrichtung'!$A$45:$J$248,9,FALSE)=\"ja\",\"Nein\",\"Ja\"),\"-\")","v":"-"}]
[null,null,null,null,null,null,null,null,null,null,null,null,null,null,null,null,null,0,"Ja",{"$f":"IF(NOT(ISBLANK(A26)),IF(VLOOKUP(A26,'Angaben zur Einrichtung'!$A$45:$J$248,9,FALSE)=\"ja\",\"Nein\",\"Ja\"),\"-\")","v":"-"}]
[null,null,null,null,null,null,null,null,null,null,null,null,null,null,null,null,null,0,"Ja",{"$f":"IF(NOT(ISBLANK(A27)),IF(VLOOKUP(A27,'Angaben zur Einrichtung'!$A$45:$J$248,9,FALSE)=\"ja\",\"Nein\",\"Ja\"),\"-\")","v":"-"}]
[null,null,null,null,null,null,null,null,null,null,null,null,null,null,null,null,null,0,"Ja",{"$f":"IF(NOT(ISBLANK(A28)),IF(VLOOKUP(A28,'Angaben zur Einrichtung'!$A$45:$J$248,9,FALSE)=\"ja\",\"Nein\",\"Ja\"),\"-\")","v":"-"}]
[null,null,null,null,null,null,null,null,null,null,null,null,null,null,null,null,null,0,"Ja",{"$f":"IF(NOT(ISBLANK(A29)),IF(VLOOKUP(A29,'Angaben zur Einrichtung'!$A$45:$J$248,9,FALSE)=\"ja\",\"Nein\",\"Ja\"),\"-\")","v":"-"}]
[null,null,null,null,null,null,null,null,null,null,null,null,null,null,null,null,null,0,"Ja",{"$f":"IF(NOT(ISBLANK(A30)),IF(VLOOKUP(A30,'Angaben zur Einrichtung'!$A$45:$J$248,9,FALSE)=\"ja\",\"Nein\",\"Ja\"),\"-\")","v":"-"}]
[null,null,null,null,null,null,null,null,null,null,null,null,null,null,null,null,null,0,"Ja",{"$f":"IF(NOT(ISBLANK(A31)),IF(VLOOKUP(A31,'Angaben zur Einrichtung'!$A$45:$J$248,9,FALSE)=\"ja\",\"Nein\",\"Ja\"),\"-\")","v":"-"}]
[null,null,null,null,null,null,null,null,null,null,null,null,null,null,null,null,null,0,"Ja",{"$f":"IF(NOT(ISBLANK(A32)),IF(VLOOKUP(A32,'Angaben zur Einrichtung'!$A$45:$J$248,9,FALSE)=\"ja\",\"Nein\",\"Ja\"),\"-\")","v":"-"}]
[null,null,null,null,null,null,null,null,null,null,null,null,null,null,null,null,null,0,"Ja",{"$f":"IF(NOT(ISBLANK(A33)),IF(VLOOKUP(A33,'Angaben zur Einrichtung'!$A$45:$J$248,9,FALSE)=\"ja\",\"Nein\",\"Ja\"),\"-\")","v":"-"}]
[null,null,null,null,null,null,null,null,null,null,null,null,null,null,null,null,null,0,"Ja",{"$f":"IF(NOT(ISBLANK(A34)),IF(VLOOKUP(A34,'Angaben zur Einrichtung'!$A$45:$J$248,9,FALSE)=\"ja\",\"Nein\",\"Ja\"),\"-\")","v":"-"}]
[null,null,null,null,null,null,null,null,null,null,null,null,null,null,null,null,null,0,"Ja",{"$f":"IF(NOT(ISBLANK(A35)),IF(VLOOKUP(A35,'Angaben zur Einrichtung'!$A$45:$J$248,9,FALSE)=\"ja\",\"Nein\",\"Ja\"),\"-\")","v":"-"}]
[null,null,null,null,null,null,null,null,null,null,null,null,null,null,null,null,null,0,"Ja",{"$f":"IF(NOT(ISBLANK(A36)),IF(VLOOKUP(A36,'Angaben zur Einrichtung'!$A$45:$J$248,9,FALSE)=\"ja\",\"Nein\",\"Ja\"),\"-\")","v":"-"}]
[null,null,null,null,null,null,null,null,null,null,null,null,null,null,null,null,null,0,"Ja",{"$f":"IF(NOT(ISBLANK(A37)),IF(VLOOKUP(A37,'Angaben zur Einrichtung'!$A$45:$J$248,9,FALSE)=\"ja\",\"Nein\",\"Ja\"),\"-\")","v":"-"}]
[null,null,null,null,null,null,null,null,null,null,null,null,null,null,null,null,null,0,"Ja",{"$f":"IF(NOT(ISBLANK(A38)),IF(VLOOKUP(A38,'Angaben zur Einrichtung'!$A$45:$J$248,9,FALSE)=\"ja\",\"Nein\",\"Ja\"),\"-\")","v":"-"}]
[null,null,null,null,null,null,null,null,null,null,null,null,null,null,null,null,null,0,"Ja",{"$f":"IF(NOT(ISBLANK(A39)),IF(VLOOKUP(A39,'Angaben zur Einrichtung'!$A$45:$J$248,9,FALSE)=\"ja\",\"Nein\",\"Ja\"),\"-\")","v":"-"}]
[null,null,null,null,null,null,null,null,null,null,null,null,null,null,null,null,null,0,"Ja",{"$f":"IF(NOT(ISBLANK(A40)),IF(VLOOKUP(A40,'Angaben zur Einrichtung'!$A$45:$J$248,9,FALSE)=\"ja\",\"Nein\",\"Ja\"),\"-\")","v":"-"}]
[null,null,null,null,null,null,null,null,null,null,null,null,null,null,null,null,null,0,"Ja",{"$f":"IF(NOT(ISBLANK(A41)),IF(VLOOKUP(A41,'Angaben zur Einrichtung'!$A$45:$J$248,9,FALSE)=\"ja\",\"Nein\",\"Ja\"),\"-\")","v":"-"}]
[null,null,null,null,null,null,null,null,null,null,null,null,null,null,null,null,null,0,"Ja",{"$f":"IF(NOT(ISBLANK(A42)),IF(VLOOKUP(A42,'Angaben zur Einrichtung'!$A$45:$J$248,9,FALSE)=\"ja\",\"Nein\",\"Ja\"),\"-\")","v":"-"}]
[null,null,null,null,null,null,null,null,null,null,null,null,null,null,null,null,null,0,"Ja",{"$f":"IF(NOT(ISBLANK(A43)),IF(VLOOKUP(A43,'Angaben zur Einrichtung'!$A$45:$J$248,9,FALSE)=\"ja\",\"Nein\",\"Ja\"),\"-\")","v":"-"}]
[null,null,null,null,null,null,null,null,null,null,null,null,null,null,null,null,null,0,"Ja",{"$f":"IF(NOT(ISBLANK(A44)),IF(VLOOKUP(A44,'Angaben zur Einrichtung'!$A$45:$J$248,9,FALSE)=\"ja\",\"Nein\",\"Ja\"),\"-\")","v":"-"}]
[null,null,null,null,null,null,null,null,null,null,null,null,null,null,null,null,null,0,"Ja",{"$f":"IF(NOT(ISBLANK(A45)),IF(VLOOKUP(A45,'Angaben zur Einrichtung'!$A$45:$J$248,9,FALSE)=\"ja\",\"Nein\",\"Ja\"),\"-\")","v":"-"}]
[null,null,null,null,null,null,null,null,null,null,null,null,null,null,null,null,null,0,"Ja",{"$f":"IF(NOT(ISBLANK(A46)),IF(VLOOKUP(A46,'Angaben zur Einrichtung'!$A$45:$J$248,9,FALSE)=\"ja\",\"Nein\",\"Ja\"),\"-\")","v":"-"}]
[null,null,null,null,null,null,null,null,null,null,null,null,null,null,null,null,null,0,"Ja",{"$f":"IF(NOT(ISBLANK(A47)),IF(VLOOKUP(A47,'Angaben zur Einrichtung'!$A$45:$J$248,9,FALSE)=\"ja\",\"Nein\",\"Ja\"),\"-\")","v":"-"}]
[null,null,null,null,null,null,null,null,null,null,null,null,null,null,null,null,null,0,"Ja",{"$f":"IF(NOT(ISBLANK(A48)),IF(VLOOKUP(A48,'Angaben zur Einrichtung'!$A$45:$J$248,9,FALSE)=\"ja\",\"Nein\",\"Ja\"),\"-\")","v":"-"}]
[null,null,null,null,null,null,null,null,null,null,null,null,null,null,null,null,null,0,"Ja",{"$f":"IF(NOT(ISBLANK(A49)),IF(VLOOKUP(A49,'Angaben zur Einrichtung'!$A$45:$J$248,9,FALSE)=\"ja\",\"Nein\",\"Ja\"),\"-\")","v":"-"}]
[null,null,null,null,null,null,null,null,null,null,null,null,null,null,null,null,null,0,"Ja",{"$f":"IF(NOT(ISBLANK(A50)),IF(VLOOKUP(A50,'Angaben zur Einrichtung'!$A$45:$J$248,9,FALSE)=\"ja\",\"Nein\",\"Ja\"),\"-\")","v":"-"}]
[null,null,null,null,null,null,null,null,null,null,null,null,null,null,null,null,null,0,"Ja",{"$f":"IF(NOT(ISBLANK(A51)),IF(VLOOKUP(A51,'Angaben zur Einrichtung'!$A$45:$J$248,9,FALSE)=\"ja\",\"Nein\",\"Ja\"),\"-\")","v":"-"}]
[null,null,null,null,null,null,null,null,null,null,null,null,null,null,null,null,null,0,"Ja",{"$f":"IF(NOT(ISBLANK(A52)),IF(VLOOKUP(A52,'Angaben zur Einrichtung'!$A$45:$J$248,9,FALSE)=\"ja\",\"Nein\",\"Ja\"),\"-\")","v":"-"}]
[null,null,null,null,null,null,null,null,null,null,null,null,null,null,null,null,null,0,"Ja",{"$f":"IF(NOT(ISBLANK(A53)),IF(VLOOKUP(A53,'Angaben zur Einrichtung'!$A$45:$J$248,9,FALSE)=\"ja\",\"Nein\",\"Ja\"),\"-\")","v":"-"}]
[null,null,null,null,null,null,null,null,null,null,null,null,null,null,null,null,null,0,"Ja",{"$f":"IF(NOT(ISBLANK(A54)),IF(VLOOKUP(A54,'Angaben zur Einrichtung'!$A$45:$J$248,9,FALSE)=\"ja\",\"Nein\",\"Ja\"),\"-\")","v":"-"}]
[null,null,null,null,null,null,null,null,null,null,null,null,null,null,null,null,null,0,"Ja",{"$f":"IF(NOT(ISBLANK(A55)),IF(VLOOKUP(A55,'Angaben zur Einrichtung'!$A$45:$J$248,9,FALSE)=\"ja\",\"Nein\",\"Ja\"),\"-\")","v":"-"}]
[null,null,null,null,null,null,null,null,null,null,null,null,null,null,null,null,null,0,"Ja",{"$f":"IF(NOT(ISBLANK(A56)),IF(VLOOKUP(A56,'Angaben zur Einrichtung'!$A$45:$J$248,9,FALSE)=\"ja\",\"Nein\",\"Ja\"),\"-\")","v":"-"}]
[null,null,null,null,null,null,null,null,null,null,null,null,null,null,null,null,null,0,"Ja",{"$f":"IF(NOT(ISBLANK(A57)),IF(VLOOKUP(A57,'Angaben zur Einrichtung'!$A$45:$J$248,9,FALSE)=\"ja\",\"Nein\",\"Ja\"),\"-\")","v":"-"}]
[null,null,null,null,null,null,null,null,null,null,null,null,null,null,null,null,null,0,"Ja",{"$f":"IF(NOT(ISBLANK(A58)),IF(VLOOKUP(A58,'Angaben zur Einrichtung'!$A$45:$J$248,9,FALSE)=\"ja\",\"Nein\",\"Ja\"),\"-\")","v":"-"}]
[null,null,null,null,null,null,null,null,null,null,null,null,null,null,null,null,null,0,"Ja",{"$f":"IF(NOT(ISBLANK(A59)),IF(VLOOKUP(A59,'Angaben zur Einrichtung'!$A$45:$J$248,9,FALSE)=\"ja\",\"Nein\",\"Ja\"),\"-\")","v":"-"}]
[null,null,null,null,null,null,null,null,null,null,null,null,null,null,null,null,null,0,"Ja",{"$f":"IF(NOT(ISBLANK(A60)),IF(VLOOKUP(A60,'Angaben zur Einrichtung'!$A$45:$J$248,9,FALSE)=\"ja\",\"Nein\",\"Ja\"),\"-\")","v":"-"}]
[null,null,null,null,null,null,null,null,null,null,null,null,null,null,null,null,null,0,"Ja",{"$f":"IF(NOT(ISBLANK(A61)),IF(VLOOKUP(A61,'Angaben zur Einrichtung'!$A$45:$J$248,9,FALSE)=\"ja\",\"Nein\",\"Ja\"),\"-\")","v":"-"}]
[null,null,null,null,null,null,null,null,null,null,null,null,null,null,null,null,null,0,"Ja",{"$f":"IF(NOT(ISBLANK(A62)),IF(VLOOKUP(A62,'Angaben zur Einrichtung'!$A$45:$J$248,9,FALSE)=\"ja\",\"Nein\",\"Ja\"),\"-\")","v":"-"}]
[null,null,null,null,null,null,null,null,null,null,null,null,null,null,null,null,null,0,"Ja",{"$f":"IF(NOT(ISBLANK(A63)),IF(VLOOKUP(A63,'Angaben zur Einrichtung'!$A$45:$J$248,9,FALSE)=\"ja\",\"Nein\",\"Ja\"),\"-\")","v":"-"}]
[null,null,null,null,null,null,null,null,null,null,null,null,null,null,null,null,null,0,"Ja",{"$f":"IF(NOT(ISBLANK(A64)),IF(VLOOKUP(A64,'Angaben zur Einrichtung'!$A$45:$J$248,9,FALSE)=\"ja\",\"Nein\",\"Ja\"),\"-\")","v":"-"}]
[null,null,null,null,null,null,null,null,null,null,null,null,null,null,null,null,null,0,"Ja",{"$f":"IF(NOT(ISBLANK(A65)),IF(VLOOKUP(A65,'Angaben zur Einrichtung'!$A$45:$J$248,9,FALSE)=\"ja\",\"Nein\",\"Ja\"),\"-\")","v":"-"}]
[null,null,null,null,null,null,null,null,null,null,null,null,null,null,null,null,null,0,"Ja",{"$f":"IF(NOT(ISBLANK(A66)),IF(VLOOKUP(A66,'Angaben zur Einrichtung'!$A$45:$J$248,9,FALSE)=\"ja\",\"Nein\",\"Ja\"),\"-\")","v":"-"}]
[null,null,null,null,null,null,null,null,null,null,null,null,null,null,null,null,null,0,"Ja",{"$f":"IF(NOT(ISBLANK(A67)),IF(VLOOKUP(A67,'Angaben zur Einrichtung'!$A$45:$J$248,9,FALSE)=\"ja\",\"Nein\",\"Ja\"),\"-\")","v":"-"}]
[null,null,null,null,null,null,null,null,null,null,null,null,null,null,null,null,null,0,"Ja",{"$f":"IF(NOT(ISBLANK(A68)),IF(VLOOKUP(A68,'Angaben zur Einrichtung'!$A$45:$J$248,9,FALSE)=\"ja\",\"Nein\",\"Ja\"),\"-\")","v":"-"}]
[null,null,null,null,null,null,null,null,null,null,null,null,null,null,null,null,null,0,"Ja",{"$f":"IF(NOT(ISBLANK(A69)),IF(VLOOKUP(A69,'Angaben zur Einrichtung'!$A$45:$J$248,9,FALSE)=\"ja\",\"Nein\",\"Ja\"),\"-\")","v":"-"}]
[null,null,null,null,null,null,null,null,null,null,null,null,null,null,null,null,null,{"$f":"SUM(E70:Q70)","v":0},{"$f":"IF(AND(E70+F70>4,I70+K70>3,M70+O70>3,G70+H70>3,J70+L70>3,N70+P70+Q70>5),\"Nein\",\"Ja\")","v":"Ja"},{"$f":"IF(NOT(ISBLANK(A70)),IF(VLOOKUP(A70,'Angaben zur Einrichtung'!$A$45:$J$248,9,FALSE)=\"ja\",\"Nein\",\"Ja\"),\"-\")","v":"-"}]
[null,null,null,null,null,null,null,null,null,null,null,null,null,null,null,null,null,0,"Ja",{"$f":"IF(NOT(ISBLANK(A71)),IF(VLOOKUP(A71,'Angaben zur Einrichtung'!$A$45:$J$248,9,FALSE)=\"ja\",\"Nein\",\"Ja\"),\"-\")","v":"-"}]
[null,null,null,null,null,null,null,null,null,null,null,null,null,null,null,null,null,0,"Ja",{"$f":"IF(NOT(ISBLANK(A72)),IF(VLOOKUP(A72,'Angaben zur Einrichtung'!$A$45:$J$248,9,FALSE)=\"ja\",\"Nein\",\"Ja\"),\"-\")","v":"-"}]
[null,null,null,null,null,null,null,null,null,null,null,null,null,null,null,null,null,0,"Ja",{"$f":"IF(NOT(ISBLANK(A73)),IF(VLOOKUP(A73,'Angaben zur Einrichtung'!$A$45:$J$248,9,FALSE)=\"ja\",\"Nein\",\"Ja\"),\"-\")","v":"-"}]
[null,null,null,null,null,null,null,null,null,null,null,null,null,null,null,null,null,0,"Ja",{"$f":"IF(NOT(ISBLANK(A74)),IF(VLOOKUP(A74,'Angaben zur Einrichtung'!$A$45:$J$248,9,FALSE)=\"ja\",\"Nein\",\"Ja\"),\"-\")","v":"-"}]
[null,null,null,null,null,null,null,null,null,null,null,null,null,null,null,null,null,0,"Ja",{"$f":"IF(NOT(ISBLANK(A75)),IF(VLOOKUP(A75,'Angaben zur Einrichtung'!$A$45:$J$248,9,FALSE)=\"ja\",\"Nein\",\"Ja\"),\"-\")","v":"-"}]
[null,null,null,null,null,null,null,null,null,null,null,null,null,null,null,null,null,0,"Ja",{"$f":"IF(NOT(ISBLANK(A76)),IF(VLOOKUP(A76,'Angaben zur Einrichtung'!$A$45:$J$248,9,FALSE)=\"ja\",\"Nein\",\"Ja\"),\"-\")","v":"-"}]
[null,null,null,null,null,null,null,null,null,null,null,null,null,null,null,null,null,0,"Ja",{"$f":"IF(NOT(ISBLANK(A77)),IF(VLOOKUP(A77,'Angaben zur Einrichtung'!$A$45:$J$248,9,FALSE)=\"ja\",\"Nein\",\"Ja\"),\"-\")","v":"-"}]
[null,null,null,null,null,null,null,null,null,null,null,null,null,null,null,null,null,0,"Ja",{"$f":"IF(NOT(ISBLANK(A78)),IF(VLOOKUP(A78,'Angaben zur Einrichtung'!$A$45:$J$248,9,FALSE)=\"ja\",\"Nein\",\"Ja\"),\"-\")","v":"-"}]
[null,null,null,null,null,null,null,null,null,null,null,null,null,null,null,null,null,0,"Ja",{"$f":"IF(NOT(ISBLANK(A79)),IF(VLOOKUP(A79,'Angaben zur Einrichtung'!$A$45:$J$248,9,FALSE)=\"ja\",\"Nein\",\"Ja\"),\"-\")","v":"-"}]
[null,null,null,null,null,null,null,null,null,null,null,null,null,null,null,null,null,0,"Ja",{"$f":"IF(NOT(ISBLANK(A80)),IF(VLOOKUP(A80,'Angaben zur Einrichtung'!$A$45:$J$248,9,FALSE)=\"ja\",\"Nein\",\"Ja\"),\"-\")","v":"-"}]
[null,null,null,null,null,null,null,null,null,null,null,null,null,null,null,null,null,0,"Ja",{"$f":"IF(NOT(ISBLANK(A81)),IF(VLOOKUP(A81,'Angaben zur Einrichtung'!$A$45:$J$248,9,FALSE)=\"ja\",\"Nein\",\"Ja\"),\"-\")","v":"-"}]
[null,null,null,null,null,null,null,null,null,null,null,null,null,null,null,null,null,0,"Ja",{"$f":"IF(NOT(ISBLANK(A82)),IF(VLOOKUP(A82,'Angaben zur Einrichtung'!$A$45:$J$248,9,FALSE)=\"ja\",\"Nein\",\"Ja\"),\"-\")","v":"-"}]
[null,null,null,null,null,null,null,null,null,null,null,null,null,null,null,null,null,0,"Ja",{"$f":"IF(NOT(ISBLANK(A83)),IF(VLOOKUP(A83,'Angaben zur Einrichtung'!$A$45:$J$248,9,FALSE)=\"ja\",\"Nein\",\"Ja\"),\"-\")","v":"-"}]
[null,null,null,null,null,null,null,null,null,null,null,null,null,null,null,null,null,0,"Ja",{"$f":"IF(NOT(ISBLANK(A84)),IF(VLOOKUP(A84,'Angaben zur Einrichtung'!$A$45:$J$248,9,FALSE)=\"ja\",\"Nein\",\"Ja\"),\"-\")","v":"-"}]
[null,null,null,null,null,null,null,null,null,null,null,null,null,null,null,null,null,0,"Ja",{"$f":"IF(NOT(ISBLANK(A85)),IF(VLOOKUP(A85,'Angaben zur Einrichtung'!$A$45:$J$248,9,FALSE)=\"ja\",\"Nein\",\"Ja\"),\"-\")","v":"-"}]
[null,null,null,null,null,null,null,null,null,null,null,null,null,null,null,null,null,0,"Ja",{"$f":"IF(NOT(ISBLANK(A86)),IF(VLOOKUP(A86,'Angaben zur Einrichtung'!$A$45:$J$248,9,FALSE)=\"ja\",\"Nein\",\"Ja\"),\"-\")","v":"-"}]
[null,null,null,null,null,null,null,null,null,null,null,null,null,null,null,null,null,0,"Ja",{"$f":"IF(NOT(ISBLANK(A87)),IF(VLOOKUP(A87,'Angaben zur Einrichtung'!$A$45:$J$248,9,FALSE)=\"ja\",\"Nein\",\"Ja\"),\"-\")","v":"-"}]
[null,null,null,null,null,null,null,null,null,null,null,null,null,null,null,null,null,0,"Ja",{"$f":"IF(NOT(ISBLANK(A88)),IF(VLOOKUP(A88,'Angaben zur Einrichtung'!$A$45:$J$248,9,FALSE)=\"ja\",\"Nein\",\"Ja\"),\"-\")","v":"-"}]
[null,null,null,null,null,null,null,null,null,null,null,null,null,null,null,null,null,0,"Ja",{"$f":"IF(NOT(ISBLANK(A89)),IF(VLOOKUP(A89,'Angaben zur Einrichtung'!$A$45:$J$248,9,FALSE)=\"ja\",\"Nein\",\"Ja\"),\"-\")","v":"-"}]
[null,null,null,null,null,null,null,null,null,null,null,null,null,null,null,null,null,0,"Ja",{"$f":"IF(NOT(ISBLANK(A90)),IF(VLOOKUP(A90,'Angaben zur Einrichtung'!$A$45:$J$248,9,FALSE)=\"ja\",\"Nein\",\"Ja\"),\"-\")","v":"-"}]
[null,null,null,null,null,null,null,null,null,null,null,null,null,null,null,null,null,0,"Ja",{"$f":"IF(NOT(ISBLANK(A91)),IF(VLOOKUP(A91,'Angaben zur Einrichtung'!$A$45:$J$248,9,FALSE)=\"ja\",\"Nein\",\"Ja\"),\"-\")","v":"-"}]
[null,null,null,null,null,null,null,null,null,null,null,null,null,null,null,null,null,0,"Ja",{"$f":"IF(NOT(ISBLANK(A92)),IF(VLOOKUP(A92,'Angaben zur Einrichtung'!$A$45:$J$248,9,FALSE)=\"ja\",\"Nein\",\"Ja\"),\"-\")","v":"-"}]
[null,null,null,null,null,null,null,null,null,null,null,null,null,null,null,null,null,0,"Ja",{"$f":"IF(NOT(ISBLANK(A93)),IF(VLOOKUP(A93,'Angaben zur Einrichtung'!$A$45:$J$248,9,FALSE)=\"ja\",\"Nein\",\"Ja\"),\"-\")","v":"-"}]
[null,null,null,null,null,null,null,null,null,null,null,null,null,null,null,null,null,0,"Ja",{"$f":"IF(NOT(ISBLANK(A94)),IF(VLOOKUP(A94,'Angaben zur Einrichtung'!$A$45:$J$248,9,FALSE)=\"ja\",\"Nein\",\"Ja\"),\"-\")","v":"-"}]
[null,null,null,null,null,null,null,null,null,null,null,null,null,null,null,null,null,0,"Ja",{"$f":"IF(NOT(ISBLANK(A95)),IF(VLOOKUP(A95,'Angaben zur Einrichtung'!$A$45:$J$248,9,FALSE)=\"ja\",\"Nein\",\"Ja\"),\"-\")","v":"-"}]
[null,null,null,null,null,null,null,null,null,null,null,null,null,null,null,null,null,0,"Ja",{"$f":"IF(NOT(ISBLANK(A96)),IF(VLOOKUP(A96,'Angaben zur Einrichtung'!$A$45:$J$248,9,FALSE)=\"ja\",\"Nein\",\"Ja\"),\"-\")","v":"-"}]
[null,null,null,null,null,null,null,null,null,null,null,null,null,null,null,null,null,0,"Ja",{"$f":"IF(NOT(ISBLANK(A97)),IF(VLOOKUP(A97,'Angaben zur Einrichtung'!$A$45:$J$248,9,FALSE)=\"ja\",\"Nein\",\"Ja\"),\"-\")","v":"-"}]
[null,null,null,null,null,null,null,null,null,null,null,null,null,null,null,null,null,0,"Ja",{"$f":"IF(NOT(ISBLANK(A98)),IF(VLOOKUP(A98,'Angaben zur Einrichtung'!$A$45:$J$248,9,FALSE)=\"ja\",\"Nein\",\"Ja\"),\"-\")","v":"-"}]
[null,null,null,null,null,null,null,null,null,null,null,null,null,null,null,null,null,0,"Ja",{"$f":"IF(NOT(ISBLANK(A99)),IF(VLOOKUP(A99,'Angaben zur Einrichtung'!$A$45:$J$248,9,FALSE)=\"ja\",\"Nein\",\"Ja\"),\"-\")","v":"-"}]
[null,null,null,null,null,null,null,null,null,null,null,null,null,null,null,null,null,0,"Ja",{"$f":"IF(NOT(ISBLANK(A100)),IF(VLOOKUP(A100,'Angaben zur Einrichtung'!$A$45:$J$248,9,FALSE)=\"ja\",\"Nein\",\"Ja\"),\"-\")","v":"-"}]

{"sheet":"DaZ Letztes J.","index":6,"n_rows":100,"n_cols":20,"rows_kept":100,"cut":false,"hidden":false,"merged":[[0,17,2,17],[0,18,1,18],[0,0,2,3],[0,4,0,16],[1,4,1,7],[1,8,1,15],[2,4,2,7],[2,8,2,11],[2,12,2,16]]}
["Angaben zum Kind",null,null,null,"Ergebnisse BESK-DaZ",null,null,null,null,null,null,null,null,null,null,null,null,"Summe","Bedarf","Neue \nKinder"]
[null,null,null,null,"Syntax/\nSatzbau - Produktion",null,null,null,"Wortschatz - Rezeption\nWortschatz - Produktion",null,null,null,null,null,null,null,"Erzählen\n",null,null,"Wurde das\nKind zum \nersten Mal \nbeobachtet?"]
[null,null,null,null,"Bereich S",null,null,null,"Bereich WR",null,null,null,"Bereich WPE",null,null,null,null,null,"Ja/Nein","Ja/Nein"]
["Identifikations-nummer","Kindergarten-jahr","Erstsprache","Sonstige Angaben","1.","2.","3.","4.","5.a.","5.b.","6.a.","6.b.","7.a.","7.b.","8.a.","8.b.","9.","auto-matisch","auto-\nmatisch","auto-\nmatisch"]
[null,null,null,null,null,null,null,null,null,null,null,null,null,null,null,null,null,{"$f":"SUM(E5:Q5)","v":0},{"$f":"IF(AND(E5+F5>5,I5+K5>5,M5+O5>5,G5+H5>3,J5+L5>3,N5+P5+Q5>5),\"Nein\",\"Ja\")","v":"Ja"},{"$f":"IF(NOT(ISBLANK(A5)),IF(VLOOKUP(A5,'Angaben zur Einrichtung'!$A$45:$J$248,9,FALSE)=\"ja\",\"Nein\",\"Ja\"),\"-\")","v":"-"}]
[null,null,null,null,null,null,null,null,null,null,null,null,null,null,null,null,null,{"$f":"SUM(E6:Q6)","v":0},{"$f":"IF(AND(E6+F6>5,I6+K6>5,M6+O6>5,G6+H6>3,J6+L6>3,N6+P6+Q6>5),\"Nein\",\"Ja\")","v":"Ja"},{"$f":"IF(NOT(ISBLANK(A6)),IF(VLOOKUP(A6,'Angaben zur Einrichtung'!$A$45:$J$248,9,FALSE)=\"ja\",\"Nein\",\"Ja\"),\"-\")","v":"-"}]
[null,null,null,null,null,null,null,null,null,null,null,null,null,null,null,null,null,{"$f":"SUM(E7:Q7)","v":0},"Ja",{"$f":"IF(NOT(ISBLANK(A7)),IF(VLOOKUP(A7,'Angaben zur Einrichtung'!$A$45:$J$248,9,FALSE)=\"ja\",\"Nein\",\"Ja\"),\"-\")","v":"-"}]
[null,null,null,null,null,null,null,null,null,null,null,null,null,null,null,null,null,0,"Ja",{"$f":"IF(NOT(ISBLANK(A8)),IF(VLOOKUP(A8,'Angaben zur Einrichtung'!$A$45:$J$248,9,FALSE)=\"ja\",\"Nein\",\"Ja\"),\"-\")","v":"-"}]
[null,null,null,null,null,null,null,null,null,null,null,null,null,null,null,null,null,0,"Ja",{"$f":"IF(NOT(ISBLANK(A9)),IF(VLOOKUP(A9,'Angaben zur Einrichtung'!$A$45:$J$248,9,FALSE)=\"ja\",\"Nein\",\"Ja\"),\"-\")","v":"-"}]
[null,null,null,null,null,null,null,null,null,null,null,null,null,null,null,null,null,0,"Ja",{"$f":"IF(NOT(ISBLANK(A10)),IF(VLOOKUP(A10,'Angaben zur Einrichtung'!$A$45:$J$248,9,FALSE)=\"ja\",\"Nein\",\"Ja\"),\"-\")","v":"-"}]
[null,null,null,null,null,null,null,null,null,null,null,null,null,null,null,null,null,0,"Ja",{"$f":"IF(NOT(ISBLANK(A11)),IF(VLOOKUP(A11,'Angaben zur Einrichtung'!$A$45:$J$248,9,FALSE)=\"ja\",\"Nein\",\"Ja\"),\"-\")","v":"-"}]
[null,null,null,null,null,null,null,null,null,null,null,null,null,null,null,null,null,0,"Ja",{"$f":"IF(NOT(ISBLANK(A12)),IF(VLOOKUP(A12,'Angaben zur Einrichtung'!$A$45:$J$248,9,FALSE)=\"ja\",\"Nein\",\"Ja\"),\"-\")","v":"-"}]
[null,null,null,null,null,null,null,null,null,null,null,null,null,null,null,null,null,0,"Ja",{"$f":"IF(NOT(ISBLANK(A13)),IF(VLOOKUP(A13,'Angaben zur Einrichtung'!$A$45:$J$248,9,FALSE)=\"ja\",\"Nein\",\"Ja\"),\"-\")","v":"-"}]
[null,null,null,null,null,null,null,null,null,null,null,null,null,null,null,null,null,0,"Ja",{"$f":"IF(NOT(ISBLANK(A14)),IF(VLOOKUP(A14,'Angaben zur Einrichtung'!$A$45:$J$248,9,FALSE)=\"ja\",\"Nein\",\"Ja\"),\"-\")","v":"-"}]
[null,null,null,null,null,null,null,null,null,null,null,null,null,null,null,null,null,0,"Ja",{"$f":"IF(NOT(ISBLANK(A15)),IF(VLOOKUP(A15,'Angaben zur Einrichtung'!$A$45:$J$248,9,FALSE)=\"ja\",\"Nein\",\"Ja\"),\"-\")","v":"-"}]
[null,null,null,null,null,null,null,null,null,null,null,null,null,null,null,null,null,0,"Ja",{"$f":"IF(NOT(ISBLANK(A16)),IF(VLOOKUP(A16,'Angaben zur Einrichtung'!$A$45:$J$248,9,FALSE)=\"ja\",\"Nein\",\"Ja\"),\"-\")","v":"-"}]
[null,null,null,null,null,null,null,null,null,null,null,null,null,null,null,null,null,0,"Ja",{"$f":"IF(NOT(ISBLANK(A17)),IF(VLOOKUP(A17,'Angaben zur Einrichtung'!$A$45:$J$248,9,FALSE)=\"ja\",\"Nein\",\"Ja\"),\"-\")","v":"-"}]
[null,null,null,null,null,null,null,null,null,null,null,null,null,null,null,null,null,0,"Ja",{"$f":"IF(NOT(ISBLANK(A18)),IF(VLOOKUP(A18,'Angaben zur Einrichtung'!$A$45:$J$248,9,FALSE)=\"ja\",\"Nein\",\"Ja\"),\"-\")","v":"-"}]
[null,null,null,null,null,null,null,null,null,null,null,null,null,null,null,null,null,0,"Ja",{"$f":"IF(NOT(ISBLANK(A19)),IF(VLOOKUP(A19,'Angaben zur Einrichtung'!$A$45:$J$248,9,FALSE)=\"ja\",\"Nein\",\"Ja\"),\"-\")","v":"-"}]
[null,null,null,null,null,null,null,null,null,null,null,null,null,null,null,null,null,0,"Ja",{"$f":"IF(NOT(ISBLANK(A20)),IF(VLOOKUP(A20,'Angaben zur Einrichtung'!$A$45:$J$248,9,FALSE)=\"ja\",\"Nein\",\"Ja\"),\"-\")","v":"-"}]
[null,null,null,null,null,null,null,null,null,null,null,null,null,null,null,null,null,0,"Ja",{"$f":"IF(NOT(ISBLANK(A21)),IF(VLOOKUP(A21,'Angaben zur Einrichtung'!$A$45:$J$248,9,FALSE)=\"ja\",\"Nein\",\"Ja\"),\"-\")","v":"-"}]
[null,null,null,null,null,null,null,null,null,null,null,null,null,null,null,null,null,0,"Ja",{"$f":"IF(NOT(ISBLANK(A22)),IF(VLOOKUP(A22,'Angaben zur Einrichtung'!$A$45:$J$248,9,FALSE)=\"ja\",\"Nein\",\"Ja\"),\"-\")","v":"-"}]
[null,null,null,null,null,null,null,null,null,null,null,null,null,null,null,null,null,0,"Ja",{"$f":"IF(NOT(ISBLANK(A23)),IF(VLOOKUP(A23,'Angaben zur Einrichtung'!$A$45:$J$248,9,FALSE)=\"ja\",\"Nein\",\"Ja\"),\"-\")","v":"-"}]
[null,null,null,null,null,null,null,null,null,null,null,null,null,null,null,null,null,0,"Ja",{"$f":"IF(NOT(ISBLANK(A24)),IF(VLOOKUP(A24,'Angaben zur Einrichtung'!$A$45:$J$248,9,FALSE)=\"ja\",\"Nein\",\"Ja\"),\"-\")","v":"-"}]
[null,null,null,null,null,null,null,null,null,null,null,null,null,null,null,null,null,0,"Ja",{"$f":"IF(NOT(ISBLANK(A25)),IF(VLOOKUP(A25,'Angaben zur Einrichtung'!$A$45:$J$248,9,FALSE)=\"ja\",\"Nein\",\"Ja\"),\"-\")","v":"-"}]
[null,null,null,null,null,null,null,null,null,null,null,null,null,null,null,null,null,0,"Ja",{"$f":"IF(NOT(ISBLANK(A26)),IF(VLOOKUP(A26,'Angaben zur Einrichtung'!$A$45:$J$248,9,FALSE)=\"ja\",\"Nein\",\"Ja\"),\"-\")","v":"-"}]
[null,null,null,null,null,null,null,null,null,null,null,null,null,null,null,null,null,0,"Ja",{"$f":"IF(NOT(ISBLANK(A27)),IF(VLOOKUP(A27,'Angaben zur Einrichtung'!$A$45:$J$248,9,FALSE)=\"ja\",\"Nein\",\"Ja\"),\"-\")","v":"-"}]
[null,null,null,null,null,null,null,null,null,null,null,null,null,null,null,null,null,0,"Ja",{"$f":"IF(NOT(ISBLANK(A28)),IF(VLOOKUP(A28,'Angaben zur Einrichtung'!$A$45:$J$248,9,FALSE)=\"ja\",\"Nein\",\"Ja\"),\"-\")","v":"-"}]
[null,null,null,null,null,null,null,null,null,null,null,null,null,null,null,null,null,0,"Ja",{"$f":"IF(NOT(ISBLANK(A29)),IF(VLOOKUP(A29,'Angaben zur Einrichtung'!$A$45:$J$248,9,FALSE)=\"ja\",\"Nein\",\"Ja\"),\"-\")","v":"-"}]
[null,null,null,null,null,null,null,null,null,null,null,null,null,null,null,null,null,0,"Ja",{"$f":"IF(NOT(ISBLANK(A30)),IF(VLOOKUP(A30,'Angaben zur Einrichtung'!$A$45:$J$248,9,FALSE)=\"ja\",\"Nein\",\"Ja\"),\"-\")","v":"-"}]
[null,null,null,null,null,null,null,null,null,null,null,null,null,null,null,null,null,0,"Ja",{"$f":"IF(NOT(ISBLANK(A31)),IF(VLOOKUP(A31,'Angaben zur Einrichtung'!$A$45:$J$248,9,FALSE)=\"ja\",\"Nein\",\"Ja\"),\"-\")","v":"-"}]
[null,null,null,null,null,null,null,null,null,null,null,null,null,null,null,null,null,0,"Ja",{"$f":"IF(NOT(ISBLANK(A32)),IF(VLOOKUP(A32,'Angaben zur Einrichtung'!$A$45:$J$248,9,FALSE)=\"ja\",\"Nein\",\"Ja\"),\"-\")","v":"-"}]
[null,null,null,null,null,null,null,null,null,null,null,null,null,null,null,null,null,0,"Ja",{"$f":"IF(NOT(ISBLANK(A33)),IF(VLOOKUP(A33,'Angaben zur Einrichtung'!$A$45:$J$248,9,FALSE)=\"ja\",\"Nein\",\"Ja\"),\"-\")","v":"-"}]
[null,null,null,null,null,null,null,null,null,null,null,null,null,null,null,null,null,0,"Ja",{"$f":"IF(NOT(ISBLANK(A34)),IF(VLOOKUP(A34,'Angaben zur Einrichtung'!$A$45:$J$248,9,FALSE)=\"ja\",\"Nein\",\"Ja\"),\"-\")","v":"-"}]
[null,null,null,null,null,null,null,null,null,null,null,null,null,null,null,null,null,0,"Ja",{"$f":"IF(NOT(ISBLANK(A35)),IF(VLOOKUP(A35,'Angaben zur Einrichtung'!$A$45:$J$248,9,FALSE)=\"ja\",\"Nein\",\"Ja\"),\"-\")","v":"-"}]
[null,null,null,null,null,null,null,null,null,null,null,null,null,null,null,null,null,0,"Ja",{"$f":"IF(NOT(ISBLANK(A36)),IF(VLOOKUP(A36,'Angaben zur Einrichtung'!$A$45:$J$248,9,FALSE)=\"ja\",\"Nein\",\"Ja\"),\"-\")","v":"-"}]
[null,null,null,null,null,null,null,null,null,null,null,null,null,null,null,null,null,0,"Ja",{"$f":"IF(NOT(ISBLANK(A37)),IF(VLOOKUP(A37,'Angaben zur Einrichtung'!$A$45:$J$248,9,FALSE)=\"ja\",\"Nein\",\"Ja\"),\"-\")","v":"-"}]
[null,null,null,null,null,null,null,null,null,null,null,null,null,null,null,null,null,0,"Ja",{"$f":"IF(NOT(ISBLANK(A38)),IF(VLOOKUP(A38,'Angaben zur Einrichtung'!$A$45:$J$248,9,FALSE)=\"ja\",\"Nein\",\"Ja\"),\"-\")","v":"-"}]
[null,null,null,null,null,null,null,null,null,null,null,null,null,null,null,null,null,0,"Ja",{"$f":"IF(NOT(ISBLANK(A39)),IF(VLOOKUP(A39,'Angaben zur Einrichtung'!$A$45:$J$248,9,FALSE)=\"ja\",\"Nein\",\"Ja\"),\"-\")","v":"-"}]
[null,null,null,null,null,null,null,null,null,null,null,null,null,null,null,null,null,0,"Ja",{"$f":"IF(NOT(ISBLANK(A40)),IF(VLOOKUP(A40,'Angaben zur Einrichtung'!$A$45:$J$248,9,FALSE)=\"ja\",\"Nein\",\"Ja\"),\"-\")","v":"-"}]
[null,null,null,null,null,null,null,null,null,null,null,null,null,null,null,null,null,0,"Ja",{"$f":"IF(NOT(ISBLANK(A41)),IF(VLOOKUP(A41,'Angaben zur Einrichtung'!$A$45:$J$248,9,FALSE)=\"ja\",\"Nein\",\"Ja\"),\"-\")","v":"-"}]
[null,null,null,null,null,null,null,null,null,null,null,null,null,null,null,null,null,0,"Ja",{"$f":"IF(NOT(ISBLANK(A42)),IF(VLOOKUP(A42,'Angaben zur Einrichtung'!$A$45:$J$248,9,FALSE)=\"ja\",\"Nein\",\"Ja\"),\"-\")","v":"-"}]
[null,null,null,null,null,null,null,null,null,null,null,null,null,null,null,null,null,0,"Ja",{"$f":"IF(NOT(ISBLANK(A43)),IF(VLOOKUP(A43,'Angaben zur Einrichtung'!$A$45:$J$248,9,FALSE)=\"ja\",\"Nein\",\"Ja\"),\"-\")","v":"-"}]
[null,null,null,null,null,null,null,null,null,null,null,null,null,null,null,null,null,0,"Ja",{"$f":"IF(NOT(ISBLANK(A44)),IF(VLOOKUP(A44,'Angaben zur Einrichtung'!$A$45:$J$248,9,FALSE)=\"ja\",\"Nein\",\"Ja\"),\"-\")","v":"-"}]
[null,null,null,null,null,null,null,null,null,null,null,null,null,null,null,null,null,0,"Ja",{"$f":"IF(NOT(ISBLANK(A45)),IF(VLOOKUP(A45,'Angaben zur Einrichtung'!$A$45:$J$248,9,FALSE)=\"ja\",\"Nein\",\"Ja\"),\"-\")","v":"-"}]
[null,null,null,null,null,null,null,null,null,null,null,null,null,null,null,null,null,0,"Ja",{"$f":"IF(NOT(ISBLANK(A46)),IF(VLOOKUP(A46,'Angaben zur Einrichtung'!$A$45:$J$248,9,FALSE)=\"ja\",\"Nein\",\"Ja\"),\"-\")","v":"-"}]
[null,null,null,null,null,null,null,null,null,null,null,null,null,null,null,null,null,0,"Ja",{"$f":"IF(NOT(ISBLANK(A47)),IF(VLOOKUP(A47,'Angaben zur Einrichtung'!$A$45:$J$248,9,FALSE)=\"ja\",\"Nein\",\"Ja\"),\"-\")","v":"-"}]
[null,null,null,null,null,null,null,null,null,null,null,null,null,null,null,null,null,0,"Ja",{"$f":"IF(NOT(ISBLANK(A48)),IF(VLOOKUP(A48,'Angaben zur Einrichtung'!$A$45:$J$248,9,FALSE)=\"ja\",\"Nein\",\"Ja\"),\"-\")","v":"-"}]
[null,null,null,null,null,null,null,null,null,null,null,null,null,null,null,null,null,0,"Ja",{"$f":"IF(NOT(ISBLANK(A49)),IF(VLOOKUP(A49,'Angaben zur Einrichtung'!$A$45:$J$248,9,FALSE)=\"ja\",\"Nein\",\"Ja\"),\"-\")","v":"-"}]
[null,null,null,null,null,null,null,null,null,null,null,null,null,null,null,null,null,0,"Ja",{"$f":"IF(NOT(ISBLANK(A50)),IF(VLOOKUP(A50,'Angaben zur Einrichtung'!$A$45:$J$248,9,FALSE)=\"ja\",\"Nein\",\"Ja\"),\"-\")","v":"-"}]
[null,null,null,null,null,null,null,null,null,null,null,null,null,null,null,null,null,0,"Ja",{"$f":"IF(NOT(ISBLANK(A51)),IF(VLOOKUP(A51,'Angaben zur Einrichtung'!$A$45:$J$248,9,FALSE)=\"ja\",\"Nein\",\"Ja\"),\"-\")","v":"-"}]
[null,null,null,null,null,null,null,null,null,null,null,null,null,null,null,null,null,0,"Ja",{"$f":"IF(NOT(ISBLANK(A52)),IF(VLOOKUP(A52,'Angaben zur Einrichtung'!$A$45:$J$248,9,FALSE)=\"ja\",\"Nein\",\"Ja\"),\"-\")","v":"-"}]
[null,null,null,null,null,null,null,null,null,null,null,null,null,null,null,null,null,0,"Ja",{"$f":"IF(NOT(ISBLANK(A53)),IF(VLOOKUP(A53,'Angaben zur Einrichtung'!$A$45:$J$248,9,FALSE)=\"ja\",\"Nein\",\"Ja\"),\"-\")","v":"-"}]
[null,null,null,null,null,null,null,null,null,null,null,null,null,null,null,null,null,0,"Ja",{"$f":"IF(NOT(ISBLANK(A54)),IF(VLOOKUP(A54,'Angaben zur Einrichtung'!$A$45:$J$248,9,FALSE)=\"ja\",\"Nein\",\"Ja\"),\"-\")","v":"-"}]
[null,null,null,null,null,null,null,null,null,null,null,null,null,null,null,null,null,0,"Ja",{"$f":"IF(NOT(ISBLANK(A55)),IF(VLOOKUP(A55,'Angaben zur Einrichtung'!$A$45:$J$248,9,FALSE)=\"ja\",\"Nein\",\"Ja\"),\"-\")","v":"-"}]
[null,null,null,null,null,null,null,null,null,null,null,null,null,null,null,null,null,0,"Ja",{"$f":"IF(NOT(ISBLANK(A56)),IF(VLOOKUP(A56,'Angaben zur Einrichtung'!$A$45:$J$248,9,FALSE)=\"ja\",\"Nein\",\"Ja\"),\"-\")","v":"-"}]
[null,null,null,null,null,null,null,null,null,null,null,null,null,null,null,null,null,0,"Ja",{"$f":"IF(NOT(ISBLANK(A57)),IF(VLOOKUP(A57,'Angaben zur Einrichtung'!$A$45:$J$248,9,FALSE)=\"ja\",\"Nein\",\"Ja\"),\"-\")","v":"-"}]
[null,null,null,null,null,null,null,null,null,null,null,null,null,null,null,null,null,0,"Ja",{"$f":"IF(NOT(ISBLANK(A58)),IF(VLOOKUP(A58,'Angaben zur Einrichtung'!$A$45:$J$248,9,FALSE)=\"ja\",\"Nein\",\"Ja\"),\"-\")","v":"-"}]
[null,null,null,null,null,null,null,null,null,null,null,null,null,null,null,null,null,0,"Ja",{"$f":"IF(NOT(ISBLANK(A59)),IF(VLOOKUP(A59,'Angaben zur Einrichtung'!$A$45:$J$248,9,FALSE)=\"ja\",\"Nein\",\"Ja\"),\"-\")","v":"-"}]
[null,null,null,null,null,null,null,null,null,null,null,null,null,null,null,null,null,0,"Ja",{"$f":"IF(NOT(ISBLANK(A60)),IF(VLOOKUP(A60,'Angaben zur Einrichtung'!$A$45:$J$248,9,FALSE)=\"ja\",\"Nein\",\"Ja\"),\"-\")","v":"-"}]
[null,null,null,null,null,null,null,null,null,null,null,null,null,null,null,null,null,0,"Ja",{"$f":"IF(NOT(ISBLANK(A61)),IF(VLOOKUP(A61,'Angaben zur Einrichtung'!$A$45:$J$248,9,FALSE)=\"ja\",\"Nein\",\"Ja\"),\"-\")","v":"-"}]
[null,null,null,null,null,null,null,null,null,null,null,null,null,null,null,null,null,0,"Ja",{"$f":"IF(NOT(ISBLANK(A62)),IF(VLOOKUP(A62,'Angaben zur Einrichtung'!$A$45:$J$248,9,FALSE)=\"ja\",\"Nein\",\"Ja\"),\"-\")","v":"-"}]
[null,null,null,null,null,null,null,null,null,null,null,null,null,null,null,null,null,0,"Ja",{"$f":"IF(NOT(ISBLANK(A63)),IF(VLOOKUP(A63,'Angaben zur Einrichtung'!$A$45:$J$248,9,FALSE)=\"ja\",\"Nein\",\"Ja\"),\"-\")","v":"-"}]
[null,null,null,null,null,null,null,null,null,null,null,null,null,null,null,null,null,0,"Ja",{"$f":"IF(NOT(ISBLANK(A64)),IF(VLOOKUP(A64,'Angaben zur Einrichtung'!$A$45:$J$248,9,FALSE)=\"ja\",\"Nein\",\"Ja\"),\"-\")","v":"-"}]
[null,null,null,null,null,null,null,null,null,null,null,null,null,null,null,null,null,0,"Ja",{"$f":"IF(NOT(ISBLANK(A65)),IF(VLOOKUP(A65,'Angaben zur Einrichtung'!$A$45:$J$248,9,FALSE)=\"ja\",\"Nein\",\"Ja\"),\"-\")","v":"-"}]
[null,null,null,null,null,null,null,null,null,null,null,null,null,null,null,null,null,0,"Ja",{"$f":"IF(NOT(ISBLANK(A66)),IF(VLOOKUP(A66,'Angaben zur Einrichtung'!$A$45:$J$248,9,FALSE)=\"ja\",\"Nein\",\"Ja\"),\"-\")","v":"-"}]
[null,null,null,null,null,null,null,null,null,null,null,null,null,null,null,null,null,0,"Ja",{"$f":"IF(NOT(ISBLANK(A67)),IF(VLOOKUP(A67,'Angaben zur Einrichtung'!$A$45:$J$248,9,FALSE)=\"ja\",\"Nein\",\"Ja\"),\"-\")","v":"-"}]
[null,null,null,null,null,null,null,null,null,null,null,null,null,null,null,null,null,0,"Ja",{"$f":"IF(NOT(ISBLANK(A68)),IF(VLOOKUP(A68,'Angaben zur Einrichtung'!$A$45:$J$248,9,FALSE)=\"ja\",\"Nein\",\"Ja\"),\"-\")","v":"-"}]
[null,null,null,null,null,null,null,null,null,null,null,null,null,null,null,null,null,0,"Ja",{"$f":"IF(NOT(ISBLANK(A69)),IF(VLOOKUP(A69,'Angaben zur Einrichtung'!$A$45:$J$248,9,FALSE)=\"ja\",\"Nein\",\"Ja\"),\"-\")","v":"-"}]
[null,null,null,null,null,null,null,null,null,null,null,null,null,null,null,null,null,0,{"$f":"IF(AND(E70+F70>5,I70+K70>5,M70+O70>5,G70+H70>3,J70+L70>3,N70+P70+Q70>5),\"Nein\",\"Ja\")","v":"Ja"},{"$f":"IF(NOT(ISBLANK(A70)),IF(VLOOKUP(A70,'Angaben zur Einrichtung'!$A$45:$J$248,9,FALSE)=\"ja\",\"Nein\",\"Ja\"),\"-\")","v":"-"}]
[null,null,null,null,null,null,null,null,null,null,null,null,null,null,null,null,null,{"$f":"SUM(E71:Q71)","v":0},"Ja",{"$f":"IF(NOT(ISBLANK(A71)),IF(VLOOKUP(A71,'Angaben zur Einrichtung'!$A$45:$J$248,9,FALSE)=\"ja\",\"Nein\",\"Ja\"),\"-\")","v":"-"}]
[null,null,null,null,null,null,null,null,null,null,null,null,null,null,null,null,null,0,"Ja",{"$f":"IF(NOT(ISBLANK(A72)),IF(VLOOKUP(A72,'Angaben zur Einrichtung'!$A$45:$J$248,9,FALSE)=\"ja\",\"Nein\",\"Ja\"),\"-\")","v":"-"}]
[null,null,null,null,null,null,null,null,null,null,null,null,null,null,null,null,null,0,"Ja",{"$f":"IF(NOT(ISBLANK(A73)),IF(VLOOKUP(A73,'Angaben zur Einrichtung'!$A$45:$J$248,9,FALSE)=\"ja\",\"Nein\",\"Ja\"),\"-\")","v":"-"}]
[null,null,null,null,null,null,null,null,null,null,null,null,null,null,null,null,null,0,"Ja",{"$f":"IF(NOT(ISBLANK(A74)),IF(VLOOKUP(A74,'Angaben zur Einrichtung'!$A$45:$J$248,9,FALSE)=\"ja\",\"Nein\",\"Ja\"),\"-\")","v":"-"}]
[null,null,null,null,null,null,null,null,null,null,null,null,null,null,null,null,null,0,"Ja",{"$f":"IF(NOT(ISBLANK(A75)),IF(VLOOKUP(A75,'Angaben zur Einrichtung'!$A$45:$J$248,9,FALSE)=\"ja\",\"Nein\",\"Ja\"),\"-\")","v":"-"}]
[null,null,null,null,null,null,null,null,null,null,null,null,null,null,null,null,null,0,"Ja",{"$f":"IF(NOT(ISBLANK(A76)),IF(VLOOKUP(A76,'Angaben zur Einrichtung'!$A$45:$J$248,9,FALSE)=\"ja\",\"Nein\",\"Ja\"),\"-\")","v":"-"}]
[null,null,null,null,null,null,null,null,null,null,null,null,null,null,null,null,null,0,"Ja",{"$f":"IF(NOT(ISBLANK(A77)),IF(VLOOKUP(A77,'Angaben zur Einrichtung'!$A$45:$J$248,9,FALSE)=\"ja\",\"Nein\",\"Ja\"),\"-\")","v":"-"}]
[null,null,null,null,null,null,null,null,null,null,null,null,null,null,null,null,null,0,"Ja",{"$f":"IF(NOT(ISBLANK(A78)),IF(VLOOKUP(A78,'Angaben zur Einrichtung'!$A$45:$J$248,9,FALSE)=\"ja\",\"Nein\",\"Ja\"),\"-\")","v":"-"}]
[null,null,null,null,null,null,null,null,null,null,null,null,null,null,null,null,null,0,"Ja",{"$f":"IF(NOT(ISBLANK(A79)),IF(VLOOKUP(A79,'Angaben zur Einrichtung'!$A$45:$J$248,9,FALSE)=\"ja\",\"Nein\",\"Ja\"),\"-\")","v":"-"}]
[null,null,null,null,null,null,null,null,null,null,null,null,null,null,null,null,null,0,"Ja",{"$f":"IF(NOT(ISBLANK(A80)),IF(VLOOKUP(A80,'Angaben zur Einrichtung'!$A$45:$J$248,9,FALSE)=\"ja\",\"Nein\",\"Ja\"),\"-\")","v":"-"}]
[null,null,null,null,null,null,null,null,null,null,null,null,null,null,null,null,null,0,"Ja",{"$f":"IF(NOT(ISBLANK(A81)),IF(VLOOKUP(A81,'Angaben zur Einrichtung'!$A$45:$J$248,9,FALSE)=\"ja\",\"Nein\",\"Ja\"),\"-\")","v":"-"}]
[null,null,null,null,null,null,null,null,null,null,null,null,null,null,null,null,null,0,"Ja",{"$f":"IF(NOT(ISBLANK(A82)),IF(VLOOKUP(A82,'Angaben zur Einrichtung'!$A$45:$J$248,9,FALSE)=\"ja\",\"Nein\",\"Ja\"),\"-\")","v":"-"}]
[null,null,null,null,null,null,null,null,null,null,null,null,null,null,null,null,null,0,"Ja",{"$f":"IF(NOT(ISBLANK(A83)),IF(VLOOKUP(A83,'Angaben zur Einrichtung'!$A$45:$J$248,9,FALSE)=\"ja\",\"Nein\",\"Ja\"),\"-\")","v":"-"}]
[null,null,null,null,null,null,null,null,null,null,null,null,null,null,null,null,null,0,"Ja",{"$f":"IF(NOT(ISBLANK(A84)),IF(VLOOKUP(A84,'Angaben zur Einrichtung'!$A$45:$J$248,9,FALSE)=\"ja\",\"Nein\",\"Ja\"),\"-\")","v":"-"}]
[null,null,null,null,null,null,null,null,null,null,null,null,null,null,null,null,null,0,"Ja",{"$f":"IF(NOT(ISBLANK(A85)),IF(VLOOKUP(A85,'Angaben zur Einrichtung'!$A$45:$J$248,9,FALSE)=\"ja\",\"Nein\",\"Ja\"),\"-\")","v":"-"}]
[null,null,null,null,null,null,null,null,null,null,null,null,null,null,null,null,null,0,"Ja",{"$f":"IF(NOT(ISBLANK(A86)),IF(VLOOKUP(A86,'Angaben zur Einrichtung'!$A$45:$J$248,9,FALSE)=\"ja\",\"Nein\",\"Ja\"),\"-\")","v":"-"}]
[null,null,null,null,null,null,null,null,null,null,null,null,null,null,null,null,null,0,"Ja",{"$f":"IF(NOT(ISBLANK(A87)),IF(VLOOKUP(A87,'Angaben zur Einrichtung'!$A$45:$J$248,9,FALSE)=\"ja\",\"Nein\",\"Ja\"),\"-\")","v":"-"}]
[null,null,null,null,null,null,null,null,null,null,null,null,null,null,null,null,null,0,"Ja",{"$f":"IF(NOT(ISBLANK(A88)),IF(VLOOKUP(A88,'Angaben zur Einrichtung'!$A$45:$J$248,9,FALSE)=\"ja\",\"Nein\",\"Ja\"),\"-\")","v":"-"}]
[null,null,null,null,null,null,null,null,null,null,null,null,null,null,null,null,null,0,"Ja",{"$f":"IF(NOT(ISBLANK(A89)),IF(VLOOKUP(A89,'Angaben zur Einrichtung'!$A$45:$J$248,9,FALSE)=\"ja\",\"Nein\",\"Ja\"),\"-\")","v":"-"}]
[null,null,null,null,null,null,null,null,null,null,null,null,null,null,null,null,null,0,"Ja",{"$f":"IF(NOT(ISBLANK(A90)),IF(VLOOKUP(A90,'Angaben zur Einrichtung'!$A$45:$J$248,9,FALSE)=\"ja\",\"Nein\",\"Ja\"),\"-\")","v":"-"}]
[null,null,null,null,null,null,null,null,null,null,null,null,null,null,null,null,null,0,"Ja",{"$f":"IF(NOT(ISBLANK(A91)),IF(VLOOKUP(A91,'Angaben zur Einrichtung'!$A$45:$J$248,9,FALSE)=\"ja\",\"Nein\",\"Ja\"),\"-\")","v":"-"}]
[null,null,null,null,null,null,null,null,null,null,null,null,null,null,null,null,null,0,"Ja",{"$f":"IF(NOT(ISBLANK(A92)),IF(VLOOKUP(A92,'Angaben zur Einrichtung'!$A$45:$J$248,9,FALSE)=\"ja\",\"Nein\",\"Ja\"),\"-\")","v":"-"}]
[null,null,null,null,null,null,null,null,null,null,null,null,null,null,null,null,null,0,"Ja",{"$f":"IF(NOT(ISBLANK(A93)),IF(VLOOKUP(A93,'Angaben zur Einrichtung'!$A$45:$J$248,9,FALSE)=\"ja\",\"Nein\",\"Ja\"),\"-\")","v":"-"}]
[null,null,null,null,null,null,null,null,null,null,null,null,null,null,null,null,null,0,"Ja",{"$f":"IF(NOT(ISBLANK(A94)),IF(VLOOKUP(A94,'Angaben zur Einrichtung'!$A$45:$J$248,9,FALSE)=\"ja\",\"Nein\",\"Ja\"),\"-\")","v":"-"}]
[null,null,null,null,null,null,null,null,null,null,null,null,null,null,null,null,null,0,"Ja",{"$f":"IF(NOT(ISBLANK(A95)),IF(VLOOKUP(A95,'Angaben zur Einrichtung'!$A$45:$J$248,9,FALSE)=\"ja\",\"Nein\",\"Ja\"),\"-\")","v":"-"}]
[null,null,null,null,null,null,null,null,null,null,null,null,null,null,null,null,null,0,"Ja",{"$f":"IF(NOT(ISBLANK(A96)),IF(VLOOKUP(A96,'Angaben zur Einrichtung'!$A$45:$J$248,9,FALSE)=\"ja\",\"Nein\",\"Ja\"),\"-\")","v":"-"}]
[null,null,null,null,null,null,null,null,null,null,null,null,null,null,null,null,null,0,"Ja",{"$f":"IF(NOT(ISBLANK(A97)),IF(VLOOKUP(A97,'Angaben zur Einrichtung'!$A$45:$J$248,9,FALSE)=\"ja\",\"Nein\",\"Ja\"),\"-\")","v":"-"}]
[null,null,null,null,null,null,null,null,null,null,null,null,null,null,null,null,null,0,"Ja",{"$f":"IF(NOT(ISBLANK(A98)),IF(VLOOKUP(A98,'Angaben zur Einrichtung'!$A$45:$J$248,9,FALSE)=\"ja\",\"Nein\",\"Ja\"),\"-\")","v":"-"}]
[null,null,null,null,null,null,null,null,null,null,null,null,null,null,null,null,null,0,"Ja",{"$f":"IF(NOT(ISBLANK(A99)),IF(VLOOKUP(A99,'Angaben zur Einrichtung'!$A$45:$J$248,9,FALSE)=\"ja\",\"Nein\",\"Ja\"),\"-\")","v":"-"}]
[null,null,null,null,null,null,null,null,null,null,null,null,null,null,null,null,null,0,"Ja",{"$f":"IF(NOT(ISBLANK(A100)),IF(VLOOKUP(A100,'Angaben zur Einrichtung'!$A$45:$J$248,9,FALSE)=\"ja\",\"Nein\",\"Ja\"),\"-\")","v":"-"}]

{"sheet":"Einstellungen","index":7,"n_rows":44,"n_cols":40,"rows_kept":44,"cut":false,"hidden":true,"merged":[[0,1,0,2],[0,0,1,0],[43,0,43,1]]}
["Kombination","Zeitraum"]
[null,"Von","Bis","Einordnung","Überprüfung",null,null,null,null,null,null,"Druckdaten",null,"Ist-Stand",null,null,null,null,null,"Erstsprachen"]
["DaE3/DaZ3","2020-09-02","2021-09-01","Drittletztes Jahr","Nein",null,null,null,null,null,null,"DaE","DaZ","Anz2SprJST4","Anz2SprJST5","AnzDFJST4_B","AnzDFJST5_B","AnzDFJST4_E","AnzDFJST5_E","ESprD","ESprTuerk","ESprBKS","ESprAlb","ESprRum","ESprArab","ESprPol","ESprUng","ESprEng","ESprTsch","ESprRus","ESprPers","ESprChin","ESprSlowak","ESprSpa","ESprKurd","ESprCze","ESprBulg","ESprSlowen","ESprUkrain","SonstESpr"]
["DaE4/DaZ4","2019-09-02","2020-09-01","Vorletztes Jahr",null,null,null,null,null,null,null,{"$f":"'Angaben zur Einrichtung'!K26","v":0},{"$f":"'Angaben zur Einrichtung'!K28","v":0},{"$f":"'Angaben zur Einrichtung'!X18","v":0},{"$f":"'Angaben zur Einrichtung'!X19","v":0},{"$f":"'Angaben zur Einrichtung'!X22","v":0},{"$f":"'Angaben zur Einrichtung'!X23","v":0},{"$f":"'Angaben zur Einrichtung'!X27","v":0},{"$f":"'Angaben zur Einrichtung'!X28","v":0},{"$f":"'Angaben zur Einrichtung'!Y41-'Angaben zur Einrichtung'!V41","v":0},{"$f":"'Angaben zur Einrichtung'!Y43-'Angaben zur Einrichtung'!V43","v":0},{"$f":"'Angaben zur Einrichtung'!Y44-'Angaben zur Einrichtung'!V44","v":0},{"$f":"'Angaben zur Einrichtung'!Y45-'Angaben zur Einrichtung'!V45","v":0},{"$f":"'Angaben zur Einrichtung'!Y46-'Angaben zur Einrichtung'!V46","v":0},{"$f":"'Angaben zur Einrichtung'!Y47-'Angaben zur Einrichtung'!V47","v":0},{"$f":"'Angaben zur Einrichtung'!Y48-'Angaben zur Einrichtung'!V48","v":0},{"$f":"'Angaben zur Einrichtung'!Y49-'Angaben zur Einrichtung'!V49","v":0},{"$f":"'Angaben zur Einrichtung'!Y50-'Angaben zur Einrichtung'!V50","v":0},{"$f":"'Angaben zur Einrichtung'!Y51-'Angaben zur Einrichtung'!V51","v":0},{"$f":"'Angaben zur Einrichtung'!Y52-'Angaben zur Einrichtung'!V52","v":0},{"$f":"'Angaben zur Einrichtung'!Y53-'Angaben zur Einrichtung'!V53","v":0},{"$f":"'Angaben zur Einrichtung'!Y54-'Angaben zur Einrichtung'!V54","v":0},{"$f":"'Angaben zur Einrichtung'!Y55-'Angaben zur Einrichtung'!V55","v":0},{"$f":"'Angaben zur Einrichtung'!Y56-'Angaben zur Einrichtung'!V56","v":0},{"$f":"'Angaben zur Einrichtung'!Y57-'Angaben zur Einrichtung'!V57","v":0},{"$f":"'Angaben zur Einrichtung'!Y58-'Angaben zur Einrichtung'!V58","v":0},{"$f":"'Angaben zur Einrichtung'!Y59-'Angaben zur Einrichtung'!V59","v":0},{"$f":"'Angaben zur Einrichtung'!Y60-'Angaben zur Einrichtung'!V60","v":0},{"$f":"'Angaben zur Einrichtung'!Y61-'Angaben zur Einrichtung'!V61","v":0},{"$f":"'Angaben zur Einrichtung'!Y62-'Angaben zur Einrichtung'!V62","v":0}]
["DaE5/DaZ5","2018-09-02","2019-09-01","Letztes Jahr"]
[null,null,null,"---"]
[]
[null,null,null,null,null,null,null,null,null,null,null,"Rohdatenliste"]
[null,null,null,null,null,null,null,null,null,null,null,"Gruppen","Gesamt\nanzahl\nK Frühjahr ","Gesamt anzahl K Herbst","GA dritt,\nvor+letzt","GA \nK beob","GA dritt","GA vor","GA letzt","GA dritt \nDAE","GA vor \nDAE","GA letzt \nDAE","GA dritt \nDAZ","GA vor \nDAZ","GA letzt \nDAZ","GA dritt\nSFB","GA vor\nSFB","GA letzt\nSFB","GA dritt\nweiterer\nSFB","GA vor\nweiterer\nSFB","GA letzt\nweiterer\nSFB","GA dritt\nSFB DAE","GA vor\nSFB DAE","GA letzt\nSFB DAE","GA dritt\nSFB DAZ","GA vor\nSFB DAZ","GA letzt\nSFB DAZ","Anzahl FK mit HLG"]
[null,null,null,null,null,null,null,null,null,null,null,{"$f":"'Angaben zur Einrichtung'!H13","v":0},{"$f":"'Angaben zur Einrichtung'!K16","v":0},{"$f":"'Angaben zur Einrichtung'!K17","v":0},{"$f":"'Angaben zur Einrichtung'!X6","v":0},{"$f":"'Angaben zur Einrichtung'!X7","v":0},{"$f":"'Angaben zur Einrichtung'!X10","v":0},{"$f":"'Angaben zur Einrichtung'!X11","v":0},{"$f":"'Angaben zur Einrichtung'!X12","v":0},{"$f":"'Angaben zur Einrichtung'!X14","v":0},{"$f":"'Angaben zur Einrichtung'!X15","v":0},{"$f":"'Angaben zur Einrichtung'!X16","v":0},{"$f":"'Angaben zur Einrichtung'!X18","v":0},{"$f":"'Angaben zur Einrichtung'!X19","v":0},{"$f":"'Angaben zur Einrichtung'!X20","v":0},{"$f":"'Angaben zur Einrichtung'!X22","v":0},{"$f":"'Angaben zur Einrichtung'!X23","v":0},{"$f":"'Angaben zur Einrichtung'!X24","v":0},{"$f":"'Angaben zur Einrichtung'!X26","v":0},{"$f":"'Angaben zur Einrichtung'!X27","v":0},{"$f":"'Angaben zur Einrichtung'!X28","v":0},{"$f":"'Angaben zur Einrichtung'!R41","v":0},{"$f":"'Angaben zur Einrichtung'!U41","v":0},{"$f":"'Angaben zur Einrichtung'!X41","v":0},{"$f":"'Angaben zur Einrichtung'!R62-'Angaben zur Einrichtung'!R41","v":0},{"$f":"'Angaben zur Einrichtung'!U62-'Angaben zur Einrichtung'!U41","v":0},{"$f":"'Angaben zur Einrichtung'!X62-'Angaben zur Einrichtung'!X41","v":0},{"$f":"'Angaben zur Einrichtung'!D17:F18","v":"Bitte ausfüllen"},0,0]
[null,null,null,null,null,null,null,null,null,null,null,null,null,null,null,null,null,null,null,null,null,null,null,null,null,null,null,null,null,null,null,null,null,null,null,null,null,0,0,0]
[]
["Auswahlkriterien"]
["Schule (Herbst 2025)"]
["Nicht beobachtbar"]
[]
[]
[]
[]
[null,null,null,null,null,null,"Sprachen",null,null,"Kurzinfo für SprachberaterInnen - Übersicht"]
["Nicht beobachtete Kinder",null,null,null,null,null,"Deutsch",null,null,"Kinderanzahl insgesamt:",{"$f":"'Angaben zur Einrichtung'!X6","v":0}]
[null,null,"gesamt",null,null,null,"Türkisch",null,null,"Davon beobachtete Kinder:",{"$f":"'Angaben zur Einrichtung'!X7","v":0}]
["Deutsch",null,{"$f":"COUNTIFS('Angaben zur Einrichtung'!$C$45:'Angaben zur Einrichtung'!$C$990,\"---\",'Angaben zur Einrichtung'!$E$45:'Angaben zur Einrichtung'!$E$990,\"Deutsch\")","v":0},null,null,null,"Bosnisch",null,null,"Davon Kinder mit spez. Sprachförderbedarf:",{"$f":"'Angaben zur Einrichtung'!X8","v":0}]
["Türkisch",null,{"$f":"COUNTIFS('Angaben zur Einrichtung'!$C$45:'Angaben zur Einrichtung'!$C$990,\"---\",'Angaben zur Einrichtung'!$E$45:'Angaben zur Einrichtung'!$E$990,\"Türkisch\")","v":0},null,null,null,"Kroatisch",null,null,"Davon.."]
["BKS",null,{"$f":"COUNTIFS('Angaben zur Einrichtung'!$C$45:'Angaben zur Einrichtung'!$C$990,\"---\",'Angaben zur Einrichtung'!$E$45:'Angaben zur Einrichtung'!$E$990,\"Bosnisch\")+COUNTIFS('Angaben zur Einrichtung'!$C$45:'Angaben zur Einrichtung'!$C$990,\"---\",'Angaben zur Einrichtung'!$E$45:'Angaben zur Einrichtung'!$E$990,\"Kroatisch\")+COUNTIFS('Angaben zur Einrichtung'!$C$45:'Angaben zur Einrichtung'!$C$990,\"---\",'Angaben zur Einrichtung'!$E$45:'Angaben zur Einrichtung'!$E$990,\"Serbisch\")","v":0},null,null,null,"Serbisch",null,null,"Abgemeldete Kinder:",{"$f":"COUNTIF('Angaben zur Einrichtung'!F45:F248, \"Abgemeldet\")","v":0}]
["Albanisch",null,{"$f":"COUNTIFS('Angaben zur Einrichtung'!$C$45:'Angaben zur Einrichtung'!$C$990,\"---\",'Angaben zur Einrichtung'!$E$45:'Angaben zur Einrichtung'!$E$990,\"Albanisch\")","v":0},null,null,null,"Albanisch",null,null,"Kinder mit stBHG-Bescheid:",{"$f":"COUNTIF('Angaben zur Einrichtung'!F45:F248, \"BHG Bescheid\")","v":0}]
["Rumänisch",null,{"$f":"COUNTIFS('Angaben zur Einrichtung'!$C$45:'Angaben zur Einrichtung'!$C$990,\"---\",'Angaben zur Einrichtung'!$E$45:'Angaben zur Einrichtung'!$E$990,\"Rumänisch\")","v":0},null,null,null,"Rumänisch",null,null,"Kinder mit häuslichem Unterricht:",{"$f":"COUNTIF('Angaben zur Einrichtung'!F45:F248, \"Häuslicher Unterricht\")","v":0}]
["Arabisch",null,{"$f":"COUNTIFS('Angaben zur Einrichtung'!$C$45:'Angaben zur Einrichtung'!$C$990,\"---\",'Angaben zur Einrichtung'!$E$45:'Angaben zur Einrichtung'!$E$990,\"Arabisch\")","v":0},null,null,null,"Arabisch",null,null,"Kinder, die im Herbst 2021 in die Schule gehen:",{"$f":"COUNTIF('Angaben zur Einrichtung'!F45:F248, \"Schule (Herbst 2020)\")","v":0}]
["Polnisch",null,{"$f":"COUNTIFS('Angaben zur Einrichtung'!$C$45:'Angaben zur Einrichtung'!$C$990,\"---\",'Angaben zur Einrichtung'!$E$45:'Angaben zur Einrichtung'!$E$990,\"Polnisch\")","v":0},null,null,null,"Polnisch",null,null,"Eingaben sind aufgrund Eintragungsfehlers zu löschen:",{"$f":"COUNTIF('Angaben zur Einrichtung'!F45:F248, \"Zu löschen\")","v":0}]
["Ungarisch",null,{"$f":"COUNTIFS('Angaben zur Einrichtung'!$C$45:'Angaben zur Einrichtung'!$C$990,\"---\",'Angaben zur Einrichtung'!$E$45:'Angaben zur Einrichtung'!$E$990,\"Ungarisch\")","v":0},null,null,null,"Ungarisch"]
["Englisch",null,{"$f":"COUNTIFS('Angaben zur Einrichtung'!$C$45:'Angaben zur Einrichtung'!$C$990,\"---\",'Angaben zur Einrichtung'!$E$45:'Angaben zur Einrichtung'!$E$990,\"Englisch\")","v":0},null,null,null,"Englisch",null,null,"Kinder waren aufgrund COVID-19 länger abwesend:",{"$f":"COUNTIF('Angaben zur Einrichtung'!F45:F248, \"Abwesend (COVID-19)\")","v":0}]
["Tschetschenisch",null,{"$f":"COUNTIFS('Angaben zur Einrichtung'!$C$45:'Angaben zur Einrichtung'!$C$990,\"---\",'Angaben zur Einrichtung'!$E$45:'Angaben zur Einrichtung'!$E$990,\"Tschetschenisch\")","v":0},null,null,null,"Tschetschenisch"]
["Russisch",null,{"$f":"COUNTIFS('Angaben zur Einrichtung'!$C$45:'Angaben zur Einrichtung'!$C$990,\"---\",'Angaben zur Einrichtung'!$E$45:'Angaben zur Einrichtung'!$E$990,\"Russisch\")","v":0},null,null,null,"Russisch"]
["Persisch",null,{"$f":"COUNTIFS('Angaben zur Einrichtung'!$C$45:'Angaben zur Einrichtung'!$C$990,\"---\",'Angaben zur Einrichtung'!$E$45:'Angaben zur Einrichtung'!$E$990,\"Persisch\")","v":0},null,null,null,"Persisch"]
["Chinesisch",null,{"$f":"COUNTIFS('Angaben zur Einrichtung'!$C$45:'Angaben zur Einrichtung'!$C$990,\"---\",'Angaben zur Einrichtung'!$E$45:'Angaben zur Einrichtung'!$E$990,\"Chinesisch\")","v":0},null,null,null,"Chinesisch"]
["Slowakisch",null,{"$f":"COUNTIFS('Angaben zur Einrichtung'!$C$45:'Angaben zur Einrichtung'!$C$990,\"---\",'Angaben zur Einrichtung'!$E$45:'Angaben zur Einrichtung'!$E$990,\"Slowakisch\")","v":0},null,null,null,"Slowakisch"]
["Spanisch",null,{"$f":"COUNTIFS('Angaben zur Einrichtung'!$C$45:'Angaben zur Einrichtung'!$C$990,\"---\",'Angaben zur Einrichtung'!$E$45:'Angaben zur Einrichtung'!$E$990,\"Spanisch\")","v":0},null,null,null,"Spanisch"]
["Kurdisch",null,{"$f":"COUNTIFS('Angaben zur Einrichtung'!$C$45:'Angaben zur Einrichtung'!$C$990,\"---\",'Angaben zur Einrichtung'!$E$45:'Angaben zur Einrichtung'!$E$990,\"Kurdisch\")","v":0},null,null,null,"Kurdisch"]
["Tschechisch",null,{"$f":"COUNTIFS('Angaben zur Einrichtung'!$C$45:'Angaben zur Einrichtung'!$C$990,\"---\",'Angaben zur Einrichtung'!$E$45:'Angaben zur Einrichtung'!$E$990,\"Tschechisch\")","v":0},null,null,null,"Tschechisch"]
["Bulgarisch",null,{"$f":"COUNTIFS('Angaben zur Einrichtung'!$C$45:'Angaben zur Einrichtung'!$C$990,\"---\",'Angaben zur Einrichtung'!$E$45:'Angaben zur Einrichtung'!$E$990,\"Bulgarisch\")","v":0},null,null,null,"Bulgarisch"]
["Slowenisch",null,{"$f":"COUNTIFS('Angaben zur Einrichtung'!$C$45:'Angaben zur Einrichtung'!$C$990,\"---\",'Angaben zur Einrichtung'!$E$45:'Angaben zur Einrichtung'!$E$990,\"Slowenisch\")","v":0},null,null,null,"Slowenisch"]
["sonstige Sprachen",null,{"$f":"COUNTIFS('Angaben zur Einrichtung'!$C$45:'Angaben zur Einrichtung'!$C$990,\"---\",'Angaben zur Einrichtung'!$E$45:'Angaben zur Einrichtung'!$E$990,\"sonstige Sprachen\")","v":0},null,null,null,"sonstige Sprachen"]
["Ukrainisch",null,{"$f":"COUNTIFS('Angaben zur Einrichtung'!$C$45:'Angaben zur Einrichtung'!$C$990,\"---\",'Angaben zur Einrichtung'!$E$45:'Angaben zur Einrichtung'!$E$990,\"Ukrainisch\")","v":0},null,null,null,"Ukrainisch"]
["SUMME",null,{"$f":"SUM(C23:C43)","v":0}]

{"sheet":"Stammdaten","index":8,"n_rows":762,"n_cols":7,"rows_kept":762,"cut":false,"hidden":true,"merged":[]}
["KSKZ","GKZ","ADR","PLZ","ORT","NAME","Bezeichnung"]
[60101001,601356,"Mariengasse 13",8020,"Graz","Kindergarten Caritas der Diözese Graz-Seckau","Kindergarten Caritas der Diözese Graz-Seckau, Mariengasse 13, 8020, Graz"]
[60101005,601396,"Südbahnstraße 100",8020,"Graz","Kindergarten Röm.-kath. Pfarre Graz Don Bosco","Kindergarten Röm.-kath. Pfarre Graz Don Bosco, Südbahnstraße 100, 8020, Graz"]
[60101014,601506,"Karl-Etzel-Weg 9",8053,"Graz","Kindergarten Verein \"Rettet das Kind\"  Steiermark","Kindergarten Verein \"Rettet das Kind\"  Steiermark, Karl-Etzel-Weg 9, 8053, Graz"]
[60101016,601366,"St.-Andräplatz 1",8020,"Graz","Kindergarten Röm.-kath. Pfarre Graz St. Andrä","Kindergarten Röm.-kath. Pfarre Graz St. Andrä, St.-Andräplatz 1, 8020, Graz"]
[60101019,601526,"Eggenberger Gürtel 76",8020,"Graz","Kindergarten Röm.-kath. Pfarre Graz St. Andrä","Kindergarten Röm.-kath. Pfarre Graz St. Andrä, Eggenberger Gürtel 76, 8020, Graz"]
[60101027,601576,"Leonhardstraße 62",8010,"Graz","Kindergarten Schulverein der Grazer Ursulinen","Kindergarten Schulverein der Grazer Ursulinen, Leonhardstraße 62, 8010, Graz"]
[60101028,601076,"Algersdorfer Straße 15",8020,"Graz","Kindergarten Stadtgemeinde Graz, Abteilung für Bildung und Integration","Kindergarten Stadtgemeinde Graz, Abteilung für Bildung und Integration, Algersdorfer Straße 15, 8020, Graz"]
[60101030,601096,"Sechsundzwanziger-Schützen-Gasse 25",8020,"Graz","Kindergarten Stadtgemeinde Graz, Abteilung für Bildung und Integration","Kindergarten Stadtgemeinde Graz, Abteilung für Bildung und Integration, Sechsundzwanziger-Schützen-Gasse 25, 8020, Graz"]
[60101032,601116,"Erlengasse 27",8020,"Graz","Kindergarten Stadtgemeinde Graz, Abteilung für Bildung und Integration","Kindergarten Stadtgemeinde Graz, Abteilung für Bildung und Integration, Erlengasse 27, 8020, Graz"]
[60101033,601126,"Gaswerkstraße 13",8020,"Graz","Kindergarten Stadtgemeinde Graz, Abteilung für Bildung und Integration","Kindergarten Stadtgemeinde Graz, Abteilung für Bildung und Integration, Gaswerkstraße 13, 8020, Graz"]
[60101034,601136,"Anton-Kleinoscheg-Straße 23",8051,"Graz","Kindergarten Stadtgemeinde Graz, Abteilung für Bildung und Integration","Kindergarten Stadtgemeinde Graz, Abteilung für Bildung und Integration, Anton-Kleinoscheg-Straße 23, 8051, Graz"]
[60101037,601166,"Kinkgasse 2",8020,"Graz","Kindergarten Stadtgemeinde Graz, Abteilung für Bildung und Integration","Kindergarten Stadtgemeinde Graz, Abteilung für Bildung und Integration, Kinkgasse 2, 8020, Graz"]
[60101038,601176,"Lustbühelstraße 28",8042,"Graz","Kindergarten Stadtgemeinde Graz, Abteilung für Bildung und Integration","Kindergarten Stadtgemeinde Graz, Abteilung für Bildung und Integration, Lustbühelstraße 28, 8042, Graz"]
[60101039,601186,"Münzgrabenstraße 16",8010,"Graz","Kindergarten Stadtgemeinde Graz, Abteilung für Bildung und Integration","Kindergarten Stadtgemeinde Graz, Abteilung für Bildung und Integration, Münzgrabenstraße 16, 8010, Graz"]
[60101040,601806,"Harter Straße 175",8054,"Graz","Kindergarten Stadtgemeinde Graz, Abteilung für Bildung und Integration","Kindergarten Stadtgemeinde Graz, Abteilung für Bildung und Integration, Harter Straße 175, 8054, Graz"]
[60101042,601206,"Kapellenstraße 100",8053,"Graz","Kindergarten Stadtgemeinde Graz, Abteilung für Bildung und Integration","Kindergarten Stadtgemeinde Graz, Abteilung für Bildung und Integration, Kapellenstraße 100, 8053, Graz"]
[60101043,601216,"Plüddemanngasse 28",8010,"Graz","Kindergarten Stadtgemeinde Graz, Abteilung für Bildung und Integration","Kindergarten Stadtgemeinde Graz, Abteilung für Bildung und Integration, Plüddemanngasse 28, 8010, Graz"]
[60101044,601226,"Kloiberweg 1",8041,"Graz","Kindergarten Stadtgemeinde Graz, Abteilung für Bildung und Integration","Kindergarten Stadtgemeinde Graz, Abteilung für Bildung und Integration, Kloiberweg 1, 8041, Graz"]
[60101045,601236,"Nippelgasse 14",8055,"Graz","Kindergarten Stadtgemeinde Graz, Abteilung für Bildung und Integration","Kindergarten Stadtgemeinde Graz, Abteilung für Bildung und Integration, Nippelgasse 14, 8055, Graz"]
[60101046,601246,"Ragnitzstraße 64",8047,"Graz","Kindergarten Stadtgemeinde Graz, Abteilung für Bildung und Integration","Kindergarten Stadtgemeinde Graz, Abteilung für Bildung und Integration, Ragnitzstraße 64, 8047, Graz"]
[60101047,601256,"Rosenhain 6",8010,"Graz","Kindergarten Stadtgemeinde Graz, Abteilung für Bildung und Integration","Kindergarten Stadtgemeinde Graz, Abteilung für Bildung und Integration, Rosenhain 6, 8010, Graz"]
[60101049,601276,"Mariatroster Straße 128a",8043,"Graz","Kindergarten Stadtgemeinde Graz, Abteilung für Bildung und Integration","Kindergarten Stadtgemeinde Graz, Abteilung für Bildung und Integration, Mariatroster Straße 128a, 8043, Graz"]
[60101050,601286,"Petrifelderstraße 39",8042,"Graz","Kindergarten Stadtgemeinde Graz, Abteilung für Bildung und Integration","Kindergarten Stadtgemeinde Graz, Abteilung für Bildung und Integration, Petrifelderstraße 39, 8042, Graz"]
[60101051,601656,"Schippingerstraße 17",8051,"Graz","Kindergarten Stadtgemeinde Graz, Abteilung für Bildung und Integration","Kindergarten Stadtgemeinde Graz, Abteilung für Bildung und Integration, Schippingerstraße 17, 8051, Graz"]
[60101052,601296,"Kaiser-Franz-Josef-Kai 60",8010,"Graz","Kindergarten Stadtgemeinde Graz, Abteilung für Bildung und Integration","Kindergarten Stadtgemeinde Graz, Abteilung für Bildung und Integration, Kaiser-Franz-Josef-Kai 60, 8010, Graz"]
[60101054,601636,"Schönbrunngasse 30",8043,"Graz","Kindergarten Stadtgemeinde Graz, Abteilung für Bildung und Integration","Kindergarten Stadtgemeinde Graz, Abteilung für Bildung und Integration, Schönbrunngasse 30, 8043, Graz"]
[60101055,601316,"Triester Straße 50a",8020,"Graz","Kindergarten Stadtgemeinde Graz, Abteilung für Bildung und Integration","Kindergarten Stadtgemeinde Graz, Abteilung für Bildung und Integration, Triester Straße 50a, 8020, Graz"]
[60101061,601376,"Ekkehard-Hauer-Straße 28",8052,"Graz","Kindergarten Röm.-kath. Pfarre Graz Christkönig","Kindergarten Röm.-kath. Pfarre Graz Christkönig, Ekkehard-Hauer-Straße 28, 8052, Graz"]
[60101068,601866,"Grabenstraße 59",8010,"Graz","Kindergarten Verein Evangelisches Diakoniewerk Gallneukirchen","Kindergarten Verein Evangelisches Diakoniewerk Gallneukirchen, Grabenstraße 59, 8010, Graz"]
[60101069,601446,"Rankengasse 42",8020,"Graz","Kindergarten Röm.-kath. Pfarre Graz Karlau","Kindergarten Röm.-kath. Pfarre Graz Karlau, Rankengasse 42, 8020, Graz"]
[60101070,601006,"Anton-Lippe-Platz 2",8041,"Graz","Kindergarten Röm.-kath. Pfarre Graz-Süd Seelsorgezentrum","Kindergarten Röm.-kath. Pfarre Graz-Süd Seelsorgezentrum, Anton-Lippe-Platz 2, 8041, Graz"]
[60101071,601003,"Dr.-Robert-Graf-Straße 40b",8010,"Graz","Kindergarten Röm.-kath. Pfarre Graz Waltendorf St. Paul","Kindergarten Röm.-kath. Pfarre Graz Waltendorf St. Paul, Dr.-Robert-Graf-Straße 40b, 8010, Graz"]
[60101078,601826,"Pappenheimgasse 8",8010,"Graz","Kindergarten Österr. Kinderfreunde Ortsgruppe Graz-Leonhard","Kindergarten Österr. Kinderfreunde Ortsgruppe Graz-Leonhard, Pappenheimgasse 8, 8010, Graz"]
[60101083,601986,"Pirchäckerstraße 23",8053,"Graz","Kindergarten Stadtgemeinde Graz, Abteilung für Bildung und Integration","Kindergarten Stadtgemeinde Graz, Abteilung für Bildung und Integration, Pirchäckerstraße 23, 8053, Graz"]
[60101090,601646,"Prochaskagasse 17",8045,"Graz","Kindergarten Stadtgemeinde Graz, Abteilung für Bildung und Integration","Kindergarten Stadtgemeinde Graz, Abteilung für Bildung und Integration, Prochaskagasse 17, 8045, Graz"]
[60101095,601956,"Ziegelstraße 110",8045,"Graz","Kindergarten Stadtgemeinde Graz, Abteilung für Bildung und Integration","Kindergarten Stadtgemeinde Graz, Abteilung für Bildung und Integration, Ziegelstraße 110, 8045, Graz"]
[60101096,601736,"Augasse 81a",8051,"Graz","Kindergarten Stadtgemeinde Graz, Abteilung für Bildung und Integration","Kindergarten Stadtgemeinde Graz, Abteilung für Bildung und Integration, Augasse 81a, 8051, Graz"]
[60101100,601012,"Körblergasse 4",8010,"Graz","Kindergarten Landesbediensteten-Unterstützungs-Verein","Kindergarten Landesbediensteten-Unterstützungs-Verein, Körblergasse 4, 8010, Graz"]
[60101102,601020,"Gabelsbergerstraße 22",8020,"Graz","Kindergarten Österr.Kinderfreunde, Ortsgruppe Afritschgarten","Kindergarten Österr.Kinderfreunde, Ortsgruppe Afritschgarten, Gabelsbergerstraße 22, 8020, Graz"]
[60101104,601896,"Josef-Huber-Gasse 38a",8020,"Graz","Kindergarten Österr. Kinderfreunde, Landesorganisation Steiermark","Kindergarten Österr. Kinderfreunde, Landesorganisation Steiermark, Josef-Huber-Gasse 38a, 8020, Graz"]
[60101109,601846,"Mandellstraße 39",8010,"Graz","Kindergarten Verein der Freien Waldorfschule Graz","Kindergarten Verein der Freien Waldorfschule Graz, Mandellstraße 39, 8010, Graz"]
[60101110,601536,"Vogelweiderstraße 2",8010,"Graz","Kindergarten Röm.-kath. Pfarre Graz Graben","Kindergarten Röm.-kath. Pfarre Graz Graben, Vogelweiderstraße 2, 8010, Graz"]
[60101111,601466,"Konrad-Hopferwieser-Gasse 6",8041,"Graz","Kindergarten Röm.-kath. Pfarre Graz Liebenau St.Paul","Kindergarten Röm.-kath. Pfarre Graz Liebenau St.Paul, Konrad-Hopferwieser-Gasse 6, 8041, Graz"]
[60101112,601017,"St.-Peter-Hauptstraße 35",8042,"Graz","Kindergarten Röm.-kath. Pfarre Graz Waltendorf St. Paul","Kindergarten Röm.-kath. Pfarre Graz Waltendorf St. Paul, St.-Peter-Hauptstraße 35, 8042, Graz"]
[60101120,601086,"Posenergasse 6",8045,"Graz","Kindergarten Stadtgemeinde Graz, Abteilung für Bildung und Integration","Kindergarten Stadtgemeinde Graz, Abteilung für Bildung und Integration, Posenergasse 6, 8045, Graz"]
[60101123,601016,"Grottenhofstraße 150",8052,"Graz","Kindergarten Bildungsanstalt für Elementarpädagogik Graz","Kindergarten Bildungsanstalt für Elementarpädagogik Graz, Grottenhofstraße 150, 8052, Graz"]
[60101126,601022,"Stiftingtalstraße 79",8010,"Graz","Kindergarten Verein der Freien Waldorfschule Graz","Kindergarten Verein der Freien Waldorfschule Graz, Stiftingtalstraße 79, 8010, Graz"]
[60101137,601028,"Scheidtenbergergasse 6",8010,"Graz","Kindergarten Stadtgemeinde Graz, Abteilung für Bildung und Integration","Kindergarten Stadtgemeinde Graz, Abteilung für Bildung und Integration, Scheidtenbergergasse 6, 8010, Graz"]
[60101139,601030,"Mariengasse 13",8020,"Graz","Kindergarten Caritas der Diözese Graz-Seckau","Kindergarten Caritas der Diözese Graz-Seckau, Mariengasse 13, 8020, Graz"]
[60101141,601031,"St.-Peter-Hauptstraße 182",8042,"Graz","Kindergarten Verein der Freien Waldorfschule Graz","Kindergarten Verein der Freien Waldorfschule Graz, St.-Peter-Hauptstraße 182, 8042, Graz"]
[60101153,601047,"Moserhofgasse 3a",8010,"Graz","Kindergarten Evangelische Pfarre Graz Heilandskirche","Kindergarten Evangelische Pfarre Graz Heilandskirche, Moserhofgasse 3a, 8010, Graz"]
[60101156,601062,"Leonhardplatz 14a",8010,"Graz","Kindergarten Röm.-kath. Pfarre Graz St.Leonhard","Kindergarten Röm.-kath. Pfarre Graz St.Leonhard, Leonhardplatz 14a, 8010, Graz"]
[60101159,601055,"Wiener Straße 148",8020,"Graz","Kindergarten \"Mosaik\" GmbH","Kindergarten \"Mosaik\" GmbH, Wiener Straße 148, 8020, Graz"]
[60101160,601057,"Grottenhofstraße 150",8052,"Graz","Kindergarten Bildungsanstalt für Elementarpädagogik Graz","Kindergarten Bildungsanstalt für Elementarpädagogik Graz, Grottenhofstraße 150, 8052, Graz"]
[60101163,601059,"Körösistraße 59",8010,"Graz","Kindergarten Verein der Freien Waldorfschule Graz","Kindergarten Verein der Freien Waldorfschule Graz, Körösistraße 59, 8010, Graz"]
[60101170,601069,"Grabenstraße 117",8010,"Graz","Kindergarten Heilpädagogischer Kindergarten Steingruber KG zur Erprobung neuer Konzepte","Kindergarten Heilpädagogischer Kindergarten Steingruber KG zur Erprobung neuer Konzepte, Grabenstraße 117, 8010, Graz"]
[60101171,601072,"St.-Peter-Hauptstraße 85",8042,"Graz","Kindergarten Stadtgemeinde Graz, Abteilung für Bildung und Integration","Kindergarten Stadtgemeinde Graz, Abteilung für Bildung und Integration, St.-Peter-Hauptstraße 85, 8042, Graz"]
[60101172,601075,"Andersengasse 49",8041,"Graz","Kindergarten Stadtgemeinde Graz, Abteilung für Bildung und Integration","Kindergarten Stadtgemeinde Graz, Abteilung für Bildung und Integration, Andersengasse 49, 8041, Graz"]
[60101188,601103,"Hubertusstraße 28",8042,"Graz","Kindergarten Röm.-kath. Pfarre Graz St.Peter","Kindergarten Röm.-kath. Pfarre Graz St.Peter, Hubertusstraße 28, 8042, Graz"]
[60101198,601098,"Fröhlichgasse 8",8010,"Graz","Kindergarten Verein Privatkindergarten und Kinderkrippe Kunterbunt","Kindergarten Verein Privatkindergarten und Kinderkrippe Kunterbunt, Fröhlichgasse 8, 8010, Graz"]
[60101202,601102,"Handelstraße 4",8020,"Graz","Kindergarten Verein \"Sim Sala Bim\"","Kindergarten Verein \"Sim Sala Bim\", Handelstraße 4, 8020, Graz"]
[60101204,601108,"Brucknerstraße 55",8010,"Graz","Kindergarten Stadtgemeinde Graz, Abteilung für Bildung und Integration","Kindergarten Stadtgemeinde Graz, Abteilung für Bildung und Integration, Brucknerstraße 55, 8010, Graz"]
[60101206,601110,"Panoramagasse 21",8010,"Graz","Kindergarten Stadtgemeinde Graz, Abteilung für Bildung und Integration","Kindergarten Stadtgemeinde Graz, Abteilung für Bildung und Integration, Panoramagasse 21, 8010, Graz"]
[60101207,601135,"Schützgasse 20",8020,"Graz","Kindergarten Interkultureller Bildungsgarten - Bildung für Kinder im Vorschulalter","Kindergarten Interkultureller Bildungsgarten - Bildung für Kinder im Vorschulalter, Schützgasse 20, 8020, Graz"]
[60101208,601111,"Mariatroster Straße 194b",8044,"Graz","Kindergarten Verein \"WIKI - Wir Kinder, Bildung und Betreuung\"","Kindergarten Verein \"WIKI - Wir Kinder, Bildung und Betreuung\", Mariatroster Straße 194b, 8044, Graz"]
[60101209,601112,"Kärntner Straße 415a",8054,"Graz","Kindergarten RdK Steiermark GmbH","Kindergarten RdK Steiermark GmbH, Kärntner Straße 415a, 8054, Graz"]
[60101211,601114,"Hafnerriegel 37a",8010,"Graz","Kindergarten GIP - Gemeinnützige Projekt GmbH","Kindergarten GIP - Gemeinnützige Projekt GmbH, Hafnerriegel 37a, 8010, Graz"]
[60101226,601152,"Florianibergstraße 13",8054,"Graz","Kindergarten Röm.-kath. Pfarre Graz Straßgang","Kindergarten Röm.-kath. Pfarre Graz Straßgang, Florianibergstraße 13, 8054, Graz"]
[60101227,601144,"Schwimmschulkai 92",8010,"Graz","Kindergarten Verein \"Creative Kinderwelt\"","Kindergarten Verein \"Creative Kinderwelt\", Schwimmschulkai 92, 8010, Graz"]
[60101236,601171,"Weinzöttlstraße 3",8045,"Graz","Kindergarten Stadtgemeinde Graz, Abteilung für Bildung und Integration","Kindergarten Stadtgemeinde Graz, Abteilung für Bildung und Integration, Weinzöttlstraße 3, 8045, Graz"]
[60101241,601159,"Glacisstraße 11",8010,"Graz","Kindergarten RdK Steiermark GmbH","Kindergarten RdK Steiermark GmbH, Glacisstraße 11, 8010, Graz"]
[60101243,601175,"Hauseggerstraße 70",8020,"Graz","Kindergarten Röm.-kath. Pfarre Graz Schutzengel","Kindergarten Röm.-kath. Pfarre Graz Schutzengel, Hauseggerstraße 70, 8020, Graz"]
[60101245,601161,"Raiffeisenstraße 155",8041,"Graz","Kindergarten Verein \"Krawuzi-Kapuzi\"","Kindergarten Verein \"Krawuzi-Kapuzi\", Raiffeisenstraße 155, 8041, Graz"]
[60101251,601172,"Karl-Schönherr-Gasse 6",8042,"Graz","Kindergarten Verein \"Kindergruppe Momo\"","Kindergarten Verein \"Kindergruppe Momo\", Karl-Schönherr-Gasse 6, 8042, Graz"]
[60101253,601182,"Keplerstraße 88",8020,"Graz","Kindergarten Verein \"Glockenspiel\"","Kindergarten Verein \"Glockenspiel\", Keplerstraße 88, 8020, Graz"]
[60101255,601184,"Wagner-Jauregg-Platz 10",8053,"Graz","Kindergarten Verein \"WIKI - Wir Kinder, Bildung und Betreuung\"","Kindergarten Verein \"WIKI - Wir Kinder, Bildung und Betreuung\", Wagner-Jauregg-Platz 10, 8053, Graz"]
[60101257,601212,"Mittelstraße 23",8041,"Graz","Kindergarten Stadtgemeinde Graz, Abteilung für Bildung und Integration","Kindergarten Stadtgemeinde Graz, Abteilung für Bildung und Integration, Mittelstraße 23, 8041, Graz"]
[60101259,601185,"Niesenbergergasse 37",8020,"Graz","Kindergarten Stadtgemeinde Graz, Abteilung für Bildung und Integration","Kindergarten Stadtgemeinde Graz, Abteilung für Bildung und Integration, Niesenbergergasse 37, 8020, Graz"]
[60101268,601213,"Grasbergerstraße 11",8020,"Graz","Kindergarten Stadtgemeinde Graz, Abteilung für Bildung und Integration","Kindergarten Stadtgemeinde Graz, Abteilung für Bildung und Integration, Grasbergerstraße 11, 8020, Graz"]
[60101270,601193,"Triester Straße 172",8020,"Graz","Kindergarten Verein \"Kindergruppe Hatschipuh\"","Kindergarten Verein \"Kindergruppe Hatschipuh\", Triester Straße 172, 8020, Graz"]
[60101274,601214,"Grabenstraße 20",8010,"Graz","Kindergarten Verein \"Indiv.Kinderbetreuung\"","Kindergarten Verein \"Indiv.Kinderbetreuung\", Grabenstraße 20, 8010, Graz"]
[60101286,601221,"Gadollaweg 50",8055,"Graz","Kindergarten Volkshilfe Steiermark gemeinnützige Betriebs-GmbH","Kindergarten Volkshilfe Steiermark gemeinnützige Betriebs-GmbH, Gadollaweg 50, 8055, Graz"]
[60101288,601267,"Dornschneidergasse 45",8020,"Graz","Kindergarten Stadtgemeinde Graz, Abteilung für Bildung und Integration","Kindergarten Stadtgemeinde Graz, Abteilung für Bildung und Integration, Dornschneidergasse 45, 8020, Graz"]
[60101301,601245,"Resselgasse 19",8020,"Graz","Kindergarten Verein \"Piccolino\"","Kindergarten Verein \"Piccolino\", Resselgasse 19, 8020, Graz"]
[60101307,601268,"Mandellstraße 31",8010,"Graz","Kindergarten Verein \"Rettet das Kind\"  Steiermark","Kindergarten Verein \"Rettet das Kind\"  Steiermark, Mandellstraße 31, 8010, Graz"]
[60101308,601269,"Grabenstraße 117",8010,"Graz","Kindergarten Heilpädagogischer Kindergarten Steingruber KG zur Erprobung neuer Konzepte","Kindergarten Heilpädagogischer Kindergarten Steingruber KG zur Erprobung neuer Konzepte, Grabenstraße 117, 8010, Graz"]
[60101314,601270,"Schillerstraße 31a",8010,"Graz","Kindergarten Verein \"Projektkindergarten\"","Kindergarten Verein \"Projektkindergarten\", Schillerstraße 31a, 8010, Graz"]
[60101315,601305,"Schererstraße 7b",8052,"Graz","Kindergarten Stadtgemeinde Graz, Abteilung für Bildung und Integration","Kindergarten Stadtgemeinde Graz, Abteilung für Bildung und Integration, Schererstraße 7b, 8052, Graz"]
[60101321,601297,"Riesstraße 351",8010,"Graz","Kindergarten Verein \"Karl-Schubert-Schule\"","Kindergarten Verein \"Karl-Schubert-Schule\", Riesstraße 351, 8010, Graz"]
[60101322,601307,"Petersgasse 1",8010,"Graz","Kindergarten Verein \"Vereinigung von Ordensschulen Österreichs\"","Kindergarten Verein \"Vereinigung von Ordensschulen Österreichs\", Petersgasse 1, 8010, Graz"]
[60101325,601308,"Schöckelbachweg 35",8045,"Graz","Kindergarten Verein \"Regenbogenschule\"","Kindergarten Verein \"Regenbogenschule\", Schöckelbachweg 35, 8045, Graz"]
[60101326,601438,"Widowitzgasse 11",8010,"Graz","Kindergarten Stadtgemeinde Graz, Abteilung für Bildung und Integration","Kindergarten Stadtgemeinde Graz, Abteilung für Bildung und Integration, Widowitzgasse 11, 8010, Graz"]
[60101329,601341,"Inge-Morath-Straße 50",8045,"Graz","Kindergarten Kocher GmbH","Kindergarten Kocher GmbH, Inge-Morath-Straße 50, 8045, Graz"]
[60101335,601352,"Ghegagasse 14",8020,"Graz","Kindergarten Stadtgemeinde Graz, Abteilung für Bildung und Integration","Kindergarten Stadtgemeinde Graz, Abteilung für Bildung und Integration, Ghegagasse 14, 8020, Graz"]
[60101336,601353,"Ragnitzstraße 166",8047,"Graz","Kindergarten Röm.-kath. Pfarre Graz Ragnitz","Kindergarten Röm.-kath. Pfarre Graz Ragnitz, Ragnitzstraße 166, 8047, Graz"]
[60101344,601362,"Ursprungweg 31",8045,"Graz","Kindergarten Andritz AG","Kindergarten Andritz AG, Ursprungweg 31, 8045, Graz"]
[60101347,601365,"Friedrichgasse 28",8010,"Graz","Kindergarten Stadtgemeinde Graz, Abteilung für Bildung und Integration","Kindergarten Stadtgemeinde Graz, Abteilung für Bildung und Integration, Friedrichgasse 28, 8010, Graz"]
[60101349,601368,"Kärntner Straße 324",8054,"Graz","Kindergarten Anton Paar GmbH","Kindergarten Anton Paar GmbH, Kärntner Straße 324, 8054, Graz"]
[60101354,601389,"Rosenberggürtel 12",8010,"Graz","Kindergarten Verein \"WIKI - Wir Kinder, Bildung und Betreuung\"","Kindergarten Verein \"WIKI - Wir Kinder, Bildung und Betreuung\", Rosenberggürtel 12, 8010, Graz"]
[60101359,601394,"Albert-Schweitzer-Gasse 38a",8020,"Graz","Kindergarten Geriatrische Gesundheitszentren der Stadt Graz","Kindergarten Geriatrische Gesundheitszentren der Stadt Graz, Albert-Schweitzer-Gasse 38a, 8020, Graz"]
[60101360,601395,"Liebenauer Hauptstraße 285a",8041,"Graz","Kindergarten Röm.-kath. Pfarre Graz Thondorf","Kindergarten Röm.-kath. Pfarre Graz Thondorf, Liebenauer Hauptstraße 285a, 8041, Graz"]
[60101363,601399,"Plabutscherstraße 19",8020,"Graz","Kindergarten A.S.S. Immobilien- und Besitz GmbH","Kindergarten A.S.S. Immobilien- und Besitz GmbH, Plabutscherstraße 19, 8020, Graz"]
[60101369,601414,"Klosterwiesgasse 101a",8010,"Graz","Kindergarten Volkshilfe Steiermark gemeinnützige Betriebs-GmbH","Kindergarten Volkshilfe Steiermark gemeinnützige Betriebs-GmbH, Klosterwiesgasse 101a, 8010, Graz"]
[60101370,601415,"Elisabethinergasse 31",8020,"Graz","Kindergarten GIP - Gemeinnützige Projekt GmbH","Kindergarten GIP - Gemeinnützige Projekt GmbH, Elisabethinergasse 31, 8020, Graz"]
[60101376,601530,"Starhemberggasse 19",8020,"Graz","Kindergarten RdK Steiermark GmbH","Kindergarten RdK Steiermark GmbH, Starhemberggasse 19, 8020, Graz"]
[60101378,601531,"Robert-Stolz-Gasse 3",8010,"Graz","Kindergarten Röm.-kath. Pfarre Graz Christus der Salvator","Kindergarten Röm.-kath. Pfarre Graz Christus der Salvator, Robert-Stolz-Gasse 3, 8010, Graz"]
[60101380,601441,"Georgigasse 89",8020,"Graz","Kindergarten Röm.-kath. Pfarre Graz St. Vinzenz","Kindergarten Röm.-kath. Pfarre Graz St. Vinzenz, Georgigasse 89, 8020, Graz"]
[60101381,601442,"Georgigasse 89",8020,"Graz","Kindergarten Konvent der Barmherzigen Brüder Graz-Eggenberg","Kindergarten Konvent der Barmherzigen Brüder Graz-Eggenberg, Georgigasse 89, 8020, Graz"]
[60101382,601443,"Mannagettaweg 1",8010,"Graz","Kindergarten GIP - Gemeinnützige Projekt GmbH","Kindergarten GIP - Gemeinnützige Projekt GmbH, Mannagettaweg 1, 8010, Graz"]
[60101383,601444,"Neuholdaugasse 18",8010,"Graz","Kindergarten Freizeit Graz GmbH","Kindergarten Freizeit Graz GmbH, Neuholdaugasse 18, 8010, Graz"]
[60101384,601445,"Untere Teichstraße 28",8010,"Graz","Kindergarten GIP - Gemeinnützige Projekt GmbH","Kindergarten GIP - Gemeinnützige Projekt GmbH, Untere Teichstraße 28, 8010, Graz"]
[60101390,601472,"Tannhofweg 5",8044,"Graz","Kindergarten Röm.-kath. Bistum Graz-Seckau","Kindergarten Röm.-kath. Bistum Graz-Seckau, Tannhofweg 5, 8044, Graz"]
[60101392,601474,"Maria-Stromberger-Gasse 21",8020,"Graz","Kindergarten Miklautz Viktoria","Kindergarten Miklautz Viktoria, Maria-Stromberger-Gasse 21, 8020, Graz"]
[60101395,601497,"Obere Weid 41",8051,"Graz","Kindergarten C. Kovac Immobilien GmbH","Kindergarten C. Kovac Immobilien GmbH, Obere Weid 41, 8051, Graz"]
[60101396,601498,"Überfuhrgasse 6",8020,"Graz","Kindergarten Verein \"WIKI - Wir Kinder, Bildung und Betreuung\"","Kindergarten Verein \"WIKI - Wir Kinder, Bildung und Betreuung\", Überfuhrgasse 6, 8020, Graz"]
[60101403,601567,"Stiftingtalstraße 89",8010,"Graz","Kindergarten Medizinische Universität Graz","Kindergarten Medizinische Universität Graz, Stiftingtalstraße 89, 8010, Graz"]
[60101404,601568,"Stiftingtalstraße 89",8010,"Graz","Kindergarten Steiermärkische Krankenanstalten GmbH","Kindergarten Steiermärkische Krankenanstalten GmbH, Stiftingtalstraße 89, 8010, Graz"]
[60101405,601520,"Schrödingerstraße 21",8020,"Graz","Kindergarten AVL List GmbH","Kindergarten AVL List GmbH, Schrödingerstraße 21, 8020, Graz"]
[60101407,601521,"Reininghausstraße 7",8020,"Graz","Kindergarten Granit Holding GmbH","Kindergarten Granit Holding GmbH, Reininghausstraße 7, 8020, Graz"]
[60101408,601533,"Kaiser-Franz-Josef-Kai 18",8010,"Graz","Kindergarten Verein für Franziskanische Bildung (VfFB)","Kindergarten Verein für Franziskanische Bildung (VfFB), Kaiser-Franz-Josef-Kai 18, 8010, Graz"]
[60101409,601534,"Gadollaplatz 1",8010,"Graz","Kindergarten SMC Graz GmbH","Kindergarten SMC Graz GmbH, Gadollaplatz 1, 8010, Graz"]
[60101410,601522,"St.-Veiter-Straße 86",8046,"Graz","Kindergarten Röm.-kath. Pfarre Graz St. Veit","Kindergarten Röm.-kath. Pfarre Graz St. Veit, St.-Veiter-Straße 86, 8046, Graz"]
[60101412,601535,"Rosenberggürtel 12",8010,"Graz","Kindergarten Förderzentrum des Landes für Hör- und Sprachbildung -  Abteilung 11","Kindergarten Förderzentrum des Landes für Hör- und Sprachbildung -  Abteilung 11, Rosenberggürtel 12, 8010, Graz"]
[60101413,601537,"Plabutscherstraße 76",8051,"Graz","Kindergarten RdK Steiermark GmbH","Kindergarten RdK Steiermark GmbH, Plabutscherstraße 76, 8051, Graz"]
[60101420,601542,"Babenbergerstraße 38",8020,"Graz","Kindergarten ENW gemeinnützige Wohnungsgesellschaft m.b.H.","Kindergarten ENW gemeinnützige Wohnungsgesellschaft m.b.H., Babenbergerstraße 38, 8020, Graz"]
[60101421,601543,"Friedhofgasse 55",8020,"Graz","Kindergarten Steiermärkischer  Automobil- u. Motorsportklub ÖAMTC","Kindergarten Steiermärkischer  Automobil- u. Motorsportklub ÖAMTC, Friedhofgasse 55, 8020, Graz"]
[60101426,601549,"Liebenauer Hauptstraße 327",8041,"Graz","Kindergarten Magna Steyr Fahrzeugtechnik  GmbH & Co KG","Kindergarten Magna Steyr Fahrzeugtechnik  GmbH & Co KG, Liebenauer Hauptstraße 327, 8041, Graz"]
[60101428,601570,"Angergasse 41",8010,"Graz","Kindergarten P. Kovac & Co GmbH","Kindergarten P. Kovac & Co GmbH, Angergasse 41, 8010, Graz"]
[60101429,601571,"Kuwasseggasse 15",8053,"Graz","Kindergarten GIP - Gemeinnützige Projekt GmbH","Kindergarten GIP - Gemeinnützige Projekt GmbH, Kuwasseggasse 15, 8053, Graz"]
[60101430,601572,"Komzakgasse 3",8020,"Graz","Kindergarten BYB GmbH","Kindergarten BYB GmbH, Komzakgasse 3, 8020, Graz"]
[60101432,601578,"Vinzenz-Muchitsch-Straße 9",8020,"Graz","Kindergarten Granit Holding GmbH","Kindergarten Granit Holding GmbH, Vinzenz-Muchitsch-Straße 9, 8020, Graz"]
[60101433,601579,"Sigmundstadl 47",8020,"Graz","Kindergarten GIP - Gemeinnützige Projekt GmbH","Kindergarten GIP - Gemeinnützige Projekt GmbH, Sigmundstadl 47, 8020, Graz"]
[60101434,601580,"Kalvarienbergstraße 3",8020,"Graz","Kindergarten Wonisch Gastronomie KG","Kindergarten Wonisch Gastronomie KG, Kalvarienbergstraße 3, 8020, Graz"]
[60101439,601585,"Eckertstraße 30f",8020,"Graz","Kindergarten Campus Eggenberg Immobilienprojekt GmbH","Kindergarten Campus Eggenberg Immobilienprojekt GmbH, Eckertstraße 30f, 8020, Graz"]
[60101440,601587,"Waagner-Biro-Straße 69",8020,"Graz","Kindergarten Österr. Wohnbaugenossenschaft gemeinn. reg.Gen.m.b.H.","Kindergarten Österr. Wohnbaugenossenschaft gemeinn. reg.Gen.m.b.H., Waagner-Biro-Straße 69, 8020, Graz"]
[60101441,601588,"Heinrichstraße 147",8010,"Graz","Kindergarten GWS Gemeinnützige Alpenländische Gesellschaft für Wohnungsbau und Siedlungswesen mbH","Kindergarten GWS Gemeinnützige Alpenländische Gesellschaft für Wohnungsbau und Siedlungswesen mbH, Heinrichstraße 147, 8010, Graz"]
[60101443,601590,"Brauquartier 15",8055,"Graz","Kindergarten ERSTE Immobilien Kapitalanlagengesellschaft m.b.H.","Kindergarten ERSTE Immobilien Kapitalanlagengesellschaft m.b.H., Brauquartier 15, 8055, Graz"]
[60101444,601591,"Paulustorgasse 19",8010,"Graz","Kindergarten ARE Austrian Real Estate GmbH","Kindergarten ARE Austrian Real Estate GmbH, Paulustorgasse 19, 8010, Graz"]
[60101445,601610,"Schlögelgasse 1",8010,"Graz","Kindergarten Verein \"WIKI - Wir Kinder, Bildung und Betreuung\"","Kindergarten Verein \"WIKI - Wir Kinder, Bildung und Betreuung\", Schlögelgasse 1, 8010, Graz"]
[60101457,60101457,"Mariatroster Straße 378",8044,"Graz","Kindergarten FÖL Liegenschaftsentwicklung GmbH","Kindergarten FÖL Liegenschaftsentwicklung GmbH, Mariatroster Straße 378, 8044, Graz"]
[60101458,60101458,"Waagner-Biro-Straße 111",8020,"Graz","Kindergarten GIP - Gemeinnützige Projekt GmbH","Kindergarten GIP - Gemeinnützige Projekt GmbH, Waagner-Biro-Straße 111, 8020, Graz"]
[60101459,601612,"Gradnerstraße 190",8054,"Graz","Kindergarten Ing. Karl Wolf","Kindergarten Ing. Karl Wolf, Gradnerstraße 190, 8054, Graz"]
[60101460,null,"Sternäckerweg 48a",8041,"Graz","Kindergarten Österr. Wohnbaugenossenschaft gemeinn. reg.Gen.m.b.H.","Kindergarten Österr. Wohnbaugenossenschaft gemeinn. reg.Gen.m.b.H., Sternäckerweg 48a, 8041, Graz"]
[60101463,null,"Lange Gasse 2",8010,"Graz","Kindergarten Bischöfliches Seminar","Kindergarten Bischöfliches Seminar, Lange Gasse 2, 8010, Graz"]
[60101467,60101467,"Wiesenauergasse 10",8053,"Graz","Kindergarten Ing. Karl Wolf","Kindergarten Ing. Karl Wolf, Wiesenauergasse 10, 8053, Graz"]
[60101468,60101468,"Maria-Pachleitner-Straße 63",8053,"Graz","Kindergarten ENW gemeinnützige Wohnungsgesellschaft m.b.H.","Kindergarten ENW gemeinnützige Wohnungsgesellschaft m.b.H., Maria-Pachleitner-Straße 63, 8053, Graz"]
[60101472,60101472,"Rannachstraße 31",8046,"Graz","Kindergarten NaturGanzNah KG","Kindergarten NaturGanzNah KG, Rannachstraße 31, 8046, Graz"]
[60101473,60101473,"Leechgasse 30",8010,"Graz","Kindergarten GIP - Gemeinnützige Projekt GmbH","Kindergarten GIP - Gemeinnützige Projekt GmbH, Leechgasse 30, 8010, Graz"]
[60101474,60101474,"Eggenberger Gürtel 75",8020,"Graz","Kindergarten WBG Wohnen und Bauen Gesellschaft mbH Wien","Kindergarten WBG Wohnen und Bauen Gesellschaft mbH Wien, Eggenberger Gürtel 75, 8020, Graz"]
[60101475,60101475,"Vinzenzgasse 51",8020,"Graz","Kindergarten Benediktinerstift Admont","Kindergarten Benediktinerstift Admont, Vinzenzgasse 51, 8020, Graz"]
[60101477,60101477,"Grillweg 7b",8053,"Graz","Kindergarten C&P Bauträger GmbH","Kindergarten C&P Bauträger GmbH, Grillweg 7b, 8053, Graz"]
[60101478,60101478,"Lastenstraße 14",8020,"Graz","Kindergarten GWS Gemeinnützige Alpenländische Gesellschaft für Wohnungsbau und Siedlungswesen mbH","Kindergarten GWS Gemeinnützige Alpenländische Gesellschaft für Wohnungsbau und Siedlungswesen mbH, Lastenstraße 14, 8020, Graz"]
[60101479,60101479,"Grabenstraße 168",8010,"Graz","Kindergarten Gapp Vermögensverwaltung KG","Kindergarten Gapp Vermögensverwaltung KG, Grabenstraße 168, 8010, Graz"]
[60101480,60101480,"Reininghauspark 7",8020,"Graz","Kindergarten Grazer Wechselseitige Versicherung AG","Kindergarten Grazer Wechselseitige Versicherung AG, Reininghauspark 7, 8020, Graz"]
[60101483,60101483,"Handelstraße 7",8020,"Graz","Kindergarten K2 Immo GmbH","Kindergarten K2 Immo GmbH, Handelstraße 7, 8020, Graz"]
[60101491,60101491,"Am Damm 23",8020,"Graz","Kindergarten Stadtgemeinde Graz, Abteilung für Bildung und Integration","Kindergarten Stadtgemeinde Graz, Abteilung für Bildung und Integration, Am Damm 23, 8020, Graz"]
[60101492,60101492,"Stattegger Straße 60",8045,"Graz","Kindergarten Projekt GS 60 GmbH & Co KG","Kindergarten Projekt GS 60 GmbH & Co KG, Stattegger Straße 60, 8045, Graz"]
[60101495,60101495,"Am Steinfeld 15",8020,"Graz","Kindergarten Bank Austria Real Invest Immobilien-Kapitalanlage GmbH","Kindergarten Bank Austria Real Invest Immobilien-Kapitalanlage GmbH, Am Steinfeld 15, 8020, Graz"]
[60101497,60101497,"Dominikanergasse 1a",8020,"Graz","Kindergarten Stadtgemeinde Graz, Abteilung für Bildung und Integration","Kindergarten Stadtgemeinde Graz, Abteilung für Bildung und Integration, Dominikanergasse 1a, 8020, Graz"]
[60101499,60101499,"Nordberggasse 6a",8045,"Graz","Kindergarten WEGRAZ Haring Projektentwicklungs GmbH","Kindergarten WEGRAZ Haring Projektentwicklungs GmbH, Nordberggasse 6a, 8045, Graz"]
[60101601,601168,"Gutenbergstraße 19",8053,"Graz","Kinderhaus Volkshilfe Steiermark gemeinnützige Betriebs-GmbH","Kinderhaus Volkshilfe Steiermark gemeinnützige Betriebs-GmbH, Gutenbergstraße 19, 8053, Graz"]
[60101603,601220,"Schloßplatz 3",8051,"Graz","Kinderhaus Volkshilfe Steiermark gemeinnützige Betriebs-GmbH","Kinderhaus Volkshilfe Steiermark gemeinnützige Betriebs-GmbH, Schloßplatz 3, 8051, Graz"]
[60101605,601477,"Petersgasse 136",8010,"Graz","Kinderhaus Technische Universität Graz ","Kinderhaus Technische Universität Graz , Petersgasse 136, 8010, Graz"]
[60202001,602526,"Graßnitz 64",8624,"Aflenz","Kindergarten Marktgemeinde Aflenz ","Kindergarten Marktgemeinde Aflenz , Graßnitz 64, 8624, Aflenz"]
[60204003,602056,"Im Glanzgraben 5",8600,"Bruck an der Mur","Kindergarten Stadtgemeinde  Bruck an der Mur","Kindergarten Stadtgemeinde  Bruck an der Mur, Im Glanzgraben 5, 8600, Bruck an der Mur"]
[60204004,602066,"Siedlung Westend 32",8600,"Bruck an der Mur","Kindergarten Stadtgemeinde  Bruck an der Mur","Kindergarten Stadtgemeinde  Bruck an der Mur, Siedlung Westend 32, 8600, Bruck an der Mur"]
[60204005,602046,"Wiener Straße 79",8600,"Bruck an der Mur","Kindergarten Stadtgemeinde  Bruck an der Mur","Kindergarten Stadtgemeinde  Bruck an der Mur, Wiener Straße 79, 8600, Bruck an der Mur"]
[60204006,602206,"Dr.-Theodor-Körner-Straße 31",8600,"Bruck an der Mur","Kindergarten Stadtgemeinde  Bruck an der Mur","Kindergarten Stadtgemeinde  Bruck an der Mur, Dr.-Theodor-Körner-Straße 31, 8600, Bruck an der Mur"]
[60205001,602566,"Etmißl 48",8622,"Thörl","Kindergarten Marktgemeinde Thörl","Kindergarten Marktgemeinde Thörl, Etmißl 48, 8622, Thörl"]
[60207001,602076,"Zur Waldpromenade 3",8632,"Mariazell","Kindergarten Röm.-kath. Pfarre Gusswerk","Kindergarten Röm.-kath. Pfarre Gusswerk, Zur Waldpromenade 3, 8632, Mariazell"]
[60209001,602086,"Gustav-Kramer-Straße 29",8605,"Kapfenberg","Kindergarten Stadtgemeinde Kapfenberg","Kindergarten Stadtgemeinde Kapfenberg, Gustav-Kramer-Straße 29, 8605, Kapfenberg"]
[60209002,602096,"Schinitzgasse 20",8605,"Kapfenberg","Kindergarten Stadtgemeinde Kapfenberg","Kindergarten Stadtgemeinde Kapfenberg, Schinitzgasse 20, 8605, Kapfenberg"]
[60209003,602106,"Carl-Morre-Straße 26",8605,"Kapfenberg","Kindergarten Stadtgemeinde Kapfenberg","Kindergarten Stadtgemeinde Kapfenberg, Carl-Morre-Straße 26, 8605, Kapfenberg"]
[60209006,602196,"Mira-Lobe-Weg 8",8605,"Kapfenberg","Kindergarten Stadtgemeinde Kapfenberg","Kindergarten Stadtgemeinde Kapfenberg, Mira-Lobe-Weg 8, 8605, Kapfenberg"]
[60209007,602346,"Mariazeller Straße 36",8605,"Kapfenberg","Kindergarten Stadtgemeinde Kapfenberg","Kindergarten Stadtgemeinde Kapfenberg, Mariazeller Straße 36, 8605, Kapfenberg"]
[60209008,602356,"Otto-Hauberger-Straße 32a",8605,"Kapfenberg","Kindergarten Stadtgemeinde Kapfenberg","Kindergarten Stadtgemeinde Kapfenberg, Otto-Hauberger-Straße 32a, 8605, Kapfenberg"]
[60209016,602956,"Otto-Hauberger-Straße 54",8605,"Kapfenberg","Kindergarten Stadtgemeinde  Kapfenberg Infrastruktur KG","Kindergarten Stadtgemeinde  Kapfenberg Infrastruktur KG, Otto-Hauberger-Straße 54, 8605, Kapfenberg"]
[60210001,602136,"Hans Laufenstein-Weg 3",8630,"Mariazell","Kindergarten Stadtgemeinde Mariazell","Kindergarten Stadtgemeinde Mariazell, Hans Laufenstein-Weg 3, 8630, Mariazell"]
[60211003,602146,"Utschtal 54",8600,"Bruck an der Mur","Kindergarten Stadtgemeinde  Bruck an der Mur","Kindergarten Stadtgemeinde  Bruck an der Mur, Utschtal 54, 8600, Bruck an der Mur"]
[60211004,602516,"Paulahofsiedlung 8",8600,"Bruck an der Mur","Kindergarten Stadtgemeinde  Bruck an der Mur","Kindergarten Stadtgemeinde  Bruck an der Mur, Paulahofsiedlung 8, 8600, Bruck an der Mur"]
[60212003,602686,"Hauptstraße 14a",8605,"Kapfenberg","Kindergarten Stadtgemeinde Kapfenberg","Kindergarten Stadtgemeinde Kapfenberg, Hauptstraße 14a, 8605, Kapfenberg"]
[60213001,602216,"Badgasse 3",8132,"Pernegg an der Mur","Kindergarten Gemeinde Pernegg an der Mur","Kindergarten Gemeinde Pernegg an der Mur, Badgasse 3, 8132, Pernegg an der Mur"]
[60215001,602256,"St. Katharein an der Laming 80",8611,"Tragöß-Sankt Katharein","Kindergarten Röm.-kath. Pfarre St. Katharein an der Laming","Kindergarten Röm.-kath. Pfarre St. Katharein an der Laming, St. Katharein an der Laming 80, 8611, Tragöß-Sankt Katharein"]
[60216001,602156,"Hauptstraße 3",8642,"Sankt Lorenzen im Mürztal","Kindergarten Röm.-kath. Pfarre St. Lorenzen im Mürztal","Kindergarten Röm.-kath. Pfarre St. Lorenzen im Mürztal, Hauptstraße 3, 8642, Sankt Lorenzen im Mürztal"]
[60218002,602696,"Erlaufseestraße 48",8630,"Mariazell","Kindergarten Stadtgemeinde Mariazell","Kindergarten Stadtgemeinde Mariazell, Erlaufseestraße 48, 8630, Mariazell"]
[60219004,602596,"Palbersdorf 180",8621,"Thörl","Kindergarten Marktgemeinde Thörl","Kindergarten Marktgemeinde Thörl, Palbersdorf 180, 8621, Thörl"]
[60220001,602606,"Pichl-Großdorf 102",8612,"Tragöß-Sankt Katharein","Kindergarten Gemeinde Tragöß-Sankt Katharein","Kindergarten Gemeinde Tragöß-Sankt Katharein, Pichl-Großdorf 102, 8612, Tragöß-Sankt Katharein"]
[60221001,602186,"Turnau 169",8625,"Turnau","Kindergarten Marktgemeinde Turnau","Kindergarten Marktgemeinde Turnau, Turnau 169, 8625, Turnau"]
[60302001,603026,"Erlenweg 9",8530,"Deutschlandsberg","Kindergarten Stadtgemeinde Deutschlandsberg","Kindergarten Stadtgemeinde Deutschlandsberg, Erlenweg 9, 8530, Deutschlandsberg"]
[60302002,603016,"Dr.-Hans-Kloepfer-Weg 8",8530,"Deutschlandsberg","Kindergarten Stadtgemeinde Deutschlandsberg","Kindergarten Stadtgemeinde Deutschlandsberg, Dr.-Hans-Kloepfer-Weg 8, 8530, Deutschlandsberg"]
[60302003,603206,"Wildbachfeld 37a",8530,"Deutschlandsberg","Kindergarten Stadtgemeinde Deutschlandsberg","Kindergarten Stadtgemeinde Deutschlandsberg, Wildbachfeld 37a, 8530, Deutschlandsberg"]
[60302014,603012,"Klaus-Ziegler-Allee 11",8530,"Deutschlandsberg","Kindergarten Gem. Wohn- u. Siedlungsgenossenschaft Ennstal reg. Gen.m.b.H. Liezen","Kindergarten Gem. Wohn- u. Siedlungsgenossenschaft Ennstal reg. Gen.m.b.H. Liezen, Klaus-Ziegler-Allee 11, 8530, Deutschlandsberg"]
[60303002,603036,"Eibiswald 55",8552,"Eibiswald","Kindergarten Röm.-kath. Pfarre Eibiswald","Kindergarten Röm.-kath. Pfarre Eibiswald, Eibiswald 55, 8552, Eibiswald"]
[60303004,603426,"Eibiswald 234",8552,"Eibiswald","Kindergarten Marktgemeinde Eibiswald","Kindergarten Marktgemeinde Eibiswald, Eibiswald 234, 8552, Eibiswald"]
[60305006,603027,"Schulgasse 5",8523,"Frauental an der Laßnitz","Kindergarten Marktgemeinde Frauental an der Laßnitz","Kindergarten Marktgemeinde Frauental an der Laßnitz, Schulgasse 5, 8523, Frauental an der Laßnitz"]
[60305601,603596,"Amselweg 2",8523,"Frauental an der Laßnitz","Kinderhaus Marktgemeinde Frauental an der Laßnitz","Kinderhaus Marktgemeinde Frauental an der Laßnitz, Amselweg 2, 8523, Frauental an der Laßnitz"]
[60307002,603156,"Bad Gams 2",8524,"Deutschlandsberg","Kindergarten Gem. Wohn- u. Siedlungsgenossenschaft Ennstal reg. Gen.m.b.H. Liezen","Kindergarten Gem. Wohn- u. Siedlungsgenossenschaft Ennstal reg. Gen.m.b.H. Liezen, Bad Gams 2, 8524, Deutschlandsberg"]
[60309001,603166,"Pichling 180",8510,"Stainz","Kindergarten Marktgemeinde Stainz","Kindergarten Marktgemeinde Stainz, Pichling 180, 8510, Stainz"]
[60310002,603476,"Greisdorf 175",8511,"Sankt Stefan ob Stainz","Kindergarten Gemeinde Sankt Stefan ob Stainz","Kindergarten Gemeinde Sankt Stefan ob Stainz, Greisdorf 175, 8511, Sankt Stefan ob Stainz"]
[60312004,603366,"Oberer Markt 4a",8522,"Groß Sankt Florian","Kindergarten Marktgemeinde Groß Sankt Florian","Kindergarten Marktgemeinde Groß Sankt Florian, Oberer Markt 4a, 8522, Groß Sankt Florian"]
[60313001,603004,"Feisternitz 149",8552,"Eibiswald","Kindergarten Marktgemeinde Eibiswald","Kindergarten Marktgemeinde Eibiswald, Feisternitz 149, 8552, Eibiswald"]
[60315001,603216,"Hollenegg 16",8530,"Schwanberg","Kindergarten Marktgemeinde Bad Schwanberg","Kindergarten Marktgemeinde Bad Schwanberg, Hollenegg 16, 8530, Schwanberg"]
[60316002,603766,"Klosterwinkel 42a",8530,"Deutschlandsberg","Kindergarten Stadtgemeinde Deutschlandsberg","Kindergarten Stadtgemeinde Deutschlandsberg, Klosterwinkel 42a, 8530, Deutschlandsberg"]
[60318002,603346,"Launeggstraße 71",8502,"Lannach","Kindergarten Marktgemeinde Lannach","Kindergarten Marktgemeinde Lannach, Launeggstraße 71, 8502, Lannach"]
[60318005,603456,"Hauptstraße 30",8502,"Lannach","Kindergarten Marktgemeinde Lannach","Kindergarten Marktgemeinde Lannach, Hauptstraße 30, 8502, Lannach"]
[60318009,60318009,"Mühlgasse 1",8502,"Lannach","Kindergarten Marktgemeinde Lannach","Kindergarten Marktgemeinde Lannach, Mühlgasse 1, 8502, Lannach"]
[60320001,603186,"Marhof 49",8510,"Stainz","Kindergarten Marktgemeinde Stainz","Kindergarten Marktgemeinde Stainz, Marhof 49, 8510, Stainz"]
[60322001,603286,"Hörmsdorf 211",8552,"Eibiswald","Kindergarten Marktgemeinde Eibiswald","Kindergarten Marktgemeinde Eibiswald, Hörmsdorf 211, 8552, Eibiswald"]
[60323002,603056,"Schulstraße 17",8544,"Pölfing-Brunn","Kindergarten Marktgemeinde Pölfing-Brunn","Kindergarten Marktgemeinde Pölfing-Brunn, Schulstraße 17, 8544, Pölfing-Brunn"]
[60324002,603316,"Rebenweg 2",8504,"Preding","Kindergarten Marktgemeinde Preding","Kindergarten Marktgemeinde Preding, Rebenweg 2, 8504, Preding"]
[60325001,603226,"Lasselsdorf 51",8522,"Stainz","Kindergarten Marktgemeinde Stainz","Kindergarten Marktgemeinde Stainz, Lasselsdorf 51, 8522, Stainz"]
[60326003,60326003,"St. Josef 250",8503,"Sankt Josef","Kindergarten Gemeinde Sankt Josef (Weststeiermark)","Kindergarten Gemeinde Sankt Josef (Weststeiermark), St. Josef 250, 8503, Sankt Josef"]
[60327001,603076,"Dörfla 45",8543,"Sankt Martin im Sulmtal","Kindergarten Gemeinde Sankt Martin im Sulmtal","Kindergarten Gemeinde Sankt Martin im Sulmtal, Dörfla 45, 8543, Sankt Martin im Sulmtal"]
[60328001,603386,"Sankt Oswald 35",8553,"Eibiswald","Kindergarten Marktgemeinde Eibiswald","Kindergarten Marktgemeinde Eibiswald, Sankt Oswald 35, 8553, Eibiswald"]
[60329003,603556,"St. Peter 137",8542,"Sankt Peter im Sulmtal","Kindergarten Gemeinde Sankt Peter im Sulmtal","Kindergarten Gemeinde Sankt Peter im Sulmtal, St. Peter 137, 8542, Sankt Peter im Sulmtal"]
[60330003,603296,"St. Stefan ob Stainz 160a",8511,"Sankt Stefan ob Stainz","Kindergarten Gemeinde Sankt Stefan ob Stainz","Kindergarten Gemeinde Sankt Stefan ob Stainz, St. Stefan ob Stainz 160a, 8511, Sankt Stefan ob Stainz"]
[60330005,603015,"St. Stefan ob Stainz 12a",8511,"Sankt Stefan ob Stainz","Kindergarten Gemeinde Sankt Stefan ob Stainz","Kindergarten Gemeinde Sankt Stefan ob Stainz, St. Stefan ob Stainz 12a, 8511, Sankt Stefan ob Stainz"]
[60331002,603356,"Schulweg 7",8541,"Schwanberg","Kindergarten Marktgemeinde Bad Schwanberg","Kindergarten Marktgemeinde Bad Schwanberg, Schulweg 7, 8541, Schwanberg"]
[60333003,603396,"Am Stainzbach 1",8510,"Stainz","Kindergarten Marktgemeinde Stainz","Kindergarten Marktgemeinde Stainz, Am Stainzbach 1, 8510, Stainz"]
[60334001,603466,"Grafendorf 55",8510,"Stainz","Kindergarten Marktgemeinde Stainz","Kindergarten Marktgemeinde Stainz, Grafendorf 55, 8510, Stainz"]
[60335001,603136,"Stallhof 52",8510,"Stainz","Kindergarten Marktgemeinde Stainz","Kindergarten Marktgemeinde Stainz, Stallhof 52, 8510, Stainz"]
[60336001,603266,"Kopreinigg 51",8544,"Sankt Martin im Sulmtal","Kindergarten Gemeinde Sankt Martin im Sulmtal","Kindergarten Gemeinde Sankt Martin im Sulmtal, Kopreinigg 51, 8544, Sankt Martin im Sulmtal"]
[60338001,603376,"Nikolaus-Weg 1",8530,"Deutschlandsberg","Kindergarten Stadtgemeinde Deutschlandsberg","Kindergarten Stadtgemeinde Deutschlandsberg, Nikolaus-Weg 1, 8530, Deutschlandsberg"]
[60339001,603546,"Unterbergla 55",8522,"Groß Sankt Florian","Kindergarten Marktgemeinde Groß Sankt Florian","Kindergarten Marktgemeinde Groß Sankt Florian, Unterbergla 55, 8522, Groß Sankt Florian"]
[60340002,603096,"Wernersdorf 54",8551,"Wies","Kindergarten Marktgemeinde Wies","Kindergarten Marktgemeinde Wies, Wernersdorf 54, 8551, Wies"]
[60341001,603256,"Wettmannstätten 114",8521,"Wettmannstätten","Kindergarten Marktgemeinde Wettmannstätten","Kindergarten Marktgemeinde Wettmannstätten, Wettmannstätten 114, 8521, Wettmannstätten"]
[60343003,603306,"Altenmarkter Straße 17",8551,"Wies","Kindergarten Marktgemeinde Wies","Kindergarten Marktgemeinde Wies, Altenmarkter Straße 17, 8551, Wies"]
[60344001,603031,"Unterer Platz 7b",8530,"Deutschlandsberg","Kindergarten Unterer Hauptplatz Projektentwicklung GmbH","Kindergarten Unterer Hauptplatz Projektentwicklung GmbH, Unterer Platz 7b, 8530, Deutschlandsberg"]
[60344003,60344003,"Ulrichsberg 1",8530,"Deutschlandsberg","Kindergarten ComGen gGmbH ","Kindergarten ComGen gGmbH , Ulrichsberg 1, 8530, Deutschlandsberg"]
[60350003,60350003,"Graschuh 262",8510,"Stainz","Kindergarten Marktgemeinde Stainz","Kindergarten Marktgemeinde Stainz, Graschuh 262, 8510, Stainz"]
[60401001,604656,"Wetzelsdorf 160",8330,"Feldbach","Kindergarten Stadtgemeinde Feldbach","Kindergarten Stadtgemeinde Feldbach, Wetzelsdorf 160, 8330, Feldbach"]
[60403004,604666,"Ringstraße 47",8344,"Bad Gleichenberg","Kindergarten Gemeinde Bad Gleichenberg","Kindergarten Gemeinde Bad Gleichenberg, Ringstraße 47, 8344, Bad Gleichenberg"]
[60404004,604426,"Bairisch Kölldorf 264",8344,"Bad Gleichenberg","Kindergarten Gemeinde Bad Gleichenberg","Kindergarten Gemeinde Bad Gleichenberg, Bairisch Kölldorf 264, 8344, Bad Gleichenberg"]
[60404005,604008,"Bairisch Kölldorf 12",8344,"Bad Gleichenberg","Kindergarten Gemeinde Bad Gleichenberg","Kindergarten Gemeinde Bad Gleichenberg, Bairisch Kölldorf 12, 8344, Bad Gleichenberg"]
[60404601,604546,"Bairisch Kölldorf 264",8344,"Bad Gleichenberg","Kinderhaus Gemeinde Bad Gleichenberg","Kinderhaus Gemeinde Bad Gleichenberg, Bairisch Kölldorf 264, 8344, Bad Gleichenberg"]
[60406001,604116,"Breitenfeld 100",8313,"Riegersburg","Kindergarten Marktgemeinde Riegersburg","Kindergarten Marktgemeinde Riegersburg, Breitenfeld 100, 8313, Riegersburg"]
[60407001,604166,"Edelsbach 151",8332,"Edelsbach bei Feldbach","Kindergarten Gemeinde Edelsbach bei Feldbach","Kindergarten Gemeinde Edelsbach bei Feldbach, Edelsbach 151, 8332, Edelsbach bei Feldbach"]
[60410002,604216,"Petzelsdorf 1",8350,"Fehring","Kindergarten Fachschule für.Land- und Ernährungswirtschaft Schloss Stein-St.Martin","Kindergarten Fachschule für.Land- und Ernährungswirtschaft Schloss Stein-St.Martin, Petzelsdorf 1, 8350, Fehring"]
[60410003,604326,"Kindergartenweg 4",8350,"Fehring","Kindergarten Stadtgemeinde Fehring","Kindergarten Stadtgemeinde Fehring, Kindergartenweg 4, 8350, Fehring"]
[60411001,604036,"Flurgasse 11",8330,"Feldbach","Kindergarten Stadtgemeinde Feldbach","Kindergarten Stadtgemeinde Feldbach, Flurgasse 11, 8330, Feldbach"]
[60411002,604046,"Klostergasse 2",8330,"Feldbach","Kindergarten DIGNUM Immobilien GmbH","Kindergarten DIGNUM Immobilien GmbH, Klostergasse 2, 8330, Feldbach"]
[60411003,604256,"Grazer Straße 15",8330,"Feldbach","Kindergarten DIGNUM Immobilien GmbH","Kindergarten DIGNUM Immobilien GmbH, Grazer Straße 15, 8330, Feldbach"]
[60411004,604336,"Grazer Straße 15",8330,"Feldbach","Kindergarten Stadtgemeinde Feldbach","Kindergarten Stadtgemeinde Feldbach, Grazer Straße 15, 8330, Feldbach"]
[60416001,604056,"Gnas 116",8342,"Gnas","Kindergarten Marktgemeinde Gnas","Kindergarten Marktgemeinde Gnas, Gnas 116, 8342, Gnas"]
[60416002,604566,"Gnas 116a",8342,"Gnas","Kindergarten Marktgemeinde Gnas","Kindergarten Marktgemeinde Gnas, Gnas 116a, 8342, Gnas"]
[60417001,604156,"Gniebing 148",8330,"Feldbach","Kindergarten Stadtgemeinde Feldbach","Kindergarten Stadtgemeinde Feldbach, Gniebing 148, 8330, Feldbach"]
[60418002,604346,"Gossendorf 23",8330,"Feldbach","Kindergarten Stadtgemeinde Feldbach","Kindergarten Stadtgemeinde Feldbach, Gossendorf 23, 8330, Feldbach"]
[60420002,604186,"Hatzendorf 2",8361,"Fehring","Kindergarten Stadtgemeinde Fehring","Kindergarten Stadtgemeinde Fehring, Hatzendorf 2, 8361, Fehring"]
[60421003,604836,"Hohenbrugg an der Raab 52",8350,"Fehring","Kindergarten Stadtgemeinde Fehring","Kindergarten Stadtgemeinde Fehring, Hohenbrugg an der Raab 52, 8350, Fehring"]
[60425003,604586,"Kirchbach in Steiermark 226",8082,"Kirchbach-Zerlach","Kindergarten Marktgemeinde Kirchbach-Zerlach","Kindergarten Marktgemeinde Kirchbach-Zerlach, Kirchbach in Steiermark 226, 8082, Kirchbach-Zerlach"]
[60430001,604066,"Leitersdorf im Raabtal 123",8330,"Feldbach","Kindergarten Stadtgemeinde Feldbach","Kindergarten Stadtgemeinde Feldbach, Leitersdorf im Raabtal 123, 8330, Feldbach"]
[60431001,604436,"Lödersdorf I 35",8334,"Riegersburg","Kindergarten Marktgemeinde Riegersburg","Kindergarten Marktgemeinde Riegersburg, Lödersdorf I 35, 8334, Riegersburg"]
[60433001,604606,"Merkendorf 123",8344,"Bad Gleichenberg","Kindergarten Gemeinde Bad Gleichenberg","Kindergarten Gemeinde Bad Gleichenberg, Merkendorf 123, 8344, Bad Gleichenberg"]
[60435001,604009,"Mühldorf 106c",8330,"Feldbach","Kindergarten Stadtgemeinde Feldbach","Kindergarten Stadtgemeinde Feldbach, Mühldorf 106c, 8330, Feldbach"]
[60438001,604246,"Paldau 180",8341,"Paldau","Kindergarten Marktgemeinde Paldau","Kindergarten Marktgemeinde Paldau, Paldau 180, 8341, Paldau"]
[60440001,604446,"Pertlstein 246",8350,"Fehring","Kindergarten Stadtgemeinde Fehring","Kindergarten Stadtgemeinde Fehring, Pertlstein 246, 8350, Fehring"]
[60442001,604366,"Pirching 110",8081,"Pirching am Traubenberg","Kindergarten Gemeinde Pirching am Traubenberg","Kindergarten Gemeinde Pirching am Traubenberg, Pirching 110, 8081, Pirching am Traubenberg"]
[60447003,604376,"Riegersburg 33",8333,"Riegersburg","Kindergarten Marktgemeinde Riegersburg","Kindergarten Marktgemeinde Riegersburg, Riegersburg 33, 8333, Riegersburg"]
[60448001,604176,"Hauptstraße 17",8354,"Sankt Anna am Aigen","Kindergarten Marktgemeinde Sankt Anna am Aigen","Kindergarten Marktgemeinde Sankt Anna am Aigen, Hauptstraße 17, 8354, Sankt Anna am Aigen"]
[60449003,604286,"Schulstraße 23",8083,"Sankt Stefan im Rosental","Kindergarten Marktgemeinde Sankt Stefan im Rosental","Kindergarten Marktgemeinde Sankt Stefan im Rosental, Schulstraße 23, 8083, Sankt Stefan im Rosental"]
[60453001,604136,"Trautmannsdorf 2",8343,"Bad Gleichenberg","Kindergarten Gemeinde Bad Gleichenberg","Kindergarten Gemeinde Bad Gleichenberg, Trautmannsdorf 2, 8343, Bad Gleichenberg"]
[60455001,604226,"Unterlamm 138",8352,"Unterlamm","Kindergarten Gemeinde Unterlamm","Kindergarten Gemeinde Unterlamm, Unterlamm 138, 8352, Unterlamm"]
[60456005,604486,"Dörfla 52",8082,"Kirchbach-Zerlach","Kindergarten Marktgemeinde Kirchbach-Zerlach","Kindergarten Marktgemeinde Kirchbach-Zerlach, Dörfla 52, 8082, Kirchbach-Zerlach"]
[60501001,605156,"Altenmarkt b. F. 166",8280,"Fürstenfeld","Kindergarten Stadtgemeinde Fürstenfeld","Kindergarten Stadtgemeinde Fürstenfeld, Altenmarkt b. F. 166, 8280, Fürstenfeld"]
[60502003,605086,"Lindegg 58",8283,"Bad Blumau","Kindergarten Gemeinde Bad Blumau","Kindergarten Gemeinde Bad Blumau, Lindegg 58, 8283, Bad Blumau"]
[60502004,605226,"Lindegg 58",8283,"Bad Blumau","Kindergarten Gemeinde Bad Blumau","Kindergarten Gemeinde Bad Blumau, Lindegg 58, 8283, Bad Blumau"]
[60503002,605016,"Schlossweg 260",8291,"Burgau","Kindergarten Röm.-kath. Pfarre Burgau","Kindergarten Röm.-kath. Pfarre Burgau, Schlossweg 260, 8291, Burgau"]
[60504001,605026,"Kommendegasse 13",8280,"Fürstenfeld","Kindergarten Stadtgemeinde Fürstenfeld","Kindergarten Stadtgemeinde Fürstenfeld, Kommendegasse 13, 8280, Fürstenfeld"]
[60504002,605046,"Burgenlandstraße 6a",8280,"Fürstenfeld","Kindergarten Stadtgemeinde Fürstenfeld","Kindergarten Stadtgemeinde Fürstenfeld, Burgenlandstraße 6a, 8280, Fürstenfeld"]
[60504011,605466,"Burgenlandstraße 6c",8280,"Fürstenfeld","Kindergarten Stadtgemeinde Fürstenfeld","Kindergarten Stadtgemeinde Fürstenfeld, Burgenlandstraße 6c, 8280, Fürstenfeld"]
[60505002,605196,"Großsteinbach 5",8265,"Großsteinbach","Kindergarten Röm.-kath. Pfarre Großsteinbach","Kindergarten Röm.-kath. Pfarre Großsteinbach, Großsteinbach 5, 8265, Großsteinbach"]
[60506001,605176,"Großwilfersdorf 68",8263,"Großwilfersdorf","Kindergarten Gemeinde Großwilfersdorf","Kindergarten Gemeinde Großwilfersdorf, Großwilfersdorf 68, 8263, Großwilfersdorf"]
[60507002,605136,"Hainersdorf 26",8264,"Großwilfersdorf","Kindergarten Gemeinde Großwilfersdorf","Kindergarten Gemeinde Großwilfersdorf, Hainersdorf 26, 8264, Großwilfersdorf"]
[60508001,605076,"Ilz 196",8262,"Ilz","Kindergarten Marktgemeinde Ilz","Kindergarten Marktgemeinde Ilz, Ilz 196, 8262, Ilz"]
[60509001,605066,"Schulstraße 207",8282,"Loipersdorf bei Fürstenfeld","Kindergarten Gemeinde Bad Loipersdorf","Kindergarten Gemeinde Bad Loipersdorf, Schulstraße 207, 8282, Loipersdorf bei Fürstenfeld"]
[60509002,605276,"Thermenstraße 152",8282,"Loipersdorf bei Fürstenfeld","Kindergarten RdK Steiermark GmbH","Kindergarten RdK Steiermark GmbH, Thermenstraße 152, 8282, Loipersdorf bei Fürstenfeld"]
[60510001,605146,"Nestelbach 74",8262,"Ilz","Kindergarten Marktgemeinde Ilz","Kindergarten Marktgemeinde Ilz, Nestelbach 74, 8262, Ilz"]
[60511001,605106,"Ottendorf 5",8312,"Ottendorf an der Rittschein","Kindergarten Gemeinde Ottendorf an der Rittschein","Kindergarten Gemeinde Ottendorf an der Rittschein, Ottendorf 5, 8312, Ottendorf an der Rittschein"]
[60512002,605096,"Söchau 132",8362,"Söchau","Kindergarten Stadtgemeinde Fürstenfeld","Kindergarten Stadtgemeinde Fürstenfeld, Söchau 132, 8362, Söchau"]
[60514001,605126,"Übersbach 2",8362,"Fürstenfeld","Kindergarten Stadtgemeinde Fürstenfeld","Kindergarten Stadtgemeinde Fürstenfeld, Übersbach 2, 8362, Fürstenfeld"]
[60601001,606140,"Attendorf 92",8151,"Hitzendorf","Kindergarten Marktgemeinde Hitzendorf","Kindergarten Marktgemeinde Hitzendorf, Attendorf 92, 8151, Hitzendorf"]
[60602001,606366,"Dorfstraße 3",8063,"Eggersdorf bei Graz","Kindergarten Marktgemeinde Eggersdorf bei Graz","Kindergarten Marktgemeinde Eggersdorf bei Graz, Dorfstraße 3, 8063, Eggersdorf bei Graz"]
[60603001,606256,"Kinogasse 6",8121,"Deutschfeistritz","Kindergarten Röm.-kath. Pfarre Deutschfeistritz","Kindergarten Röm.-kath. Pfarre Deutschfeistritz, Kinogasse 6, 8121, Deutschfeistritz"]
[60603004,606009,"Schlossweg 19",8114,"Deutschfeistritz","Kindergarten Verein SOS-Kinderdorf","Kindergarten Verein SOS-Kinderdorf, Schlossweg 19, 8114, Deutschfeistritz"]
[60604005,606786,"Am Sendergrund 16",8143,"Dobl-Zwaring","Kindergarten Marktgemeinde Dobl-Zwaring","Kindergarten Marktgemeinde Dobl-Zwaring, Am Sendergrund 16, 8143, Dobl-Zwaring"]
[60604006,606027,"Oberberg 7",8143,"Dobl-Zwaring","Kindergarten Verein \"Leben-Lernen-Wachsen\"","Kindergarten Verein \"Leben-Lernen-Wachsen\", Oberberg 7, 8143, Dobl-Zwaring"]
[60606002,606446,"Kirchplatz 4",8063,"Eggersdorf bei Graz","Kindergarten Marktgemeinde Eggersdorf bei Graz","Kindergarten Marktgemeinde Eggersdorf bei Graz, Kirchplatz 4, 8063, Eggersdorf bei Graz"]
[60607001,606506,"Rein 1",8103,"Gratwein-Straßengel","Kindergarten Marktgemeinde Gratwein-Straßengel","Kindergarten Marktgemeinde Gratwein-Straßengel, Rein 1, 8103, Gratwein-Straßengel"]
[60607003,606028,"Schirning 84a",8112,"Gratwein-Straßengel","Kindergarten Marktgemeinde Gratwein-Straßengel","Kindergarten Marktgemeinde Gratwein-Straßengel, Schirning 84a, 8112, Gratwein-Straßengel"]
[60608001,606026,"Feldkirchner Straße 225",8073,"Feldkirchen bei Graz","Kindergarten Röm.-kath. Pfarre Feldkirchen bei Graz","Kindergarten Röm.-kath. Pfarre Feldkirchen bei Graz, Feldkirchner Straße 225, 8073, Feldkirchen bei Graz"]
[60608003,606536,"Wagnitzstraße 2a",8073,"Feldkirchen bei Graz","Kindergarten Marktgemeinde Feldkirchen bei Graz","Kindergarten Marktgemeinde Feldkirchen bei Graz, Wagnitzstraße 2a, 8073, Feldkirchen bei Graz"]
[60608008,60608008,"Kulmistraße 7",8073,"Feldkirchen bei Graz","Kindergarten Marktgemeinde Feldkirchen bei Graz","Kindergarten Marktgemeinde Feldkirchen bei Graz, Kulmistraße 7, 8073, Feldkirchen bei Graz"]
[60609002,606426,"Schulgasse 9",8072,"Fernitz-Mellach","Kindergarten Röm.-kath. Pfarre Fernitz","Kindergarten Röm.-kath. Pfarre Fernitz, Schulgasse 9, 8072, Fernitz-Mellach"]
[60610002,606456,"Murweg 19",8130,"Frohnleiten","Kindergarten Röm.-kath. Pfarre Frohnleiten","Kindergarten Röm.-kath. Pfarre Frohnleiten, Murweg 19, 8130, Frohnleiten"]
[60611001,606616,"Schulstraße 2",8077,"Gössendorf","Kindergarten Marktgemeinde Gössendorf","Kindergarten Marktgemeinde Gössendorf, Schulstraße 2, 8077, Gössendorf"]
[60612002,606023,"Hauptstraße 57",8074,"Raaba-Grambach","Kindergarten Marktgemeinde Raaba-Grambach","Kindergarten Marktgemeinde Raaba-Grambach, Hauptstraße 57, 8074, Raaba-Grambach"]
[60613002,606116,"Kindergartenweg 1",8101,"Gratkorn","Kindergarten Marktgemeinde Gratkorn","Kindergarten Marktgemeinde Gratkorn, Kindergartenweg 1, 8101, Gratkorn"]
[60613004,606966,"Sportplatzgasse 1",8101,"Gratkorn","Kindergarten Verein \"Micky Mouse\"","Kindergarten Verein \"Micky Mouse\", Sportplatzgasse 1, 8101, Gratkorn"]
[60613006,606956,"Kirchweg 3",8101,"Gratkorn","Kindergarten Marktgemeinde Gratkorn","Kindergarten Marktgemeinde Gratkorn, Kirchweg 3, 8101, Gratkorn"]
[60613009,606068,"Kindergartenweg 2",8101,"Gratkorn","Kindergarten Marktgemeinde Gratkorn","Kindergarten Marktgemeinde Gratkorn, Kindergartenweg 2, 8101, Gratkorn"]
[60614002,606406,"Schulgasse 8",8112,"Gratwein-Straßengel","Kindergarten Marktgemeinde Gratwein-Straßengel","Kindergarten Marktgemeinde Gratwein-Straßengel, Schulgasse 8, 8112, Gratwein-Straßengel"]
[60617003,606003,"Schulgasse 1b",8075,"Hart bei Graz","Kindergarten Gemeinde Hart bei Graz","Kindergarten Gemeinde Hart bei Graz, Schulgasse 1b, 8075, Hart bei Graz"]
[60617007,606145,"Schulgasse 1a",8075,"Hart bei Graz","Kindergarten Gemeinde Hart bei Graz","Kindergarten Gemeinde Hart bei Graz, Schulgasse 1a, 8075, Hart bei Graz"]
[60617008,606191,"Pachern-Hauptstraße 44",8075,"Hart bei Graz","Kindergarten KWF Betriebsanlagenverwaltungs GmbH","Kindergarten KWF Betriebsanlagenverwaltungs GmbH, Pachern-Hauptstraße 44, 8075, Hart bei Graz"]
[60617011,60617011,"Pachern-Hauptstraße 117",8075,"Hart bei Graz","Kindergarten Gemeinde Hart bei Graz","Kindergarten Gemeinde Hart bei Graz, Pachern-Hauptstraße 117, 8075, Hart bei Graz"]
[60618002,606004,"Badstraße 5",8144,"Haselsdorf-Tobelbad","Kindergarten Gemeinde Haselsdorf-Tobelbad","Kindergarten Gemeinde Haselsdorf-Tobelbad, Badstraße 5, 8144, Haselsdorf-Tobelbad"]
[60619005,60619005,"Dorfstraße 9",8071,"Hausmannstätten","Kindergarten Marktgemeinde Hausmannstätten","Kindergarten Marktgemeinde Hausmannstätten, Dorfstraße 9, 8071, Hausmannstätten"]
[60620001,606386,"Hitzendorf 163",8151,"Hitzendorf","Kindergarten Marktgemeinde Hitzendorf","Kindergarten Marktgemeinde Hitzendorf, Hitzendorf 163, 8151, Hitzendorf"]
[60621001,606646,"Riesstraße 25",8063,"Eggersdorf bei Graz","Kindergarten Marktgemeinde Eggersdorf bei Graz","Kindergarten Marktgemeinde Eggersdorf bei Graz, Riesstraße 25, 8063, Eggersdorf bei Graz"]
[60622001,606226,"Schulstraße 5",8111,"Gratwein-Straßengel","Kindergarten Marktgemeinde Gratwein-Straßengel","Kindergarten Marktgemeinde Gratwein-Straßengel, Schulstraße 5, 8111, Gratwein-Straßengel"]
[60622007,606197,"Lindengasse 7",8111,"Gratwein-Straßengel","Kindergarten Gem. Wohn- u. Siedlungsgenossenschaft Ennstal reg. Gen.m.b.H. Liezen","Kindergarten Gem. Wohn- u. Siedlungsgenossenschaft Ennstal reg. Gen.m.b.H. Liezen, Lindengasse 7, 8111, Gratwein-Straßengel"]
[60622601,606175,"Lindengasse 7",8111,"Gratwein-Straßengel","Kinderhaus Gem. Wohn- u. Siedlungsgenossenschaft Ennstal reg. Gen.m.b.H. Liezen","Kinderhaus Gem. Wohn- u. Siedlungsgenossenschaft Ennstal reg. Gen.m.b.H. Liezen, Lindengasse 7, 8111, Gratwein-Straßengel"]
[60623001,606176,"Hönigtaler Straße 4",8010,"Kainbach bei Graz","Kindergarten Gemeinde Kainbach bei Graz","Kindergarten Gemeinde Kainbach bei Graz, Hönigtaler Straße 4, 8010, Kainbach bei Graz"]
[60624003,606976,"Johann-Pauker-Gasse 21",8401,"Kalsdorf bei Graz","Kindergarten Marktgemeinde Kalsdorf bei Graz","Kindergarten Marktgemeinde Kalsdorf bei Graz, Johann-Pauker-Gasse 21, 8401, Kalsdorf bei Graz"]
[60624006,606148,"Johann-Pauker-Gasse 21",8401,"Kalsdorf bei Graz","Kindergarten Marktgemeinde Kalsdorf bei Graz","Kindergarten Marktgemeinde Kalsdorf bei Graz, Johann-Pauker-Gasse 21, 8401, Kalsdorf bei Graz"]
[60624008,606218,"Koralmstraße 40",8401,"Kalsdorf bei Graz","Kindergarten Gem. Wohn- u. Siedlungsgenossenschaft Ennstal reg. Gen.m.b.H. Liezen","Kindergarten Gem. Wohn- u. Siedlungsgenossenschaft Ennstal reg. Gen.m.b.H. Liezen, Koralmstraße 40, 8401, Kalsdorf bei Graz"]
[60624011,60624011,"Dr.-Blumauer-Straße 7",8401,"Kalsdorf bei Graz","Kindergarten Marktgemeinde Kalsdorf bei Graz","Kindergarten Marktgemeinde Kalsdorf bei Graz, Dr.-Blumauer-Straße 7, 8401, Kalsdorf bei Graz"]
[60624013,60624013,"Dorfstraße 46",8401,"Kalsdorf bei Graz","Kindergarten MGI Vermietungen GmbH c/o Silver Living Bau- und Projektbetreuung GmbH","Kindergarten MGI Vermietungen GmbH c/o Silver Living Bau- und Projektbetreuung GmbH, Dorfstraße 46, 8401, Kalsdorf bei Graz"]
[60625004,606123,"Krumegg 115",8323,"Sankt Marein bei Graz","Kindergarten Gemeinde Krumegg Orts- und Infrastrukturentwicklungs KG","Kindergarten Gemeinde Krumegg Orts- und Infrastrukturentwicklungs KG, Krumegg 115, 8323, Sankt Marein bei Graz"]
[60626003,606012,"Gschwendter Straße 73",8062,"Kumberg","Kindergarten Marktgemeinde Kumberg","Kindergarten Marktgemeinde Kumberg, Gschwendter Straße 73, 8062, Kumberg"]
[60626004,606073,"Hauptstraße 23a",8062,"Kumberg","Kindergarten Marktgemeinde Kumberg","Kindergarten Marktgemeinde Kumberg, Hauptstraße 23a, 8062, Kumberg"]
[60628003,606596,"Kapellenstraße 6",8301,"Laßnitzhöhe","Kindergarten Marktgemeinde Laßnitzhöhe","Kindergarten Marktgemeinde Laßnitzhöhe, Kapellenstraße 6, 8301, Laßnitzhöhe"]
[60628004,606726,"Johann Koglerweg 20",8301,"Laßnitzhöhe","Kindergarten Verein \"Kleine Welt\"","Kindergarten Verein \"Kleine Welt\", Johann Koglerweg 20, 8301, Laßnitzhöhe"]
[60628007,60628007,"Hauptstraße 140",8301,"Laßnitzhöhe","Kindergarten Marktgemeinde Laßnitzhöhe","Kindergarten Marktgemeinde Laßnitzhöhe, Hauptstraße 140, 8301, Laßnitzhöhe"]
[60629001,606296,"Josef-Mihalits-Straße 10",8501,"Lieboch","Kindergarten Marktgemeinde Lieboch","Kindergarten Marktgemeinde Lieboch, Josef-Mihalits-Straße 10, 8501, Lieboch"]
[60629004,60629004,"Dorfstraße 9",8501,"Lieboch","Kindergarten Meiland Immobilien GmbH","Kindergarten Meiland Immobilien GmbH, Dorfstraße 9, 8501, Lieboch"]
[60629008,60629008,"Packer Straße 93",8501,"Lieboch","Kindergarten Marktgemeinde Lieboch","Kindergarten Marktgemeinde Lieboch, Packer Straße 93, 8501, Lieboch"]
[60630003,606151,"Dillachstraße 19",8072,"Fernitz-Mellach","Kindergarten Gemeinde Fernitz-Mellach","Kindergarten Gemeinde Fernitz-Mellach, Dillachstraße 19, 8072, Fernitz-Mellach"]
[60631002,606546,"Schulstraße 2",8302,"Nestelbach bei Graz","Kindergarten Gemeinde Nestelbach bei Graz","Kindergarten Gemeinde Nestelbach bei Graz, Schulstraße 2, 8302, Nestelbach bei Graz"]
[60632004,606103,"Brucker Straße 6",8120,"Peggau","Kindergarten Marktgemeinde Peggau","Kindergarten Marktgemeinde Peggau, Brucker Straße 6, 8120, Peggau"]
[60633002,606013,"Dorfstraße 22",8054,"Seiersberg-Pirka","Kindergarten Gemeinde Seiersberg-Pirka","Kindergarten Gemeinde Seiersberg-Pirka, Dorfstraße 22, 8054, Seiersberg-Pirka"]
[60634001,606656,"Prellerbergstraße 3",8063,"Eggersdorf bei Graz","Kindergarten Marktgemeinde Eggersdorf bei Graz","Kindergarten Marktgemeinde Eggersdorf bei Graz, Prellerbergstraße 3, 8063, Eggersdorf bei Graz"]
[60635006,606079,"Franz-Schedlbauer-Weg 45",8074,"Raaba-Grambach","Kindergarten Marktgemeinde Raaba-Grambach","Kindergarten Marktgemeinde Raaba-Grambach, Franz-Schedlbauer-Weg 45, 8074, Raaba-Grambach"]
[60636001,606038,"Röthelstein 20",8131,"Frohnleiten","Kindergarten Stadtgemeinde Frohnleiten","Kindergarten Stadtgemeinde Frohnleiten, Röthelstein 20, 8131, Frohnleiten"]
[60639003,60639003,"St. Bartholomä 204",8113,"Sankt Bartholomä","Kindergarten Gemeinde Sankt Bartholomä","Kindergarten Gemeinde Sankt Bartholomä, St. Bartholomä 204, 8113, Sankt Bartholomä"]
[60640001,606316,"Markt 101",8323,"Sankt Marein bei Graz","Kindergarten Marktgemeinde Sankt Marein bei Graz","Kindergarten Marktgemeinde Sankt Marein bei Graz, Markt 101, 8323, Sankt Marein bei Graz"]
[60641003,60641003,"St. Oswald 100",8113,"Sankt Oswald bei Plankenwarth","Kindergarten Gemeinde Sankt Oswald bei Plankenwarth","Kindergarten Gemeinde Sankt Oswald bei Plankenwarth, St. Oswald 100, 8113, Sankt Oswald bei Plankenwarth"]
[60642001,606146,"Schöcklstraße 5",8061,"Sankt Radegund bei Graz","Kindergarten Gemeinde Sankt Radegund bei Graz","Kindergarten Gemeinde Sankt Radegund bei Graz, Schöcklstraße 5, 8061, Sankt Radegund bei Graz"]
[60644006,606836,"Premstätter Straße 7",8054,"Seiersberg-Pirka","Kindergarten Gemeinde Seiersberg-Pirka","Kindergarten Gemeinde Seiersberg-Pirka, Premstätter Straße 7, 8054, Seiersberg-Pirka"]
[60644008,606051,"Heidenreichring 41",8054,"Seiersberg-Pirka","Kindergarten Gemeinde Seiersberg-Pirka","Kindergarten Gemeinde Seiersberg-Pirka, Heidenreichring 41, 8054, Seiersberg-Pirka"]
[60644010,606109,"Sandgrubenweg 15",8055,"Seiersberg-Pirka","Kindergarten Gemeinde Seiersberg-Pirka","Kindergarten Gemeinde Seiersberg-Pirka, Sandgrubenweg 15, 8055, Seiersberg-Pirka"]
[60645001,606476,"Rannachstraße 3",8102,"Semriach","Kindergarten Marktgemeinde Semriach","Kindergarten Marktgemeinde Semriach, Rannachstraße 3, 8102, Semriach"]
[60645003,606846,"Schulstraße 26",8102,"Semriach","Kindergarten Marktgemeinde Semriach","Kindergarten Marktgemeinde Semriach, Schulstraße 26, 8102, Semriach"]
[60646002,606486,"Am Ursprung 5",8046,"Stattegg","Kindergarten Gemeinde Stattegg","Kindergarten Gemeinde Stattegg, Am Ursprung 5, 8046, Stattegg"]
[60646003,606001,"Am Ursprung 1",8046,"Stattegg","Kindergarten Gemeinde Stattegg","Kindergarten Gemeinde Stattegg, Am Ursprung 1, 8046, Stattegg"]
[60647001,606496,"Stiwoll 148",8113,"Stiwoll","Kindergarten Gemeinde Stiwoll","Kindergarten Gemeinde Stiwoll, Stiwoll 148, 8113, Stiwoll"]
[60648007,60648007,"Franz-Purkt-Weg 6",8051,"Thal","Kindergarten Marktgemeinde Thal","Kindergarten Marktgemeinde Thal, Franz-Purkt-Weg 6, 8051, Thal"]
[60651004,606132,"Gleinalmstraße 120a",8124,"Übelbach","Kindergarten Marktgemeinde Übelbach, Orts- u. Infrastrukturentwicklungs KG","Kindergarten Marktgemeinde Übelbach, Orts- u. Infrastrukturentwicklungs KG, Gleinalmstraße 120a, 8124, Übelbach"]
[60652001,606216,"Kirchweg 8",8141,"Premstätten","Kindergarten Marktgemeinde Premstätten","Kindergarten Marktgemeinde Premstätten, Kirchweg 8, 8141, Premstätten"]
[60653001,606856,"Sportstraße 2",8076,"Vasoldsberg","Kindergarten Verein \"Wiki Vasoldsberg\"","Kindergarten Verein \"Wiki Vasoldsberg\", Sportstraße 2, 8076, Vasoldsberg"]
[60653003,606113,"Sportstraße 15",8076,"Vasoldsberg","Kindergarten Verein \"Wiki Vasoldsberg\"","Kindergarten Verein \"Wiki Vasoldsberg\", Sportstraße 15, 8076, Vasoldsberg"]
[60654001,606306,"Niederschöcklstraße 44",8044,"Weinitzen","Kindergarten Gemeinde Weinitzen","Kindergarten Gemeinde Weinitzen, Niederschöcklstraße 44, 8044, Weinitzen"]
[60655002,606356,"Erzherzog-Johann-Straße 7",8402,"Werndorf","Kindergarten Gemeinde Werndorf","Kindergarten Gemeinde Werndorf, Erzherzog-Johann-Straße 7, 8402, Werndorf"]
[60655004,60655004,"Kindergartenweg 1-3",8402,"Werndorf","Kindergarten Gemeinde Werndorf","Kindergarten Gemeinde Werndorf, Kindergartenweg 1-3, 8402, Werndorf"]
[60656002,606416,"Kalvarienbergstraße 12",8142,"Wundschuh","Kindergarten Röm.-kath. Pfarre Wundschuh","Kindergarten Röm.-kath. Pfarre Wundschuh, Kalvarienbergstraße 12, 8142, Wundschuh"]
[60657001,606326,"Laa 35",8141,"Premstätten","Kindergarten Marktgemeinde Premstätten","Kindergarten Marktgemeinde Premstätten, Laa 35, 8141, Premstätten"]
[60658001,606346,"Zwaring 65",8142,"Dobl-Zwaring","Kindergarten Marktgemeinde Dobl-Zwaring","Kindergarten Marktgemeinde Dobl-Zwaring, Zwaring 65, 8142, Dobl-Zwaring"]
[60660001,60660001,"Oberberg 1",8143,"Dobl-Zwaring","Kindergarten Verein \"Leben-Lernen-Wachsen\"","Kindergarten Verein \"Leben-Lernen-Wachsen\", Oberberg 1, 8143, Dobl-Zwaring"]
[60663004,60663004,"Schulweg 3",8130,"Frohnleiten","Kindergarten Stadtgemeinde Frohnleiten","Kindergarten Stadtgemeinde Frohnleiten, Schulweg 3, 8130, Frohnleiten"]
[60669001,null,"Rauscherstraße 3",8054,"Seiersberg-Pirka","Kindergarten Kohlbacher GmbH","Kindergarten Kohlbacher GmbH, Rauscherstraße 3, 8054, Seiersberg-Pirka"]
[60669003,60669003,"Spenglergasse 6",8073,"Seiersberg-Pirka","Kindergarten Gemeinde Seiersberg-Pirka","Kindergarten Gemeinde Seiersberg-Pirka, Spenglergasse 6, 8073, Seiersberg-Pirka"]
[60670002,60670002,"August-Plattl-Weg 20",8141,"Premstätten","Kindergarten Marktgemeinde Premstätten","Kindergarten Marktgemeinde Premstätten, August-Plattl-Weg 20, 8141, Premstätten"]
[60702002,607696,"Unterbuch 24",8274,"Buch-St. Magdalena","Kindergarten Gemeinde Buch-St. Magdalena","Kindergarten Gemeinde Buch-St. Magdalena, Unterbuch 24, 8274, Buch-St. Magdalena"]
[60705002,607366,"Ebersdorf 161",8273,"Ebersdorf","Kindergarten Gemeinde Ebersdorf","Kindergarten Gemeinde Ebersdorf, Ebersdorf 161, 8273, Ebersdorf"]
[60706003,607416,"Ehrenschachen 67",8240,"Friedberg","Kindergarten Stadtgemeinde Friedberg","Kindergarten Stadtgemeinde Friedberg, Ehrenschachen 67, 8240, Friedberg"]
[60706007,607966,"Grazer Straße 6",8240,"Friedberg","Kindergarten Stadtgemeinde Friedberg","Kindergarten Stadtgemeinde Friedberg, Grazer Straße 6, 8240, Friedberg"]
[60706009,607976,"Grazer Straße 6",8240,"Friedberg","Kindergarten Stadtgemeinde Friedberg","Kindergarten Stadtgemeinde Friedberg, Grazer Straße 6, 8240, Friedberg"]
[60707003,607636,"Schulstraße 138",8232,"Grafendorf bei Hartberg","Kindergarten Marktgemeinde Grafendorf bei Hartberg","Kindergarten Marktgemeinde Grafendorf bei Hartberg, Schulstraße 138, 8232, Grafendorf bei Hartberg"]
[60709002,607746,"Auffen 191",8272,"Hartl","Kindergarten Gemeinde Hartl","Kindergarten Gemeinde Hartl, Auffen 191, 8272, Hartl"]
[60710001,607036,"Angerstraße 10",8230,"Hartberg","Kindergarten Stadtgemeinde  Hartberg","Kindergarten Stadtgemeinde  Hartberg, Angerstraße 10, 8230, Hartberg"]
[60710005,607296,"Edelseegasse 13",8230,"Hartberg","Kindergarten Bildungsanstalt für Elementarpädagogik Hartberg","Kindergarten Bildungsanstalt für Elementarpädagogik Hartberg, Edelseegasse 13, 8230, Hartberg"]
[60710009,607496,"Franz-Schmidt-Gasse 7",8230,"Hartberg","Kindergarten Stadtgemeinde  Hartberg","Kindergarten Stadtgemeinde  Hartberg, Franz-Schmidt-Gasse 7, 8230, Hartberg"]
[60710014,607986,"Am ÖKOPARK 23",8230,"Hartberg","Kindergarten Oekopark Errichtungs GmbH","Kindergarten Oekopark Errichtungs GmbH, Am ÖKOPARK 23, 8230, Hartberg"]
[60710016,607006,"Josef-Hallamayr-Straße 19",8230,"Hartberg","Kindergarten Stadtgemeinde  Hartberg","Kindergarten Stadtgemeinde  Hartberg, Josef-Hallamayr-Straße 19, 8230, Hartberg"]
[60711001,607136,"Mitterdombach 26",8230,"Hartberg Umgebung","Kindergarten Gemeinde Hartberg Umgebung","Kindergarten Gemeinde Hartberg Umgebung, Mitterdombach 26, 8230, Hartberg Umgebung"]
[60711002,607406,"Mitterdombach 26",8230,"Hartberg Umgebung","Kindergarten Gemeinde Hartberg Umgebung","Kindergarten Gemeinde Hartberg Umgebung, Mitterdombach 26, 8230, Hartberg Umgebung"]
[60715001,607276,"Kaindorf 240",8224,"Kaindorf","Kindergarten Marktgemeinde Kaindorf","Kindergarten Marktgemeinde Kaindorf, Kaindorf 240, 8224, Kaindorf"]
[60716001,607236,"Eichberg 34",8234,"Rohrbach an der Lafnitz","Kindergarten Gemeinde Rohrbach an der Lafnitz","Kindergarten Gemeinde Rohrbach an der Lafnitz, Eichberg 34, 8234, Rohrbach an der Lafnitz"]
[60720002,607306,"Reihenhausweg 1",8292,"Neudau","Kindergarten Marktgemeinde Neudau","Kindergarten Marktgemeinde Neudau, Reihenhausweg 1, 8292, Neudau"]
[60722001,607076,"Remigigasse 316",8225,"Pöllau","Kindergarten Röm.-kath. Pfarre Pöllau","Kindergarten Röm.-kath. Pfarre Pöllau, Remigigasse 316, 8225, Pöllau"]
[60723003,607506,"Oberneuberg 110",8225,"Pöllauberg","Kindergarten Gemeinde Pöllauberg","Kindergarten Gemeinde Pöllauberg, Oberneuberg 110, 8225, Pöllauberg"]
[60727001,607626,"Unterrohr 315",8294,"Rohr bei Hartberg","Kindergarten Gemeinde Rohr bei Hartberg","Kindergarten Gemeinde Rohr bei Hartberg, Unterrohr 315, 8294, Rohr bei Hartberg"]
[60728002,607086,"Gemeindegasse 5",8234,"Rohrbach an der Lafnitz","Kindergarten Gemeinde Rohrbach an der Lafnitz","Kindergarten Gemeinde Rohrbach an der Lafnitz, Gemeindegasse 5, 8234, Rohrbach an der Lafnitz"]
[60729001,607556,"Obersaifen 222",8225,"Pöllau","Kindergarten Marktgemeinde Pöllau","Kindergarten Marktgemeinde Pöllau, Obersaifen 222, 8225, Pöllau"]
[60730002,607456,"Kirchenviertel 2",8255,"Sankt Jakob im Walde","Kindergarten Gemeinde Sankt Jakob im Walde","Kindergarten Gemeinde Sankt Jakob im Walde, Kirchenviertel 2, 8255, Sankt Jakob im Walde"]
[60732001,607206,"St. Johann in der Haide 142",8295,"Sankt Johann in der Haide","Kindergarten Gemeinde Sankt Johann in der Haide","Kindergarten Gemeinde Sankt Johann in der Haide, St. Johann in der Haide 142, 8295, Sankt Johann in der Haide"]
[60733001,607336,"Lorenzen 76",8242,"Sankt Lorenzen am Wechsel","Kindergarten Orts- und Infrastrukturentwicklungs KG Gem. St. Lorenzen am Wechsel","Kindergarten Orts- und Infrastrukturentwicklungs KG Gem. St. Lorenzen am Wechsel, Lorenzen 76, 8242, Sankt Lorenzen am Wechsel"]
[60734001,607466,"St. Magdalena 44",8274,"Buch-St. Magdalena","Kindergarten Gemeinde Buch-St. Magdalena","Kindergarten Gemeinde Buch-St. Magdalena, St. Magdalena 44, 8274, Buch-St. Magdalena"]
[60736002,607956,"Kindergartenweg 1",8244,"Schäffern","Kindergarten Gemeinde Schäffern","Kindergarten Gemeinde Schäffern, Kindergartenweg 1, 8244, Schäffern"]
[60738002,607546,"Schönau 54",8225,"Pöllau","Kindergarten Marktgemeinde Pöllau","Kindergarten Marktgemeinde Pöllau, Schönau 54, 8225, Pöllau"]
[60739002,607596,"Sebersdorf 276",8272,"Bad Waltersdorf","Kindergarten Marktgemeinde Bad Waltersdorf","Kindergarten Marktgemeinde Bad Waltersdorf, Sebersdorf 276, 8272, Bad Waltersdorf"]
[60741001,607436,"Prätis 70",8225,"Pöllau","Kindergarten Marktgemeinde Pöllau","Kindergarten Marktgemeinde Pöllau, Prätis 70, 8225, Pöllau"]
[60743003,607286,"Stubenberg 178",8223,"Stubenberg","Kindergarten Gemeinde Stubenberg","Kindergarten Gemeinde Stubenberg, Stubenberg 178, 8223, Stubenberg"]
[60745004,607326,"Gerichtsgasse 4",8250,"Vorau","Kindergarten Marktgemeinde Vorau","Kindergarten Marktgemeinde Vorau, Gerichtsgasse 4, 8250, Vorau"]
[60747001,607386,"Arzberg 39",8253,"Waldbach-Mönichwald","Kindergarten Gemeinde Waldbach-Mönichwald","Kindergarten Gemeinde Waldbach-Mönichwald, Arzberg 39, 8253, Waldbach-Mönichwald"]
[60748003,607686,"Bad Waltersdorf 322",8271,"Bad Waltersdorf","Kindergarten Marktgemeinde Bad Waltersdorf","Kindergarten Marktgemeinde Bad Waltersdorf, Bad Waltersdorf 322, 8271, Bad Waltersdorf"]
[60749004,607396,"Pittermann 165",8254,"Wenigzell","Kindergarten Gemeinde Wenigzell","Kindergarten Gemeinde Wenigzell, Pittermann 165, 8254, Wenigzell"]
[60803002,608796,"Eppenstein 3",8741,"Weißkirchen in Steiermark","Kindergarten Marktgemeinde Weißkirchen in Steiermark","Kindergarten Marktgemeinde Weißkirchen in Steiermark, Eppenstein 3, 8741, Weißkirchen in Steiermark"]
[60804006,608336,"Pölssteg 8",8753,"Fohnsdorf","Kindergarten Gemeinde Fohnsdorf","Kindergarten Gemeinde Fohnsdorf, Pölssteg 8, 8753, Fohnsdorf"]
[60804007,608346,"Grabenstraße 17",8753,"Fohnsdorf","Kindergarten Gemeinde Fohnsdorf","Kindergarten Gemeinde Fohnsdorf, Grabenstraße 17, 8753, Fohnsdorf"]
[60804008,608376,"Bahndammgasse 8a",8753,"Fohnsdorf","Kindergarten Gemeinde Fohnsdorf","Kindergarten Gemeinde Fohnsdorf, Bahndammgasse 8a, 8753, Fohnsdorf"]
[60805001,608136,"Dorfstraße 1",8785,"Hohentauern","Kindergarten Gemeinde Hohentauern","Kindergarten Gemeinde Hohentauern, Dorfstraße 1, 8785, Hohentauern"]
[60806003,608096,"Friedhofgasse 16",8750,"Judenburg","Kindergarten Röm.-kath. Pfarre Judenburg","Kindergarten Röm.-kath. Pfarre Judenburg, Friedhofgasse 16, 8750, Judenburg"]
[60806004,608076,"Jägersteig 11",8750,"Judenburg","Kindergarten Stadtgemeinde  Judenburg","Kindergarten Stadtgemeinde  Judenburg, Jägersteig 11, 8750, Judenburg"]
[60806006,608216,"Wasendorferweg 14",8750,"Judenburg","Kindergarten Stadtgemeinde  Judenburg","Kindergarten Stadtgemeinde  Judenburg, Wasendorferweg 14, 8750, Judenburg"]
[60806009,608286,"Stadion-Straße 8",8750,"Judenburg","Kindergarten Bildungsanstalt für Elementarpädagogik Judenburg","Kindergarten Bildungsanstalt für Elementarpädagogik Judenburg, Stadion-Straße 8, 8750, Judenburg"]
[60806011,608306,"Spielgasse 5",8750,"Judenburg","Kindergarten Stadtgemeinde  Judenburg","Kindergarten Stadtgemeinde  Judenburg, Spielgasse 5, 8750, Judenburg"]
[60806020,608596,"Capistrangasse 10",8750,"Judenburg","Kindergarten Verein \"Capistran\"","Kindergarten Verein \"Capistran\", Capistrangasse 10, 8750, Judenburg"]
[60809001,608466,"Am Teichgrund 9",8740,"Weißkirchen in Steiermark","Kindergarten Marktgemeinde Weißkirchen in Steiermark","Kindergarten Marktgemeinde Weißkirchen in Steiermark, Am Teichgrund 9, 8740, Weißkirchen in Steiermark"]
[60813001,608116,"Bergwerkgasse 2",8762,"Pölstal","Kindergarten Röm.-kath. Pfarre Oberzeiring","Kindergarten Röm.-kath. Pfarre Oberzeiring, Bergwerkgasse 2, 8762, Pölstal"]
[60814002,608236,"Roseggerstraße 5",8761,"Pöls-Oberkurzheim","Kindergarten Marktgemeinde Pöls-Oberkurzheim","Kindergarten Marktgemeinde Pöls-Oberkurzheim, Roseggerstraße 5, 8761, Pöls-Oberkurzheim"]
[60814004,608476,"Schulgasse 11",8761,"Pöls-Oberkurzheim","Kindergarten Marktgemeinde Pöls-Oberkurzheim","Kindergarten Marktgemeinde Pöls-Oberkurzheim, Schulgasse 11, 8761, Pöls-Oberkurzheim"]
[60815002,608526,"Wiesenweg 10a",8764,"Pusterwald","Kindergarten Gemeinde Pusterwald","Kindergarten Gemeinde Pusterwald, Wiesenweg 10a, 8764, Pusterwald"]
[60818001,608416,"Sankt Georgen ob Judenburg 12",8756,"Sankt Georgen ob Judenburg","Kindergarten Gemeinde Sankt Georgen ob Judenburg","Kindergarten Gemeinde Sankt Georgen ob Judenburg, Sankt Georgen ob Judenburg 12, 8756, Sankt Georgen ob Judenburg"]
[60820004,608326,"Im Dorf 2",8763,"Pölstal","Kindergarten Marktgemeinde Pölstal","Kindergarten Marktgemeinde Pölstal, Im Dorf 2, 8763, Pölstal"]
[60820005,608486,"St. Oswald 2",8763,"Pölstal","Kindergarten Marktgemeinde Pölstal","Kindergarten Marktgemeinde Pölstal, St. Oswald 2, 8763, Pölstal"]
[60821002,608296,"Hauptstraße 30",8755,"Sankt Peter ob Judenburg","Kindergarten Röm.-kath. Pfarre St. Peter ob Judenburg c/o Pfarre Judenburg St.Nikolaus","Kindergarten Röm.-kath. Pfarre St. Peter ob Judenburg c/o Pfarre Judenburg St.Nikolaus, Hauptstraße 30, 8755, Sankt Peter ob Judenburg"]
[60822002,608676,"Schulstraße 10",8800,"Unzmarkt-Frauenburg","Kindergarten Marktgemeinde Unzmarkt-Frauenburg","Kindergarten Marktgemeinde Unzmarkt-Frauenburg, Schulstraße 10, 8800, Unzmarkt-Frauenburg"]
[60823001,608166,"Zeltwegerstraße 5",8741,"Weißkirchen in Steiermark","Kindergarten Röm.-kath. Pfarre Weißkirchen","Kindergarten Röm.-kath. Pfarre Weißkirchen, Zeltwegerstraße 5, 8741, Weißkirchen in Steiermark"]
[60824001,608176,"Hauptstraße 80",8740,"Zeltweg","Kindergarten Stadtgemeinde Zeltweg","Kindergarten Stadtgemeinde Zeltweg, Hauptstraße 80, 8740, Zeltweg"]
[60824002,608186,"Schulgasse 16",8740,"Zeltweg","Kindergarten Stadtgemeinde Zeltweg","Kindergarten Stadtgemeinde Zeltweg, Schulgasse 16, 8740, Zeltweg"]
[60824004,608386,"Hauptstraße 184",8740,"Zeltweg","Kindergarten Stadtgemeinde Zeltweg","Kindergarten Stadtgemeinde Zeltweg, Hauptstraße 184, 8740, Zeltweg"]
[60901001,609116,"Josef-Kurz-Gasse 12",8720,"Knittelfeld","Kindergarten Stadtgemeinde Knittelfeld","Kindergarten Stadtgemeinde Knittelfeld, Josef-Kurz-Gasse 12, 8720, Knittelfeld"]
[60902002,609206,"Dorfstraße 36",8733,"Sankt Marein-Feistritz","Kindergarten Gemeinde Sankt Marein-Feistritz","Kindergarten Gemeinde Sankt Marein-Feistritz, Dorfstraße 36, 8733, Sankt Marein-Feistritz"]
[60902601,609446,"Dorfstraße 36",8733,"Sankt Marein-Feistritz","Kinderhaus Gemeinde Sankt Marein-Feistritz","Kinderhaus Gemeinde Sankt Marein-Feistritz, Dorfstraße 36, 8733, Sankt Marein-Feistritz"]
[60904002,609216,"Ingering II 14a",8731,"Gaal","Kindergarten Gemeinde Gaal","Kindergarten Gemeinde Gaal, Ingering II 14a, 8731, Gaal"]
[60905001,609126,"Murweg 3",8734,"Lobmingtal","Kindergarten Röm.-kath. Pfarre Großlobming","Kindergarten Röm.-kath. Pfarre Großlobming, Murweg 3, 8734, Lobmingtal"]
[60907001,609026,"Landschacher Gasse 17",8720,"Knittelfeld","Kindergarten Stadtgemeinde Knittelfeld","Kindergarten Stadtgemeinde Knittelfeld, Landschacher Gasse 17, 8720, Knittelfeld"]
[60907002,609036,"Lindenallee 24",8720,"Knittelfeld","Kindergarten Stadtgemeinde Knittelfeld","Kindergarten Stadtgemeinde Knittelfeld, Lindenallee 24, 8720, Knittelfeld"]
[60907003,609046,"Parkstraße 33",8720,"Knittelfeld","Kindergarten Stadtgemeinde Knittelfeld","Kindergarten Stadtgemeinde Knittelfeld, Parkstraße 33, 8720, Knittelfeld"]
[60907004,609056,"Franz-Leitner-Straße 36",8720,"Knittelfeld","Kindergarten Röm.-kath. Pfarre Knittelfeld","Kindergarten Röm.-kath. Pfarre Knittelfeld, Franz-Leitner-Straße 36, 8720, Knittelfeld"]
[60907005,609136,"Kärntner Straße 10",8720,"Knittelfeld","Kindergarten Stadtgemeinde Knittelfeld","Kindergarten Stadtgemeinde Knittelfeld, Kärntner Straße 10, 8720, Knittelfeld"]
[60907006,609196,"Frühlingsgasse 7",8720,"Knittelfeld","Kindergarten Stadtgemeinde Knittelfeld","Kindergarten Stadtgemeinde Knittelfeld, Frühlingsgasse 7, 8720, Knittelfeld"]
[60907016,609476,"Parkstraße 33",8720,"Knittelfeld","Kindergarten Stadtgemeinde Knittelfeld","Kindergarten Stadtgemeinde Knittelfeld, Parkstraße 33, 8720, Knittelfeld"]
[60908002,609276,"Marktstraße 6",8723,"Kobenz","Kindergarten Marktgemeinde Kobenz","Kindergarten Marktgemeinde Kobenz, Marktstraße 6, 8723, Kobenz"]
[60910002,609236,"St. Lorenzen 101",8715,"Sankt Margarethen bei Knittelfeld","Kindergarten Gemeinde Sankt Margarethen bei Knittelfeld","Kindergarten Gemeinde Sankt Margarethen bei Knittelfeld, St. Lorenzen 101, 8715, Sankt Margarethen bei Knittelfeld"]
[60911002,609146,"Hauptstraße 14",8733,"Sankt Marein-Feistritz","Kindergarten Gemeinde Sankt Marein-Feistritz","Kindergarten Gemeinde Sankt Marein-Feistritz, Hauptstraße 14, 8733, Sankt Marein-Feistritz"]
[60912001,609066,"Dorfstraße 13",8720,"Sankt Margarethen bei Knittelfeld","Kindergarten Gemeinde Sankt Margarethen bei Knittelfeld","Kindergarten Gemeinde Sankt Margarethen bei Knittelfeld, Dorfstraße 13, 8720, Sankt Margarethen bei Knittelfeld"]
[60914001,609166,"Kirchplatz 1",8724,"Spielberg","Kindergarten Röm.-kath. Pfarre Lind-Maßweg","Kindergarten Röm.-kath. Pfarre Lind-Maßweg, Kirchplatz 1, 8724, Spielberg"]
[60914002,609156,"Volksschulstraße 32",8724,"Spielberg","Kindergarten Stadtgemeinde Spielberg","Kindergarten Stadtgemeinde Spielberg, Volksschulstraße 32, 8724, Spielberg"]
[60914004,609266,"An der Ingering 70",8724,"Spielberg","Kindergarten Stadtgemeinde Spielberg","Kindergarten Stadtgemeinde Spielberg, An der Ingering 70, 8724, Spielberg"]
[61001003,61001003,"Allerheiligen bei Wildon 170",8412,"Allerheiligen bei Wildon","Kindergarten Gemeinde Allerheiligen bei Wildon","Kindergarten Gemeinde Allerheiligen bei Wildon, Allerheiligen bei Wildon 170, 8412, Allerheiligen bei Wildon"]
[61002002,610016,"Schulgasse 220",8454,"Arnfels","Kindergarten Marktgemeinde Arnfels","Kindergarten Marktgemeinde Arnfels, Schulgasse 220, 8454, Arnfels"]
[61003001,610636,"Ewitsch 110",8461,"Ehrenhausen an der Weinstraße","Kindergarten Marktgemeinde Ehrenhausen an der Weinstraße","Kindergarten Marktgemeinde Ehrenhausen an der Weinstraße, Ewitsch 110, 8461, Ehrenhausen an der Weinstraße"]
[61005002,610026,"Fiebingerweg 235",8461,"Ehrenhausen an der Weinstraße","Kindergarten Marktgemeinde Ehrenhausen an der Weinstraße","Kindergarten Marktgemeinde Ehrenhausen an der Weinstraße, Fiebingerweg 235, 8461, Ehrenhausen an der Weinstraße"]
[61007001,610576,"Empersdorf 1a",8081,"Empersdorf","Kindergarten Gemeinde Empersdorf","Kindergarten Gemeinde Empersdorf, Empersdorf 1a, 8081, Empersdorf"]
[61008001,610296,"Gabersdorf 101",8424,"Gabersdorf","Kindergarten Gemeinde Gabersdorf","Kindergarten Gemeinde Gabersdorf, Gabersdorf 101, 8424, Gabersdorf"]
[61008002,610356,"Gabersdorf 101",8424,"Gabersdorf","Kindergarten Gemeinde Gabersdorf","Kindergarten Gemeinde Gabersdorf, Gabersdorf 101, 8424, Gabersdorf"]
[61009002,610236,"Erzherzog-Johann-Weg 250",8462,"Gamlitz","Kindergarten Marktgemeinde Gamlitz","Kindergarten Marktgemeinde Gamlitz, Erzherzog-Johann-Weg 250, 8462, Gamlitz"]
[61010001,610366,"Langegg 5",8463,"Leutschach an der Weinstraße","Kindergarten Marktgemeinde Leutschach an der Weinstraße","Kindergarten Marktgemeinde Leutschach an der Weinstraße, Langegg 5, 8463, Leutschach an der Weinstraße"]
[61011001,610316,"Gleinstätten 1",8443,"Gleinstätten","Kindergarten Marktgemeinde Gleinstätten","Kindergarten Marktgemeinde Gleinstätten, Gleinstätten 1, 8443, Gleinstätten"]
[61011003,610786,"Gleinstätten 3",8443,"Gleinstätten","Kindergarten Marktgemeinde Gleinstätten","Kindergarten Marktgemeinde Gleinstätten, Gleinstätten 3, 8443, Gleinstätten"]
[61012002,610846,"Sternenring 1",8431,"Gralla","Kindergarten Marktgemeinde Gralla","Kindergarten Marktgemeinde Gralla, Sternenring 1, 8431, Gralla"]
[61012007,610095,"Schulstraße 19",8431,"Gralla","Kindergarten Marktgemeinde Gralla","Kindergarten Marktgemeinde Gralla, Schulstraße 19, 8431, Gralla"]
[61013003,610101,"Großklein 121",8452,"Großklein","Kindergarten Marktgemeinde Großklein","Kindergarten Marktgemeinde Großklein, Großklein 121, 8452, Großklein"]
[61015001,610166,"Marktplatz 9",8081,"Heiligenkreuz am Waasen","Kindergarten Röm.-kath. Pfarre Heiligenkreuz/Waasen","Kindergarten Röm.-kath. Pfarre Heiligenkreuz/Waasen, Marktplatz 9, 8081, Heiligenkreuz am Waasen"]
[61016003,610806,"Am Schutzengelberg 11",8451,"Heimschuh","Kindergarten Gemeinde Heimschuh","Kindergarten Gemeinde Heimschuh, Am Schutzengelberg 11, 8451, Heimschuh"]
[61017002,610626,"Hengsberg 10",8411,"Hengsberg","Kindergarten Gemeinde Hengsberg","Kindergarten Gemeinde Hengsberg, Hengsberg 10, 8411, Hengsberg"]
[61018001,610276,"Kindergartenstraße 1",8430,"Leibnitz","Kindergarten Stadtgemeinde  Leibnitz","Kindergarten Stadtgemeinde  Leibnitz, Kindergartenstraße 1, 8430, Leibnitz"]
[61019001,610226,"Steinriegel 67",8442,"Kitzeck im Sausal","Kindergarten Gemeinde Kitzeck im Sausal","Kindergarten Gemeinde Kitzeck im Sausal, Steinriegel 67, 8442, Kitzeck im Sausal"]
[61020001,610466,"Lang 43",8403,"Lang","Kindergarten Gemeinde Lang","Kindergarten Gemeinde Lang, Lang 43, 8403, Lang"]
[61021001,610066,"Kindergartenplatz 1",8403,"Lebring-Sankt Margarethen","Kindergarten Marktgemeinde Lebring-Sankt Margarethen","Kindergarten Marktgemeinde Lebring-Sankt Margarethen, Kindergartenplatz 1, 8403, Lebring-Sankt Margarethen"]
[61021005,61021005,"Grazerstraße 21",8403,"Lebring-Sankt Margarethen","Kindergarten Marktgemeinde Lebring-Sankt Margarethen","Kindergarten Marktgemeinde Lebring-Sankt Margarethen, Grazerstraße 21, 8403, Lebring-Sankt Margarethen"]
[61022001,610036,"Dr.Leo Klein-Gasse 1",8430,"Leibnitz","Kindergarten Stadtgemeinde  Leibnitz","Kindergarten Stadtgemeinde  Leibnitz, Dr.Leo Klein-Gasse 1, 8430, Leibnitz"]
[61022002,610246,"Wasserwerkstraße 29",8430,"Leibnitz","Kindergarten Stadtgemeinde  Leibnitz","Kindergarten Stadtgemeinde  Leibnitz, Wasserwerkstraße 29, 8430, Leibnitz"]
[61022003,610046,"Wasserwerkstraße 29",8430,"Leibnitz","Kindergarten Stadtgemeinde  Leibnitz","Kindergarten Stadtgemeinde  Leibnitz, Wasserwerkstraße 29, 8430, Leibnitz"]
[61022008,610706,"Grazergasse 48",8430,"Leibnitz","Kindergarten Verein \"Kinderbetreuungsgruppe Kiebitz\"","Kindergarten Verein \"Kinderbetreuungsgruppe Kiebitz\", Grazergasse 48, 8430, Leibnitz"]
[61022011,610005,"Klostergasse 2",8430,"Leibnitz","Kindergarten Verein \"Piccolo\"","Kindergarten Verein \"Piccolo\", Klostergasse 2, 8430, Leibnitz"]
[61023002,610416,"Kirchsteig 3",8463,"Leutschach an der Weinstraße","Kindergarten Röm.-kath. Pfarre Leutschach","Kindergarten Röm.-kath. Pfarre Leutschach, Kirchsteig 3, 8463, Leutschach an der Weinstraße"]
[61023003,610012,"Arnfelser Straße 25",8463,"Leutschach an der Weinstraße","Kindergarten Verein \"Lachtraube\"","Kindergarten Verein \"Lachtraube\", Arnfelser Straße 25, 8463, Leutschach an der Weinstraße"]
[61024002,610346,"Oberhaag 201",8455,"Oberhaag","Kindergarten Gemeinde Oberhaag","Kindergarten Gemeinde Oberhaag, Oberhaag 201, 8455, Oberhaag"]
[61025002,610546,"Sportplatzweg 2",8472,"Straß in Steiermark","Kindergarten Marktgemeinde Straß in Steiermark","Kindergarten Marktgemeinde Straß in Steiermark, Sportplatzweg 2, 8472, Straß in Steiermark"]
[61026003,610556,"Pistorf 151",8443,"Gleinstätten","Kindergarten Marktgemeinde Gleinstätten","Kindergarten Marktgemeinde Gleinstätten, Pistorf 151, 8443, Gleinstätten"]
[61027003,61027003,"Gundersdorf 22",8413,"Ragnitz","Kindergarten Gemeinde Ragnitz","Kindergarten Gemeinde Ragnitz, Gundersdorf 22, 8413, Ragnitz"]
[61028003,610074,"Ratsch an der Weinstraße 138",8461,"Ehrenhausen an der Weinstraße","Kindergarten Marktgemeinde Ehrenhausen an der Weinstraße","Kindergarten Marktgemeinde Ehrenhausen an der Weinstraße, Ratsch an der Weinstraße 138, 8461, Ehrenhausen an der Weinstraße"]
[61030001,610216,"Rettenberg 100",8444,"Sankt Andrä-Höch","Kindergarten Gemeinde Sankt Andrä-Höch","Kindergarten Gemeinde Sankt Andrä-Höch, Rettenberg 100, 8444, Sankt Andrä-Höch"]
[61032008,61032008,"St. Johann im Saggautal 101",8453,"Sankt Johann im Saggautal","Kindergarten Gemeinde Sankt Johann im Saggautal","Kindergarten Gemeinde Sankt Johann im Saggautal, St. Johann im Saggautal 101, 8453, Sankt Johann im Saggautal"]
[61032010,61032010,"St. Johann im Saggautal 101",8453,"Sankt Johann im Saggautal","Kindergarten Gemeinde Sankt Johann im Saggautal","Kindergarten Gemeinde Sankt Johann im Saggautal, St. Johann im Saggautal 101, 8453, Sankt Johann im Saggautal"]
[61033002,610606,"Sportplatzstraße 1",8505,"Sankt Nikolai im Sausal","Kindergarten Marktgemeinde Sankt Nikolai im Sausal","Kindergarten Marktgemeinde Sankt Nikolai im Sausal, Sportplatzstraße 1, 8505, Sankt Nikolai im Sausal"]
[61034001,610306,"Sankt Nikolai ob Draßling 161",8422,"Sankt Veit in der Südsteiermark","Kindergarten Marktgemeinde Sankt Veit in der Südsteiermark","Kindergarten Marktgemeinde Sankt Veit in der Südsteiermark, Sankt Nikolai ob Draßling 161, 8422, Sankt Veit in der Südsteiermark"]
[61036001,610156,"Schulstraße 11a",8423,"Sankt Veit in der Südsteiermark","Kindergarten Marktgemeinde Sankt Veit in der Südsteiermark","Kindergarten Marktgemeinde Sankt Veit in der Südsteiermark, Schulstraße 11a, 8423, Sankt Veit in der Südsteiermark"]
[61038001,610676,"Seggaubergstraße 4",8430,"Leibnitz","Kindergarten Stadtgemeinde  Leibnitz","Kindergarten Stadtgemeinde  Leibnitz, Seggaubergstraße 4, 8430, Leibnitz"]
[61039001,610376,"Schlossgasse 5",8472,"Straß in Steiermark","Kindergarten Marktgemeinde Straß in Steiermark","Kindergarten Marktgemeinde Straß in Steiermark, Schlossgasse 5, 8472, Straß in Steiermark"]
[61040001,610436,"Stocking 38",8410,"Wildon","Kindergarten Marktgemeinde Wildon","Kindergarten Marktgemeinde Wildon, Stocking 38, 8410, Wildon"]
[61041003,610061,"Attemsallee 3",8472,"Straß in Steiermark","Kindergarten Marktgemeinde Straß in Steiermark","Kindergarten Marktgemeinde Straß in Steiermark, Attemsallee 3, 8472, Straß in Steiermark"]
[61043001,610326,"Dorfstraße 88",8434,"Tillmitsch","Kindergarten Gemeinde Tillmitsch","Kindergarten Gemeinde Tillmitsch, Dorfstraße 88, 8434, Tillmitsch"]
[61043004,61043004,"Rohrbacherweg 16",8434,"Tillmitsch","Kindergarten Gemeinde Tillmitsch","Kindergarten Gemeinde Tillmitsch, Rohrbacherweg 16, 8434, Tillmitsch"]
[61044003,610516,"Obere Dorfstraße 8",8472,"Vogau","Kindergarten Marktgemeinde Straß in Steiermark","Kindergarten Marktgemeinde Straß in Steiermark, Obere Dorfstraße 8, 8472, Vogau"]
[61045003,610566,"Gemeindehausstraße 5",8435,"Wagna","Kindergarten Marktgemeinde Wagna","Kindergarten Marktgemeinde Wagna, Gemeindehausstraße 5, 8435, Wagna"]
[61045009,610075,"Dr.-Billroth-Weg 71",8435,"Wagna","Kindergarten Marktgemeinde Wagna","Kindergarten Marktgemeinde Wagna, Dr.-Billroth-Weg 71, 8435, Wagna"]
[61045011,61045011,"Friedhofstraße 25",8435,"Wagna","Kindergarten Marktgemeinde Wagna","Kindergarten Marktgemeinde Wagna, Friedhofstraße 25, 8435, Wagna"]
[61046001,610196,"Kindergartenstraße 6",8410,"Wildon","Kindergarten Marktgemeinde Wildon","Kindergarten Marktgemeinde Wildon, Kindergartenstraße 6, 8410, Wildon"]
[61047003,610616,"Alte Reichsstraße 3a",8410,"Wildon","Kindergarten Marktgemeinde Wildon","Kindergarten Marktgemeinde Wildon, Alte Reichsstraße 3a, 8410, Wildon"]
[61048001,610266,"Wolfsberg 130",8421,"Schwarzautal","Kindergarten Röm.-kath. Pfarre Wolfsberg im Schwarzautal","Kindergarten Röm.-kath. Pfarre Wolfsberg im Schwarzautal, Wolfsberg 130, 8421, Schwarzautal"]
[61055001,null,"St. Georgen an der Stiefing 130a",8413,"Sankt Georgen an der Stiefing","Kindergarten Marktgemeinde Sankt Georgen an der Stiefing","Kindergarten Marktgemeinde Sankt Georgen an der Stiefing, St. Georgen an der Stiefing 130a, 8413, Sankt Georgen an der Stiefing"]
[61101006,611066,"Trofengbachgasse 25",8790,"Eisenerz","Kindergarten Stadtgemeinde Eisenerz","Kindergarten Stadtgemeinde Eisenerz, Trofengbachgasse 25, 8790, Eisenerz"]
[61101008,611326,"Kriechbaumweg 1",8790,"Eisenerz","Kindergarten Stadtgemeinde Eisenerz","Kindergarten Stadtgemeinde Eisenerz, Kriechbaumweg 1, 8790, Eisenerz"]
[61102003,611366,"Gai 1",8793,"Trofaiach","Kindergarten Stadtgemeinde  Trofaiach","Kindergarten Stadtgemeinde  Trofaiach, Gai 1, 8793, Trofaiach"]
[61104001,611076,"Hauptstraße 32",8920,"Landl","Kindergarten Gemeinde Landl","Kindergarten Gemeinde Landl, Hauptstraße 32, 8920, Landl"]
[61105002,611506,"Marktstraße 71a",8775,"Kalwang","Kindergarten Marktgemeinde Kalwang","Kindergarten Marktgemeinde Kalwang, Marktstraße 71a, 8775, Kalwang"]
[61106001,611276,"Seiz 21",8773,"Kammern im Liesingtal","Kindergarten Marktgemeinde Kammern im Liesingtal","Kindergarten Marktgemeinde Kammern im Liesingtal, Seiz 21, 8773, Kammern im Liesingtal"]
[61107001,611286,"Kirchplatz 6",8714,"Kraubath an der Mur","Kindergarten Marktgemeinde Kraubath an der Mur","Kindergarten Marktgemeinde Kraubath an der Mur, Kirchplatz 6, 8714, Kraubath an der Mur"]
[61108002,611126,"Nikolaus Lenau-Straße 25",8700,"Leoben","Kindergarten Stadtgemeinde Leoben","Kindergarten Stadtgemeinde Leoben, Nikolaus Lenau-Straße 25, 8700, Leoben"]
[61108003,611136,"Moserhofstraße 4",8700,"Leoben","Kindergarten Stadtgemeinde Leoben","Kindergarten Stadtgemeinde Leoben, Moserhofstraße 4, 8700, Leoben"]
[61108005,611156,"Pestalozzistraße 75a",8700,"Leoben","Kindergarten Stadtgemeinde Leoben","Kindergarten Stadtgemeinde Leoben, Pestalozzistraße 75a, 8700, Leoben"]
[61108006,611166,"Steigtalstraße 28",8700,"Leoben","Kindergarten Stadtgemeinde Leoben","Kindergarten Stadtgemeinde Leoben, Steigtalstraße 28, 8700, Leoben"]
[61108009,611296,"Pestalozzistraße 75b",8700,"Leoben","Kindergarten Stadtgemeinde Leoben","Kindergarten Stadtgemeinde Leoben, Pestalozzistraße 75b, 8700, Leoben"]
[61108010,611316,"Lierwaldgasse 4",8700,"Leoben","Kindergarten Stadtgemeinde Leoben","Kindergarten Stadtgemeinde Leoben, Lierwaldgasse 4, 8700, Leoben"]
[61108019,611636,"Gösser Straße 52",8700,"Leoben","Kindergarten Verein \"Trinity\"","Kindergarten Verein \"Trinity\", Gösser Straße 52, 8700, Leoben"]
[61108021,611656,"Erzherzog Johann-Straße 1a",8700,"Leoben","Kindergarten Kinder- und Jugendwerk Josefinum","Kindergarten Kinder- und Jugendwerk Josefinum, Erzherzog Johann-Straße 1a, 8700, Leoben"]
[61108023,611866,"Radmeistergasse 11",8700,"Leoben","Kindergarten VOESTALPINE Stahl Donawitz GmbH","Kindergarten VOESTALPINE Stahl Donawitz GmbH, Radmeistergasse 11, 8700, Leoben"]
[61108025,61108025,"Kärntner Straße 71",8700,"Leoben","Kindergarten Stadtgemeinde Leoben","Kindergarten Stadtgemeinde Leoben, Kärntner Straße 71, 8700, Leoben"]
[61108601,611516,"Vordernberger Straße 63",8700,"Leoben","Kinderhaus Volkshilfe Steiermark gemeinnützige Betriebs-GmbH","Kinderhaus Volkshilfe Steiermark gemeinnützige Betriebs-GmbH, Vordernberger Straße 63, 8700, Leoben"]
[61109003,611486,"Klostergasse 5e",8774,"Mautern in Steiermark","Kindergarten Marktgemeinde Mautern in Steiermark","Kindergarten Marktgemeinde Mautern in Steiermark, Klostergasse 5e, 8774, Mautern in Steiermark"]
[61110001,611196,"Schulstraße 12",8712,"Niklasdorf","Kindergarten Marktgemeinde Niklasdorf","Kindergarten Marktgemeinde Niklasdorf, Schulstraße 12, 8712, Niklasdorf"]
[61111001,611106,"Dorfstraße 18",8712,"Proleb","Kindergarten Gemeinde Proleb","Kindergarten Gemeinde Proleb, Dorfstraße 18, 8712, Proleb"]
[61112001,611246,"Radmer an der Stube 35",8795,"Radmer","Kindergarten Röm.-kath. Pfarre Radmer","Kindergarten Röm.-kath. Pfarre Radmer, Radmer an der Stube 35, 8795, Radmer"]
[61113002,611206,"Ruthenenweg 2",8770,"Sankt Michael in Obersteiermark","Kindergarten Marktgemeinde Sankt Michael in Obersteiermark","Kindergarten Marktgemeinde Sankt Michael in Obersteiermark, Ruthenenweg 2, 8770, Sankt Michael in Obersteiermark"]
[61113003,611356,"Schulgasse 7",8770,"Sankt Michael in Obersteiermark","Kindergarten Marktgemeinde Sankt Michael in Obersteiermark","Kindergarten Marktgemeinde Sankt Michael in Obersteiermark, Schulgasse 7, 8770, Sankt Michael in Obersteiermark"]
[61114001,611216,"Gemeindegasse 6",8792,"Sankt Peter-Freienstein","Kindergarten Marktgemeinde Sankt Peter-Freienstein","Kindergarten Marktgemeinde Sankt Peter-Freienstein, Gemeindegasse 6, 8792, Sankt Peter-Freienstein"]
[61115003,611446,"Murwaldsiedlung 34",8713,"Sankt Stefan ob Leoben","Kindergarten Gemeinde Sankt Stefan ob Leoben","Kindergarten Gemeinde Sankt Stefan ob Leoben, Murwaldsiedlung 34, 8713, Sankt Stefan ob Leoben"]
[61116001,611306,"Schulweg 3",8772,"Traboch","Kindergarten Gemeinde Traboch","Kindergarten Gemeinde Traboch, Schulweg 3, 8772, Traboch"]
[61117001,611226,"Rebenburggasse 2a",8793,"Trofaiach","Kindergarten Stadtgemeinde  Trofaiach","Kindergarten Stadtgemeinde  Trofaiach, Rebenburggasse 2a, 8793, Trofaiach"]
[61117003,611336,"Kehrgasse 41",8793,"Trofaiach","Kindergarten Stadtgemeinde  Trofaiach","Kindergarten Stadtgemeinde  Trofaiach, Kehrgasse 41, 8793, Trofaiach"]
[61117005,611436,"Bergmanngasse 22",8793,"Trofaiach","Kindergarten Stadtgemeinde  Trofaiach","Kindergarten Stadtgemeinde  Trofaiach, Bergmanngasse 22, 8793, Trofaiach"]
[61117007,611776,"Koloniegasse 31",8793,"Trofaiach","Kindergarten Verein \"Lebenshilfe Trofaiach\"","Kindergarten Verein \"Lebenshilfe Trofaiach\", Koloniegasse 31, 8793, Trofaiach"]
[61118001,611266,"Hauptstraße 96",8794,"Vordernberg","Kindergarten Marktgemeinde Vordernberg","Kindergarten Marktgemeinde Vordernberg, Hauptstraße 96, 8794, Vordernberg"]
[61119003,611406,"Wald am Schoberpaß 41",8781,"Wald am Schoberpaß","Kindergarten Gemeinde Wald am Schoberpaß","Kindergarten Gemeinde Wald am Schoberpaß, Wald am Schoberpaß 41, 8781, Wald am Schoberpaß"]
[61201004,612008,"Mittlere Bachgasse 601",8911,"Admont","Kindergarten Gem. Wohn- u. Siedlungsgenossenschaft Ennstal reg. Gen.m.b.H. Liezen","Kindergarten Gem. Wohn- u. Siedlungsgenossenschaft Ennstal reg. Gen.m.b.H. Liezen, Mittlere Bachgasse 601, 8911, Admont"]
[61202003,612896,"Assach-Unterdorf 19",8966,"Aich","Kindergarten Gemeinde Aich","Kindergarten Gemeinde Aich, Assach-Unterdorf 19, 8966, Aich"]
[61203003,612696,"Aigen 83",8943,"Aigen im Ennstal","Kindergarten Gemeinde Aigen im Ennstal","Kindergarten Gemeinde Aigen im Ennstal, Aigen 83, 8943, Aigen im Ennstal"]
[61204001,612416,"Fischerndorf 182",8992,"Altaussee","Kindergarten Gemeinde Altaussee","Kindergarten Gemeinde Altaussee, Fischerndorf 182, 8992, Altaussee"]
[61205001,612036,"Altenmarkt 99",8934,"Altenmarkt bei Sankt Gallen","Kindergarten Röm.-kath. Pfarre Altenmarkt/St.Gallen ","Kindergarten Röm.-kath. Pfarre Altenmarkt/St.Gallen , Altenmarkt 99, 8934, Altenmarkt bei Sankt Gallen"]
[61206002,612526,"Ardning 150",8904,"Ardning","Kindergarten Gemeinde Ardning","Kindergarten Gemeinde Ardning, Ardning 150, 8904, Ardning"]
[61207012,612027,"Prietal 48",8990,"Bad Aussee","Kindergarten Verein \"Kikri\" Kinderwiese Verein für Ganzheitliche Entwicklungsförderung","Kindergarten Verein \"Kikri\" Kinderwiese Verein für Ganzheitliche Entwicklungsförderung, Prietal 48, 8990, Bad Aussee"]
[61207014,612054,"Bahnhofstraße 237",8990,"Bad Aussee","Kindergarten Verein \"Bunte Perlen\" Privatkindergarten","Kindergarten Verein \"Bunte Perlen\" Privatkindergarten, Bahnhofstraße 237, 8990, Bad Aussee"]
[61207015,61207015,"Kirchengasse 213",8990,"Bad Aussee","Kindergarten Stadtgemeinde Bad Aussee","Kindergarten Stadtgemeinde Bad Aussee, Kirchengasse 213, 8990, Bad Aussee"]
[61208002,612048,"Donnersbach 84",8953,"Irdning-Donnersbachtal","Kindergarten Marktgemeinde Irdning-Donnersbachtal","Kindergarten Marktgemeinde Irdning-Donnersbachtal, Donnersbach 84, 8953, Irdning-Donnersbachtal"]
[61209001,612456,"Donnersbachwald 67",8953,"Irdning-Donnersbachtal","Kindergarten Marktgemeinde Irdning-Donnersbachtal","Kindergarten Marktgemeinde Irdning-Donnersbachtal, Donnersbachwald 67, 8953, Irdning-Donnersbachtal"]
[61211001,612236,"Gams bei Hieflau 164",8922,"Landl","Kindergarten Gemeinde Landl","Kindergarten Gemeinde Landl, Gams bei Hieflau 164, 8922, Landl"]
[61213004,61213004,"Wiesackstraße 1000",8962,"Gröbming","Kindergarten Marktgemeinde Gröbming","Kindergarten Marktgemeinde Gröbming, Wiesackstraße 1000, 8962, Gröbming"]
[61214001,612436,"Stein an der Enns 149a",8961,"Sölk","Kindergarten Gemeinde Sölk","Kindergarten Gemeinde Sölk, Stein an der Enns 149a, 8961, Sölk"]
[61215002,612276,"Bräuhof 118",8993,"Grundlsee","Kindergarten Röm.-kath. Pfarre Grundlsee","Kindergarten Röm.-kath. Pfarre Grundlsee, Bräuhof 118, 8993, Grundlsee"]
[61216001,612496,"Hall 555",8911,"Admont","Kindergarten Marktgemeinde Admont","Kindergarten Marktgemeinde Admont, Hall 555, 8911, Admont"]
[61217003,612028,"Psaltersteig 300",8967,"Haus","Kindergarten Röm.-kath. Pfarre Haus im Ennstal","Kindergarten Röm.-kath. Pfarre Haus im Ennstal, Psaltersteig 300, 8967, Haus"]
[61218002,612076,"Grimminggasse 145",8952,"Irdning-Donnersbachtal","Kindergarten Marktgemeinde Irdning-Donnersbachtal","Kindergarten Marktgemeinde Irdning-Donnersbachtal, Grimminggasse 145, 8952, Irdning-Donnersbachtal"]
[61218006,612886,"Montessoristraße 254",8952,"Irdning-Donnersbachtal","Kindergarten Verein für Ganzheitliches Lernen nach Montessori ","Kindergarten Verein für Ganzheitliches Lernen nach Montessori , Montessoristraße 254, 8952, Irdning-Donnersbachtal"]
[61221002,612426,"Kirchenlandl 151",8931,"Landl","Kindergarten Gemeinde Landl","Kindergarten Gemeinde Landl, Kirchenlandl 151, 8931, Landl"]
[61222002,612206,"Lassing 34",8903,"Lassing","Kindergarten Gemeinde Lassing","Kindergarten Gemeinde Lassing, Lassing 34, 8903, Lassing"]
[61223002,612156,"Fronleichnamsweg 12",8940,"Liezen","Kindergarten Stadtgemeinde  Liezen","Kindergarten Stadtgemeinde  Liezen, Fronleichnamsweg 12, 8940, Liezen"]
[61223003,612086,"Nikolaus-Dumba-Straße 8",8940,"Liezen","Kindergarten Bildungsanstalt für Elementarpädagogik Liezen","Kindergarten Bildungsanstalt für Elementarpädagogik Liezen, Nikolaus-Dumba-Straße 8, 8940, Liezen"]
[61223004,612536,"Nikolaus-Dumba-Straße 8",8940,"Liezen","Kindergarten Stadtgemeinde  Liezen","Kindergarten Stadtgemeinde  Liezen, Nikolaus-Dumba-Straße 8, 8940, Liezen"]
[61223601,612706,"Fronleichnamsweg 12",8940,"Liezen","Kinderhaus Stadtgemeinde  Liezen","Kinderhaus Stadtgemeinde  Liezen, Fronleichnamsweg 12, 8940, Liezen"]
[61225002,612826,"Gersdorf 70a",8962,"Mitterberg-Sankt Martin","Kindergarten Gemeinde Mitterberg-Sankt Martin","Kindergarten Gemeinde Mitterberg-Sankt Martin, Gersdorf 70a, 8962, Mitterberg-Sankt Martin"]
[61226002,612716,"Bad Mitterndorf 431",8983,"Bad Mitterndorf","Kindergarten Marktgemeinde Bad Mitterndorf","Kindergarten Marktgemeinde Bad Mitterndorf, Bad Mitterndorf 431, 8983, Bad Mitterndorf"]
[61228001,612106,"Öblarn 35",8960,"Öblarn","Kindergarten Marktgemeinde Öblarn","Kindergarten Marktgemeinde Öblarn, Öblarn 35, 8960, Öblarn"]
[61232001,612386,"Mandling 74",8974,"Schladming","Kindergarten Stadtgemeinde Schladming","Kindergarten Stadtgemeinde Schladming, Mandling 74, 8974, Schladming"]
[61233002,612916,"Knoppen 27",8984,"Bad Mitterndorf","Kindergarten Marktgemeinde Bad Mitterndorf","Kindergarten Marktgemeinde Bad Mitterndorf, Knoppen 27, 8984, Bad Mitterndorf"]
[61234001,612366,"Pruggern 34",8965,"Michaelerberg-Pruggern","Kindergarten Gemeinde Michaelerberg-Pruggern","Kindergarten Gemeinde Michaelerberg-Pruggern, Pruggern 34, 8965, Michaelerberg-Pruggern"]
[61235001,612586,"Unterburg 19",8951,"Stainach-Pürgg","Kindergarten Marktgemeinde Stainach-Pürgg","Kindergarten Marktgemeinde Stainach-Pürgg, Unterburg 19, 8951, Stainach-Pürgg"]
[61236002,612406,"Ramsau 260",8972,"Ramsau am Dachstein","Kindergarten Gemeinde Ramsau am Dachstein","Kindergarten Gemeinde Ramsau am Dachstein, Ramsau 260, 8972, Ramsau am Dachstein"]
[61237003,612776,"Sonnenweg 255",8971,"Schladming","Kindergarten Stadtgemeinde Schladming","Kindergarten Stadtgemeinde Schladming, Sonnenweg 255, 8971, Schladming"]
[61238001,612116,"Lederergasse 319a",8786,"Rottenmann","Kindergarten Stadtgemeinde  Rottenmann","Kindergarten Stadtgemeinde  Rottenmann, Lederergasse 319a, 8786, Rottenmann"]
[61238003,612346,"Sankt Georgen 4a",8786,"Rottenmann","Kindergarten Stadtgemeinde  Rottenmann","Kindergarten Stadtgemeinde  Rottenmann, Sankt Georgen 4a, 8786, Rottenmann"]
[61238004,612666,"Bärndorf 86",8786,"Rottenmann","Kindergarten Stadtgemeinde  Rottenmann","Kindergarten Stadtgemeinde  Rottenmann, Bärndorf 86, 8786, Rottenmann"]
[61239002,612476,"Buchauer Straße 100a",8933,"Sankt Gallen","Kindergarten Marktgemeinde Sankt Gallen","Kindergarten Marktgemeinde Sankt Gallen, Buchauer Straße 100a, 8933, Sankt Gallen"]
[61240001,612336,"St. Martin am Grimming 20",8954,"Mitterberg-Sankt Martin","Kindergarten Gemeinde Mitterberg-Sankt Martin","Kindergarten Gemeinde Mitterberg-Sankt Martin, St. Martin am Grimming 20, 8954, Mitterberg-Sankt Martin"]
[61241001,612256,"Mößna 179",8961,"Sölk","Kindergarten Gemeinde Sölk","Kindergarten Gemeinde Sölk, Mößna 179, 8961, Sölk"]
[61242003,612506,"Tutterstraße 663",8970,"Schladming","Kindergarten Stadtgemeinde Schladming","Kindergarten Stadtgemeinde Schladming, Tutterstraße 663, 8970, Schladming"]
[61242005,612726,"Erzherzog-Johann-Straße 287",8970,"Schladming","Kindergarten Röm.-kath. Pfarre Schladming","Kindergarten Röm.-kath. Pfarre Schladming, Erzherzog-Johann-Straße 287, 8970, Schladming"]
[61242007,612856,"Schulgasse 159",8970,"Schladming","Kindergarten Steinbrecher Michaela","Kindergarten Steinbrecher Michaela, Schulgasse 159, 8970, Schladming"]
[61243001,612136,"Kindergartengasse 2",8900,"Selzthal","Kindergarten Gemeinde Selzthal","Kindergarten Gemeinde Selzthal, Kindergartengasse 2, 8900, Selzthal"]
[61244001,612166,"Kirchengasse 230",8950,"Stainach-Pürgg","Kindergarten Röm.-kath. Pfarre Stainach","Kindergarten Röm.-kath. Pfarre Stainach, Kirchengasse 230, 8950, Stainach-Pürgg"]
[61245001,612316,"Tauplitz 52",8982,"Bad Mitterndorf","Kindergarten Marktgemeinde Bad Mitterndorf","Kindergarten Marktgemeinde Bad Mitterndorf, Tauplitz 52, 8982, Bad Mitterndorf"]
[61247004,612686,"Triebener Bundesstraße 8",8784,"Trieben","Kindergarten Stadtgemeinde Trieben","Kindergarten Stadtgemeinde Trieben, Triebener Bundesstraße 8, 8784, Trieben"]
[61248001,612326,"Weißenbach an der Enns 58",8932,"Sankt Gallen","Kindergarten Marktgemeinde Sankt Gallen","Kindergarten Marktgemeinde Sankt Gallen, Weißenbach an der Enns 58, 8932, Sankt Gallen"]
[61249002,612486,"Langpoltenstraße 115",8940,"Liezen","Kindergarten Stadtgemeinde  Liezen","Kindergarten Stadtgemeinde  Liezen, Langpoltenstraße 115, 8940, Liezen"]
[61250001,612606,"Weng 50a",8913,"Admont","Kindergarten Marktgemeinde Admont","Kindergarten Marktgemeinde Admont, Weng 50a, 8913, Admont"]
[61251001,612246,"Wildalpen 181",8924,"Wildalpen","Kindergarten Gemeinde Wildalpen","Kindergarten Gemeinde Wildalpen, Wildalpen 181, 8924, Wildalpen"]
[61252002,612736,"Dr. Alfons Gorbach Platz 16",8942,"Wörschach","Kindergarten Gemeinde Wörschach","Kindergarten Gemeinde Wörschach, Dr. Alfons Gorbach Platz 16, 8942, Wörschach"]
[61255001,61255001,"Bad Mitterndorf 477",8983,"Bad Mitterndorf","Kindergarten Gem. Wohn- u. Siedlungsgenossenschaft Ennstal reg. Gen.m.b.H. Liezen","Kindergarten Gem. Wohn- u. Siedlungsgenossenschaft Ennstal reg. Gen.m.b.H. Liezen, Bad Mitterndorf 477, 8983, Bad Mitterndorf"]
[61256001,612057,"Treglwang 35",8782,"Gaishorn am See","Kindergarten Marktgemeinde Gaishorn am See","Kindergarten Marktgemeinde Gaishorn am See, Treglwang 35, 8782, Gaishorn am See"]
[61263003,61263003,"Rohrach 216",8786,"Rottenmann","Kindergarten Stadtgemeinde  Rottenmann","Kindergarten Stadtgemeinde  Rottenmann, Rohrach 216, 8786, Rottenmann"]
[61301001,613176,"Wieden 100",8643,"Kindberg","Kindergarten Stadtgemeinde Kindberg","Kindergarten Stadtgemeinde Kindberg, Wieden 100, 8643, Kindberg"]
[61304001,613386,"Bahnhofstraße 1",8691,"Neuberg an der Mürz","Kindergarten Marktgemeinde Neuberg an der Mürz","Kindergarten Marktgemeinde Neuberg an der Mürz, Bahnhofstraße 1, 8691, Neuberg an der Mürz"]
[61305002,613026,"Alpinestraße 20",8652,"Kindberg","Kindergarten Stadtgemeinde Kindberg","Kindergarten Stadtgemeinde Kindberg, Alpinestraße 20, 8652, Kindberg"]
[61305005,613226,"Vösendorfplatz 1",8650,"Kindberg","Kindergarten Stadtgemeinde Kindberg","Kindergarten Stadtgemeinde Kindberg, Vösendorfplatz 1, 8650, Kindberg"]
[61305006,613276,"Angerweg 23",8650,"Kindberg","Kindergarten Röm.-kath. Pfarre Kindberg","Kindergarten Röm.-kath. Pfarre Kindberg, Angerweg 23, 8650, Kindberg"]
[61305007,613356,"Kirchplatz 1",8650,"Kindberg","Kindergarten Stadtgemeinde Kindberg","Kindergarten Stadtgemeinde Kindberg, Kirchplatz 1, 8650, Kindberg"]
[61306001,613046,"Brunngassl 10",8670,"Krieglach","Kindergarten Röm.-kath. Pfarre Krieglach","Kindergarten Röm.-kath. Pfarre Krieglach, Brunngassl 10, 8670, Krieglach"]
[61306004,613316,"Steinfeldstraße 8",8670,"Krieglach","Kindergarten Marktgemeinde Krieglach","Kindergarten Marktgemeinde Krieglach, Steinfeldstraße 8, 8670, Krieglach"]
[61306005,613326,"Steinfeldstraße 8",8670,"Krieglach","Kindergarten Marktgemeinde Krieglach","Kindergarten Marktgemeinde Krieglach, Steinfeldstraße 8, 8670, Krieglach"]
[61307001,613056,"Kirchengasse 14",8665,"Langenwang","Kindergarten Röm.-kath. Pfarre Langenwang","Kindergarten Röm.-kath. Pfarre Langenwang, Kirchengasse 14, 8665, Langenwang"]
[61308002,613336,"Kindergartenstraße 5",8662,"Sankt Barbara im Mürztal","Kindergarten Marktgemeinde Sankt Barbara im Mürztal","Kindergarten Marktgemeinde Sankt Barbara im Mürztal, Kindergartenstraße 5, 8662, Sankt Barbara im Mürztal"]
[61309001,613166,"Turmgasse 7",8644,"Kindberg","Kindergarten Stadtgemeinde Kindberg","Kindergarten Stadtgemeinde Kindberg, Turmgasse 7, 8644, Kindberg"]
[61311002,613076,"Alleegasse 3a",8680,"Mürzzuschlag","Kindergarten Stadtgemeinde  Mürzzuschlag","Kindergarten Stadtgemeinde  Mürzzuschlag, Alleegasse 3a, 8680, Mürzzuschlag"]
[61311003,613136,"Wiener Straße 140c",8680,"Mürzzuschlag","Kindergarten Stadtgemeinde  Mürzzuschlag","Kindergarten Stadtgemeinde  Mürzzuschlag, Wiener Straße 140c, 8680, Mürzzuschlag"]
[61311004,613206,"Schulstraße 29",8682,"Mürzzuschlag","Kindergarten Stadtgemeinde  Mürzzuschlag","Kindergarten Stadtgemeinde  Mürzzuschlag, Schulstraße 29, 8682, Mürzzuschlag"]
[61312001,613126,"Hauptstraße 19a",8692,"Neuberg an der Mürz","Kindergarten Marktgemeinde Neuberg an der Mürz","Kindergarten Marktgemeinde Neuberg an der Mürz, Hauptstraße 19a, 8692, Neuberg an der Mürz"]
[61313001,613146,"Steinhaus 15",8685,"Spital am Semmering","Kindergarten Gemeinde Spital am Semmering","Kindergarten Gemeinde Spital am Semmering, Steinhaus 15, 8685, Spital am Semmering"]
[61314001,613156,"Stanz im Mürztal 117",8653,"Stanz im Mürztal","Kindergarten Gemeinde Stanz im Mürztal","Kindergarten Gemeinde Stanz im Mürztal, Stanz im Mürztal 117, 8653, Stanz im Mürztal"]
[61316004,613346,"Dorfstraße 42",8661,"Sankt Barbara im Mürztal","Kindergarten Marktgemeinde Sankt Barbara im Mürztal","Kindergarten Marktgemeinde Sankt Barbara im Mürztal, Dorfstraße 42, 8661, Sankt Barbara im Mürztal"]
[61406002,614596,"Krakauschatten 33",8854,"Krakau","Kindergarten Gemeinde Krakau","Kindergarten Gemeinde Krakau, Krakauschatten 33, 8854, Krakau"]
[61409001,614166,"Hoferdorf 301",8812,"Neumarkt in der Steiermark","Kindergarten Marktgemeinde Neumarkt in der Steiermark","Kindergarten Marktgemeinde Neumarkt in der Steiermark, Hoferdorf 301, 8812, Neumarkt in der Steiermark"]
[61410001,614206,"Mühlen 43",8822,"Mühlen","Kindergarten Marktgemeinde Mühlen","Kindergarten Marktgemeinde Mühlen, Mühlen 43, 8822, Mühlen"]
[61412001,614086,"Meraner Weg 3b",8820,"Neumarkt in der Steiermark","Kindergarten Marktgemeinde Neumarkt in der Steiermark","Kindergarten Marktgemeinde Neumarkt in der Steiermark, Meraner Weg 3b, 8820, Neumarkt in der Steiermark"]
[61413001,614186,"Schulweg 81",8831,"Niederwölz","Kindergarten Gemeinde Niederwölz","Kindergarten Gemeinde Niederwölz, Schulweg 81, 8831, Niederwölz"]
[61414001,614036,"Vorstadt 95",8832,"Oberwölz","Kindergarten Stadtgemeinde Oberwölz","Kindergarten Stadtgemeinde Oberwölz, Vorstadt 95, 8832, Oberwölz"]
[61417001,614216,"Predlitz 82",8863,"Stadl-Predlitz","Kindergarten Gemeinde Stadl-Predlitz","Kindergarten Gemeinde Stadl-Predlitz, Predlitz 82, 8863, Stadl-Predlitz"]
[61418002,614286,"Ranten 7",8853,"Ranten","Kindergarten Gemeinde Ranten","Kindergarten Gemeinde Ranten, Ranten 7, 8853, Ranten"]
[61421001,614066,"St. Georgen ob Murau 18",8861,"Sankt Georgen am Kreischberg","Kindergarten Gemeinde Sankt Georgen am Kreischberg","Kindergarten Gemeinde Sankt Georgen am Kreischberg, St. Georgen ob Murau 18, 8861, Sankt Georgen am Kreischberg"]
[61422002,614346,"Hauptstraße 58",8813,"Sankt Lambrecht","Kindergarten Röm.-kath. Pfarre St. Lambrecht","Kindergarten Röm.-kath. Pfarre St. Lambrecht, Hauptstraße 58, 8813, Sankt Lambrecht"]
[61423001,614416,"St. Laurentiusgasse 1",8811,"Scheifling","Kindergarten Marktgemeinde Scheifling","Kindergarten Marktgemeinde Scheifling, St. Laurentiusgasse 1, 8811, Scheifling"]
[61424002,614356,"Sankt Marein bei Neumarkt 3",8820,"Neumarkt in der Steiermark","Kindergarten Verein \"Kinderhaus und Kindergarten St.Marein\"","Kindergarten Verein \"Kinderhaus und Kindergarten St.Marein\", Sankt Marein bei Neumarkt 3, 8820, Neumarkt in der Steiermark"]
[61424601,614366,"Sankt Marein bei Neumarkt 3",8820,"Neumarkt in der Steiermark","Kinderhaus Verein \"Kinderhaus und Kindergarten St.Marein\"","Kinderhaus Verein \"Kinderhaus und Kindergarten St.Marein\", Sankt Marein bei Neumarkt 3, 8820, Neumarkt in der Steiermark"]
[61425001,614096,"St. Peter a. Kbg. 160",8843,"St. Peter am Kammersberg","Kindergarten Marktgemeinde Sankt Peter am Kammersberg","Kindergarten Marktgemeinde Sankt Peter am Kammersberg, St. Peter a. Kbg. 160, 8843, St. Peter am Kammersberg"]
[61427003,614386,"Schulgasse 3a",8811,"Scheifling","Kindergarten Marktgemeinde Scheifling","Kindergarten Marktgemeinde Scheifling, Schulgasse 3a, 8811, Scheifling"]
[61427004,614316,"Schulgasse 3a",8811,"Scheifling","Kindergarten Marktgemeinde Scheifling","Kindergarten Marktgemeinde Scheifling, Schulgasse 3a, 8811, Scheifling"]
[61428001,614236,"Schöder 88",8844,"Schöder","Kindergarten Gemeinde Schöder","Kindergarten Gemeinde Schöder, Schöder 88, 8844, Schöder"]
[61430003,614476,"Stadl an der Mur 23b",8862,"Stadl-Predlitz","Kindergarten Gemeinde Stadl-Predlitz","Kindergarten Gemeinde Stadl-Predlitz, Stadl an der Mur 23b, 8862, Stadl-Predlitz"]
[61431003,614446,"Stolzalpe 76",8852,"Murau","Kindergarten Steiermärkische Krankenanstalten GmbH","Kindergarten Steiermärkische Krankenanstalten GmbH, Stolzalpe 76, 8852, Murau"]
[61432002,614246,"Schlossplatz 2",8833,"Teufenbach-Katsch","Kindergarten Gemeinde Teufenbach-Katsch","Kindergarten Gemeinde Teufenbach-Katsch, Schlossplatz 2, 8833, Teufenbach-Katsch"]
[61438001,61438001,"Friedhofgasse 3",8850,"Murau","Kindergarten Stadtgemeinde  Murau","Kindergarten Stadtgemeinde  Murau, Friedhofgasse 3, 8850, Murau"]
[61446003,null,"Katschtalstraße 14",8842,"Teufenbach-Katsch","Kindergarten Gemeinde Teufenbach-Katsch","Kindergarten Gemeinde Teufenbach-Katsch, Katschtalstraße 14, 8842, Teufenbach-Katsch"]
[61501001,615146,"Bierbaum am Auersbach 21",8093,"Sankt Peter am Ottersbach","Kindergarten Marktgemeinde Sankt Peter am Ottersbach","Kindergarten Marktgemeinde Sankt Peter am Ottersbach, Bierbaum am Auersbach 21, 8093, Sankt Peter am Ottersbach"]
[61502001,615116,"Deutsch Goritz 96",8483,"Deutsch Goritz","Kindergarten Gemeinde Deutsch Goritz","Kindergarten Gemeinde Deutsch Goritz, Deutsch Goritz 96, 8483, Deutsch Goritz"]
[61503001,615206,"Dietersdorf am Gnasbach 45",8093,"Sankt Peter am Ottersbach","Kindergarten Marktgemeinde Sankt Peter am Ottersbach","Kindergarten Marktgemeinde Sankt Peter am Ottersbach, Dietersdorf am Gnasbach 45, 8093, Sankt Peter am Ottersbach"]
[61506001,615096,"Halbenrain 78",8492,"Halbenrain","Kindergarten Röm.-kath. Pfarre Halbenrain","Kindergarten Röm.-kath. Pfarre Halbenrain, Halbenrain 78, 8492, Halbenrain"]
[61510002,615036,"Mettersdorf 66",8092,"Mettersdorf am Saßbach","Kindergarten Marktgemeinde Mettersdorf am Saßbach","Kindergarten Marktgemeinde Mettersdorf am Saßbach, Mettersdorf 66, 8092, Mettersdorf am Saßbach"]
[61511002,615156,"Süßenberger Straße 29",8480,"Mureck","Kindergarten Bildungsanstalt für Elementarpädagogik Mureck","Kindergarten Bildungsanstalt für Elementarpädagogik Mureck, Süßenberger Straße 29, 8480, Mureck"]
[61513002,615196,"Südtirolerplatz 6a",8490,"Bad Radkersburg","Kindergarten Stadtgemeinde Bad Radkersburg","Kindergarten Stadtgemeinde Bad Radkersburg, Südtirolerplatz 6a, 8490, Bad Radkersburg"]
[61514001,615126,"Zeltingerstraße 6",8490,"Bad Radkersburg","Kindergarten Stadtgemeinde Bad Radkersburg","Kindergarten Stadtgemeinde Bad Radkersburg, Zeltingerstraße 6, 8490, Bad Radkersburg"]
[61516002,615166,"Siedlung 67",8093,"Sankt Peter am Ottersbach","Kindergarten Marktgemeinde Sankt Peter am Ottersbach","Kindergarten Marktgemeinde Sankt Peter am Ottersbach, Siedlung 67, 8093, Sankt Peter am Ottersbach"]
[61517001,615066,"Straden 87",8345,"Straden","Kindergarten Röm.-kath. Pfarre Straden","Kindergarten Röm.-kath. Pfarre Straden, Straden 87, 8345, Straden"]
[61518002,615176,"Tieschen 74",8355,"Tieschen","Kindergarten Marktgemeinde Tieschen","Kindergarten Marktgemeinde Tieschen, Tieschen 74, 8355, Tieschen"]
[61520001,615186,"Weinburg am Saßbach 113",8481,"Sankt Veit in der Südsteiermark","Kindergarten Marktgemeinde Sankt Veit in der Südsteiermark","Kindergarten Marktgemeinde Sankt Veit in der Südsteiermark, Weinburg am Saßbach 113, 8481, Sankt Veit in der Südsteiermark"]
[61601003,616286,"Afling 24",8572,"Bärnbach","Kindergarten Stadtgemeinde Bärnbach","Kindergarten Stadtgemeinde Bärnbach, Afling 24, 8572, Bärnbach"]
[61601004,616476,"Voitsberger Straße 38A",8572,"Bärnbach","Kindergarten Verein \"Krambambuli-Verein zur Förderung des Kleinkindes\" ","Kindergarten Verein \"Krambambuli-Verein zur Förderung des Kleinkindes\" , Voitsberger Straße 38A, 8572, Bärnbach"]
[61601006,616586,"Rüsthausgasse 7",8572,"Bärnbach","Kindergarten Stadtgemeinde Bärnbach","Kindergarten Stadtgemeinde Bärnbach, Rüsthausgasse 7, 8572, Bärnbach"]
[61601601,616606,"Rüsthausgasse 7",8572,"Bärnbach","Kinderhaus Stadtgemeinde Bärnbach","Kinderhaus Stadtgemeinde Bärnbach, Rüsthausgasse 7, 8572, Bärnbach"]
[61602004,616646,"Schulstraße 111",8583,"Edelschrott","Kindergarten Marktgemeinde Edelschrott","Kindergarten Marktgemeinde Edelschrott, Schulstraße 111, 8583, Edelschrott"]
[61604002,616306,"Geistthal 83",8153,"Geistthal-Södingberg","Kindergarten Gemeinde Geistthal-Södingberg","Kindergarten Gemeinde Geistthal-Södingberg, Geistthal 83, 8153, Geistthal-Södingberg"]
[61607001,616336,"Hirschegg 36",8584,"Hirschegg-Pack","Kindergarten Gemeinde Hirschegg-Pack","Kindergarten Gemeinde Hirschegg-Pack, Hirschegg 36, 8584, Hirschegg-Pack"]
[61608001,616216,"Kainach bei Voitsberg 100",8573,"Kainach bei Voitsberg","Kindergarten Gemeinde Kainach bei Voitsberg","Kindergarten Gemeinde Kainach bei Voitsberg, Kainach bei Voitsberg 100, 8573, Kainach bei Voitsberg"]
[61609001,616076,"Ludwig-Stampfer-Gasse 11",8580,"Köflach","Kindergarten Röm.-kath. Pfarre Köflach","Kindergarten Röm.-kath. Pfarre Köflach, Ludwig-Stampfer-Gasse 11, 8580, Köflach"]
[61609003,616046,"Kinderheimgasse 7",8580,"Köflach","Kindergarten Stadtgemeinde  Köflach","Kindergarten Stadtgemeinde  Köflach, Kinderheimgasse 7, 8580, Köflach"]
[61609005,616056,"Heimgasse 1",8580,"Köflach","Kindergarten Stadtgemeinde  Köflach","Kindergarten Stadtgemeinde  Köflach, Heimgasse 1, 8580, Köflach"]
[61609008,616486,"Barbarasiedlung D 14",8580,"Köflach","Kindergarten Stadtgemeinde  Köflach","Kindergarten Stadtgemeinde  Köflach, Barbarasiedlung D 14, 8580, Köflach"]
[61609009,616496,"Barbarasiedlung D 14",8580,"Köflach","Kindergarten Stadtgemeinde  Köflach","Kindergarten Stadtgemeinde  Köflach, Barbarasiedlung D 14, 8580, Köflach"]
[61611006,61611006,"Krottendorf 221a",8564,"Krottendorf-Gaisfeld","Kindergarten Gemeinde Krottendorf-Gaisfeld","Kindergarten Gemeinde Krottendorf-Gaisfeld, Krottendorf 221a, 8564, Krottendorf-Gaisfeld"]
[61612002,616086,"Unterwald 64",8563,"Ligist","Kindergarten Marktgemeinde Ligist","Kindergarten Marktgemeinde Ligist, Unterwald 64, 8563, Ligist"]
[61612003,616316,"Ligist 21",8563,"Ligist","Kindergarten Marktgemeinde Ligist","Kindergarten Marktgemeinde Ligist, Ligist 21, 8563, Ligist"]
[61613001,616186,"Bergmannstraße 247",8591,"Maria Lankowitz","Kindergarten Marktgemeinde Maria Lankowitz","Kindergarten Marktgemeinde Maria Lankowitz, Bergmannstraße 247, 8591, Maria Lankowitz"]
[61614001,616326,"Modriach 5",8583,"Edelschrott","Kindergarten Marktgemeinde Edelschrott","Kindergarten Marktgemeinde Edelschrott, Modriach 5, 8583, Edelschrott"]
[61615002,616266,"Hauptstraße 2",8562,"Mooskirchen","Kindergarten Marktgemeinde Mooskirchen","Kindergarten Marktgemeinde Mooskirchen, Hauptstraße 2, 8562, Mooskirchen"]
[61618003,61618003,"Hauptstraße 31",8582,"Rosental an der Kainach","Kindergarten Gemeinde Rosental an der Kainach","Kindergarten Gemeinde Rosental an der Kainach, Hauptstraße 31, 8582, Rosental an der Kainach"]
[61620003,616806,"Sankt Johann 2",8565,"Söding-Sankt Johann","Kindergarten Österr. Wohnbaugenossenschaft gemeinn. reg.Gen.m.b.H.","Kindergarten Österr. Wohnbaugenossenschaft gemeinn. reg.Gen.m.b.H., Sankt Johann 2, 8565, Söding-Sankt Johann"]
[61621002,616276,"Sankt Martin am Wöllmißberg 36",8580,"Sankt Martin am Wöllmißberg","Kindergarten Gemeinde Sankt Martin am Wöllmißberg","Kindergarten Gemeinde Sankt Martin am Wöllmißberg, Sankt Martin am Wöllmißberg 36, 8580, Sankt Martin am Wöllmißberg"]
[61622002,616176,"Schulplatz 1",8561,"Söding-Sankt Johann","Kindergarten Gemeinde Söding-Sankt Johann","Kindergarten Gemeinde Söding-Sankt Johann, Schulplatz 1, 8561, Söding-Sankt Johann"]
[61623001,616346,"Södingberg 35b",8152,"Geistthal-Södingberg","Kindergarten Gemeinde Geistthal-Södingberg","Kindergarten Gemeinde Geistthal-Södingberg, Södingberg 35b, 8152, Geistthal-Södingberg"]
[61624003,616906,"Stallhofen 313",8152,"Stallhofen","Kindergarten Marktgemeinde Stallhofen Orts- u. Infrastrukturentwicklungs KG","Kindergarten Marktgemeinde Stallhofen Orts- u. Infrastrukturentwicklungs KG, Stallhofen 313, 8152, Stallhofen"]
[61625001,616106,"Conrad-von-Hötzendorf-Straße 12",8570,"Voitsberg","Kindergarten Stadtgemeinde Voitsberg","Kindergarten Stadtgemeinde Voitsberg, Conrad-von-Hötzendorf-Straße 12, 8570, Voitsberg"]
[61625002,616136,"Kremsergasse 7",8570,"Voitsberg","Kindergarten Stadtgemeinde Voitsberg","Kindergarten Stadtgemeinde Voitsberg, Kremsergasse 7, 8570, Voitsberg"]
[61625011,616856,"Schillerstraße 12",8570,"Voitsberg","Kindergarten Stadtgemeinde Voitsberg","Kindergarten Stadtgemeinde Voitsberg, Schillerstraße 12, 8570, Voitsberg"]
[61625013,61625013,"Am Vorum 5a",8570,"Voitsberg","Kindergarten Stadtgemeinde Voitsberg","Kindergarten Stadtgemeinde Voitsberg, Am Vorum 5a, 8570, Voitsberg"]
[61625015,61625015,"Helmut-Glaser-Straße 5",8570,"Voitsberg","Kindergarten Stadtgemeinde Voitsberg","Kindergarten Stadtgemeinde Voitsberg, Helmut-Glaser-Straße 5, 8570, Voitsberg"]
[61632002,61632002,"Gößnitz-Dorf 44",8591,"Maria Lankowitz","Kindergarten Marktgemeinde Maria Lankowitz","Kindergarten Marktgemeinde Maria Lankowitz, Gößnitz-Dorf 44, 8591, Maria Lankowitz"]
[61633001,61633001,"Schulplatz 5",8561,"Söding-Sankt Johann","Kindergarten Gemeinde Söding-Sankt Johann","Kindergarten Gemeinde Söding-Sankt Johann, Schulplatz 5, 8561, Söding-Sankt Johann"]
[61701002,617936,"Albersdorf 160",8200,"Albersdorf-Prebuch","Kindergarten Gemeinde Albersdorf-Prebuch","Kindergarten Gemeinde Albersdorf-Prebuch, Albersdorf 160, 8200, Albersdorf-Prebuch"]
[61702001,617016,"Gartengasse 11",8184,"Anger","Kindergarten Marktgemeinde Anger","Kindergarten Marktgemeinde Anger, Gartengasse 11, 8184, Anger"]
[61703002,617866,"Arzberg 3",8162,"Passail","Kindergarten Marktgemeinde Passail","Kindergarten Marktgemeinde Passail, Arzberg 3, 8162, Passail"]
[61704001,617346,"Baierdorf-Umgebung 205",8184,"Anger","Kindergarten Marktgemeinde Anger","Kindergarten Marktgemeinde Anger, Baierdorf-Umgebung 205, 8184, Anger"]
[61705002,617646,"Birkengasse 3",8190,"Birkfeld","Kindergarten Marktgemeinde Birkfeld ","Kindergarten Marktgemeinde Birkfeld , Birkengasse 3, 8190, Birkfeld"]
[61706001,617456,"Etzersdorf 51",8160,"Sankt Ruprecht an der Raab","Kindergarten Marktgemeinde Sankt Ruprecht an der Raab","Kindergarten Marktgemeinde Sankt Ruprecht an der Raab, Etzersdorf 51, 8160, Sankt Ruprecht an der Raab"]
[61708002,617176,"Dorfstraße 15",8654,"Fischbach","Kindergarten Gemeinde Fischbach","Kindergarten Gemeinde Fischbach, Dorfstraße 15, 8654, Fischbach"]
[61709003,617716,"Fladnitz/Teichalm 27a",8163,"Fladnitz an der Teichalm","Kindergarten Gemeinde Fladnitz an der Teichalm","Kindergarten Gemeinde Fladnitz an der Teichalm, Fladnitz/Teichalm 27a, 8163, Fladnitz an der Teichalm"]
[61710002,617406,"Lebing 100",8183,"Floing","Kindergarten Gemeinde Floing","Kindergarten Gemeinde Floing, Lebing 100, 8183, Floing"]
[61711002,617796,"Dorfplatz 3a",8616,"Gasen","Kindergarten Gemeinde Gasen","Kindergarten Gemeinde Gasen, Dorfplatz 3a, 8616, Gasen"]
[61712002,617036,"Gersdorf an der Feistritz 57",8212,"Gersdorf an der Feistritz","Kindergarten Gemeinde Gersdorf an der Feistritz","Kindergarten Gemeinde Gersdorf an der Feistritz, Gersdorf an der Feistritz 57, 8212, Gersdorf an der Feistritz"]
[61713009,617032,"Franz-Bloder-Gasse 3",8200,"Gleisdorf","Kindergarten Röm.-kath. Pfarre Gleisdorf","Kindergarten Röm.-kath. Pfarre Gleisdorf, Franz-Bloder-Gasse 3, 8200, Gleisdorf"]
[61715002,617286,"Dorfplatz 6",8164,"Gutenberg-Stenzengreith","Kindergarten Gemeinde Gutenberg-Stenzengreith","Kindergarten Gemeinde Gutenberg-Stenzengreith, Dorfplatz 6, 8164, Gutenberg-Stenzengreith"]
[61716004,61716004,"Bermenweg 1",8311,"Markt Hartmannsdorf","Kindergarten Marktgemeinde Markt Hartmannsdorf","Kindergarten Marktgemeinde Markt Hartmannsdorf, Bermenweg 1, 8311, Markt Hartmannsdorf"]
[61717001,617266,"Haslau 84",8190,"Birkfeld","Kindergarten Marktgemeinde Birkfeld ","Kindergarten Marktgemeinde Birkfeld , Haslau 84, 8190, Birkfeld"]
[61718001,617336,"Hirnsdorf 167",8221,"Feistritztal","Kindergarten Gemeinde Feistritztal","Kindergarten Gemeinde Feistritztal, Hirnsdorf 167, 8221, Feistritztal"]
[61719003,617069,"Pirching 80",8200,"Hofstätten an der Raab","Kindergarten Gemeinde Hofstätten an der Raab","Kindergarten Gemeinde Hofstätten an der Raab, Pirching 80, 8200, Hofstätten an der Raab"]
[61720003,617726,"Auen 50",8162,"Passail","Kindergarten Marktgemeinde Passail","Kindergarten Marktgemeinde Passail, Auen 50, 8162, Passail"]
[61721002,617566,"Prebensdorf 72",8211,"Ilztal","Kindergarten Gemeinde Ilztal","Kindergarten Gemeinde Ilztal, Prebensdorf 72, 8211, Ilztal"]
[61722002,617058,"Koglhof 35",8191,"Birkfeld","Kindergarten Marktgemeinde Birkfeld ","Kindergarten Marktgemeinde Birkfeld , Koglhof 35, 8191, Birkfeld"]
[61723001,617396,"Krottendorfer Hauptstraße 5",8160,"Weiz","Kindergarten Stadtgemeinde  Weiz","Kindergarten Stadtgemeinde  Weiz, Krottendorfer Hauptstraße 5, 8160, Weiz"]
[61727001,617846,"Flöcking 148",8200,"Ludersdorf-Wilfersdorf","Kindergarten Gemeinde Ludersdorf-Wilfersdorf","Kindergarten Gemeinde Ludersdorf-Wilfersdorf, Flöcking 148, 8200, Ludersdorf-Wilfersdorf"]
[61728002,617536,"Dorfviertel 81",8190,"Miesenbach bei Birkfeld","Kindergarten Gemeinde Miesenbach bei Birkfeld","Kindergarten Gemeinde Miesenbach bei Birkfeld, Dorfviertel 81, 8190, Miesenbach bei Birkfeld"]
[61729004,61729004,"Mitterdorf an der Raab 5d",8181,"Mitterdorf an der Raab","Kindergarten Gemeinde Mitterdorf an der Raab","Kindergarten Gemeinde Mitterdorf an der Raab, Mitterdorf an der Raab 5d, 8181, Mitterdorf an der Raab"]
[61730001,617146,"Göttelsberg 160",8160,"Mortantsch","Kindergarten Gemeinde Mortantsch","Kindergarten Gemeinde Mortantsch, Göttelsberg 160, 8160, Mortantsch"]
[61731002,61731002,"In der Weiz 109",8160,"Naas","Kindergarten Gemeinde Naas","Kindergarten Gemeinde Naas, In der Weiz 109, 8160, Naas"]
[61732001,617696,"Naintsch 130",8172,"Anger","Kindergarten Marktgemeinde Anger","Kindergarten Marktgemeinde Anger, Naintsch 130, 8172, Anger"]
[61736001,617066,"Weizer Straße 79",8162,"Passail","Kindergarten Marktgemeinde Passail","Kindergarten Marktgemeinde Passail, Weizer Straße 79, 8162, Passail"]
[61737002,617886,"Pischelsdorf 461",8212,"Pischelsdorf am Kulm","Kindergarten Marktgemeinde Pischelsdorf am Kulm","Kindergarten Marktgemeinde Pischelsdorf am Kulm, Pischelsdorf 461, 8212, Pischelsdorf am Kulm"]
[61740001,617086,"Puch 103",8182,"Puch bei Weiz","Kindergarten Gemeinde Puch bei Weiz","Kindergarten Gemeinde Puch bei Weiz, Puch 103, 8182, Puch bei Weiz"]
[61741002,61741002,"Kirchenviertel 11",8673,"Ratten","Kindergarten Gemeinde Ratten","Kindergarten Gemeinde Ratten, Kirchenviertel 11, 8673, Ratten"]
[61742001,617596,"Reichendorf 25",8212,"Pischelsdorf am Kulm","Kindergarten Marktgemeinde Pischelsdorf am Kulm","Kindergarten Marktgemeinde Pischelsdorf am Kulm, Reichendorf 25, 8212, Pischelsdorf am Kulm"]
[61743001,617316,"Rettenegg 84",8674,"Rettenegg","Kindergarten Gemeinde Rettenegg","Kindergarten Gemeinde Rettenegg, Rettenegg 84, 8674, Rettenegg"]
[61744001,617656,"St. Kathrein 150",8672,"St. Kathrein am Hauenstein","Kindergarten Gemeinde Sankt Kathrein am Hauenstein","Kindergarten Gemeinde Sankt Kathrein am Hauenstein, St. Kathrein 150, 8672, St. Kathrein am Hauenstein"]
[61745001,617466,"Dorf 99a",8171,"Sankt Kathrein am Offenegg","Kindergarten Gemeinde Sankt Kathrein am Offenegg","Kindergarten Gemeinde Sankt Kathrein am Offenegg, Dorf 99a, 8171, Sankt Kathrein am Offenegg"]
[61746002,617096,"St. Margarethen an der Raab 35",8321,"St. Margarethen an der Raab","Kindergarten Röm.-kath. Pfarre St. Margarethen an der Raab","Kindergarten Röm.-kath. Pfarre St. Margarethen an der Raab, St. Margarethen an der Raab 35, 8321, St. Margarethen an der Raab"]
[61746003,617686,"St. Margarethen an der Raab 4",8321,"St. Margarethen an der Raab","Kindergarten Verein \"Bunte Knöpfe\"","Kindergarten Verein \"Bunte Knöpfe\", St. Margarethen an der Raab 4, 8321, St. Margarethen an der Raab"]
[61747002,617616,"Fünfingerstraße 127",8181,"Sankt Ruprecht an der Raab","Kindergarten Marktgemeinde Sankt Ruprecht an der Raab","Kindergarten Marktgemeinde Sankt Ruprecht an der Raab, Fünfingerstraße 127, 8181, Sankt Ruprecht an der Raab"]
[61748001,617366,"Sinabelkirchen 75",8261,"Sinabelkirchen","Kindergarten Marktgemeinde Sinabelkirchen","Kindergarten Marktgemeinde Sinabelkirchen, Sinabelkirchen 75, 8261, Sinabelkirchen"]
[61750003,61750003,"Strallegg 342",8192,"Strallegg","Kindergarten Gemeinde Strallegg","Kindergarten Gemeinde Strallegg, Strallegg 342, 8192, Strallegg"]
[61751002,617004,"Thannhausen 3",8160,"Thannhausen","Kindergarten Gemeinde Thannhausen","Kindergarten Gemeinde Thannhausen, Thannhausen 3, 8160, Thannhausen"]
[61754004,617626,"Waisenegg 230",8190,"Birkfeld","Kindergarten Marktgemeinde Birkfeld ","Kindergarten Marktgemeinde Birkfeld , Waisenegg 230, 8190, Birkfeld"]
[61755005,617356,"Hofstattgasse 8",8160,"Weiz","Kindergarten Stadtgemeinde  Weiz","Kindergarten Stadtgemeinde  Weiz, Hofstattgasse 8, 8160, Weiz"]
[61755006,617436,"Schnitzlergasse 25",8160,"Weiz","Kindergarten Stadtgemeinde  Weiz","Kindergarten Stadtgemeinde  Weiz, Schnitzlergasse 25, 8160, Weiz"]
[61755007,617516,"Pestalozzigasse 25",8160,"Weiz","Kindergarten Röm.-kath. Pfarre Weiz","Kindergarten Röm.-kath. Pfarre Weiz, Pestalozzigasse 25, 8160, Weiz"]
[61755008,617576,"Hanna und Paul-Gasser-Gasse 4",8160,"Weiz","Kindergarten Stadtgemeinde  Weiz","Kindergarten Stadtgemeinde  Weiz, Hanna und Paul-Gasser-Gasse 4, 8160, Weiz"]
[61755010,617676,"Franz-Pichler-Straße 32",8160,"Weiz","Kindergarten Stadtgemeinde  Weiz","Kindergarten Stadtgemeinde  Weiz, Franz-Pichler-Straße 32, 8160, Weiz"]
[61755015,617005,"Resselgasse 1",8160,"Weiz","Kindergarten Verein \"Villa Kunterbunt-Kinderbetreuung in Weiz\"","Kindergarten Verein \"Villa Kunterbunt-Kinderbetreuung in Weiz\", Resselgasse 1, 8160, Weiz"]
[61760003,null,"Dr.-Hermann-Hornung-Gasse 31",8200,"Gleisdorf","Kindergarten JUKi GmbH","Kindergarten JUKi GmbH, Dr.-Hermann-Hornung-Gasse 31, 8200, Gleisdorf"]
[61760005,null,"Labuch 19",8200,"Gleisdorf","Kindergarten JUKi GmbH","Kindergarten JUKi GmbH, Labuch 19, 8200, Gleisdorf"]
[61760007,null,"Nitscha 2",8200,"Gleisdorf","Kindergarten JUKi GmbH","Kindergarten JUKi GmbH, Nitscha 2, 8200, Gleisdorf"]
[61760009,null,"Laßnitzthal 310",8200,"Gleisdorf","Kindergarten JUKi GmbH","Kindergarten JUKi GmbH, Laßnitzthal 310, 8200, Gleisdorf"]
[61760011,null,"Mühlgasse 68",8200,"Gleisdorf","Kindergarten JUKi GmbH","Kindergarten JUKi GmbH, Mühlgasse 68, 8200, Gleisdorf"]
[61766001,61766001,"Südtiroler Platz 3",8160,"Weiz","Kindergarten Stadtgemeinde  Weiz","Kindergarten Stadtgemeinde  Weiz, Südtiroler Platz 3, 8160, Weiz"]
[61801001,61801001,"Stempfergasse 4",8010,"Graz","Kinderhaus ABTEILUNG 6","Kinderhaus ABTEILUNG 6, Stempfergasse 4, 8010, Graz"]
[62007601,null,"Hauptstraße 17",8753,"Fohnsdorf","Kinderhaus Gemeinde Fohnsdorf","Kinderhaus Gemeinde Fohnsdorf, Hauptstraße 17, 8753, Fohnsdorf"]
[62034001,620005,"Benediktstraße 1",8732,"Seckau","Kindergarten Marktgemeinde Seckau","Kindergarten Marktgemeinde Seckau, Benediktstraße 1, 8732, Seckau"]
[62040003,62040003,"Johann-Strauß-Gasse 86",8750,"Judenburg","Kindergarten Stadtgemeinde  Judenburg","Kindergarten Stadtgemeinde  Judenburg, Johann-Strauß-Gasse 86, 8750, Judenburg"]
[62041004,62041004,"Gaaler Straße 12",8720,"Knittelfeld","Kindergarten Gem. Wohn- u. Siedlungsgenossenschaft Ennstal reg. Gen.m.b.H. Liezen","Kindergarten Gem. Wohn- u. Siedlungsgenossenschaft Ennstal reg. Gen.m.b.H. Liezen, Gaaler Straße 12, 8720, Knittelfeld"]
[62042001,62042001,"St. Wolfganger-Straße 7b",8742,"Obdach","Kindergarten Marktgemeinde Obdach","Kindergarten Marktgemeinde Obdach, St. Wolfganger-Straße 7b, 8742, Obdach"]
[62047001,62047001,"Poststraße 15",8724,"Spielberg","Kindergarten Stadtgemeinde Spielberg","Kindergarten Stadtgemeinde Spielberg, Poststraße 15, 8724, Spielberg"]
[62105002,62105002,"St. Jakob 33",8614,"Breitenau am Hochlantsch","Kindergarten Marktgemeinde Breitenau am Hochlantsch","Kindergarten Marktgemeinde Breitenau am Hochlantsch, St. Jakob 33, 8614, Breitenau am Hochlantsch"]
[62106001,602986,"Wiener Straße 79",8600,"Bruck an der Mur","Kindergarten Bildungsanstalt für Elementarpädagogik Bruck an der Mur","Kindergarten Bildungsanstalt für Elementarpädagogik Bruck an der Mur, Wiener Straße 79, 8600, Bruck an der Mur"]
[62125001,621011,"Neue Welt 16",8131,"Pernegg an der Mur","Kindergarten Gemeinde Pernegg an der Mur","Kindergarten Gemeinde Pernegg an der Mur, Neue Welt 16, 8131, Pernegg an der Mur"]
[62143003,62143003,"Roseggergasse 37",8680,"Mürzzuschlag","Kindergarten Dipl.-Ing Pajduch Andreas Emmerich","Kindergarten Dipl.-Ing Pajduch Andreas Emmerich, Roseggergasse 37, 8680, Mürzzuschlag"]
[62145002,62145002,"Untere Hauptstraße 1",8663,"Sankt Barbara im Mürztal","Kindergarten Marktgemeinde Sankt Barbara im Mürztal","Kindergarten Marktgemeinde Sankt Barbara im Mürztal, Untere Hauptstraße 1, 8663, Sankt Barbara im Mürztal"]
[62145003,62145003,"Dorfstraße 6",8661,"Sankt Barbara im Mürztal","Kindergarten Marktgemeinde Sankt Barbara im Mürztal","Kindergarten Marktgemeinde Sankt Barbara im Mürztal, Dorfstraße 6, 8661, Sankt Barbara im Mürztal"]
[62146001,62146001,"Brunnenweg 1",8641,"Sankt Marein im Mürztal","Kindergarten Marktgemeinde Sankt Marein im Mürztal","Kindergarten Marktgemeinde Sankt Marein im Mürztal, Brunnenweg 1, 8641, Sankt Marein im Mürztal"]
[62206001,62206001,"Kircheggstraße 107",8291,"Burgau","Kindergarten Röm.-kath. Pfarre Burgau","Kindergarten Röm.-kath. Pfarre Burgau, Kircheggstraße 107, 8291, Burgau"]
[62214001,62214001,"Staudach 295",8230,"Greinbach","Kindergarten Gemeinde Greinbach","Kindergarten Gemeinde Greinbach, Staudach 295, 8230, Greinbach"]
[62219001,622027,"Krankenhausplatz 2",8230,"Hartberg","Kindergarten Gem. Wohn- u. Siedlungsgenossenschaft Ennstal reg. Gen.m.b.H. Liezen","Kindergarten Gem. Wohn- u. Siedlungsgenossenschaft Ennstal reg. Gen.m.b.H. Liezen, Krankenhausplatz 2, 8230, Hartberg"]
[62226001,62226001,"Lafnitz 35",8233,"Lafnitz","Kindergarten Gemeinde Lafnitz","Kindergarten Gemeinde Lafnitz, Lafnitz 35, 8233, Lafnitz"]
[62233001,62233001,"Schulstraße 15",8243,"Pinggau","Kindergarten Marktgemeinde Pinggau","Kindergarten Marktgemeinde Pinggau, Schulstraße 15, 8243, Pinggau"]
[62265001,62265001,"Dechantskirchen 245",8241,"Dechantskirchen","Kindergarten Gemeinde Dechantskirchen","Kindergarten Gemeinde Dechantskirchen, Dechantskirchen 245, 8241, Dechantskirchen"]
[62267001,62267001,"Burgenlandstraße 17",8280,"Fürstenfeld","Kindergarten Stadtgemeinde Fürstenfeld","Kindergarten Stadtgemeinde Fürstenfeld, Burgenlandstraße 17, 8280, Fürstenfeld"]
[62268001,62268001,"Formbacherstraße 360",8232,"Grafendorf bei Hartberg","Kindergarten Marktgemeinde Grafendorf bei Hartberg","Kindergarten Marktgemeinde Grafendorf bei Hartberg, Formbacherstraße 360, 8232, Grafendorf bei Hartberg"]
[62272001,62272001,"Hofkirchen 244",8224,"Kaindorf","Kindergarten Marktgemeinde Kaindorf","Kindergarten Marktgemeinde Kaindorf, Hofkirchen 244, 8224, Kaindorf"]
[62278001,62278001,"Gerichtsgasse 511",8250,"Vorau","Kindergarten Marktgemeinde Vorau","Kindergarten Marktgemeinde Vorau, Gerichtsgasse 511, 8250, Vorau"]
[62314002,62314002,"Eichkögl 4",8322,"Eichkögl","Kindergarten Gemeinde Eichkögl","Kindergarten Gemeinde Eichkögl, Eichkögl 4, 8322, Eichkögl"]
[62326001,62326001,"Halbenrain 75",8492,"Halbenrain","Kindergarten Röm.-kath. Pfarre Halbenrain","Kindergarten Röm.-kath. Pfarre Halbenrain, Halbenrain 75, 8492, Halbenrain"]
[62330003,62330003,"Jagerberg 98",8091,"Jagerberg","Kindergarten Marktgemeinde Jagerberg","Kindergarten Marktgemeinde Jagerberg, Jagerberg 98, 8091, Jagerberg"]
[62332002,62332002,"Kapfenstein 181",8353,"Kapfenstein","Kindergarten Gemeinde Kapfenstein","Kindergarten Gemeinde Kapfenstein, Kapfenstein 181, 8353, Kapfenstein"]
[62334001,623002,"Kirchberg an der Raab 277",8324,"Kirchberg an der Raab","Kindergarten Gemeinde Kirchberg an der Raab","Kindergarten Gemeinde Kirchberg an der Raab, Kirchberg an der Raab 277, 8324, Kirchberg an der Raab"]
[62335001,62335001,"Klöch 112",8493,"Klöch","Kindergarten Marktgemeinde Klöch","Kindergarten Marktgemeinde Klöch, Klöch 112, 8493, Klöch"]
[62347001,623009,"Schulweg 11",8473,"Straß in Steiermark","Kindergarten Marktgemeinde Straß in Steiermark","Kindergarten Marktgemeinde Straß in Steiermark, Schulweg 11, 8473, Straß in Steiermark"]
[62383002,62383002,"Süßenberger Straße 30",8480,"Mureck","Kindergarten Stadtgemeinde  Mureck","Kindergarten Stadtgemeinde  Mureck, Süßenberger Straße 30, 8480, Mureck"]
[62385001,null,"Frannach 31",8081,"Pirching am Traubenberg","Kindergarten Gemeinde Pirching am Traubenberg","Kindergarten Gemeinde Pirching am Traubenberg, Frannach 31, 8081, Pirching am Traubenberg"]
[601010002,601010002,"Am Damm 23",8020,"Graz","Kindergarten Stadtgemeinde Graz, Abteilung für Bildung und Integration","Kindergarten Stadtgemeinde Graz, Abteilung für Bildung und Integration, Am Damm 23, 8020, Graz"]
[601010004,601010004,"Steinbergstraße 10",8052,"Graz","Kindergarten Winkler Immobilien GmbH","Kindergarten Winkler Immobilien GmbH, Steinbergstraße 10, 8052, Graz"]
[601010009,601010009,"Prochaskagasse 19",8045,"Graz","Kindergarten Stadtgemeinde Graz, Abteilung für Bildung und Integration","Kindergarten Stadtgemeinde Graz, Abteilung für Bildung und Integration, Prochaskagasse 19, 8045, Graz"]
[601010014,601010014,"Stiftingtalstraße 343b",8010,"Graz","Kindergarten Verein \"Kindergruppe Stiftingtal\"","Kindergarten Verein \"Kindergruppe Stiftingtal\", Stiftingtalstraße 343b, 8010, Graz"]
[601010017,601010017,"Georgigasse 84",8020,"Graz","Kindergarten Österreichische Provinz der Franziskanerinnen von der Unbefleckten Empfängnis","Kindergarten Österreichische Provinz der Franziskanerinnen von der Unbefleckten Empfängnis, Georgigasse 84, 8020, Graz"]
[601010021,601010021,"Lindweg 31",8010,"Graz","Kindergarten Wirtschaftskammer Steiermark","Kindergarten Wirtschaftskammer Steiermark, Lindweg 31, 8010, Graz"]